Workbook

Sheet index
A2: 令和2年度下水道事業比較経営診断表
B4: 都道府県名 | K4: 処理区域内人口別区分 | L4: 政令市等 | O4: 処理区域内人口 （人） | Q4: 1946978
B5: 団体名 | K5: 有収水量密度別区分 | L5: 政令市等 | O5: 有収水量密度 （千㎥/ｈa) | Q5: 8.2
B6: 事業名 | K6: 供用開始後年数別区分 | L6: 政令市等 | O6: 供用開始後年数 (年） | Q6: 60
A8: 項 目 | E8: 団 体 | G8: 類型平均 | H8: 全国平均 | I8: 類型内 順 位 | J8: 項 目 | M8: 団 体 | O8: 類型平均 | P8: 全国平均 | Q8: 類型内 順 位
E9: R1年度 | F9: R2年度 | H9: (公共) | M9: R1年度 | N9: R2年度 | P9: (公共)
A10: 事業の概要 | J10: 財政状態の健全性
A11: 事業別普及率 | D11: ％ | E11: 99.3 | F11: 99.3 | G11: － | H11: 79.6 | I11: － | J11: 総収支比率 | L11: ％ | M11: 105.3 | N11: 102.5 | O11: 105.5 | P11: 107.8 | Q11: 15/21
A12: 進捗率 | D12: ％ | E12: 104.8 | F12: 104.9 | G12: 102.4 | H12: 95.6 | I12: － | J12: 経常収支比率 | L12: ％ | M12: 105.3 | N12: 102.4 | O12: 105.1 | P12: 105.8 | Q12: 16/21
A13: 一般家庭用使用料 （1ヶ月20㎥あたり） | D13: 円／月 | E13: 1371 | F13: 1371 | G13: 2238 | H13: 2858 | I13: － | J13: 事業別資金不足比率 | L13: ％ | M13: 0 | N13: 0 | O13: 0 | P13: 14.9 | Q13: 1/21
A14: 処理区域内人口密度 | D14: 人／ha | E14: 79 | F14: 79 | G14: 100 | H14: 61 | I14: － | J14: 利子負担率 | L14: ％ | M14: 1.4 | N14: 1.2 | O14: 1.3 | P14: 1.5 | Q14: 4/21
A15: 施設の効率性 | J15: 自己資本構成比率 | L15: ％ | M15: 57.7 | N15: 57.6 | O15: 63.4 | P15: 62 | Q15: 11/21
A16: 施設利用率 | D16: ％ | E16: 64.1 | F16: 63.2 | G16: 59 | H16: 61.8 | I16: 9/21 | J16: 固定資産対長期資本比率 | L16: ％ | M16: 101.6 | N16: 101.8 | O16: 101.4 | P16: 101.5 | Q16: 14/21
A17: 有収率 | D17: ％ | E17: 74.7 | F17: 75 | G17: 79.9 | H17: 80.4 | I17: 14/21 | J17: 処理区域内人口１人あたりの 企業債（地方債）現在高 | L17: 千円／人 | M17: 121 | N17: 121 | O17: 176 | P17: 189 | Q17: 3/21
A18: 水洗化率 | D18: ％ | E18: 99.9 | F18: 100 | G18: 99.1 | H18: 95.6 | I18: 1/21
A19: 経営の効率性
A20: 使用料単価 | D20: 円／㎥ | E20: 93.5 | F20: 88.24 | G20: 125 | H20: 132.94 | I20: 20/21
A21: 汚水処理原価 | D21: 円／㎥ | E21: 97.16 | F21: 95.34 | G21: 118.38 | H21: 134.33 | I21: 2/21
A22: 汚水処理原価(分流式下水道 等に要する経費控除前） | D22: 円／㎥ | E22: 97.16 | F22: 95.34 | G22: 119.85 | H22: 154.47 | I22: 2/21
A23: 汚水処理原価 （維持管理費） | D23: 円／㎥ | E23: 55.9 | F23: 53.93 | G23: 59.26 | H23: 71.49 | I23: 7/21
A24: 汚水処理原価 （資本費） | D24: 円／㎥ | E24: 41.26 | F24: 41.41 | G24: 59.11 | H24: 62.84 | I24: 2/21
A25: 経費回収率 | D25: ％ | E25: 96.2 | F25: 92.5 | G25: 105.6 | H25: 99 | I25: 20/21
A26: 経費回収率(分流式下水道 等に要する経費控除前） | D26: ％ | E26: 96.2 | F26: 92.5 | G26: 104.3 | H26: 86.1 | I26: 16/21
A27: 経費回収率 （維持管理費） | D27: ％ | E27: 167.3 | F27: 163.6 | G27: 210.9 | H27: 186 | I27: 20/21
A28: 処理区域内人口1人あたり の管理運営費(汚水分） | D28: 円／人 | E28: 10234 | F28: 9887 | G28: 13541 | H28: 14499 | I28: 1/21
A29: 処理区域内人口1人あたり の維持管理費（汚水分） | D29: 円／人 | E29: 5888 | F29: 5592 | G29: 6779 | H29: 7716 | I29: 6/21
A30: 処理区域内人口1人あたり の資本費（汚水分） | D30: 円／人 | E30: 4346 | F30: 4294 | G30: 6762 | H30: 6782 | I30: 1/21
A31: 職員１人あたりの 処理区域内人口 | D31: 人／人 | E31: 4068 | F31: 3781 | G31: 3836 | H31: 3946 | I31: 12/21
A32: 職員給与費対営業収益比率 | D32: ％ | E32: 8 | F32: 8.6 | G32: 6.1 | H32: 6.4 | I32: 16/21
A34: 経 営 状 況
A35: 収 益 的 収 支 | J35: 資 本 的 収 支
A36: 項 目 | E36: R1年度 | F36: R2年度 | G36: 増減額 | H36: 増減率（％） | J36: 項 目 | M36: R1年度 | N36: R2年度 | O36: 増減額 | P36: 増減率（％）
A37: 収 入 | D37: 百万円 | E37: 49360 | F37: 47576 | G37: -1784 | H37: -3.74978981 | J37: 収 入 | L37: 百万円 | M37: 19616 | N37: 22396 | O37: 2780 | P37: 12.41293088
B38: 下水道使用料 | D38: 百万円 | E38: 19151 | F38: 17815 | G38: -1336 | H38: -7.499298344 | K38: 企業債（非適：地方債） | L38: 百万円 | M38: 13875 | N38: 15912 | O38: 2037 | P38: 12.80165913
B39: 繰入金 | D39: 百万円 | E39: 18724 | F39: 18033 | G39: -691 | H39: -3.831863805 | K39: 繰入金 | L39: 百万円 | M39: 488 | N39: 399 | O39: -89 | P39: -22.30576441
A40: 支 出 | D40: 百万円 | E40: 46871 | F40: 46409 | G40: -462 | H40: -0.9954965632 | J40: 支 出 | L40: 百万円 | M40: 36210 | N40: 38600 | O40: 2390 | P40: 6.191709845
B41: 支払利息 | D41: 百万円 | E41: 3216 | F41: 2792 | G41: -424 | H41: -15.18624642 | K41: 建設改良費 | L41: 百万円 | M41: 19989 | N41: 22629 | O41: 2640 | P41: 11.66644571
B42: 減価償却費 | D42: 百万円 | E42: 24657 | F42: 24619 | G42: -38 | H42: -0.1543523295 | K42: 元金償還金 | L42: 百万円 | M42: 16203 | N42: 15971 | O42: -232 | P42: -1.452632897
B43: 職員給与費 | D43: 百万円 | E43: 3009 | F43: 3063 | G43: 54 | H43: 1.762977473 | J43: 収 支 差 引 | L43: 百万円 | M43: -16594 | N43: -16204 | O43: 390 | P43: -2.406813133
A44: 収 支 差 引 | D44: 百万円 | E44: 2489 | F44: 1167 | G44: -1322 | H44: -113.2819195 | J44: 純 損 益 （非適：収支再差引） | L44: 百万円 | M44: 2489 | N44: 1167 | O44: -1322 | P44: -113.2819195
A46: ※「類型内順位」については
A47: の場合であれば指標の数値の高い方から、
A48: の場合であれば指標の数値が低い方から数えた順位となる
F49: 団体 | G49: 類型平均 | H49: 全国平均
F50: =+IF(IF(G17<>0,F17/G17,0)>0.6,IF(IF(G17<>0,F17/G17)<1.5,IF(G17<>0,F17/G17),1.5),0.6) -> 0.9386733417 | G50: =+IF(IF(G17<>0,G17/G17,0)>0.6,IF(IF(G17<>0,G17/G17,0)<1.5,IF(G17<>0,G17/G17,0),1.5),0.6) -> 1 | H50: =+IF(IF(G17<>0,H17/G17,0)>0.6,IF(IF(G17<>0,H17/G17,0)<1.5,IF(G17<>0,H17/G17,0),1.5),0.6) -> 1.006257822
F51: =+IF(IF(G25<>0,F25/G25,0)>0.6,IF(IF(G25<>0,F25/G25,0)<1.5,IF(G25<>0,F25/G25,0),1.5),0.6) -> 0.8759469697 | G51: =+IF(IF(G25<>0,G25/G25,0)>0.6,IF(IF(G25<>0,G25/G25,0)<1.5,IF(G25<>0,G25/G25,0),1.5),0.6) -> 1 | H51: =+IF(IF(G25<>0,H25/G25,0)>0.6,IF(IF(G25<>0,H25/G25,0)<1.5,IF(G25<>0,H25/G25,0),1.5),0.6) -> 0.9375
F52: =+IF(IF(G26<>0,F26/G26,0)>0.6,IF(IF(G26<>0,F26/G26,0)<1.5,IF(G26<>0,F26/G26,0),1.5),0.6) -> 0.886864813 | G52: =+IF(IF(G26<>0,G26/G26,0)>0.6,IF(IF(G26<>0,G26/G26,0)<1.5,IF(G26<>0,G26/G26,0),1.5),0.6) -> 1 | H52: =+IF(IF(G26<>0,H26/G26,0)>0.6,IF(IF(G26<>0,H26/G26,0)<1.5,IF(G26<>0,H26/G26,0),1.5),0.6) -> 0.8255033557
F53: =+IF(IF(G22<>0,G22/F22,0)>0.6,IF(IF(G22<>0,G22/F22,0)<1.5,IF(G22<>0,G22/F22,0),1.5),0.6) -> 1.257079924 | G53: =+IF(IF(G22<>0,G22/G22,0)>0.6,IF(IF(G22<>0,G22/G22,0)<1.5,IF(G22<>0,G22/G22,0),1.5),0.6) -> 1 | H53: =+IF(IF(G22<>0,G22/H22,0)>0.6,IF(IF(G22<>0,G22/H22,0)<1.5,IF(G22<>0,G22/H22,0),1.5),0.6) -> 0.7758788114
F54: =+IF(IF(G18<>0,F18/G18,0)>0.6,IF(IF(G18<>0,F18/G18,0)<1.5,IF(G18<>0,F18/G18,0),1.5),0.6) -> 1.009081736 | G54: =+IF(IF(G18<>0,G18/G18,0)>0.6,IF(IF(G18<>0,G18/G18,0)<1.5,IF(G18<>0,G18/G18,0),1.5),0.6) -> 1 | H54: =+IF(IF(G18<>0,H18/G18,0)>0.6,IF(IF(G18<>0,H18/G18,0)<1.5,IF(G18<>0,H18/G18,0),1.5),0.6) -> 0.9646821393

Sheet R2収支
A1: 決算年度 | B1: 業務コード | C1: 業種コード | D1: 事業コード | E1: 並び順 | F1: 事業区分 | G1: 団体コード | H1: 都道府県 | I1: 団体名 | J1: 収入 | K1: 料金収入 | L1: 繰入金 | M1: 支出 | N1: 支払利息 | O1: 減価償却費 | P1: 職員給与費 | Q1: 収支差引 | R1: 収入 | S1: 地方債 | T1: 繰入金 | U1: 支出 | V1: 建設改良費 | W1: 元金償還金 | X1: 収支差引 | Y1: 収支再差引
A2: 2020 | B2: 46 | C2: 17 | D2: 1 | E2: 1 | F2: 公共 | G2: 011002 | H2: 北海道 | I2: 札幌市 | J2: =IF(千円単!J2="","",ROUND(千円単!J2/1000,0)) -> 47576 | K2: =IF(千円単!K2="","",ROUND(千円単!K2/1000,0)) -> 17815 | L2: =IF(千円単!L2="","",ROUND(千円単!L2/1000,0)) -> 18033 | M2: =IF(千円単!M2="","",ROUND(千円単!M2/1000,0)) -> 46409 | N2: =IF(千円単!N2="","",ROUND(千円単!N2/1000,0)) -> 2792 | O2: =IF(千円単!O2="","",ROUND(千円単!O2/1000,0)) -> 24619 | P2: =IF(千円単!P2="","",ROUND(千円単!P2/1000,0)) -> 3063 | Q2: =IF(千円単!Q2="","",ROUND(千円単!Q2/1000,0)) -> 1167 | R2: =IF(千円単!R2="","",ROUND(千円単!R2/1000,0)) -> 22396 | S2: =IF(千円単!S2="","",ROUND(千円単!S2/1000,0)) -> 15912 | T2: =IF(千円単!T2="","",ROUND(千円単!T2/1000,0)) -> 399 | U2: =IF(千円単!U2="","",ROUND(千円単!U2/1000,0)) -> 38600 | V2: =IF(千円単!V2="","",ROUND(千円単!V2/1000,0)) -> 22629 | W2: =IF(千円単!W2="","",ROUND(千円単!W2/1000,0)) -> 15971 | X2: =IF(千円単!X2="","",ROUND(千円単!X2/1000,0)) -> -16204 | Y2: =IF(千円単!Y2="","",ROUND(千円単!Y2/1000,0)) -> 1167
A3: 2020 | B3: 46 | C3: 17 | D3: 1 | E3: 2 | F3: 公共 | G3: 012025 | H3: 北海道 | I3: 函館市 | J3: =IF(千円単!J3="","",ROUND(千円単!J3/1000,0)) -> 7441 | K3: =IF(千円単!K3="","",ROUND(千円単!K3/1000,0)) -> 4038 | L3: =IF(千円単!L3="","",ROUND(千円単!L3/1000,0)) -> 1179 | M3: =IF(千円単!M3="","",ROUND(千円単!M3/1000,0)) -> 6403 | N3: =IF(千円単!N3="","",ROUND(千円単!N3/1000,0)) -> 721 | O3: =IF(千円単!O3="","",ROUND(千円単!O3/1000,0)) -> 3524 | P3: =IF(千円単!P3="","",ROUND(千円単!P3/1000,0)) -> 357 | Q3: =IF(千円単!Q3="","",ROUND(千円単!Q3/1000,0)) -> 1038 | R3: =IF(千円単!R3="","",ROUND(千円単!R3/1000,0)) -> 3498 | S3: =IF(千円単!S3="","",ROUND(千円単!S3/1000,0)) -> 2456 | T3: =IF(千円単!T3="","",ROUND(千円単!T3/1000,0)) -> 670 | U3: =IF(千円単!U3="","",ROUND(千円単!U3/1000,0)) -> 6102 | V3: =IF(千円単!V3="","",ROUND(千円単!V3/1000,0)) -> 1882 | W3: =IF(千円単!W3="","",ROUND(千円単!W3/1000,0)) -> 4216 | X3: =IF(千円単!X3="","",ROUND(千円単!X3/1000,0)) -> -2604 | Y3: =IF(千円単!Y3="","",ROUND(千円単!Y3/1000,0)) -> 1038
A4: 2020 | B4: 46 | C4: 17 | D4: 1 | E4: 3 | F4: 公共 | G4: 012033 | H4: 北海道 | I4: 小樽市 | J4: =IF(千円単!J4="","",ROUND(千円単!J4/1000,0)) -> 3414 | K4: =IF(千円単!K4="","",ROUND(千円単!K4/1000,0)) -> 1777 | L4: =IF(千円単!L4="","",ROUND(千円単!L4/1000,0)) -> 713 | M4: =IF(千円単!M4="","",ROUND(千円単!M4/1000,0)) -> 3304 | N4: =IF(千円単!N4="","",ROUND(千円単!N4/1000,0)) -> 141 | O4: =IF(千円単!O4="","",ROUND(千円単!O4/1000,0)) -> 1830 | P4: =IF(千円単!P4="","",ROUND(千円単!P4/1000,0)) -> 80 | Q4: =IF(千円単!Q4="","",ROUND(千円単!Q4/1000,0)) -> 109 | R4: =IF(千円単!R4="","",ROUND(千円単!R4/1000,0)) -> 2346 | S4: =IF(千円単!S4="","",ROUND(千円単!S4/1000,0)) -> 1043 | T4: =IF(千円単!T4="","",ROUND(千円単!T4/1000,0)) -> 368 | U4: =IF(千円単!U4="","",ROUND(千円単!U4/1000,0)) -> 3421 | V4: =IF(千円単!V4="","",ROUND(千円単!V4/1000,0)) -> 1612 | W4: =IF(千円単!W4="","",ROUND(千円単!W4/1000,0)) -> 1808 | X4: =IF(千円単!X4="","",ROUND(千円単!X4/1000,0)) -> -1075 | Y4: =IF(千円単!Y4="","",ROUND(千円単!Y4/1000,0)) -> 109
A5: 2020 | B5: 46 | C5: 17 | D5: 1 | E5: 4 | F5: 公共 | G5: 012041 | H5: 北海道 | I5: 旭川市 | J5: =IF(千円単!J5="","",ROUND(千円単!J5/1000,0)) -> 8599 | K5: =IF(千円単!K5="","",ROUND(千円単!K5/1000,0)) -> 5133 | L5: =IF(千円単!L5="","",ROUND(千円単!L5/1000,0)) -> 1012 | M5: =IF(千円単!M5="","",ROUND(千円単!M5/1000,0)) -> 8232 | N5: =IF(千円単!N5="","",ROUND(千円単!N5/1000,0)) -> 442 | O5: =IF(千円単!O5="","",ROUND(千円単!O5/1000,0)) -> 4706 | P5: =IF(千円単!P5="","",ROUND(千円単!P5/1000,0)) -> 515 | Q5: =IF(千円単!Q5="","",ROUND(千円単!Q5/1000,0)) -> 367 | R5: =IF(千円単!R5="","",ROUND(千円単!R5/1000,0)) -> 3130 | S5: =IF(千円単!S5="","",ROUND(千円単!S5/1000,0)) -> 1777 | T5: =IF(千円単!T5="","",ROUND(千円単!T5/1000,0)) -> 134 | U5: =IF(千円単!U5="","",ROUND(千円単!U5/1000,0)) -> 6444 | V5: =IF(千円単!V5="","",ROUND(千円単!V5/1000,0)) -> 2741 | W5: =IF(千円単!W5="","",ROUND(千円単!W5/1000,0)) -> 3703 | X5: =IF(千円単!X5="","",ROUND(千円単!X5/1000,0)) -> -3314 | Y5: =IF(千円単!Y5="","",ROUND(千円単!Y5/1000,0)) -> 367
A6: 2020 | B6: 46 | C6: 17 | D6: 1 | E6: 5 | F6: 公共 | G6: 012050 | H6: 北海道 | I6: 室蘭市 | J6: =IF(千円単!J6="","",ROUND(千円単!J6/1000,0)) -> 2902 | K6: =IF(千円単!K6="","",ROUND(千円単!K6/1000,0)) -> 1420 | L6: =IF(千円単!L6="","",ROUND(千円単!L6/1000,0)) -> 766 | M6: =IF(千円単!M6="","",ROUND(千円単!M6/1000,0)) -> 2587 | N6: =IF(千円単!N6="","",ROUND(千円単!N6/1000,0)) -> 195 | O6: =IF(千円単!O6="","",ROUND(千円単!O6/1000,0)) -> 1363 | P6: =IF(千円単!P6="","",ROUND(千円単!P6/1000,0)) -> 123 | Q6: =IF(千円単!Q6="","",ROUND(千円単!Q6/1000,0)) -> 315 | R6: =IF(千円単!R6="","",ROUND(千円単!R6/1000,0)) -> 838 | S6: =IF(千円単!S6="","",ROUND(千円単!S6/1000,0)) -> 464 | T6: =IF(千円単!T6="","",ROUND(千円単!T6/1000,0)) -> 104 | U6: =IF(千円単!U6="","",ROUND(千円単!U6/1000,0)) -> 1746 | V6: =IF(千円単!V6="","",ROUND(千円単!V6/1000,0)) -> 794 | W6: =IF(千円単!W6="","",ROUND(千円単!W6/1000,0)) -> 950 | X6: =IF(千円単!X6="","",ROUND(千円単!X6/1000,0)) -> -908 | Y6: =IF(千円単!Y6="","",ROUND(千円単!Y6/1000,0)) -> 315
A7: 2020 | B7: 46 | C7: 17 | D7: 1 | E7: 6 | F7: 公共 | G7: 012068 | H7: 北海道 | I7: 釧路市 | J7: =IF(千円単!J7="","",ROUND(千円単!J7/1000,0)) -> 6423 | K7: =IF(千円単!K7="","",ROUND(千円単!K7/1000,0)) -> 3224 | L7: =IF(千円単!L7="","",ROUND(千円単!L7/1000,0)) -> 1010 | M7: =IF(千円単!M7="","",ROUND(千円単!M7/1000,0)) -> 5155 | N7: =IF(千円単!N7="","",ROUND(千円単!N7/1000,0)) -> 333 | O7: =IF(千円単!O7="","",ROUND(千円単!O7/1000,0)) -> 2905 | P7: =IF(千円単!P7="","",ROUND(千円単!P7/1000,0)) -> 234 | Q7: =IF(千円単!Q7="","",ROUND(千円単!Q7/1000,0)) -> 1268 | R7: =IF(千円単!R7="","",ROUND(千円単!R7/1000,0)) -> 2494 | S7: =IF(千円単!S7="","",ROUND(千円単!S7/1000,0)) -> 1560 | T7: =IF(千円単!T7="","",ROUND(千円単!T7/1000,0)) -> 379 | U7: =IF(千円単!U7="","",ROUND(千円単!U7/1000,0)) -> 4128 | V7: =IF(千円単!V7="","",ROUND(千円単!V7/1000,0)) -> 2045 | W7: =IF(千円単!W7="","",ROUND(千円単!W7/1000,0)) -> 2083 | X7: =IF(千円単!X7="","",ROUND(千円単!X7/1000,0)) -> -1634 | Y7: =IF(千円単!Y7="","",ROUND(千円単!Y7/1000,0)) -> 1268
A8: 2020 | B8: 46 | C8: 17 | D8: 1 | E8: 7 | F8: 公共 | G8: 012076 | H8: 北海道 | I8: 帯広市 | J8: =IF(千円単!J8="","",ROUND(千円単!J8/1000,0)) -> 4584 | K8: =IF(千円単!K8="","",ROUND(千円単!K8/1000,0)) -> 2622 | L8: =IF(千円単!L8="","",ROUND(千円単!L8/1000,0)) -> 892 | M8: =IF(千円単!M8="","",ROUND(千円単!M8/1000,0)) -> 3950 | N8: =IF(千円単!N8="","",ROUND(千円単!N8/1000,0)) -> 342 | O8: =IF(千円単!O8="","",ROUND(千円単!O8/1000,0)) -> 2251 | P8: =IF(千円単!P8="","",ROUND(千円単!P8/1000,0)) -> 103 | Q8: =IF(千円単!Q8="","",ROUND(千円単!Q8/1000,0)) -> 634 | R8: =IF(千円単!R8="","",ROUND(千円単!R8/1000,0)) -> 834 | S8: =IF(千円単!S8="","",ROUND(千円単!S8/1000,0)) -> 457 | T8: =IF(千円単!T8="","",ROUND(千円単!T8/1000,0)) -> 2 | U8: =IF(千円単!U8="","",ROUND(千円単!U8/1000,0)) -> 2529 | V8: =IF(千円単!V8="","",ROUND(千円単!V8/1000,0)) -> 605 | W8: =IF(千円単!W8="","",ROUND(千円単!W8/1000,0)) -> 1924 | X8: =IF(千円単!X8="","",ROUND(千円単!X8/1000,0)) -> -1696 | Y8: =IF(千円単!Y8="","",ROUND(千円単!Y8/1000,0)) -> 634
A9: 2020 | B9: 46 | C9: 17 | D9: 1 | E9: 8 | F9: 公共 | G9: 012084 | H9: 北海道 | I9: 北見市 | J9: =IF(千円単!J9="","",ROUND(千円単!J9/1000,0)) -> 4128 | K9: =IF(千円単!K9="","",ROUND(千円単!K9/1000,0)) -> 1697 | L9: =IF(千円単!L9="","",ROUND(千円単!L9/1000,0)) -> 1031 | M9: =IF(千円単!M9="","",ROUND(千円単!M9/1000,0)) -> 3796 | N9: =IF(千円単!N9="","",ROUND(千円単!N9/1000,0)) -> 386 | O9: =IF(千円単!O9="","",ROUND(千円単!O9/1000,0)) -> 2366 | P9: =IF(千円単!P9="","",ROUND(千円単!P9/1000,0)) -> 182 | Q9: =IF(千円単!Q9="","",ROUND(千円単!Q9/1000,0)) -> 332 | R9: =IF(千円単!R9="","",ROUND(千円単!R9/1000,0)) -> 2580 | S9: =IF(千円単!S9="","",ROUND(千円単!S9/1000,0)) -> 1446 | T9: =IF(千円単!T9="","",ROUND(千円単!T9/1000,0)) -> 422 | U9: =IF(千円単!U9="","",ROUND(千円単!U9/1000,0)) -> 3977 | V9: =IF(千円単!V9="","",ROUND(千円単!V9/1000,0)) -> 1844 | W9: =IF(千円単!W9="","",ROUND(千円単!W9/1000,0)) -> 2133 | X9: =IF(千円単!X9="","",ROUND(千円単!X9/1000,0)) -> -1397 | Y9: =IF(千円単!Y9="","",ROUND(千円単!Y9/1000,0)) -> 332
A10: 2020 | B10: 46 | C10: 17 | D10: 1 | E10: 9 | F10: 公共 | G10: 012106 | H10: 北海道 | I10: 岩見沢市 | J10: =IF(千円単!J10="","",ROUND(千円単!J10/1000,0)) -> 2578 | K10: =IF(千円単!K10="","",ROUND(千円単!K10/1000,0)) -> 1182 | L10: =IF(千円単!L10="","",ROUND(千円単!L10/1000,0)) -> 519 | M10: =IF(千円単!M10="","",ROUND(千円単!M10/1000,0)) -> 2309 | N10: =IF(千円単!N10="","",ROUND(千円単!N10/1000,0)) -> 145 | O10: =IF(千円単!O10="","",ROUND(千円単!O10/1000,0)) -> 1267 | P10: =IF(千円単!P10="","",ROUND(千円単!P10/1000,0)) -> 44 | Q10: =IF(千円単!Q10="","",ROUND(千円単!Q10/1000,0)) -> 269 | R10: =IF(千円単!R10="","",ROUND(千円単!R10/1000,0)) -> 946 | S10: =IF(千円単!S10="","",ROUND(千円単!S10/1000,0)) -> 299 | T10: =IF(千円単!T10="","",ROUND(千円単!T10/1000,0)) -> 381 | U10: =IF(千円単!U10="","",ROUND(千円単!U10/1000,0)) -> 1555 | V10: =IF(千円単!V10="","",ROUND(千円単!V10/1000,0)) -> 564 | W10: =IF(千円単!W10="","",ROUND(千円単!W10/1000,0)) -> 991 | X10: =IF(千円単!X10="","",ROUND(千円単!X10/1000,0)) -> -608 | Y10: =IF(千円単!Y10="","",ROUND(千円単!Y10/1000,0)) -> 269
A11: 2020 | B11: 46 | C11: 17 | D11: 1 | E11: 10 | F11: 公共 | G11: 012114 | H11: 北海道 | I11: 網走市 | J11: =IF(千円単!J11="","",ROUND(千円単!J11/1000,0)) -> 1334 | K11: =IF(千円単!K11="","",ROUND(千円単!K11/1000,0)) -> 619 | L11: =IF(千円単!L11="","",ROUND(千円単!L11/1000,0)) -> 264 | M11: =IF(千円単!M11="","",ROUND(千円単!M11/1000,0)) -> 1295 | N11: =IF(千円単!N11="","",ROUND(千円単!N11/1000,0)) -> 83 | O11: =IF(千円単!O11="","",ROUND(千円単!O11/1000,0)) -> 856 | P11: =IF(千円単!P11="","",ROUND(千円単!P11/1000,0)) -> 37 | Q11: =IF(千円単!Q11="","",ROUND(千円単!Q11/1000,0)) -> 38 | R11: =IF(千円単!R11="","",ROUND(千円単!R11/1000,0)) -> 251 | S11: =IF(千円単!S11="","",ROUND(千円単!S11/1000,0)) -> 148 | T11: =IF(千円単!T11="","",ROUND(千円単!T11/1000,0)) -> 0 | U11: =IF(千円単!U11="","",ROUND(千円単!U11/1000,0)) -> 622 | V11: =IF(千円単!V11="","",ROUND(千円単!V11/1000,0)) -> 240 | W11: =IF(千円単!W11="","",ROUND(千円単!W11/1000,0)) -> 381 | X11: =IF(千円単!X11="","",ROUND(千円単!X11/1000,0)) -> -370 | Y11: =IF(千円単!Y11="","",ROUND(千円単!Y11/1000,0)) -> 38
A12: 2020 | B12: 46 | C12: 17 | D12: 1 | E12: 11 | F12: 公共 | G12: 012131 | H12: 北海道 | I12: 苫小牧市 | J12: =IF(千円単!J12="","",ROUND(千円単!J12/1000,0)) -> 5118 | K12: =IF(千円単!K12="","",ROUND(千円単!K12/1000,0)) -> 2285 | L12: =IF(千円単!L12="","",ROUND(千円単!L12/1000,0)) -> 1109 | M12: =IF(千円単!M12="","",ROUND(千円単!M12/1000,0)) -> 4451 | N12: =IF(千円単!N12="","",ROUND(千円単!N12/1000,0)) -> 476 | O12: =IF(千円単!O12="","",ROUND(千円単!O12/1000,0)) -> 2681 | P12: =IF(千円単!P12="","",ROUND(千円単!P12/1000,0)) -> 140 | Q12: =IF(千円単!Q12="","",ROUND(千円単!Q12/1000,0)) -> 667 | R12: =IF(千円単!R12="","",ROUND(千円単!R12/1000,0)) -> 2061 | S12: =IF(千円単!S12="","",ROUND(千円単!S12/1000,0)) -> 1330 | T12: =IF(千円単!T12="","",ROUND(千円単!T12/1000,0)) -> 231 | U12: =IF(千円単!U12="","",ROUND(千円単!U12/1000,0)) -> 3825 | V12: =IF(千円単!V12="","",ROUND(千円単!V12/1000,0)) -> 1863 | W12: =IF(千円単!W12="","",ROUND(千円単!W12/1000,0)) -> 1961 | X12: =IF(千円単!X12="","",ROUND(千円単!X12/1000,0)) -> -1764 | Y12: =IF(千円単!Y12="","",ROUND(千円単!Y12/1000,0)) -> 667
A13: 2020 | B13: 46 | C13: 17 | D13: 1 | E13: 12 | F13: 公共 | G13: 012149 | H13: 北海道 | I13: 稚内市 | J13: =IF(千円単!J13="","",ROUND(千円単!J13/1000,0)) -> 1092 | K13: =IF(千円単!K13="","",ROUND(千円単!K13/1000,0)) -> 449 | L13: =IF(千円単!L13="","",ROUND(千円単!L13/1000,0)) -> 382 | M13: =IF(千円単!M13="","",ROUND(千円単!M13/1000,0)) -> 1078 | N13: =IF(千円単!N13="","",ROUND(千円単!N13/1000,0)) -> 102 | O13: =IF(千円単!O13="","",ROUND(千円単!O13/1000,0)) -> 611 | P13: =IF(千円単!P13="","",ROUND(千円単!P13/1000,0)) -> 20 | Q13: =IF(千円単!Q13="","",ROUND(千円単!Q13/1000,0)) -> 14 | R13: =IF(千円単!R13="","",ROUND(千円単!R13/1000,0)) -> 555 | S13: =IF(千円単!S13="","",ROUND(千円単!S13/1000,0)) -> 294 | T13: =IF(千円単!T13="","",ROUND(千円単!T13/1000,0)) -> 107 | U13: =IF(千円単!U13="","",ROUND(千円単!U13/1000,0)) -> 1006 | V13: =IF(千円単!V13="","",ROUND(千円単!V13/1000,0)) -> 350 | W13: =IF(千円単!W13="","",ROUND(千円単!W13/1000,0)) -> 655 | X13: =IF(千円単!X13="","",ROUND(千円単!X13/1000,0)) -> -451 | Y13: =IF(千円単!Y13="","",ROUND(千円単!Y13/1000,0)) -> 14
A14: 2020 | B14: 46 | C14: 17 | D14: 1 | E14: 13 | F14: 公共 | G14: 012173 | H14: 北海道 | I14: 江別市 | J14: =IF(千円単!J14="","",ROUND(千円単!J14/1000,0)) -> 3411 | K14: =IF(千円単!K14="","",ROUND(千円単!K14/1000,0)) -> 1292 | L14: =IF(千円単!L14="","",ROUND(千円単!L14/1000,0)) -> 847 | M14: =IF(千円単!M14="","",ROUND(千円単!M14/1000,0)) -> 3216 | N14: =IF(千円単!N14="","",ROUND(千円単!N14/1000,0)) -> 168 | O14: =IF(千円単!O14="","",ROUND(千円単!O14/1000,0)) -> 2041 | P14: =IF(千円単!P14="","",ROUND(千円単!P14/1000,0)) -> 145 | Q14: =IF(千円単!Q14="","",ROUND(千円単!Q14/1000,0)) -> 195 | R14: =IF(千円単!R14="","",ROUND(千円単!R14/1000,0)) -> 889 | S14: =IF(千円単!S14="","",ROUND(千円単!S14/1000,0)) -> 514 | T14: =IF(千円単!T14="","",ROUND(千円単!T14/1000,0)) -> 26 | U14: =IF(千円単!U14="","",ROUND(千円単!U14/1000,0)) -> 1850 | V14: =IF(千円単!V14="","",ROUND(千円単!V14/1000,0)) -> 895 | W14: =IF(千円単!W14="","",ROUND(千円単!W14/1000,0)) -> 954 | X14: =IF(千円単!X14="","",ROUND(千円単!X14/1000,0)) -> -960 | Y14: =IF(千円単!Y14="","",ROUND(千円単!Y14/1000,0)) -> 195
A15: 2020 | B15: 46 | C15: 17 | D15: 1 | E15: 14 | F15: 公共 | G15: 012190 | H15: 北海道 | I15: 紋別市 | J15: =IF(千円単!J15="","",ROUND(千円単!J15/1000,0)) -> 1264 | K15: =IF(千円単!K15="","",ROUND(千円単!K15/1000,0)) -> 421 | L15: =IF(千円単!L15="","",ROUND(千円単!L15/1000,0)) -> 544 | M15: =IF(千円単!M15="","",ROUND(千円単!M15/1000,0)) -> 1033 | N15: =IF(千円単!N15="","",ROUND(千円単!N15/1000,0)) -> 94 | O15: =IF(千円単!O15="","",ROUND(千円単!O15/1000,0)) -> 620 | P15: =IF(千円単!P15="","",ROUND(千円単!P15/1000,0)) -> 48 | Q15: =IF(千円単!Q15="","",ROUND(千円単!Q15/1000,0)) -> 231 | R15: =IF(千円単!R15="","",ROUND(千円単!R15/1000,0)) -> 446 | S15: =IF(千円単!S15="","",ROUND(千円単!S15/1000,0)) -> 358 | T15: =IF(千円単!T15="","",ROUND(千円単!T15/1000,0)) -> 35 | U15: =IF(千円単!U15="","",ROUND(千円単!U15/1000,0)) -> 1031 | V15: =IF(千円単!V15="","",ROUND(千円単!V15/1000,0)) -> 307 | W15: =IF(千円単!W15="","",ROUND(千円単!W15/1000,0)) -> 724 | X15: =IF(千円単!X15="","",ROUND(千円単!X15/1000,0)) -> -586 | Y15: =IF(千円単!Y15="","",ROUND(千円単!Y15/1000,0)) -> 231
A16: 2020 | B16: 46 | C16: 17 | D16: 1 | E16: 15 | F16: 公共 | G16: 012211 | H16: 北海道 | I16: 名寄市 | J16: =IF(千円単!J16="","",ROUND(千円単!J16/1000,0)) -> 1173 | K16: =IF(千円単!K16="","",ROUND(千円単!K16/1000,0)) -> 379 | L16: =IF(千円単!L16="","",ROUND(千円単!L16/1000,0)) -> 414 | M16: =IF(千円単!M16="","",ROUND(千円単!M16/1000,0)) -> 1128 | N16: =IF(千円単!N16="","",ROUND(千円単!N16/1000,0)) -> 66 | O16: =IF(千円単!O16="","",ROUND(千円単!O16/1000,0)) -> 752 | P16: =IF(千円単!P16="","",ROUND(千円単!P16/1000,0)) -> 106 | Q16: =IF(千円単!Q16="","",ROUND(千円単!Q16/1000,0)) -> 44 | R16: =IF(千円単!R16="","",ROUND(千円単!R16/1000,0)) -> 375 | S16: =IF(千円単!S16="","",ROUND(千円単!S16/1000,0)) -> 220 | T16: =IF(千円単!T16="","",ROUND(千円単!T16/1000,0)) -> 40 | U16: =IF(千円単!U16="","",ROUND(千円単!U16/1000,0)) -> 714 | V16: =IF(千円単!V16="","",ROUND(千円単!V16/1000,0)) -> 283 | W16: =IF(千円単!W16="","",ROUND(千円単!W16/1000,0)) -> 430 | X16: =IF(千円単!X16="","",ROUND(千円単!X16/1000,0)) -> -339 | Y16: =IF(千円単!Y16="","",ROUND(千円単!Y16/1000,0)) -> 44
A17: 2020 | B17: 46 | C17: 17 | D17: 1 | E17: 16 | F17: 公共 | G17: 012220 | H17: 北海道 | I17: 三笠市 | J17: =IF(千円単!J17="","",ROUND(千円単!J17/1000,0)) -> 549 | K17: =IF(千円単!K17="","",ROUND(千円単!K17/1000,0)) -> 192 | L17: =IF(千円単!L17="","",ROUND(千円単!L17/1000,0)) -> 197 | M17: =IF(千円単!M17="","",ROUND(千円単!M17/1000,0)) -> 525 | N17: =IF(千円単!N17="","",ROUND(千円単!N17/1000,0)) -> 47 | O17: =IF(千円単!O17="","",ROUND(千円単!O17/1000,0)) -> 370 | P17: =IF(千円単!P17="","",ROUND(千円単!P17/1000,0)) -> 21 | Q17: =IF(千円単!Q17="","",ROUND(千円単!Q17/1000,0)) -> 24 | R17: =IF(千円単!R17="","",ROUND(千円単!R17/1000,0)) -> 188 | S17: =IF(千円単!S17="","",ROUND(千円単!S17/1000,0)) -> 49 | T17: =IF(千円単!T17="","",ROUND(千円単!T17/1000,0)) -> 0 | U17: =IF(千円単!U17="","",ROUND(千円単!U17/1000,0)) -> 418 | V17: =IF(千円単!V17="","",ROUND(千円単!V17/1000,0)) -> 113 | W17: =IF(千円単!W17="","",ROUND(千円単!W17/1000,0)) -> 305 | X17: =IF(千円単!X17="","",ROUND(千円単!X17/1000,0)) -> -230 | Y17: =IF(千円単!Y17="","",ROUND(千円単!Y17/1000,0)) -> 24
A18: 2020 | B18: 46 | C18: 17 | D18: 1 | E18: 17 | F18: 公共 | G18: 012238 | H18: 北海道 | I18: 根室市 | J18: =IF(千円単!J18="","",ROUND(千円単!J18/1000,0)) -> 753 | K18: =IF(千円単!K18="","",ROUND(千円単!K18/1000,0)) -> 426 | L18: =IF(千円単!L18="","",ROUND(千円単!L18/1000,0)) -> 117 | M18: =IF(千円単!M18="","",ROUND(千円単!M18/1000,0)) -> 815 | N18: =IF(千円単!N18="","",ROUND(千円単!N18/1000,0)) -> 30 | O18: =IF(千円単!O18="","",ROUND(千円単!O18/1000,0)) -> 475 | P18: =IF(千円単!P18="","",ROUND(千円単!P18/1000,0)) -> 34 | Q18: =IF(千円単!Q18="","",ROUND(千円単!Q18/1000,0)) -> -61 | R18: =IF(千円単!R18="","",ROUND(千円単!R18/1000,0)) -> 165 | S18: =IF(千円単!S18="","",ROUND(千円単!S18/1000,0)) -> 84 | T18: =IF(千円単!T18="","",ROUND(千円単!T18/1000,0)) -> 19 | U18: =IF(千円単!U18="","",ROUND(千円単!U18/1000,0)) -> 362 | V18: =IF(千円単!V18="","",ROUND(千円単!V18/1000,0)) -> 167 | W18: =IF(千円単!W18="","",ROUND(千円単!W18/1000,0)) -> 193 | X18: =IF(千円単!X18="","",ROUND(千円単!X18/1000,0)) -> -198 | Y18: =IF(千円単!Y18="","",ROUND(千円単!Y18/1000,0)) -> -61
A19: 2020 | B19: 46 | C19: 17 | D19: 1 | E19: 18 | F19: 公共 | G19: 012246 | H19: 北海道 | I19: 千歳市 | J19: =IF(千円単!J19="","",ROUND(千円単!J19/1000,0)) -> 3232 | K19: =IF(千円単!K19="","",ROUND(千円単!K19/1000,0)) -> 1353 | L19: =IF(千円単!L19="","",ROUND(千円単!L19/1000,0)) -> 758 | M19: =IF(千円単!M19="","",ROUND(千円単!M19/1000,0)) -> 3066 | N19: =IF(千円単!N19="","",ROUND(千円単!N19/1000,0)) -> 162 | O19: =IF(千円単!O19="","",ROUND(千円単!O19/1000,0)) -> 1843 | P19: =IF(千円単!P19="","",ROUND(千円単!P19/1000,0)) -> 109 | Q19: =IF(千円単!Q19="","",ROUND(千円単!Q19/1000,0)) -> 166 | R19: =IF(千円単!R19="","",ROUND(千円単!R19/1000,0)) -> 425 | S19: =IF(千円単!S19="","",ROUND(千円単!S19/1000,0)) -> 198 | T19: =IF(千円単!T19="","",ROUND(千円単!T19/1000,0)) -> 26 | U19: =IF(千円単!U19="","",ROUND(千円単!U19/1000,0)) -> 1182 | V19: =IF(千円単!V19="","",ROUND(千円単!V19/1000,0)) -> 542 | W19: =IF(千円単!W19="","",ROUND(千円単!W19/1000,0)) -> 637 | X19: =IF(千円単!X19="","",ROUND(千円単!X19/1000,0)) -> -757 | Y19: =IF(千円単!Y19="","",ROUND(千円単!Y19/1000,0)) -> 166
A20: 2020 | B20: 46 | C20: 17 | D20: 1 | E20: 19 | F20: 公共 | G20: 012254 | H20: 北海道 | I20: 滝川市 | J20: =IF(千円単!J20="","",ROUND(千円単!J20/1000,0)) -> 1244 | K20: =IF(千円単!K20="","",ROUND(千円単!K20/1000,0)) -> 706 | L20: =IF(千円単!L20="","",ROUND(千円単!L20/1000,0)) -> 220 | M20: =IF(千円単!M20="","",ROUND(千円単!M20/1000,0)) -> 1159 | N20: =IF(千円単!N20="","",ROUND(千円単!N20/1000,0)) -> 86 | O20: =IF(千円単!O20="","",ROUND(千円単!O20/1000,0)) -> 809 | P20: =IF(千円単!P20="","",ROUND(千円単!P20/1000,0)) -> 10 | Q20: =IF(千円単!Q20="","",ROUND(千円単!Q20/1000,0)) -> 85 | R20: =IF(千円単!R20="","",ROUND(千円単!R20/1000,0)) -> 716 | S20: =IF(千円単!S20="","",ROUND(千円単!S20/1000,0)) -> 317 | T20: =IF(千円単!T20="","",ROUND(千円単!T20/1000,0)) -> 276 | U20: =IF(千円単!U20="","",ROUND(千円単!U20/1000,0)) -> 1124 | V20: =IF(千円単!V20="","",ROUND(千円単!V20/1000,0)) -> 526 | W20: =IF(千円単!W20="","",ROUND(千円単!W20/1000,0)) -> 599 | X20: =IF(千円単!X20="","",ROUND(千円単!X20/1000,0)) -> -409 | Y20: =IF(千円単!Y20="","",ROUND(千円単!Y20/1000,0)) -> 85
A21: 2020 | B21: 46 | C21: 17 | D21: 1 | E21: 20 | F21: 公共 | G21: 012262 | H21: 北海道 | I21: 砂川市 | J21: =IF(千円単!J21="","",ROUND(千円単!J21/1000,0)) -> 735 | K21: =IF(千円単!K21="","",ROUND(千円単!K21/1000,0)) -> 334 | L21: =IF(千円単!L21="","",ROUND(千円単!L21/1000,0)) -> 239 | M21: =IF(千円単!M21="","",ROUND(千円単!M21/1000,0)) -> 500 | N21: =IF(千円単!N21="","",ROUND(千円単!N21/1000,0)) -> 41 | O21: =IF(千円単!O21="","",ROUND(千円単!O21/1000,0)) -> 337 | P21: =IF(千円単!P21="","",ROUND(千円単!P21/1000,0)) -> 19 | Q21: =IF(千円単!Q21="","",ROUND(千円単!Q21/1000,0)) -> 235 | R21: =IF(千円単!R21="","",ROUND(千円単!R21/1000,0)) -> 170 | S21: =IF(千円単!S21="","",ROUND(千円単!S21/1000,0)) -> 110 | T21: =IF(千円単!T21="","",ROUND(千円単!T21/1000,0)) -> 0 | U21: =IF(千円単!U21="","",ROUND(千円単!U21/1000,0)) -> 548 | V21: =IF(千円単!V21="","",ROUND(千円単!V21/1000,0)) -> 149 | W21: =IF(千円単!W21="","",ROUND(千円単!W21/1000,0)) -> 399 | X21: =IF(千円単!X21="","",ROUND(千円単!X21/1000,0)) -> -379 | Y21: =IF(千円単!Y21="","",ROUND(千円単!Y21/1000,0)) -> 235
A22: 2020 | B22: 46 | C22: 17 | D22: 1 | E22: 21 | F22: 公共 | G22: 012301 | H22: 北海道 | I22: 登別市 | J22: =IF(千円単!J22="","",ROUND(千円単!J22/1000,0)) -> 1783 | K22: =IF(千円単!K22="","",ROUND(千円単!K22/1000,0)) -> 665 | L22: =IF(千円単!L22="","",ROUND(千円単!L22/1000,0)) -> 675 | M22: =IF(千円単!M22="","",ROUND(千円単!M22/1000,0)) -> 1624 | N22: =IF(千円単!N22="","",ROUND(千円単!N22/1000,0)) -> 261 | O22: =IF(千円単!O22="","",ROUND(千円単!O22/1000,0)) -> 969 | P22: =IF(千円単!P22="","",ROUND(千円単!P22/1000,0)) -> 50 | Q22: =IF(千円単!Q22="","",ROUND(千円単!Q22/1000,0)) -> 159 | R22: =IF(千円単!R22="","",ROUND(千円単!R22/1000,0)) -> 795 | S22: =IF(千円単!S22="","",ROUND(千円単!S22/1000,0)) -> 576 | T22: =IF(千円単!T22="","",ROUND(千円単!T22/1000,0)) -> 152 | U22: =IF(千円単!U22="","",ROUND(千円単!U22/1000,0)) -> 1488 | V22: =IF(千円単!V22="","",ROUND(千円単!V22/1000,0)) -> 279 | W22: =IF(千円単!W22="","",ROUND(千円単!W22/1000,0)) -> 1209 | X22: =IF(千円単!X22="","",ROUND(千円単!X22/1000,0)) -> -693 | Y22: =IF(千円単!Y22="","",ROUND(千円単!Y22/1000,0)) -> 159
A23: 2020 | B23: 46 | C23: 17 | D23: 1 | E23: 22 | F23: 公共 | G23: 012319 | H23: 北海道 | I23: 恵庭市 | J23: =IF(千円単!J23="","",ROUND(千円単!J23/1000,0)) -> 2598 | K23: =IF(千円単!K23="","",ROUND(千円単!K23/1000,0)) -> 970 | L23: =IF(千円単!L23="","",ROUND(千円単!L23/1000,0)) -> 637 | M23: =IF(千円単!M23="","",ROUND(千円単!M23/1000,0)) -> 2416 | N23: =IF(千円単!N23="","",ROUND(千円単!N23/1000,0)) -> 156 | O23: =IF(千円単!O23="","",ROUND(千円単!O23/1000,0)) -> 1457 | P23: =IF(千円単!P23="","",ROUND(千円単!P23/1000,0)) -> 64 | Q23: =IF(千円単!Q23="","",ROUND(千円単!Q23/1000,0)) -> 181 | R23: =IF(千円単!R23="","",ROUND(千円単!R23/1000,0)) -> 1526 | S23: =IF(千円単!S23="","",ROUND(千円単!S23/1000,0)) -> 873 | T23: =IF(千円単!T23="","",ROUND(千円単!T23/1000,0)) -> 106 | U23: =IF(千円単!U23="","",ROUND(千円単!U23/1000,0)) -> 2446 | V23: =IF(千円単!V23="","",ROUND(千円単!V23/1000,0)) -> 1487 | W23: =IF(千円単!W23="","",ROUND(千円単!W23/1000,0)) -> 959 | X23: =IF(千円単!X23="","",ROUND(千円単!X23/1000,0)) -> -919 | Y23: =IF(千円単!Y23="","",ROUND(千円単!Y23/1000,0)) -> 181
A24: 2020 | B24: 46 | C24: 17 | D24: 1 | E24: 23 | F24: 公共 | G24: 012335 | H24: 北海道 | I24: 伊達市 | J24: =IF(千円単!J24="","",ROUND(千円単!J24/1000,0)) -> 1031 | K24: =IF(千円単!K24="","",ROUND(千円単!K24/1000,0)) -> 600 | L24: =IF(千円単!L24="","",ROUND(千円単!L24/1000,0)) -> 110 | M24: =IF(千円単!M24="","",ROUND(千円単!M24/1000,0)) -> 1031 | N24: =IF(千円単!N24="","",ROUND(千円単!N24/1000,0)) -> 80 | O24: =IF(千円単!O24="","",ROUND(千円単!O24/1000,0)) -> 543 | P24: =IF(千円単!P24="","",ROUND(千円単!P24/1000,0)) -> 48 | Q24: =IF(千円単!Q24="","",ROUND(千円単!Q24/1000,0)) -> 0 | R24: =IF(千円単!R24="","",ROUND(千円単!R24/1000,0)) -> 760 | S24: =IF(千円単!S24="","",ROUND(千円単!S24/1000,0)) -> 297 | T24: =IF(千円単!T24="","",ROUND(千円単!T24/1000,0)) -> 0 | U24: =IF(千円単!U24="","",ROUND(千円単!U24/1000,0)) -> 1121 | V24: =IF(千円単!V24="","",ROUND(千円単!V24/1000,0)) -> 504 | W24: =IF(千円単!W24="","",ROUND(千円単!W24/1000,0)) -> 617 | X24: =IF(千円単!X24="","",ROUND(千円単!X24/1000,0)) -> -361 | Y24: =IF(千円単!Y24="","",ROUND(千円単!Y24/1000,0)) -> 0
A25: 2020 | B25: 46 | C25: 17 | D25: 1 | E25: 24 | F25: 公共 | G25: 012343 | H25: 北海道 | I25: 北広島市 | J25: =IF(千円単!J25="","",ROUND(千円単!J25/1000,0)) -> 2131 | K25: =IF(千円単!K25="","",ROUND(千円単!K25/1000,0)) -> 781 | L25: =IF(千円単!L25="","",ROUND(千円単!L25/1000,0)) -> 397 | M25: =IF(千円単!M25="","",ROUND(千円単!M25/1000,0)) -> 2031 | N25: =IF(千円単!N25="","",ROUND(千円単!N25/1000,0)) -> 104 | O25: =IF(千円単!O25="","",ROUND(千円単!O25/1000,0)) -> 1344 | P25: =IF(千円単!P25="","",ROUND(千円単!P25/1000,0)) -> 69 | Q25: =IF(千円単!Q25="","",ROUND(千円単!Q25/1000,0)) -> 100 | R25: =IF(千円単!R25="","",ROUND(千円単!R25/1000,0)) -> 922 | S25: =IF(千円単!S25="","",ROUND(千円単!S25/1000,0)) -> 482 | T25: =IF(千円単!T25="","",ROUND(千円単!T25/1000,0)) -> 0 | U25: =IF(千円単!U25="","",ROUND(千円単!U25/1000,0)) -> 1540 | V25: =IF(千円単!V25="","",ROUND(千円単!V25/1000,0)) -> 838 | W25: =IF(千円単!W25="","",ROUND(千円単!W25/1000,0)) -> 700 | X25: =IF(千円単!X25="","",ROUND(千円単!X25/1000,0)) -> -618 | Y25: =IF(千円単!Y25="","",ROUND(千円単!Y25/1000,0)) -> 100
A26: 2020 | B26: 46 | C26: 17 | D26: 1 | E26: 25 | F26: 公共 | G26: 012351 | H26: 北海道 | I26: 石狩市 | J26: =IF(千円単!J26="","",ROUND(千円単!J26/1000,0)) -> 1347 | K26: =IF(千円単!K26="","",ROUND(千円単!K26/1000,0)) -> 600 | L26: =IF(千円単!L26="","",ROUND(千円単!L26/1000,0)) -> 435 | M26: =IF(千円単!M26="","",ROUND(千円単!M26/1000,0)) -> 1286 | N26: =IF(千円単!N26="","",ROUND(千円単!N26/1000,0)) -> 131 | O26: =IF(千円単!O26="","",ROUND(千円単!O26/1000,0)) -> 788 | P26: =IF(千円単!P26="","",ROUND(千円単!P26/1000,0)) -> 63 | Q26: =IF(千円単!Q26="","",ROUND(千円単!Q26/1000,0)) -> 61 | R26: =IF(千円単!R26="","",ROUND(千円単!R26/1000,0)) -> 715 | S26: =IF(千円単!S26="","",ROUND(千円単!S26/1000,0)) -> 500 | T26: =IF(千円単!T26="","",ROUND(千円単!T26/1000,0)) -> 52 | U26: =IF(千円単!U26="","",ROUND(千円単!U26/1000,0)) -> 1197 | V26: =IF(千円単!V26="","",ROUND(千円単!V26/1000,0)) -> 432 | W26: =IF(千円単!W26="","",ROUND(千円単!W26/1000,0)) -> 765 | X26: =IF(千円単!X26="","",ROUND(千円単!X26/1000,0)) -> -482 | Y26: =IF(千円単!Y26="","",ROUND(千円単!Y26/1000,0)) -> 61
A27: 2020 | B27: 46 | C27: 17 | D27: 1 | E27: 26 | F27: 公共 | G27: 012360 | H27: 北海道 | I27: 北斗市 | J27: =IF(千円単!J27="","",ROUND(千円単!J27/1000,0)) -> 970 | K27: =IF(千円単!K27="","",ROUND(千円単!K27/1000,0)) -> 586 | L27: =IF(千円単!L27="","",ROUND(千円単!L27/1000,0)) -> 59 | M27: =IF(千円単!M27="","",ROUND(千円単!M27/1000,0)) -> 884 | N27: =IF(千円単!N27="","",ROUND(千円単!N27/1000,0)) -> 97 | O27: =IF(千円単!O27="","",ROUND(千円単!O27/1000,0)) -> 561 | P27: =IF(千円単!P27="","",ROUND(千円単!P27/1000,0)) -> 31 | Q27: =IF(千円単!Q27="","",ROUND(千円単!Q27/1000,0)) -> 86 | R27: =IF(千円単!R27="","",ROUND(千円単!R27/1000,0)) -> 345 | S27: =IF(千円単!S27="","",ROUND(千円単!S27/1000,0)) -> 79 | T27: =IF(千円単!T27="","",ROUND(千円単!T27/1000,0)) -> 0 | U27: =IF(千円単!U27="","",ROUND(千円単!U27/1000,0)) -> 615 | V27: =IF(千円単!V27="","",ROUND(千円単!V27/1000,0)) -> 156 | W27: =IF(千円単!W27="","",ROUND(千円単!W27/1000,0)) -> 459 | X27: =IF(千円単!X27="","",ROUND(千円単!X27/1000,0)) -> -270 | Y27: =IF(千円単!Y27="","",ROUND(千円単!Y27/1000,0)) -> 86
A28: 2020 | B28: 46 | C28: 17 | D28: 1 | E28: 27 | F28: 公共 | G28: 013374 | H28: 北海道 | I28: 七飯町 | J28: =IF(千円単!J28="","",ROUND(千円単!J28/1000,0)) -> 480 | K28: =IF(千円単!K28="","",ROUND(千円単!K28/1000,0)) -> 322 | L28: =IF(千円単!L28="","",ROUND(千円単!L28/1000,0)) -> 29 | M28: =IF(千円単!M28="","",ROUND(千円単!M28/1000,0)) -> 453 | N28: =IF(千円単!N28="","",ROUND(千円単!N28/1000,0)) -> 52 | O28: =IF(千円単!O28="","",ROUND(千円単!O28/1000,0)) -> 264 | P28: =IF(千円単!P28="","",ROUND(千円単!P28/1000,0)) -> 21 | Q28: =IF(千円単!Q28="","",ROUND(千円単!Q28/1000,0)) -> 27 | R28: =IF(千円単!R28="","",ROUND(千円単!R28/1000,0)) -> 213 | S28: =IF(千円単!S28="","",ROUND(千円単!S28/1000,0)) -> 26 | T28: =IF(千円単!T28="","",ROUND(千円単!T28/1000,0)) -> 0 | U28: =IF(千円単!U28="","",ROUND(千円単!U28/1000,0)) -> 392 | V28: =IF(千円単!V28="","",ROUND(千円単!V28/1000,0)) -> 32 | W28: =IF(千円単!W28="","",ROUND(千円単!W28/1000,0)) -> 360 | X28: =IF(千円単!X28="","",ROUND(千円単!X28/1000,0)) -> -179 | Y28: =IF(千円単!Y28="","",ROUND(千円単!Y28/1000,0)) -> 27
A29: 2020 | B29: 46 | C29: 17 | D29: 1 | E29: 28 | F29: 公共 | G29: 013455 | H29: 北海道 | I29: 森町 | J29: =IF(千円単!J29="","",ROUND(千円単!J29/1000,0)) -> 441 | K29: =IF(千円単!K29="","",ROUND(千円単!K29/1000,0)) -> 88 | L29: =IF(千円単!L29="","",ROUND(千円単!L29/1000,0)) -> 214 | M29: =IF(千円単!M29="","",ROUND(千円単!M29/1000,0)) -> 440 | N29: =IF(千円単!N29="","",ROUND(千円単!N29/1000,0)) -> 60 | O29: =IF(千円単!O29="","",ROUND(千円単!O29/1000,0)) -> 264 | P29: =IF(千円単!P29="","",ROUND(千円単!P29/1000,0)) -> 17 | Q29: =IF(千円単!Q29="","",ROUND(千円単!Q29/1000,0)) -> 1 | R29: =IF(千円単!R29="","",ROUND(千円単!R29/1000,0)) -> 172 | S29: =IF(千円単!S29="","",ROUND(千円単!S29/1000,0)) -> 29 | T29: =IF(千円単!T29="","",ROUND(千円単!T29/1000,0)) -> 0 | U29: =IF(千円単!U29="","",ROUND(千円単!U29/1000,0)) -> 302 | V29: =IF(千円単!V29="","",ROUND(千円単!V29/1000,0)) -> 74 | W29: =IF(千円単!W29="","",ROUND(千円単!W29/1000,0)) -> 228 | X29: =IF(千円単!X29="","",ROUND(千円単!X29/1000,0)) -> -130 | Y29: =IF(千円単!Y29="","",ROUND(千円単!Y29/1000,0)) -> 1
A30: 2020 | B30: 46 | C30: 17 | D30: 1 | E30: 29 | F30: 公共 | G30: 014028 | H30: 北海道 | I30: 岩内町 | J30: =IF(千円単!J30="","",ROUND(千円単!J30/1000,0)) -> 565 | K30: =IF(千円単!K30="","",ROUND(千円単!K30/1000,0)) -> 56 | L30: =IF(千円単!L30="","",ROUND(千円単!L30/1000,0)) -> 243 | M30: =IF(千円単!M30="","",ROUND(千円単!M30/1000,0)) -> 565 | N30: =IF(千円単!N30="","",ROUND(千円単!N30/1000,0)) -> 52 | O30: =IF(千円単!O30="","",ROUND(千円単!O30/1000,0)) -> 355 | P30: =IF(千円単!P30="","",ROUND(千円単!P30/1000,0)) -> 8 | Q30: =IF(千円単!Q30="","",ROUND(千円単!Q30/1000,0)) -> 0 | R30: =IF(千円単!R30="","",ROUND(千円単!R30/1000,0)) -> 431 | S30: =IF(千円単!S30="","",ROUND(千円単!S30/1000,0)) -> 168 | T30: =IF(千円単!T30="","",ROUND(千円単!T30/1000,0)) -> 0 | U30: =IF(千円単!U30="","",ROUND(千円単!U30/1000,0)) -> 597 | V30: =IF(千円単!V30="","",ROUND(千円単!V30/1000,0)) -> 217 | W30: =IF(千円単!W30="","",ROUND(千円単!W30/1000,0)) -> 380 | X30: =IF(千円単!X30="","",ROUND(千円単!X30/1000,0)) -> -166 | Y30: =IF(千円単!Y30="","",ROUND(千円単!Y30/1000,0)) -> 0
A31: 2020 | B31: 46 | C31: 17 | D31: 1 | E31: 30 | F31: 公共 | G31: 014290 | H31: 北海道 | I31: 栗山町 | J31: =IF(千円単!J31="","",ROUND(千円単!J31/1000,0)) -> 569 | K31: =IF(千円単!K31="","",ROUND(千円単!K31/1000,0)) -> 179 | L31: =IF(千円単!L31="","",ROUND(千円単!L31/1000,0)) -> 246 | M31: =IF(千円単!M31="","",ROUND(千円単!M31/1000,0)) -> 427 | N31: =IF(千円単!N31="","",ROUND(千円単!N31/1000,0)) -> 23 | O31: =IF(千円単!O31="","",ROUND(千円単!O31/1000,0)) -> 274 | P31: =IF(千円単!P31="","",ROUND(千円単!P31/1000,0)) -> 8 | Q31: =IF(千円単!Q31="","",ROUND(千円単!Q31/1000,0)) -> 141 | R31: =IF(千円単!R31="","",ROUND(千円単!R31/1000,0)) -> 209 | S31: =IF(千円単!S31="","",ROUND(千円単!S31/1000,0)) -> 93 | T31: =IF(千円単!T31="","",ROUND(千円単!T31/1000,0)) -> 44 | U31: =IF(千円単!U31="","",ROUND(千円単!U31/1000,0)) -> 476 | V31: =IF(千円単!V31="","",ROUND(千円単!V31/1000,0)) -> 143 | W31: =IF(千円単!W31="","",ROUND(千円単!W31/1000,0)) -> 333 | X31: =IF(千円単!X31="","",ROUND(千円単!X31/1000,0)) -> -267 | Y31: =IF(千円単!Y31="","",ROUND(千円単!Y31/1000,0)) -> 141
A32: 2020 | B32: 46 | C32: 17 | D32: 1 | E32: 31 | F32: 公共 | G32: 014532 | H32: 北海道 | I32: 東神楽町 | J32: =IF(千円単!J32="","",ROUND(千円単!J32/1000,0)) -> 301 | K32: =IF(千円単!K32="","",ROUND(千円単!K32/1000,0)) -> 104 | L32: =IF(千円単!L32="","",ROUND(千円単!L32/1000,0)) -> 135 | M32: =IF(千円単!M32="","",ROUND(千円単!M32/1000,0)) -> 247 | N32: =IF(千円単!N32="","",ROUND(千円単!N32/1000,0)) -> 14 | O32: =IF(千円単!O32="","",ROUND(千円単!O32/1000,0)) -> 128 | P32: =IF(千円単!P32="","",ROUND(千円単!P32/1000,0)) -> 16 | Q32: =IF(千円単!Q32="","",ROUND(千円単!Q32/1000,0)) -> 54 | R32: =IF(千円単!R32="","",ROUND(千円単!R32/1000,0)) -> 42 | S32: =IF(千円単!S32="","",ROUND(千円単!S32/1000,0)) -> 33 | T32: =IF(千円単!T32="","",ROUND(千円単!T32/1000,0)) -> 5 | U32: =IF(千円単!U32="","",ROUND(千円単!U32/1000,0)) -> 158 | V32: =IF(千円単!V32="","",ROUND(千円単!V32/1000,0)) -> 27 | W32: =IF(千円単!W32="","",ROUND(千円単!W32/1000,0)) -> 131 | X32: =IF(千円単!X32="","",ROUND(千円単!X32/1000,0)) -> -116 | Y32: =IF(千円単!Y32="","",ROUND(千円単!Y32/1000,0)) -> 54
A33: 2020 | B33: 46 | C33: 17 | D33: 1 | E33: 32 | F33: 公共 | G33: 014818 | H33: 北海道 | I33: 増毛町 | J33: =IF(千円単!J33="","",ROUND(千円単!J33/1000,0)) -> 141 | K33: =IF(千円単!K33="","",ROUND(千円単!K33/1000,0)) -> 33 | L33: =IF(千円単!L33="","",ROUND(千円単!L33/1000,0)) -> 56 | M33: =IF(千円単!M33="","",ROUND(千円単!M33/1000,0)) -> 131 | N33: =IF(千円単!N33="","",ROUND(千円単!N33/1000,0)) -> 11 | O33: =IF(千円単!O33="","",ROUND(千円単!O33/1000,0)) -> 85 | P33: =IF(千円単!P33="","",ROUND(千円単!P33/1000,0)) -> 9 | Q33: =IF(千円単!Q33="","",ROUND(千円単!Q33/1000,0)) -> 10 | R33: =IF(千円単!R33="","",ROUND(千円単!R33/1000,0)) -> 81 | S33: =IF(千円単!S33="","",ROUND(千円単!S33/1000,0)) -> 42 | T33: =IF(千円単!T33="","",ROUND(千円単!T33/1000,0)) -> 12 | U33: =IF(千円単!U33="","",ROUND(千円単!U33/1000,0)) -> 123 | V33: =IF(千円単!V33="","",ROUND(千円単!V33/1000,0)) -> 10 | W33: =IF(千円単!W33="","",ROUND(千円単!W33/1000,0)) -> 113 | X33: =IF(千円単!X33="","",ROUND(千円単!X33/1000,0)) -> -43 | Y33: =IF(千円単!Y33="","",ROUND(千円単!Y33/1000,0)) -> 10
A34: 2020 | B34: 46 | C34: 17 | D34: 1 | E34: 33 | F34: 公共 | G34: 015148 | H34: 北海道 | I34: 枝幸町 | J34: =IF(千円単!J34="","",ROUND(千円単!J34/1000,0)) -> 258 | K34: =IF(千円単!K34="","",ROUND(千円単!K34/1000,0)) -> 65 | L34: =IF(千円単!L34="","",ROUND(千円単!L34/1000,0)) -> 119 | M34: =IF(千円単!M34="","",ROUND(千円単!M34/1000,0)) -> 253 | N34: =IF(千円単!N34="","",ROUND(千円単!N34/1000,0)) -> 13 | O34: =IF(千円単!O34="","",ROUND(千円単!O34/1000,0)) -> 159 | P34: =IF(千円単!P34="","",ROUND(千円単!P34/1000,0)) -> 8 | Q34: =IF(千円単!Q34="","",ROUND(千円単!Q34/1000,0)) -> 5 | R34: =IF(千円単!R34="","",ROUND(千円単!R34/1000,0)) -> 93 | S34: =IF(千円単!S34="","",ROUND(千円単!S34/1000,0)) -> 23 | T34: =IF(千円単!T34="","",ROUND(千円単!T34/1000,0)) -> 19 | U34: =IF(千円単!U34="","",ROUND(千円単!U34/1000,0)) -> 183 | V34: =IF(千円単!V34="","",ROUND(千円単!V34/1000,0)) -> 74 | W34: =IF(千円単!W34="","",ROUND(千円単!W34/1000,0)) -> 110 | X34: =IF(千円単!X34="","",ROUND(千円単!X34/1000,0)) -> -90 | Y34: =IF(千円単!Y34="","",ROUND(千円単!Y34/1000,0)) -> 5
A35: 2020 | B35: 46 | C35: 17 | D35: 1 | E35: 34 | F35: 公共 | G35: 015555 | H35: 北海道 | I35: 遠軽町 | J35: =IF(千円単!J35="","",ROUND(千円単!J35/1000,0)) -> 811 | K35: =IF(千円単!K35="","",ROUND(千円単!K35/1000,0)) -> 229 | L35: =IF(千円単!L35="","",ROUND(千円単!L35/1000,0)) -> 370 | M35: =IF(千円単!M35="","",ROUND(千円単!M35/1000,0)) -> 722 | N35: =IF(千円単!N35="","",ROUND(千円単!N35/1000,0)) -> 55 | O35: =IF(千円単!O35="","",ROUND(千円単!O35/1000,0)) -> 410 | P35: =IF(千円単!P35="","",ROUND(千円単!P35/1000,0)) -> 39 | Q35: =IF(千円単!Q35="","",ROUND(千円単!Q35/1000,0)) -> 89 | R35: =IF(千円単!R35="","",ROUND(千円単!R35/1000,0)) -> 450 | S35: =IF(千円単!S35="","",ROUND(千円単!S35/1000,0)) -> 187 | T35: =IF(千円単!T35="","",ROUND(千円単!T35/1000,0)) -> 45 | U35: =IF(千円単!U35="","",ROUND(千円単!U35/1000,0)) -> 766 | V35: =IF(千円単!V35="","",ROUND(千円単!V35/1000,0)) -> 407 | W35: =IF(千円単!W35="","",ROUND(千円単!W35/1000,0)) -> 359 | X35: =IF(千円単!X35="","",ROUND(千円単!X35/1000,0)) -> -316 | Y35: =IF(千円単!Y35="","",ROUND(千円単!Y35/1000,0)) -> 89
A36: 2020 | B36: 46 | C36: 17 | D36: 1 | E36: 35 | F36: 公共 | G36: 015784 | H36: 北海道 | I36: 白老町 | J36: =IF(千円単!J36="","",ROUND(千円単!J36/1000,0)) -> 1050 | K36: =IF(千円単!K36="","",ROUND(千円単!K36/1000,0)) -> 348 | L36: =IF(千円単!L36="","",ROUND(千円単!L36/1000,0)) -> 386 | M36: =IF(千円単!M36="","",ROUND(千円単!M36/1000,0)) -> 977 | N36: =IF(千円単!N36="","",ROUND(千円単!N36/1000,0)) -> 88 | O36: =IF(千円単!O36="","",ROUND(千円単!O36/1000,0)) -> 562 | P36: =IF(千円単!P36="","",ROUND(千円単!P36/1000,0)) -> 24 | Q36: =IF(千円単!Q36="","",ROUND(千円単!Q36/1000,0)) -> 72 | R36: =IF(千円単!R36="","",ROUND(千円単!R36/1000,0)) -> 1010 | S36: =IF(千円単!S36="","",ROUND(千円単!S36/1000,0)) -> 234 | T36: =IF(千円単!T36="","",ROUND(千円単!T36/1000,0)) -> 350 | U36: =IF(千円単!U36="","",ROUND(千円単!U36/1000,0)) -> 1361 | V36: =IF(千円単!V36="","",ROUND(千円単!V36/1000,0)) -> 791 | W36: =IF(千円単!W36="","",ROUND(千円単!W36/1000,0)) -> 570 | X36: =IF(千円単!X36="","",ROUND(千円単!X36/1000,0)) -> -351 | Y36: =IF(千円単!Y36="","",ROUND(千円単!Y36/1000,0)) -> 72
A37: 2020 | B37: 46 | C37: 17 | D37: 1 | E37: 36 | F37: 公共 | G37: 015865 | H37: 北海道 | I37: むかわ町 | J37: =IF(千円単!J37="","",ROUND(千円単!J37/1000,0)) -> 205 | K37: =IF(千円単!K37="","",ROUND(千円単!K37/1000,0)) -> 55 | L37: =IF(千円単!L37="","",ROUND(千円単!L37/1000,0)) -> 75 | M37: =IF(千円単!M37="","",ROUND(千円単!M37/1000,0)) -> 199 | N37: =IF(千円単!N37="","",ROUND(千円単!N37/1000,0)) -> 20 | O37: =IF(千円単!O37="","",ROUND(千円単!O37/1000,0)) -> 125 | P37: =IF(千円単!P37="","",ROUND(千円単!P37/1000,0)) -> 9 | Q37: =IF(千円単!Q37="","",ROUND(千円単!Q37/1000,0)) -> 5 | R37: =IF(千円単!R37="","",ROUND(千円単!R37/1000,0)) -> 73 | S37: =IF(千円単!S37="","",ROUND(千円単!S37/1000,0)) -> 53 | T37: =IF(千円単!T37="","",ROUND(千円単!T37/1000,0)) -> 0 | U37: =IF(千円単!U37="","",ROUND(千円単!U37/1000,0)) -> 146 | V37: =IF(千円単!V37="","",ROUND(千円単!V37/1000,0)) -> 4 | W37: =IF(千円単!W37="","",ROUND(千円単!W37/1000,0)) -> 130 | X37: =IF(千円単!X37="","",ROUND(千円単!X37/1000,0)) -> -73 | Y37: =IF(千円単!Y37="","",ROUND(千円単!Y37/1000,0)) -> 5
A38: 2020 | B38: 46 | C38: 17 | D38: 1 | E38: 37 | F38: 公共 | G38: 016314 | H38: 北海道 | I38: 音更町 | J38: =IF(千円単!J38="","",ROUND(千円単!J38/1000,0)) -> 1089 | K38: =IF(千円単!K38="","",ROUND(千円単!K38/1000,0)) -> 582 | L38: =IF(千円単!L38="","",ROUND(千円単!L38/1000,0)) -> 239 | M38: =IF(千円単!M38="","",ROUND(千円単!M38/1000,0)) -> 913 | N38: =IF(千円単!N38="","",ROUND(千円単!N38/1000,0)) -> 100 | O38: =IF(千円単!O38="","",ROUND(千円単!O38/1000,0)) -> 572 | P38: =IF(千円単!P38="","",ROUND(千円単!P38/1000,0)) -> 4 | Q38: =IF(千円単!Q38="","",ROUND(千円単!Q38/1000,0)) -> 176 | R38: =IF(千円単!R38="","",ROUND(千円単!R38/1000,0)) -> 515 | S38: =IF(千円単!S38="","",ROUND(千円単!S38/1000,0)) -> 272 | T38: =IF(千円単!T38="","",ROUND(千円単!T38/1000,0)) -> 77 | U38: =IF(千円単!U38="","",ROUND(千円単!U38/1000,0)) -> 1060 | V38: =IF(千円単!V38="","",ROUND(千円単!V38/1000,0)) -> 383 | W38: =IF(千円単!W38="","",ROUND(千円単!W38/1000,0)) -> 677 | X38: =IF(千円単!X38="","",ROUND(千円単!X38/1000,0)) -> -545 | Y38: =IF(千円単!Y38="","",ROUND(千円単!Y38/1000,0)) -> 176
A39: 2020 | B39: 46 | C39: 17 | D39: 1 | E39: 38 | F39: 公共 | G39: 016365 | H39: 北海道 | I39: 清水町 | J39: =IF(千円単!J39="","",ROUND(千円単!J39/1000,0)) -> 204 | K39: =IF(千円単!K39="","",ROUND(千円単!K39/1000,0)) -> 89 | L39: =IF(千円単!L39="","",ROUND(千円単!L39/1000,0)) -> 61 | M39: =IF(千円単!M39="","",ROUND(千円単!M39/1000,0)) -> 197 | N39: =IF(千円単!N39="","",ROUND(千円単!N39/1000,0)) -> 4 | O39: =IF(千円単!O39="","",ROUND(千円単!O39/1000,0)) -> 119 | P39: =IF(千円単!P39="","",ROUND(千円単!P39/1000,0)) -> 15 | Q39: =IF(千円単!Q39="","",ROUND(千円単!Q39/1000,0)) -> 7 | R39: =IF(千円単!R39="","",ROUND(千円単!R39/1000,0)) -> 77 | S39: =IF(千円単!S39="","",ROUND(千円単!S39/1000,0)) -> 10 | T39: =IF(千円単!T39="","",ROUND(千円単!T39/1000,0)) -> 5 | U39: =IF(千円単!U39="","",ROUND(千円単!U39/1000,0)) -> 104 | V39: =IF(千円単!V39="","",ROUND(千円単!V39/1000,0)) -> 55 | W39: =IF(千円単!W39="","",ROUND(千円単!W39/1000,0)) -> 49 | X39: =IF(千円単!X39="","",ROUND(千円単!X39/1000,0)) -> -27 | Y39: =IF(千円単!Y39="","",ROUND(千円単!Y39/1000,0)) -> 7
A40: 2020 | B40: 46 | C40: 17 | D40: 1 | E40: 39 | F40: 公共 | G40: 016373 | H40: 北海道 | I40: 芽室町 | J40: =IF(千円単!J40="","",ROUND(千円単!J40/1000,0)) -> 626 | K40: =IF(千円単!K40="","",ROUND(千円単!K40/1000,0)) -> 402 | L40: =IF(千円単!L40="","",ROUND(千円単!L40/1000,0)) -> 83 | M40: =IF(千円単!M40="","",ROUND(千円単!M40/1000,0)) -> 606 | N40: =IF(千円単!N40="","",ROUND(千円単!N40/1000,0)) -> 26 | O40: =IF(千円単!O40="","",ROUND(千円単!O40/1000,0)) -> 362 | P40: =IF(千円単!P40="","",ROUND(千円単!P40/1000,0)) -> 20 | Q40: =IF(千円単!Q40="","",ROUND(千円単!Q40/1000,0)) -> 20 | R40: =IF(千円単!R40="","",ROUND(千円単!R40/1000,0)) -> 145 | S40: =IF(千円単!S40="","",ROUND(千円単!S40/1000,0)) -> 41 | T40: =IF(千円単!T40="","",ROUND(千円単!T40/1000,0)) -> 0 | U40: =IF(千円単!U40="","",ROUND(千円単!U40/1000,0)) -> 250 | V40: =IF(千円単!V40="","",ROUND(千円単!V40/1000,0)) -> 84 | W40: =IF(千円単!W40="","",ROUND(千円単!W40/1000,0)) -> 165 | X40: =IF(千円単!X40="","",ROUND(千円単!X40/1000,0)) -> -104 | Y40: =IF(千円単!Y40="","",ROUND(千円単!Y40/1000,0)) -> 20
A41: 2020 | B41: 46 | C41: 17 | D41: 1 | E41: 40 | F41: 公共 | G41: 016446 | H41: 北海道 | I41: 池田町 | J41: =IF(千円単!J41="","",ROUND(千円単!J41/1000,0)) -> 351 | K41: =IF(千円単!K41="","",ROUND(千円単!K41/1000,0)) -> 99 | L41: =IF(千円単!L41="","",ROUND(千円単!L41/1000,0)) -> 118 | M41: =IF(千円単!M41="","",ROUND(千円単!M41/1000,0)) -> 323 | N41: =IF(千円単!N41="","",ROUND(千円単!N41/1000,0)) -> 15 | O41: =IF(千円単!O41="","",ROUND(千円単!O41/1000,0)) -> 196 | P41: =IF(千円単!P41="","",ROUND(千円単!P41/1000,0)) -> 28 | Q41: =IF(千円単!Q41="","",ROUND(千円単!Q41/1000,0)) -> 28 | R41: =IF(千円単!R41="","",ROUND(千円単!R41/1000,0)) -> 197 | S41: =IF(千円単!S41="","",ROUND(千円単!S41/1000,0)) -> 74 | T41: =IF(千円単!T41="","",ROUND(千円単!T41/1000,0)) -> 8 | U41: =IF(千円単!U41="","",ROUND(千円単!U41/1000,0)) -> 292 | V41: =IF(千円単!V41="","",ROUND(千円単!V41/1000,0)) -> 133 | W41: =IF(千円単!W41="","",ROUND(千円単!W41/1000,0)) -> 159 | X41: =IF(千円単!X41="","",ROUND(千円単!X41/1000,0)) -> -95 | Y41: =IF(千円単!Y41="","",ROUND(千円単!Y41/1000,0)) -> 28
A42: 2020 | B42: 46 | C42: 17 | D42: 1 | E42: 41 | F42: 公共 | G42: 022012 | H42: 青森県 | I42: 青森市 | J42: =IF(千円単!J42="","",ROUND(千円単!J42/1000,0)) -> 8073 | K42: =IF(千円単!K42="","",ROUND(千円単!K42/1000,0)) -> 3652 | L42: =IF(千円単!L42="","",ROUND(千円単!L42/1000,0)) -> 1587 | M42: =IF(千円単!M42="","",ROUND(千円単!M42/1000,0)) -> 8411 | N42: =IF(千円単!N42="","",ROUND(千円単!N42/1000,0)) -> 909 | O42: =IF(千円単!O42="","",ROUND(千円単!O42/1000,0)) -> 5071 | P42: =IF(千円単!P42="","",ROUND(千円単!P42/1000,0)) -> 530 | Q42: =IF(千円単!Q42="","",ROUND(千円単!Q42/1000,0)) -> -337 | R42: =IF(千円単!R42="","",ROUND(千円単!R42/1000,0)) -> 5925 | S42: =IF(千円単!S42="","",ROUND(千円単!S42/1000,0)) -> 4342 | T42: =IF(千円単!T42="","",ROUND(千円単!T42/1000,0)) -> 886 | U42: =IF(千円単!U42="","",ROUND(千円単!U42/1000,0)) -> 8781 | V42: =IF(千円単!V42="","",ROUND(千円単!V42/1000,0)) -> 1645 | W42: =IF(千円単!W42="","",ROUND(千円単!W42/1000,0)) -> 7136 | X42: =IF(千円単!X42="","",ROUND(千円単!X42/1000,0)) -> -2856 | Y42: =IF(千円単!Y42="","",ROUND(千円単!Y42/1000,0)) -> -337
A43: 2020 | B43: 46 | C43: 17 | D43: 1 | E43: 42 | F43: 公共 | G43: 022021 | H43: 青森県 | I43: 弘前市 | J43: =IF(千円単!J43="","",ROUND(千円単!J43/1000,0)) -> 4638 | K43: =IF(千円単!K43="","",ROUND(千円単!K43/1000,0)) -> 2726 | L43: =IF(千円単!L43="","",ROUND(千円単!L43/1000,0)) -> 1188 | M43: =IF(千円単!M43="","",ROUND(千円単!M43/1000,0)) -> 4101 | N43: =IF(千円単!N43="","",ROUND(千円単!N43/1000,0)) -> 411 | O43: =IF(千円単!O43="","",ROUND(千円単!O43/1000,0)) -> 2064 | P43: =IF(千円単!P43="","",ROUND(千円単!P43/1000,0)) -> 208 | Q43: =IF(千円単!Q43="","",ROUND(千円単!Q43/1000,0)) -> 538 | R43: =IF(千円単!R43="","",ROUND(千円単!R43/1000,0)) -> 1621 | S43: =IF(千円単!S43="","",ROUND(千円単!S43/1000,0)) -> 1144 | T43: =IF(千円単!T43="","",ROUND(千円単!T43/1000,0)) -> 0 | U43: =IF(千円単!U43="","",ROUND(千円単!U43/1000,0)) -> 3700 | V43: =IF(千円単!V43="","",ROUND(千円単!V43/1000,0)) -> 647 | W43: =IF(千円単!W43="","",ROUND(千円単!W43/1000,0)) -> 3053 | X43: =IF(千円単!X43="","",ROUND(千円単!X43/1000,0)) -> -2079 | Y43: =IF(千円単!Y43="","",ROUND(千円単!Y43/1000,0)) -> 538
A44: 2020 | B44: 46 | C44: 17 | D44: 1 | E44: 43 | F44: 公共 | G44: 022039 | H44: 青森県 | I44: 八戸市 | J44: =IF(千円単!J44="","",ROUND(千円単!J44/1000,0)) -> 6743 | K44: =IF(千円単!K44="","",ROUND(千円単!K44/1000,0)) -> 2404 | L44: =IF(千円単!L44="","",ROUND(千円単!L44/1000,0)) -> 2069 | M44: =IF(千円単!M44="","",ROUND(千円単!M44/1000,0)) -> 6561 | N44: =IF(千円単!N44="","",ROUND(千円単!N44/1000,0)) -> 405 | O44: =IF(千円単!O44="","",ROUND(千円単!O44/1000,0)) -> 4320 | P44: =IF(千円単!P44="","",ROUND(千円単!P44/1000,0)) -> 206 | Q44: =IF(千円単!Q44="","",ROUND(千円単!Q44/1000,0)) -> 182 | R44: =IF(千円単!R44="","",ROUND(千円単!R44/1000,0)) -> 7037 | S44: =IF(千円単!S44="","",ROUND(千円単!S44/1000,0)) -> 4202 | T44: =IF(千円単!T44="","",ROUND(千円単!T44/1000,0)) -> 233 | U44: =IF(千円単!U44="","",ROUND(千円単!U44/1000,0)) -> 9628 | V44: =IF(千円単!V44="","",ROUND(千円単!V44/1000,0)) -> 5241 | W44: =IF(千円単!W44="","",ROUND(千円単!W44/1000,0)) -> 4385 | X44: =IF(千円単!X44="","",ROUND(千円単!X44/1000,0)) -> -2591 | Y44: =IF(千円単!Y44="","",ROUND(千円単!Y44/1000,0)) -> 182
A45: 2020 | B45: 46 | C45: 17 | D45: 1 | E45: 44 | F45: 公共 | G45: 022047 | H45: 青森県 | I45: 黒石市 | J45: =IF(千円単!J45="","",ROUND(千円単!J45/1000,0)) -> 683 | K45: =IF(千円単!K45="","",ROUND(千円単!K45/1000,0)) -> 323 | L45: =IF(千円単!L45="","",ROUND(千円単!L45/1000,0)) -> 34 | M45: =IF(千円単!M45="","",ROUND(千円単!M45/1000,0)) -> 569 | N45: =IF(千円単!N45="","",ROUND(千円単!N45/1000,0)) -> 74 | O45: =IF(千円単!O45="","",ROUND(千円単!O45/1000,0)) -> 306 | P45: =IF(千円単!P45="","",ROUND(千円単!P45/1000,0)) -> 18 | Q45: =IF(千円単!Q45="","",ROUND(千円単!Q45/1000,0)) -> 114 | R45: =IF(千円単!R45="","",ROUND(千円単!R45/1000,0)) -> 683 | S45: =IF(千円単!S45="","",ROUND(千円単!S45/1000,0)) -> 347 | T45: =IF(千円単!T45="","",ROUND(千円単!T45/1000,0)) -> 316 | U45: =IF(千円単!U45="","",ROUND(千円単!U45/1000,0)) -> 769 | V45: =IF(千円単!V45="","",ROUND(千円単!V45/1000,0)) -> 118 | W45: =IF(千円単!W45="","",ROUND(千円単!W45/1000,0)) -> 651 | X45: =IF(千円単!X45="","",ROUND(千円単!X45/1000,0)) -> -86 | Y45: =IF(千円単!Y45="","",ROUND(千円単!Y45/1000,0)) -> 114
A46: 2020 | B46: 46 | C46: 17 | D46: 1 | E46: 45 | F46: 公共 | G46: 022055 | H46: 青森県 | I46: 五所川原市 | J46: =IF(千円単!J46="","",ROUND(千円単!J46/1000,0)) -> 668 | K46: =IF(千円単!K46="","",ROUND(千円単!K46/1000,0)) -> 352 | L46: =IF(千円単!L46="","",ROUND(千円単!L46/1000,0)) -> 73 | M46: =IF(千円単!M46="","",ROUND(千円単!M46/1000,0)) -> 825 | N46: =IF(千円単!N46="","",ROUND(千円単!N46/1000,0)) -> 70 | O46: =IF(千円単!O46="","",ROUND(千円単!O46/1000,0)) -> 450 | P46: =IF(千円単!P46="","",ROUND(千円単!P46/1000,0)) -> 23 | Q46: =IF(千円単!Q46="","",ROUND(千円単!Q46/1000,0)) -> -157 | R46: =IF(千円単!R46="","",ROUND(千円単!R46/1000,0)) -> 509 | S46: =IF(千円単!S46="","",ROUND(千円単!S46/1000,0)) -> 183 | T46: =IF(千円単!T46="","",ROUND(千円単!T46/1000,0)) -> 0 | U46: =IF(千円単!U46="","",ROUND(千円単!U46/1000,0)) -> 605 | V46: =IF(千円単!V46="","",ROUND(千円単!V46/1000,0)) -> 128 | W46: =IF(千円単!W46="","",ROUND(千円単!W46/1000,0)) -> 477 | X46: =IF(千円単!X46="","",ROUND(千円単!X46/1000,0)) -> -96 | Y46: =IF(千円単!Y46="","",ROUND(千円単!Y46/1000,0)) -> -157
A47: 2020 | B47: 46 | C47: 17 | D47: 1 | E47: 46 | F47: 公共 | G47: 022063 | H47: 青森県 | I47: 十和田市 | J47: =IF(千円単!J47="","",ROUND(千円単!J47/1000,0)) -> 1660 | K47: =IF(千円単!K47="","",ROUND(千円単!K47/1000,0)) -> 836 | L47: =IF(千円単!L47="","",ROUND(千円単!L47/1000,0)) -> 376 | M47: =IF(千円単!M47="","",ROUND(千円単!M47/1000,0)) -> 1590 | N47: =IF(千円単!N47="","",ROUND(千円単!N47/1000,0)) -> 185 | O47: =IF(千円単!O47="","",ROUND(千円単!O47/1000,0)) -> 940 | P47: =IF(千円単!P47="","",ROUND(千円単!P47/1000,0)) -> 70 | Q47: =IF(千円単!Q47="","",ROUND(千円単!Q47/1000,0)) -> 70 | R47: =IF(千円単!R47="","",ROUND(千円単!R47/1000,0)) -> 1127 | S47: =IF(千円単!S47="","",ROUND(千円単!S47/1000,0)) -> 745 | T47: =IF(千円単!T47="","",ROUND(千円単!T47/1000,0)) -> 140 | U47: =IF(千円単!U47="","",ROUND(千円単!U47/1000,0)) -> 1782 | V47: =IF(千円単!V47="","",ROUND(千円単!V47/1000,0)) -> 627 | W47: =IF(千円単!W47="","",ROUND(千円単!W47/1000,0)) -> 1155 | X47: =IF(千円単!X47="","",ROUND(千円単!X47/1000,0)) -> -655 | Y47: =IF(千円単!Y47="","",ROUND(千円単!Y47/1000,0)) -> 70
A48: 2020 | B48: 46 | C48: 17 | D48: 1 | E48: 47 | F48: 公共 | G48: 022071 | H48: 青森県 | I48: 三沢市 | J48: =IF(千円単!J48="","",ROUND(千円単!J48/1000,0)) -> 1210 | K48: =IF(千円単!K48="","",ROUND(千円単!K48/1000,0)) -> 398 | L48: =IF(千円単!L48="","",ROUND(千円単!L48/1000,0)) -> 407 | M48: =IF(千円単!M48="","",ROUND(千円単!M48/1000,0)) -> 1113 | N48: =IF(千円単!N48="","",ROUND(千円単!N48/1000,0)) -> 134 | O48: =IF(千円単!O48="","",ROUND(千円単!O48/1000,0)) -> 708 | P48: =IF(千円単!P48="","",ROUND(千円単!P48/1000,0)) -> 43 | Q48: =IF(千円単!Q48="","",ROUND(千円単!Q48/1000,0)) -> 96 | R48: =IF(千円単!R48="","",ROUND(千円単!R48/1000,0)) -> 844 | S48: =IF(千円単!S48="","",ROUND(千円単!S48/1000,0)) -> 538 | T48: =IF(千円単!T48="","",ROUND(千円単!T48/1000,0)) -> 103 | U48: =IF(千円単!U48="","",ROUND(千円単!U48/1000,0)) -> 1244 | V48: =IF(千円単!V48="","",ROUND(千円単!V48/1000,0)) -> 370 | W48: =IF(千円単!W48="","",ROUND(千円単!W48/1000,0)) -> 874 | X48: =IF(千円単!X48="","",ROUND(千円単!X48/1000,0)) -> -400 | Y48: =IF(千円単!Y48="","",ROUND(千円単!Y48/1000,0)) -> 96
A49: 2020 | B49: 46 | C49: 17 | D49: 1 | E49: 48 | F49: 公共 | G49: 022080 | H49: 青森県 | I49: むつ市 | J49: =IF(千円単!J49="","",ROUND(千円単!J49/1000,0)) -> 774 | K49: =IF(千円単!K49="","",ROUND(千円単!K49/1000,0)) -> 85 | L49: =IF(千円単!L49="","",ROUND(千円単!L49/1000,0)) -> 311 | M49: =IF(千円単!M49="","",ROUND(千円単!M49/1000,0)) -> 754 | N49: =IF(千円単!N49="","",ROUND(千円単!N49/1000,0)) -> 98 | O49: =IF(千円単!O49="","",ROUND(千円単!O49/1000,0)) -> 508 | P49: =IF(千円単!P49="","",ROUND(千円単!P49/1000,0)) -> 35 | Q49: =IF(千円単!Q49="","",ROUND(千円単!Q49/1000,0)) -> 20 | R49: =IF(千円単!R49="","",ROUND(千円単!R49/1000,0)) -> 775 | S49: =IF(千円単!S49="","",ROUND(千円単!S49/1000,0)) -> 493 | T49: =IF(千円単!T49="","",ROUND(千円単!T49/1000,0)) -> 179 | U49: =IF(千円単!U49="","",ROUND(千円単!U49/1000,0)) -> 953 | V49: =IF(千円単!V49="","",ROUND(千円単!V49/1000,0)) -> 433 | W49: =IF(千円単!W49="","",ROUND(千円単!W49/1000,0)) -> 520 | X49: =IF(千円単!X49="","",ROUND(千円単!X49/1000,0)) -> -178 | Y49: =IF(千円単!Y49="","",ROUND(千円単!Y49/1000,0)) -> 20
A50: 2020 | B50: 46 | C50: 17 | D50: 1 | E50: 49 | F50: 公共 | G50: 022098 | H50: 青森県 | I50: つがる市 | J50: =IF(千円単!J50="","",ROUND(千円単!J50/1000,0)) -> 408 | K50: =IF(千円単!K50="","",ROUND(千円単!K50/1000,0)) -> 65 | L50: =IF(千円単!L50="","",ROUND(千円単!L50/1000,0)) -> 209 | M50: =IF(千円単!M50="","",ROUND(千円単!M50/1000,0)) -> 423 | N50: =IF(千円単!N50="","",ROUND(千円単!N50/1000,0)) -> 55 | O50: =IF(千円単!O50="","",ROUND(千円単!O50/1000,0)) -> 273 | P50: =IF(千円単!P50="","",ROUND(千円単!P50/1000,0)) -> 23 | Q50: =IF(千円単!Q50="","",ROUND(千円単!Q50/1000,0)) -> -15 | R50: =IF(千円単!R50="","",ROUND(千円単!R50/1000,0)) -> 307 | S50: =IF(千円単!S50="","",ROUND(千円単!S50/1000,0)) -> 180 | T50: =IF(千円単!T50="","",ROUND(千円単!T50/1000,0)) -> 20 | U50: =IF(千円単!U50="","",ROUND(千円単!U50/1000,0)) -> 445 | V50: =IF(千円単!V50="","",ROUND(千円単!V50/1000,0)) -> 211 | W50: =IF(千円単!W50="","",ROUND(千円単!W50/1000,0)) -> 234 | X50: =IF(千円単!X50="","",ROUND(千円単!X50/1000,0)) -> -139 | Y50: =IF(千円単!Y50="","",ROUND(千円単!Y50/1000,0)) -> -15
A51: 2020 | B51: 46 | C51: 17 | D51: 1 | E51: 50 | F51: 公共 | G51: 022101 | H51: 青森県 | I51: 平川市 | J51: =IF(千円単!J51="","",ROUND(千円単!J51/1000,0)) -> 480 | K51: =IF(千円単!K51="","",ROUND(千円単!K51/1000,0)) -> 302 | L51: =IF(千円単!L51="","",ROUND(千円単!L51/1000,0)) -> 57 | M51: =IF(千円単!M51="","",ROUND(千円単!M51/1000,0)) -> 571 | N51: =IF(千円単!N51="","",ROUND(千円単!N51/1000,0)) -> 69 | O51: =IF(千円単!O51="","",ROUND(千円単!O51/1000,0)) -> 329 | P51: =IF(千円単!P51="","",ROUND(千円単!P51/1000,0)) -> 19 | Q51: =IF(千円単!Q51="","",ROUND(千円単!Q51/1000,0)) -> -91 | R51: =IF(千円単!R51="","",ROUND(千円単!R51/1000,0)) -> 287 | S51: =IF(千円単!S51="","",ROUND(千円単!S51/1000,0)) -> 102 | T51: =IF(千円単!T51="","",ROUND(千円単!T51/1000,0)) -> 0 | U51: =IF(千円単!U51="","",ROUND(千円単!U51/1000,0)) -> 450 | V51: =IF(千円単!V51="","",ROUND(千円単!V51/1000,0)) -> 69 | W51: =IF(千円単!W51="","",ROUND(千円単!W51/1000,0)) -> 381 | X51: =IF(千円単!X51="","",ROUND(千円単!X51/1000,0)) -> -163 | Y51: =IF(千円単!Y51="","",ROUND(千円単!Y51/1000,0)) -> -91
A52: 2020 | B52: 46 | C52: 17 | D52: 1 | E52: 51 | F52: 公共 | G52: 023612 | H52: 青森県 | I52: 藤崎町 | J52: =IF(千円単!J52="","",ROUND(千円単!J52/1000,0)) -> 237 | K52: =IF(千円単!K52="","",ROUND(千円単!K52/1000,0)) -> 88 | L52: =IF(千円単!L52="","",ROUND(千円単!L52/1000,0)) -> 74 | M52: =IF(千円単!M52="","",ROUND(千円単!M52/1000,0)) -> 233 | N52: =IF(千円単!N52="","",ROUND(千円単!N52/1000,0)) -> 29 | O52: =IF(千円単!O52="","",ROUND(千円単!O52/1000,0)) -> 161 | P52: =IF(千円単!P52="","",ROUND(千円単!P52/1000,0)) -> 0 | Q52: =IF(千円単!Q52="","",ROUND(千円単!Q52/1000,0)) -> 5 | R52: =IF(千円単!R52="","",ROUND(千円単!R52/1000,0)) -> 308 | S52: =IF(千円単!S52="","",ROUND(千円単!S52/1000,0)) -> 163 | T52: =IF(千円単!T52="","",ROUND(千円単!T52/1000,0)) -> 0 | U52: =IF(千円単!U52="","",ROUND(千円単!U52/1000,0)) -> 413 | V52: =IF(千円単!V52="","",ROUND(千円単!V52/1000,0)) -> 201 | W52: =IF(千円単!W52="","",ROUND(千円単!W52/1000,0)) -> 212 | X52: =IF(千円単!X52="","",ROUND(千円単!X52/1000,0)) -> -105 | Y52: =IF(千円単!Y52="","",ROUND(千円単!Y52/1000,0)) -> 5
A53: 2020 | B53: 46 | C53: 17 | D53: 1 | E53: 52 | F53: 公共 | G53: 023671 | H53: 青森県 | I53: 田舎館村 | J53: =IF(千円単!J53="","",ROUND(千円単!J53/1000,0)) -> 288 | K53: =IF(千円単!K53="","",ROUND(千円単!K53/1000,0)) -> 94 | L53: =IF(千円単!L53="","",ROUND(千円単!L53/1000,0)) -> 79 | M53: =IF(千円単!M53="","",ROUND(千円単!M53/1000,0)) -> 220 | N53: =IF(千円単!N53="","",ROUND(千円単!N53/1000,0)) -> 35 | O53: =IF(千円単!O53="","",ROUND(千円単!O53/1000,0)) -> 126 | P53: =IF(千円単!P53="","",ROUND(千円単!P53/1000,0)) -> 7 | Q53: =IF(千円単!Q53="","",ROUND(千円単!Q53/1000,0)) -> 69 | R53: =IF(千円単!R53="","",ROUND(千円単!R53/1000,0)) -> 117 | S53: =IF(千円単!S53="","",ROUND(千円単!S53/1000,0)) -> 59 | T53: =IF(千円単!T53="","",ROUND(千円単!T53/1000,0)) -> 57 | U53: =IF(千円単!U53="","",ROUND(千円単!U53/1000,0)) -> 213 | V53: =IF(千円単!V53="","",ROUND(千円単!V53/1000,0)) -> 3 | W53: =IF(千円単!W53="","",ROUND(千円単!W53/1000,0)) -> 210 | X53: =IF(千円単!X53="","",ROUND(千円単!X53/1000,0)) -> -97 | Y53: =IF(千円単!Y53="","",ROUND(千円単!Y53/1000,0)) -> 69
A54: 2020 | B54: 46 | C54: 17 | D54: 1 | E54: 53 | F54: 公共 | G54: 023817 | H54: 青森県 | I54: 板柳町 | J54: =IF(千円単!J54="","",ROUND(千円単!J54/1000,0)) -> 311 | K54: =IF(千円単!K54="","",ROUND(千円単!K54/1000,0)) -> 82 | L54: =IF(千円単!L54="","",ROUND(千円単!L54/1000,0)) -> 78 | M54: =IF(千円単!M54="","",ROUND(千円単!M54/1000,0)) -> 266 | N54: =IF(千円単!N54="","",ROUND(千円単!N54/1000,0)) -> 49 | O54: =IF(千円単!O54="","",ROUND(千円単!O54/1000,0)) -> 159 | P54: =IF(千円単!P54="","",ROUND(千円単!P54/1000,0)) -> 8 | Q54: =IF(千円単!Q54="","",ROUND(千円単!Q54/1000,0)) -> 45 | R54: =IF(千円単!R54="","",ROUND(千円単!R54/1000,0)) -> 587 | S54: =IF(千円単!S54="","",ROUND(千円単!S54/1000,0)) -> 315 | T54: =IF(千円単!T54="","",ROUND(千円単!T54/1000,0)) -> 83 | U54: =IF(千円単!U54="","",ROUND(千円単!U54/1000,0)) -> 668 | V54: =IF(千円単!V54="","",ROUND(千円単!V54/1000,0)) -> 432 | W54: =IF(千円単!W54="","",ROUND(千円単!W54/1000,0)) -> 236 | X54: =IF(千円単!X54="","",ROUND(千円単!X54/1000,0)) -> -81 | Y54: =IF(千円単!Y54="","",ROUND(千円単!Y54/1000,0)) -> 45
A55: 2020 | B55: 46 | C55: 17 | D55: 1 | E55: 54 | F55: 公共 | G55: 023841 | H55: 青森県 | I55: 鶴田町 | J55: =IF(千円単!J55="","",ROUND(千円単!J55/1000,0)) -> 373 | K55: =IF(千円単!K55="","",ROUND(千円単!K55/1000,0)) -> 57 | L55: =IF(千円単!L55="","",ROUND(千円単!L55/1000,0)) -> 195 | M55: =IF(千円単!M55="","",ROUND(千円単!M55/1000,0)) -> 294 | N55: =IF(千円単!N55="","",ROUND(千円単!N55/1000,0)) -> 49 | O55: =IF(千円単!O55="","",ROUND(千円単!O55/1000,0)) -> 208 | P55: =IF(千円単!P55="","",ROUND(千円単!P55/1000,0)) -> 6 | Q55: =IF(千円単!Q55="","",ROUND(千円単!Q55/1000,0)) -> 79 | R55: =IF(千円単!R55="","",ROUND(千円単!R55/1000,0)) -> 7 | S55: =IF(千円単!S55="","",ROUND(千円単!S55/1000,0)) -> 0 | T55: =IF(千円単!T55="","",ROUND(千円単!T55/1000,0)) -> 5 | U55: =IF(千円単!U55="","",ROUND(千円単!U55/1000,0)) -> 215 | V55: =IF(千円単!V55="","",ROUND(千円単!V55/1000,0)) -> 2 | W55: =IF(千円単!W55="","",ROUND(千円単!W55/1000,0)) -> 213 | X55: =IF(千円単!X55="","",ROUND(千円単!X55/1000,0)) -> -208 | Y55: =IF(千円単!Y55="","",ROUND(千円単!Y55/1000,0)) -> 79
A56: 2020 | B56: 46 | C56: 17 | D56: 1 | E56: 55 | F56: 公共 | G56: 024112 | H56: 青森県 | I56: 六ケ所村 | J56: =IF(千円単!J56="","",ROUND(千円単!J56/1000,0)) -> 596 | K56: =IF(千円単!K56="","",ROUND(千円単!K56/1000,0)) -> 51 | L56: =IF(千円単!L56="","",ROUND(千円単!L56/1000,0)) -> 329 | M56: =IF(千円単!M56="","",ROUND(千円単!M56/1000,0)) -> 593 | N56: =IF(千円単!N56="","",ROUND(千円単!N56/1000,0)) -> 67 | O56: =IF(千円単!O56="","",ROUND(千円単!O56/1000,0)) -> 360 | P56: =IF(千円単!P56="","",ROUND(千円単!P56/1000,0)) -> 24 | Q56: =IF(千円単!Q56="","",ROUND(千円単!Q56/1000,0)) -> 3 | R56: =IF(千円単!R56="","",ROUND(千円単!R56/1000,0)) -> 128 | S56: =IF(千円単!S56="","",ROUND(千円単!S56/1000,0)) -> 0 | T56: =IF(千円単!T56="","",ROUND(千円単!T56/1000,0)) -> 0 | U56: =IF(千円単!U56="","",ROUND(千円単!U56/1000,0)) -> 292 | V56: =IF(千円単!V56="","",ROUND(千円単!V56/1000,0)) -> 91 | W56: =IF(千円単!W56="","",ROUND(千円単!W56/1000,0)) -> 200 | X56: =IF(千円単!X56="","",ROUND(千円単!X56/1000,0)) -> -164 | Y56: =IF(千円単!Y56="","",ROUND(千円単!Y56/1000,0)) -> 3
A57: 2020 | B57: 46 | C57: 17 | D57: 1 | E57: 56 | F57: 公共 | G57: 032018 | H57: 岩手県 | I57: 盛岡市 | J57: =IF(千円単!J57="","",ROUND(千円単!J57/1000,0)) -> 7915 | K57: =IF(千円単!K57="","",ROUND(千円単!K57/1000,0)) -> 4174 | L57: =IF(千円単!L57="","",ROUND(千円単!L57/1000,0)) -> 2775 | M57: =IF(千円単!M57="","",ROUND(千円単!M57/1000,0)) -> 7508 | N57: =IF(千円単!N57="","",ROUND(千円単!N57/1000,0)) -> 620 | O57: =IF(千円単!O57="","",ROUND(千円単!O57/1000,0)) -> 4074 | P57: =IF(千円単!P57="","",ROUND(千円単!P57/1000,0)) -> 360 | Q57: =IF(千円単!Q57="","",ROUND(千円単!Q57/1000,0)) -> 407 | R57: =IF(千円単!R57="","",ROUND(千円単!R57/1000,0)) -> 2566 | S57: =IF(千円単!S57="","",ROUND(千円単!S57/1000,0)) -> 1308 | T57: =IF(千円単!T57="","",ROUND(千円単!T57/1000,0)) -> 481 | U57: =IF(千円単!U57="","",ROUND(千円単!U57/1000,0)) -> 5711 | V57: =IF(千円単!V57="","",ROUND(千円単!V57/1000,0)) -> 2475 | W57: =IF(千円単!W57="","",ROUND(千円単!W57/1000,0)) -> 3235 | X57: =IF(千円単!X57="","",ROUND(千円単!X57/1000,0)) -> -3145 | Y57: =IF(千円単!Y57="","",ROUND(千円単!Y57/1000,0)) -> 407
A58: 2020 | B58: 46 | C58: 17 | D58: 1 | E58: 57 | F58: 公共 | G58: 032026 | H58: 岩手県 | I58: 宮古市 | J58: =IF(千円単!J58="","",ROUND(千円単!J58/1000,0)) -> 1306 | K58: =IF(千円単!K58="","",ROUND(千円単!K58/1000,0)) -> 530 | L58: =IF(千円単!L58="","",ROUND(千円単!L58/1000,0)) -> 364 | M58: =IF(千円単!M58="","",ROUND(千円単!M58/1000,0)) -> 1184 | N58: =IF(千円単!N58="","",ROUND(千円単!N58/1000,0)) -> 121 | O58: =IF(千円単!O58="","",ROUND(千円単!O58/1000,0)) -> 692 | P58: =IF(千円単!P58="","",ROUND(千円単!P58/1000,0)) -> 55 | Q58: =IF(千円単!Q58="","",ROUND(千円単!Q58/1000,0)) -> 121 | R58: =IF(千円単!R58="","",ROUND(千円単!R58/1000,0)) -> 1810 | S58: =IF(千円単!S58="","",ROUND(千円単!S58/1000,0)) -> 306 | T58: =IF(千円単!T58="","",ROUND(千円単!T58/1000,0)) -> 1312 | U58: =IF(千円単!U58="","",ROUND(千円単!U58/1000,0)) -> 2417 | V58: =IF(千円単!V58="","",ROUND(千円単!V58/1000,0)) -> 1548 | W58: =IF(千円単!W58="","",ROUND(千円単!W58/1000,0)) -> 869 | X58: =IF(千円単!X58="","",ROUND(千円単!X58/1000,0)) -> -607 | Y58: =IF(千円単!Y58="","",ROUND(千円単!Y58/1000,0)) -> 121
A59: 2020 | B59: 46 | C59: 17 | D59: 1 | E59: 58 | F59: 公共 | G59: 032034 | H59: 岩手県 | I59: 大船渡市 | J59: =IF(千円単!J59="","",ROUND(千円単!J59/1000,0)) -> 1181 | K59: =IF(千円単!K59="","",ROUND(千円単!K59/1000,0)) -> 221 | L59: =IF(千円単!L59="","",ROUND(千円単!L59/1000,0)) -> 603 | M59: =IF(千円単!M59="","",ROUND(千円単!M59/1000,0)) -> 972 | N59: =IF(千円単!N59="","",ROUND(千円単!N59/1000,0)) -> 138 | O59: =IF(千円単!O59="","",ROUND(千円単!O59/1000,0)) -> 561 | P59: =IF(千円単!P59="","",ROUND(千円単!P59/1000,0)) -> 32 | Q59: =IF(千円単!Q59="","",ROUND(千円単!Q59/1000,0)) -> 210 | R59: =IF(千円単!R59="","",ROUND(千円単!R59/1000,0)) -> 1580 | S59: =IF(千円単!S59="","",ROUND(千円単!S59/1000,0)) -> 726 | T59: =IF(千円単!T59="","",ROUND(千円単!T59/1000,0)) -> 0 | U59: =IF(千円単!U59="","",ROUND(千円単!U59/1000,0)) -> 1679 | V59: =IF(千円単!V59="","",ROUND(千円単!V59/1000,0)) -> 1079 | W59: =IF(千円単!W59="","",ROUND(千円単!W59/1000,0)) -> 600 | X59: =IF(千円単!X59="","",ROUND(千円単!X59/1000,0)) -> -99 | Y59: =IF(千円単!Y59="","",ROUND(千円単!Y59/1000,0)) -> 210
A60: 2020 | B60: 46 | C60: 17 | D60: 1 | E60: 59 | F60: 公共 | G60: 032051 | H60: 岩手県 | I60: 花巻市 | J60: =IF(千円単!J60="","",ROUND(千円単!J60/1000,0)) -> 2269 | K60: =IF(千円単!K60="","",ROUND(千円単!K60/1000,0)) -> 747 | L60: =IF(千円単!L60="","",ROUND(千円単!L60/1000,0)) -> 1108 | M60: =IF(千円単!M60="","",ROUND(千円単!M60/1000,0)) -> 2191 | N60: =IF(千円単!N60="","",ROUND(千円単!N60/1000,0)) -> 326 | O60: =IF(千円単!O60="","",ROUND(千円単!O60/1000,0)) -> 1316 | P60: =IF(千円単!P60="","",ROUND(千円単!P60/1000,0)) -> 64 | Q60: =IF(千円単!Q60="","",ROUND(千円単!Q60/1000,0)) -> 78 | R60: =IF(千円単!R60="","",ROUND(千円単!R60/1000,0)) -> 1786 | S60: =IF(千円単!S60="","",ROUND(千円単!S60/1000,0)) -> 1180 | T60: =IF(千円単!T60="","",ROUND(千円単!T60/1000,0)) -> 0 | U60: =IF(千円単!U60="","",ROUND(千円単!U60/1000,0)) -> 2718 | V60: =IF(千円単!V60="","",ROUND(千円単!V60/1000,0)) -> 891 | W60: =IF(千円単!W60="","",ROUND(千円単!W60/1000,0)) -> 1827 | X60: =IF(千円単!X60="","",ROUND(千円単!X60/1000,0)) -> -932 | Y60: =IF(千円単!Y60="","",ROUND(千円単!Y60/1000,0)) -> 78
A61: 2020 | B61: 46 | C61: 17 | D61: 1 | E61: 60 | F61: 公共 | G61: 032069 | H61: 岩手県 | I61: 北上市 | J61: =IF(千円単!J61="","",ROUND(千円単!J61/1000,0)) -> 2003 | K61: =IF(千円単!K61="","",ROUND(千円単!K61/1000,0)) -> 1233 | L61: =IF(千円単!L61="","",ROUND(千円単!L61/1000,0)) -> 542 | M61: =IF(千円単!M61="","",ROUND(千円単!M61/1000,0)) -> 1967 | N61: =IF(千円単!N61="","",ROUND(千円単!N61/1000,0)) -> 269 | O61: =IF(千円単!O61="","",ROUND(千円単!O61/1000,0)) -> 956 | P61: =IF(千円単!P61="","",ROUND(千円単!P61/1000,0)) -> 47 | Q61: =IF(千円単!Q61="","",ROUND(千円単!Q61/1000,0)) -> 36 | R61: =IF(千円単!R61="","",ROUND(千円単!R61/1000,0)) -> 1361 | S61: =IF(千円単!S61="","",ROUND(千円単!S61/1000,0)) -> 323 | T61: =IF(千円単!T61="","",ROUND(千円単!T61/1000,0)) -> 0 | U61: =IF(千円単!U61="","",ROUND(千円単!U61/1000,0)) -> 1959 | V61: =IF(千円単!V61="","",ROUND(千円単!V61/1000,0)) -> 453 | W61: =IF(千円単!W61="","",ROUND(千円単!W61/1000,0)) -> 1506 | X61: =IF(千円単!X61="","",ROUND(千円単!X61/1000,0)) -> -597 | Y61: =IF(千円単!Y61="","",ROUND(千円単!Y61/1000,0)) -> 36
A62: 2020 | B62: 46 | C62: 17 | D62: 1 | E62: 61 | F62: 公共 | G62: 032077 | H62: 岩手県 | I62: 久慈市 | J62: =IF(千円単!J62="","",ROUND(千円単!J62/1000,0)) -> 862 | K62: =IF(千円単!K62="","",ROUND(千円単!K62/1000,0)) -> 167 | L62: =IF(千円単!L62="","",ROUND(千円単!L62/1000,0)) -> 401 | M62: =IF(千円単!M62="","",ROUND(千円単!M62/1000,0)) -> 826 | N62: =IF(千円単!N62="","",ROUND(千円単!N62/1000,0)) -> 96 | O62: =IF(千円単!O62="","",ROUND(千円単!O62/1000,0)) -> 509 | P62: =IF(千円単!P62="","",ROUND(千円単!P62/1000,0)) -> 68 | Q62: =IF(千円単!Q62="","",ROUND(千円単!Q62/1000,0)) -> 36 | R62: =IF(千円単!R62="","",ROUND(千円単!R62/1000,0)) -> 741 | S62: =IF(千円単!S62="","",ROUND(千円単!S62/1000,0)) -> 387 | T62: =IF(千円単!T62="","",ROUND(千円単!T62/1000,0)) -> 0 | U62: =IF(千円単!U62="","",ROUND(千円単!U62/1000,0)) -> 960 | V62: =IF(千円単!V62="","",ROUND(千円単!V62/1000,0)) -> 520 | W62: =IF(千円単!W62="","",ROUND(千円単!W62/1000,0)) -> 339 | X62: =IF(千円単!X62="","",ROUND(千円単!X62/1000,0)) -> -218 | Y62: =IF(千円単!Y62="","",ROUND(千円単!Y62/1000,0)) -> 36
A63: 2020 | B63: 46 | C63: 17 | D63: 1 | E63: 62 | F63: 公共 | G63: 032085 | H63: 岩手県 | I63: 遠野市 | J63: =IF(千円単!J63="","",ROUND(千円単!J63/1000,0)) -> 535 | K63: =IF(千円単!K63="","",ROUND(千円単!K63/1000,0)) -> 123 | L63: =IF(千円単!L63="","",ROUND(千円単!L63/1000,0)) -> 273 | M63: =IF(千円単!M63="","",ROUND(千円単!M63/1000,0)) -> 530 | N63: =IF(千円単!N63="","",ROUND(千円単!N63/1000,0)) -> 77 | O63: =IF(千円単!O63="","",ROUND(千円単!O63/1000,0)) -> 309 | P63: =IF(千円単!P63="","",ROUND(千円単!P63/1000,0)) -> 32 | Q63: =IF(千円単!Q63="","",ROUND(千円単!Q63/1000,0)) -> 5 | R63: =IF(千円単!R63="","",ROUND(千円単!R63/1000,0)) -> 229 | S63: =IF(千円単!S63="","",ROUND(千円単!S63/1000,0)) -> 10 | T63: =IF(千円単!T63="","",ROUND(千円単!T63/1000,0)) -> 0 | U63: =IF(千円単!U63="","",ROUND(千円単!U63/1000,0)) -> 375 | V63: =IF(千円単!V63="","",ROUND(千円単!V63/1000,0)) -> 20 | W63: =IF(千円単!W63="","",ROUND(千円単!W63/1000,0)) -> 355 | X63: =IF(千円単!X63="","",ROUND(千円単!X63/1000,0)) -> -147 | Y63: =IF(千円単!Y63="","",ROUND(千円単!Y63/1000,0)) -> 5
A64: 2020 | B64: 46 | C64: 17 | D64: 1 | E64: 63 | F64: 公共 | G64: 032093 | H64: 岩手県 | I64: 一関市 | J64: =IF(千円単!J64="","",ROUND(千円単!J64/1000,0)) -> 1915 | K64: =IF(千円単!K64="","",ROUND(千円単!K64/1000,0)) -> 582 | L64: =IF(千円単!L64="","",ROUND(千円単!L64/1000,0)) -> 676 | M64: =IF(千円単!M64="","",ROUND(千円単!M64/1000,0)) -> 1737 | N64: =IF(千円単!N64="","",ROUND(千円単!N64/1000,0)) -> 187 | O64: =IF(千円単!O64="","",ROUND(千円単!O64/1000,0)) -> 972 | P64: =IF(千円単!P64="","",ROUND(千円単!P64/1000,0)) -> 38 | Q64: =IF(千円単!Q64="","",ROUND(千円単!Q64/1000,0)) -> 178 | R64: =IF(千円単!R64="","",ROUND(千円単!R64/1000,0)) -> 1939 | S64: =IF(千円単!S64="","",ROUND(千円単!S64/1000,0)) -> 815 | T64: =IF(千円単!T64="","",ROUND(千円単!T64/1000,0)) -> 152 | U64: =IF(千円単!U64="","",ROUND(千円単!U64/1000,0)) -> 2401 | V64: =IF(千円単!V64="","",ROUND(千円単!V64/1000,0)) -> 1278 | W64: =IF(千円単!W64="","",ROUND(千円単!W64/1000,0)) -> 1123 | X64: =IF(千円単!X64="","",ROUND(千円単!X64/1000,0)) -> -463 | Y64: =IF(千円単!Y64="","",ROUND(千円単!Y64/1000,0)) -> 178
A65: 2020 | B65: 46 | C65: 17 | D65: 1 | E65: 64 | F65: 公共 | G65: 032115 | H65: 岩手県 | I65: 釜石市 | J65: =IF(千円単!J65="","",ROUND(千円単!J65/1000,0)) -> 1239 | K65: =IF(千円単!K65="","",ROUND(千円単!K65/1000,0)) -> 401 | L65: =IF(千円単!L65="","",ROUND(千円単!L65/1000,0)) -> 284 | M65: =IF(千円単!M65="","",ROUND(千円単!M65/1000,0)) -> 1273 | N65: =IF(千円単!N65="","",ROUND(千円単!N65/1000,0)) -> 70 | O65: =IF(千円単!O65="","",ROUND(千円単!O65/1000,0)) -> 791 | P65: =IF(千円単!P65="","",ROUND(千円単!P65/1000,0)) -> 64 | Q65: =IF(千円単!Q65="","",ROUND(千円単!Q65/1000,0)) -> -35 | R65: =IF(千円単!R65="","",ROUND(千円単!R65/1000,0)) -> 1068 | S65: =IF(千円単!S65="","",ROUND(千円単!S65/1000,0)) -> 374 | T65: =IF(千円単!T65="","",ROUND(千円単!T65/1000,0)) -> 159 | U65: =IF(千円単!U65="","",ROUND(千円単!U65/1000,0)) -> 1449 | V65: =IF(千円単!V65="","",ROUND(千円単!V65/1000,0)) -> 1180 | W65: =IF(千円単!W65="","",ROUND(千円単!W65/1000,0)) -> 269 | X65: =IF(千円単!X65="","",ROUND(千円単!X65/1000,0)) -> -381 | Y65: =IF(千円単!Y65="","",ROUND(千円単!Y65/1000,0)) -> -35
A66: 2020 | B66: 46 | C66: 17 | D66: 1 | E66: 65 | F66: 公共 | G66: 032140 | H66: 岩手県 | I66: 八幡平市 | J66: =IF(千円単!J66="","",ROUND(千円単!J66/1000,0)) -> 402 | K66: =IF(千円単!K66="","",ROUND(千円単!K66/1000,0)) -> 69 | L66: =IF(千円単!L66="","",ROUND(千円単!L66/1000,0)) -> 212 | M66: =IF(千円単!M66="","",ROUND(千円単!M66/1000,0)) -> 372 | N66: =IF(千円単!N66="","",ROUND(千円単!N66/1000,0)) -> 53 | O66: =IF(千円単!O66="","",ROUND(千円単!O66/1000,0)) -> 196 | P66: =IF(千円単!P66="","",ROUND(千円単!P66/1000,0)) -> 23 | Q66: =IF(千円単!Q66="","",ROUND(千円単!Q66/1000,0)) -> 30 | R66: =IF(千円単!R66="","",ROUND(千円単!R66/1000,0)) -> 179 | S66: =IF(千円単!S66="","",ROUND(千円単!S66/1000,0)) -> 74 | T66: =IF(千円単!T66="","",ROUND(千円単!T66/1000,0)) -> 6 | U66: =IF(千円単!U66="","",ROUND(千円単!U66/1000,0)) -> 291 | V66: =IF(千円単!V66="","",ROUND(千円単!V66/1000,0)) -> 140 | W66: =IF(千円単!W66="","",ROUND(千円単!W66/1000,0)) -> 150 | X66: =IF(千円単!X66="","",ROUND(千円単!X66/1000,0)) -> -112 | Y66: =IF(千円単!Y66="","",ROUND(千円単!Y66/1000,0)) -> 30
A67: 2020 | B67: 46 | C67: 17 | D67: 1 | E67: 66 | F67: 公共 | G67: 032158 | H67: 岩手県 | I67: 奥州市 | J67: =IF(千円単!J67="","",ROUND(千円単!J67/1000,0)) -> 2079 | K67: =IF(千円単!K67="","",ROUND(千円単!K67/1000,0)) -> 805 | L67: =IF(千円単!L67="","",ROUND(千円単!L67/1000,0)) -> 917 | M67: =IF(千円単!M67="","",ROUND(千円単!M67/1000,0)) -> 2053 | N67: =IF(千円単!N67="","",ROUND(千円単!N67/1000,0)) -> 281 | O67: =IF(千円単!O67="","",ROUND(千円単!O67/1000,0)) -> 1030 | P67: =IF(千円単!P67="","",ROUND(千円単!P67/1000,0)) -> 60 | Q67: =IF(千円単!Q67="","",ROUND(千円単!Q67/1000,0)) -> 26 | R67: =IF(千円単!R67="","",ROUND(千円単!R67/1000,0)) -> 2270 | S67: =IF(千円単!S67="","",ROUND(千円単!S67/1000,0)) -> 1210 | T67: =IF(千円単!T67="","",ROUND(千円単!T67/1000,0)) -> 276 | U67: =IF(千円単!U67="","",ROUND(千円単!U67/1000,0)) -> 2705 | V67: =IF(千円単!V67="","",ROUND(千円単!V67/1000,0)) -> 1083 | W67: =IF(千円単!W67="","",ROUND(千円単!W67/1000,0)) -> 1622 | X67: =IF(千円単!X67="","",ROUND(千円単!X67/1000,0)) -> -434 | Y67: =IF(千円単!Y67="","",ROUND(千円単!Y67/1000,0)) -> 26
A68: 2020 | B68: 46 | C68: 17 | D68: 1 | E68: 67 | F68: 公共 | G68: 032166 | H68: 岩手県 | I68: 滝沢市 | J68: =IF(千円単!J68="","",ROUND(千円単!J68/1000,0)) -> 1124 | K68: =IF(千円単!K68="","",ROUND(千円単!K68/1000,0)) -> 520 | L68: =IF(千円単!L68="","",ROUND(千円単!L68/1000,0)) -> 278 | M68: =IF(千円単!M68="","",ROUND(千円単!M68/1000,0)) -> 991 | N68: =IF(千円単!N68="","",ROUND(千円単!N68/1000,0)) -> 89 | O68: =IF(千円単!O68="","",ROUND(千円単!O68/1000,0)) -> 574 | P68: =IF(千円単!P68="","",ROUND(千円単!P68/1000,0)) -> 29 | Q68: =IF(千円単!Q68="","",ROUND(千円単!Q68/1000,0)) -> 134 | R68: =IF(千円単!R68="","",ROUND(千円単!R68/1000,0)) -> 445 | S68: =IF(千円単!S68="","",ROUND(千円単!S68/1000,0)) -> 327 | T68: =IF(千円単!T68="","",ROUND(千円単!T68/1000,0)) -> 18 | U68: =IF(千円単!U68="","",ROUND(千円単!U68/1000,0)) -> 794 | V68: =IF(千円単!V68="","",ROUND(千円単!V68/1000,0)) -> 427 | W68: =IF(千円単!W68="","",ROUND(千円単!W68/1000,0)) -> 368 | X68: =IF(千円単!X68="","",ROUND(千円単!X68/1000,0)) -> -349 | Y68: =IF(千円単!Y68="","",ROUND(千円単!Y68/1000,0)) -> 134
A69: 2020 | B69: 46 | C69: 17 | D69: 1 | E69: 68 | F69: 公共 | G69: 033014 | H69: 岩手県 | I69: 雫石町 | J69: =IF(千円単!J69="","",ROUND(千円単!J69/1000,0)) -> 459 | K69: =IF(千円単!K69="","",ROUND(千円単!K69/1000,0)) -> 127 | L69: =IF(千円単!L69="","",ROUND(千円単!L69/1000,0)) -> 195 | M69: =IF(千円単!M69="","",ROUND(千円単!M69/1000,0)) -> 449 | N69: =IF(千円単!N69="","",ROUND(千円単!N69/1000,0)) -> 49 | O69: =IF(千円単!O69="","",ROUND(千円単!O69/1000,0)) -> 315 | P69: =IF(千円単!P69="","",ROUND(千円単!P69/1000,0)) -> 6 | Q69: =IF(千円単!Q69="","",ROUND(千円単!Q69/1000,0)) -> 10 | R69: =IF(千円単!R69="","",ROUND(千円単!R69/1000,0)) -> 378 | S69: =IF(千円単!S69="","",ROUND(千円単!S69/1000,0)) -> 216 | T69: =IF(千円単!T69="","",ROUND(千円単!T69/1000,0)) -> 0 | U69: =IF(千円単!U69="","",ROUND(千円単!U69/1000,0)) -> 567 | V69: =IF(千円単!V69="","",ROUND(千円単!V69/1000,0)) -> 228 | W69: =IF(千円単!W69="","",ROUND(千円単!W69/1000,0)) -> 338 | X69: =IF(千円単!X69="","",ROUND(千円単!X69/1000,0)) -> -189 | Y69: =IF(千円単!Y69="","",ROUND(千円単!Y69/1000,0)) -> 10
A70: 2020 | B70: 46 | C70: 17 | D70: 1 | E70: 69 | F70: 公共 | G70: 033031 | H70: 岩手県 | I70: 岩手町 | J70: =IF(千円単!J70="","",ROUND(千円単!J70/1000,0)) -> 256 | K70: =IF(千円単!K70="","",ROUND(千円単!K70/1000,0)) -> 44 | L70: =IF(千円単!L70="","",ROUND(千円単!L70/1000,0)) -> 136 | M70: =IF(千円単!M70="","",ROUND(千円単!M70/1000,0)) -> 249 | N70: =IF(千円単!N70="","",ROUND(千円単!N70/1000,0)) -> 33 | O70: =IF(千円単!O70="","",ROUND(千円単!O70/1000,0)) -> 145 | P70: =IF(千円単!P70="","",ROUND(千円単!P70/1000,0)) -> 19 | Q70: =IF(千円単!Q70="","",ROUND(千円単!Q70/1000,0)) -> 7 | R70: =IF(千円単!R70="","",ROUND(千円単!R70/1000,0)) -> 167 | S70: =IF(千円単!S70="","",ROUND(千円単!S70/1000,0)) -> 111 | T70: =IF(千円単!T70="","",ROUND(千円単!T70/1000,0)) -> 0 | U70: =IF(千円単!U70="","",ROUND(千円単!U70/1000,0)) -> 233 | V70: =IF(千円単!V70="","",ROUND(千円単!V70/1000,0)) -> 89 | W70: =IF(千円単!W70="","",ROUND(千円単!W70/1000,0)) -> 144 | X70: =IF(千円単!X70="","",ROUND(千円単!X70/1000,0)) -> -67 | Y70: =IF(千円単!Y70="","",ROUND(千円単!Y70/1000,0)) -> 7
A71: 2020 | B71: 46 | C71: 17 | D71: 1 | E71: 70 | F71: 公共 | G71: 033219 | H71: 岩手県 | I71: 紫波町 | J71: =IF(千円単!J71="","",ROUND(千円単!J71/1000,0)) -> 731 | K71: =IF(千円単!K71="","",ROUND(千円単!K71/1000,0)) -> 315 | L71: =IF(千円単!L71="","",ROUND(千円単!L71/1000,0)) -> 370 | M71: =IF(千円単!M71="","",ROUND(千円単!M71/1000,0)) -> 740 | N71: =IF(千円単!N71="","",ROUND(千円単!N71/1000,0)) -> 69 | O71: =IF(千円単!O71="","",ROUND(千円単!O71/1000,0)) -> 478 | P71: =IF(千円単!P71="","",ROUND(千円単!P71/1000,0)) -> 28 | Q71: =IF(千円単!Q71="","",ROUND(千円単!Q71/1000,0)) -> -9 | R71: =IF(千円単!R71="","",ROUND(千円単!R71/1000,0)) -> 210 | S71: =IF(千円単!S71="","",ROUND(千円単!S71/1000,0)) -> 133 | T71: =IF(千円単!T71="","",ROUND(千円単!T71/1000,0)) -> 6 | U71: =IF(千円単!U71="","",ROUND(千円単!U71/1000,0)) -> 487 | V71: =IF(千円単!V71="","",ROUND(千円単!V71/1000,0)) -> 231 | W71: =IF(千円単!W71="","",ROUND(千円単!W71/1000,0)) -> 256 | X71: =IF(千円単!X71="","",ROUND(千円単!X71/1000,0)) -> -277 | Y71: =IF(千円単!Y71="","",ROUND(千円単!Y71/1000,0)) -> -9
A72: 2020 | B72: 46 | C72: 17 | D72: 1 | E72: 71 | F72: 公共 | G72: 033227 | H72: 岩手県 | I72: 矢巾町 | J72: =IF(千円単!J72="","",ROUND(千円単!J72/1000,0)) -> 892 | K72: =IF(千円単!K72="","",ROUND(千円単!K72/1000,0)) -> 444 | L72: =IF(千円単!L72="","",ROUND(千円単!L72/1000,0)) -> 245 | M72: =IF(千円単!M72="","",ROUND(千円単!M72/1000,0)) -> 704 | N72: =IF(千円単!N72="","",ROUND(千円単!N72/1000,0)) -> 64 | O72: =IF(千円単!O72="","",ROUND(千円単!O72/1000,0)) -> 383 | P72: =IF(千円単!P72="","",ROUND(千円単!P72/1000,0)) -> 11 | Q72: =IF(千円単!Q72="","",ROUND(千円単!Q72/1000,0)) -> 187 | R72: =IF(千円単!R72="","",ROUND(千円単!R72/1000,0)) -> 63 | S72: =IF(千円単!S72="","",ROUND(千円単!S72/1000,0)) -> 31 | T72: =IF(千円単!T72="","",ROUND(千円単!T72/1000,0)) -> 0 | U72: =IF(千円単!U72="","",ROUND(千円単!U72/1000,0)) -> 375 | V72: =IF(千円単!V72="","",ROUND(千円単!V72/1000,0)) -> 155 | W72: =IF(千円単!W72="","",ROUND(千円単!W72/1000,0)) -> 220 | X72: =IF(千円単!X72="","",ROUND(千円単!X72/1000,0)) -> -313 | Y72: =IF(千円単!Y72="","",ROUND(千円単!Y72/1000,0)) -> 187
A73: 2020 | B73: 46 | C73: 17 | D73: 1 | E73: 72 | F73: 公共 | G73: 033812 | H73: 岩手県 | I73: 金ケ崎町 | J73: =IF(千円単!J73="","",ROUND(千円単!J73/1000,0)) -> 484 | K73: =IF(千円単!K73="","",ROUND(千円単!K73/1000,0)) -> 213 | L73: =IF(千円単!L73="","",ROUND(千円単!L73/1000,0)) -> 189 | M73: =IF(千円単!M73="","",ROUND(千円単!M73/1000,0)) -> 394 | N73: =IF(千円単!N73="","",ROUND(千円単!N73/1000,0)) -> 60 | O73: =IF(千円単!O73="","",ROUND(千円単!O73/1000,0)) -> 204 | P73: =IF(千円単!P73="","",ROUND(千円単!P73/1000,0)) -> 6 | Q73: =IF(千円単!Q73="","",ROUND(千円単!Q73/1000,0)) -> 90 | R73: =IF(千円単!R73="","",ROUND(千円単!R73/1000,0)) -> 203 | S73: =IF(千円単!S73="","",ROUND(千円単!S73/1000,0)) -> 157 | T73: =IF(千円単!T73="","",ROUND(千円単!T73/1000,0)) -> 28 | U73: =IF(千円単!U73="","",ROUND(千円単!U73/1000,0)) -> 399 | V73: =IF(千円単!V73="","",ROUND(千円単!V73/1000,0)) -> 38 | W73: =IF(千円単!W73="","",ROUND(千円単!W73/1000,0)) -> 361 | X73: =IF(千円単!X73="","",ROUND(千円単!X73/1000,0)) -> -196 | Y73: =IF(千円単!Y73="","",ROUND(千円単!Y73/1000,0)) -> 90
A74: 2020 | B74: 46 | C74: 17 | D74: 1 | E74: 73 | F74: 公共 | G74: 034029 | H74: 岩手県 | I74: 平泉町 | J74: =IF(千円単!J74="","",ROUND(千円単!J74/1000,0)) -> 219 | K74: =IF(千円単!K74="","",ROUND(千円単!K74/1000,0)) -> 51 | L74: =IF(千円単!L74="","",ROUND(千円単!L74/1000,0)) -> 107 | M74: =IF(千円単!M74="","",ROUND(千円単!M74/1000,0)) -> 213 | N74: =IF(千円単!N74="","",ROUND(千円単!N74/1000,0)) -> 30 | O74: =IF(千円単!O74="","",ROUND(千円単!O74/1000,0)) -> 132 | P74: =IF(千円単!P74="","",ROUND(千円単!P74/1000,0)) -> 0 | Q74: =IF(千円単!Q74="","",ROUND(千円単!Q74/1000,0)) -> 6 | R74: =IF(千円単!R74="","",ROUND(千円単!R74/1000,0)) -> 144 | S74: =IF(千円単!S74="","",ROUND(千円単!S74/1000,0)) -> 71 | T74: =IF(千円単!T74="","",ROUND(千円単!T74/1000,0)) -> 0 | U74: =IF(千円単!U74="","",ROUND(千円単!U74/1000,0)) -> 211 | V74: =IF(千円単!V74="","",ROUND(千円単!V74/1000,0)) -> 60 | W74: =IF(千円単!W74="","",ROUND(千円単!W74/1000,0)) -> 151 | X74: =IF(千円単!X74="","",ROUND(千円単!X74/1000,0)) -> -67 | Y74: =IF(千円単!Y74="","",ROUND(千円単!Y74/1000,0)) -> 6
A75: 2020 | B75: 46 | C75: 17 | D75: 1 | E75: 74 | F75: 公共 | G75: 034614 | H75: 岩手県 | I75: 大槌町 | J75: =IF(千円単!J75="","",ROUND(千円単!J75/1000,0)) -> 698 | K75: =IF(千円単!K75="","",ROUND(千円単!K75/1000,0)) -> 54 | L75: =IF(千円単!L75="","",ROUND(千円単!L75/1000,0)) -> 285 | M75: =IF(千円単!M75="","",ROUND(千円単!M75/1000,0)) -> 763 | N75: =IF(千円単!N75="","",ROUND(千円単!N75/1000,0)) -> 55 | O75: =IF(千円単!O75="","",ROUND(千円単!O75/1000,0)) -> 564 | P75: =IF(千円単!P75="","",ROUND(千円単!P75/1000,0)) -> 11 | Q75: =IF(千円単!Q75="","",ROUND(千円単!Q75/1000,0)) -> -65 | R75: =IF(千円単!R75="","",ROUND(千円単!R75/1000,0)) -> 303 | S75: =IF(千円単!S75="","",ROUND(千円単!S75/1000,0)) -> 163 | T75: =IF(千円単!T75="","",ROUND(千円単!T75/1000,0)) -> 60 | U75: =IF(千円単!U75="","",ROUND(千円単!U75/1000,0)) -> 455 | V75: =IF(千円単!V75="","",ROUND(千円単!V75/1000,0)) -> 161 | W75: =IF(千円単!W75="","",ROUND(千円単!W75/1000,0)) -> 294 | X75: =IF(千円単!X75="","",ROUND(千円単!X75/1000,0)) -> -152 | Y75: =IF(千円単!Y75="","",ROUND(千円単!Y75/1000,0)) -> -65
A76: 2020 | B76: 46 | C76: 17 | D76: 1 | E76: 75 | F76: 公共 | G76: 041009 | H76: 宮城県 | I76: 仙台市 | J76: =IF(千円単!J76="","",ROUND(千円単!J76/1000,0)) -> 33171 | K76: =IF(千円単!K76="","",ROUND(千円単!K76/1000,0)) -> 14774 | L76: =IF(千円単!L76="","",ROUND(千円単!L76/1000,0)) -> 6426 | M76: =IF(千円単!M76="","",ROUND(千円単!M76/1000,0)) -> 31478 | N76: =IF(千円単!N76="","",ROUND(千円単!N76/1000,0)) -> 2576 | O76: =IF(千円単!O76="","",ROUND(千円単!O76/1000,0)) -> 19260 | P76: =IF(千円単!P76="","",ROUND(千円単!P76/1000,0)) -> 1288 | Q76: =IF(千円単!Q76="","",ROUND(千円単!Q76/1000,0)) -> 1693 | R76: =IF(千円単!R76="","",ROUND(千円単!R76/1000,0)) -> 17023 | S76: =IF(千円単!S76="","",ROUND(千円単!S76/1000,0)) -> 12677 | T76: =IF(千円単!T76="","",ROUND(千円単!T76/1000,0)) -> 775 | U76: =IF(千円単!U76="","",ROUND(千円単!U76/1000,0)) -> 29850 | V76: =IF(千円単!V76="","",ROUND(千円単!V76/1000,0)) -> 11136 | W76: =IF(千円単!W76="","",ROUND(千円単!W76/1000,0)) -> 18710 | X76: =IF(千円単!X76="","",ROUND(千円単!X76/1000,0)) -> -12827 | Y76: =IF(千円単!Y76="","",ROUND(千円単!Y76/1000,0)) -> 1693
A77: 2020 | B77: 46 | C77: 17 | D77: 1 | E77: 76 | F77: 公共 | G77: 042021 | H77: 宮城県 | I77: 石巻市 | J77: =IF(千円単!J77="","",ROUND(千円単!J77/1000,0)) -> 5818 | K77: =IF(千円単!K77="","",ROUND(千円単!K77/1000,0)) -> 1494 | L77: =IF(千円単!L77="","",ROUND(千円単!L77/1000,0)) -> 2298 | M77: =IF(千円単!M77="","",ROUND(千円単!M77/1000,0)) -> 5379 | N77: =IF(千円単!N77="","",ROUND(千円単!N77/1000,0)) -> 440 | O77: =IF(千円単!O77="","",ROUND(千円単!O77/1000,0)) -> 2917 | P77: =IF(千円単!P77="","",ROUND(千円単!P77/1000,0)) -> 162 | Q77: =IF(千円単!Q77="","",ROUND(千円単!Q77/1000,0)) -> 439 | R77: =IF(千円単!R77="","",ROUND(千円単!R77/1000,0)) -> 25059 | S77: =IF(千円単!S77="","",ROUND(千円単!S77/1000,0)) -> 2868 | T77: =IF(千円単!T77="","",ROUND(千円単!T77/1000,0)) -> 19628 | U77: =IF(千円単!U77="","",ROUND(千円単!U77/1000,0)) -> 32544 | V77: =IF(千円単!V77="","",ROUND(千円単!V77/1000,0)) -> 28906 | W77: =IF(千円単!W77="","",ROUND(千円単!W77/1000,0)) -> 3612 | X77: =IF(千円単!X77="","",ROUND(千円単!X77/1000,0)) -> -7486 | Y77: =IF(千円単!Y77="","",ROUND(千円単!Y77/1000,0)) -> 439
A78: 2020 | B78: 46 | C78: 17 | D78: 1 | E78: 77 | F78: 公共 | G78: 042030 | H78: 宮城県 | I78: 塩竈市 | J78: =IF(千円単!J78="","",ROUND(千円単!J78/1000,0)) -> 4423 | K78: =IF(千円単!K78="","",ROUND(千円単!K78/1000,0)) -> 1147 | L78: =IF(千円単!L78="","",ROUND(千円単!L78/1000,0)) -> 1228 | M78: =IF(千円単!M78="","",ROUND(千円単!M78/1000,0)) -> 3975 | N78: =IF(千円単!N78="","",ROUND(千円単!N78/1000,0)) -> 343 | O78: =IF(千円単!O78="","",ROUND(千円単!O78/1000,0)) -> 2938 | P78: =IF(千円単!P78="","",ROUND(千円単!P78/1000,0)) -> 105 | Q78: =IF(千円単!Q78="","",ROUND(千円単!Q78/1000,0)) -> 448 | R78: =IF(千円単!R78="","",ROUND(千円単!R78/1000,0)) -> 2865 | S78: =IF(千円単!S78="","",ROUND(千円単!S78/1000,0)) -> 1933 | T78: =IF(千円単!T78="","",ROUND(千円単!T78/1000,0)) -> 140 | U78: =IF(千円単!U78="","",ROUND(千円単!U78/1000,0)) -> 4590 | V78: =IF(千円単!V78="","",ROUND(千円単!V78/1000,0)) -> 1240 | W78: =IF(千円単!W78="","",ROUND(千円単!W78/1000,0)) -> 3335 | X78: =IF(千円単!X78="","",ROUND(千円単!X78/1000,0)) -> -1725 | Y78: =IF(千円単!Y78="","",ROUND(千円単!Y78/1000,0)) -> 448
A79: 2020 | B79: 46 | C79: 17 | D79: 1 | E79: 78 | F79: 公共 | G79: 042056 | H79: 宮城県 | I79: 気仙沼市 | J79: =IF(千円単!J79="","",ROUND(千円単!J79/1000,0)) -> 1178 | K79: =IF(千円単!K79="","",ROUND(千円単!K79/1000,0)) -> 329 | L79: =IF(千円単!L79="","",ROUND(千円単!L79/1000,0)) -> 223 | M79: =IF(千円単!M79="","",ROUND(千円単!M79/1000,0)) -> 1531 | N79: =IF(千円単!N79="","",ROUND(千円単!N79/1000,0)) -> 77 | O79: =IF(千円単!O79="","",ROUND(千円単!O79/1000,0)) -> 857 | P79: =IF(千円単!P79="","",ROUND(千円単!P79/1000,0)) -> 97 | Q79: =IF(千円単!Q79="","",ROUND(千円単!Q79/1000,0)) -> -353 | R79: =IF(千円単!R79="","",ROUND(千円単!R79/1000,0)) -> 1521 | S79: =IF(千円単!S79="","",ROUND(千円単!S79/1000,0)) -> 271 | T79: =IF(千円単!T79="","",ROUND(千円単!T79/1000,0)) -> 0 | U79: =IF(千円単!U79="","",ROUND(千円単!U79/1000,0)) -> 2029 | V79: =IF(千円単!V79="","",ROUND(千円単!V79/1000,0)) -> 1486 | W79: =IF(千円単!W79="","",ROUND(千円単!W79/1000,0)) -> 543 | X79: =IF(千円単!X79="","",ROUND(千円単!X79/1000,0)) -> -508 | Y79: =IF(千円単!Y79="","",ROUND(千円単!Y79/1000,0)) -> -353
A80: 2020 | B80: 46 | C80: 17 | D80: 1 | E80: 79 | F80: 公共 | G80: 042064 | H80: 宮城県 | I80: 白石市 | J80: =IF(千円単!J80="","",ROUND(千円単!J80/1000,0)) -> 1027 | K80: =IF(千円単!K80="","",ROUND(千円単!K80/1000,0)) -> 554 | L80: =IF(千円単!L80="","",ROUND(千円単!L80/1000,0)) -> 49 | M80: =IF(千円単!M80="","",ROUND(千円単!M80/1000,0)) -> 787 | N80: =IF(千円単!N80="","",ROUND(千円単!N80/1000,0)) -> 87 | O80: =IF(千円単!O80="","",ROUND(千円単!O80/1000,0)) -> 476 | P80: =IF(千円単!P80="","",ROUND(千円単!P80/1000,0)) -> 19 | Q80: =IF(千円単!Q80="","",ROUND(千円単!Q80/1000,0)) -> 240 | R80: =IF(千円単!R80="","",ROUND(千円単!R80/1000,0)) -> 473 | S80: =IF(千円単!S80="","",ROUND(千円単!S80/1000,0)) -> 317 | T80: =IF(千円単!T80="","",ROUND(千円単!T80/1000,0)) -> 76 | U80: =IF(千円単!U80="","",ROUND(千円単!U80/1000,0)) -> 861 | V80: =IF(千円単!V80="","",ROUND(千円単!V80/1000,0)) -> 175 | W80: =IF(千円単!W80="","",ROUND(千円単!W80/1000,0)) -> 686 | X80: =IF(千円単!X80="","",ROUND(千円単!X80/1000,0)) -> -388 | Y80: =IF(千円単!Y80="","",ROUND(千円単!Y80/1000,0)) -> 240
A81: 2020 | B81: 46 | C81: 17 | D81: 1 | E81: 80 | F81: 公共 | G81: 042072 | H81: 宮城県 | I81: 名取市 | J81: =IF(千円単!J81="","",ROUND(千円単!J81/1000,0)) -> 3630 | K81: =IF(千円単!K81="","",ROUND(千円単!K81/1000,0)) -> 1323 | L81: =IF(千円単!L81="","",ROUND(千円単!L81/1000,0)) -> 1471 | M81: =IF(千円単!M81="","",ROUND(千円単!M81/1000,0)) -> 3631 | N81: =IF(千円単!N81="","",ROUND(千円単!N81/1000,0)) -> 237 | O81: =IF(千円単!O81="","",ROUND(千円単!O81/1000,0)) -> 1514 | P81: =IF(千円単!P81="","",ROUND(千円単!P81/1000,0)) -> 60 | Q81: =IF(千円単!Q81="","",ROUND(千円単!Q81/1000,0)) -> -1 | R81: =IF(千円単!R81="","",ROUND(千円単!R81/1000,0)) -> 1032 | S81: =IF(千円単!S81="","",ROUND(千円単!S81/1000,0)) -> 435 | T81: =IF(千円単!T81="","",ROUND(千円単!T81/1000,0)) -> 0 | U81: =IF(千円単!U81="","",ROUND(千円単!U81/1000,0)) -> 2732 | V81: =IF(千円単!V81="","",ROUND(千円単!V81/1000,0)) -> 1061 | W81: =IF(千円単!W81="","",ROUND(千円単!W81/1000,0)) -> 1671 | X81: =IF(千円単!X81="","",ROUND(千円単!X81/1000,0)) -> -1699 | Y81: =IF(千円単!Y81="","",ROUND(千円単!Y81/1000,0)) -> -1
A82: 2020 | B82: 46 | C82: 17 | D82: 1 | E82: 81 | F82: 公共 | G82: 042081 | H82: 宮城県 | I82: 角田市 | J82: =IF(千円単!J82="","",ROUND(千円単!J82/1000,0)) -> 827 | K82: =IF(千円単!K82="","",ROUND(千円単!K82/1000,0)) -> 253 | L82: =IF(千円単!L82="","",ROUND(千円単!L82/1000,0)) -> 169 | M82: =IF(千円単!M82="","",ROUND(千円単!M82/1000,0)) -> 837 | N82: =IF(千円単!N82="","",ROUND(千円単!N82/1000,0)) -> 116 | O82: =IF(千円単!O82="","",ROUND(千円単!O82/1000,0)) -> 562 | P82: =IF(千円単!P82="","",ROUND(千円単!P82/1000,0)) -> 35 | Q82: =IF(千円単!Q82="","",ROUND(千円単!Q82/1000,0)) -> -10 | R82: =IF(千円単!R82="","",ROUND(千円単!R82/1000,0)) -> 913 | S82: =IF(千円単!S82="","",ROUND(千円単!S82/1000,0)) -> 396 | T82: =IF(千円単!T82="","",ROUND(千円単!T82/1000,0)) -> 414 | U82: =IF(千円単!U82="","",ROUND(千円単!U82/1000,0)) -> 1029 | V82: =IF(千円単!V82="","",ROUND(千円単!V82/1000,0)) -> 230 | W82: =IF(千円単!W82="","",ROUND(千円単!W82/1000,0)) -> 799 | X82: =IF(千円単!X82="","",ROUND(千円単!X82/1000,0)) -> -117 | Y82: =IF(千円単!Y82="","",ROUND(千円単!Y82/1000,0)) -> -10
A83: 2020 | B83: 46 | C83: 17 | D83: 1 | E83: 82 | F83: 公共 | G83: 042099 | H83: 宮城県 | I83: 多賀城市 | J83: =IF(千円単!J83="","",ROUND(千円単!J83/1000,0)) -> 3102 | K83: =IF(千円単!K83="","",ROUND(千円単!K83/1000,0)) -> 758 | L83: =IF(千円単!L83="","",ROUND(千円単!L83/1000,0)) -> 1015 | M83: =IF(千円単!M83="","",ROUND(千円単!M83/1000,0)) -> 2877 | N83: =IF(千円単!N83="","",ROUND(千円単!N83/1000,0)) -> 240 | O83: =IF(千円単!O83="","",ROUND(千円単!O83/1000,0)) -> 1946 | P83: =IF(千円単!P83="","",ROUND(千円単!P83/1000,0)) -> 108 | Q83: =IF(千円単!Q83="","",ROUND(千円単!Q83/1000,0)) -> 225 | R83: =IF(千円単!R83="","",ROUND(千円単!R83/1000,0)) -> 1348 | S83: =IF(千円単!S83="","",ROUND(千円単!S83/1000,0)) -> 843 | T83: =IF(千円単!T83="","",ROUND(千円単!T83/1000,0)) -> 151 | U83: =IF(千円単!U83="","",ROUND(千円単!U83/1000,0)) -> 2547 | V83: =IF(千円単!V83="","",ROUND(千円単!V83/1000,0)) -> 908 | W83: =IF(千円単!W83="","",ROUND(千円単!W83/1000,0)) -> 1639 | X83: =IF(千円単!X83="","",ROUND(千円単!X83/1000,0)) -> -1198 | Y83: =IF(千円単!Y83="","",ROUND(千円単!Y83/1000,0)) -> 225
A84: 2020 | B84: 46 | C84: 17 | D84: 1 | E84: 83 | F84: 公共 | G84: 042111 | H84: 宮城県 | I84: 岩沼市 | J84: =IF(千円単!J84="","",ROUND(千円単!J84/1000,0)) -> 1975 | K84: =IF(千円単!K84="","",ROUND(千円単!K84/1000,0)) -> 692 | L84: =IF(千円単!L84="","",ROUND(千円単!L84/1000,0)) -> 237 | M84: =IF(千円単!M84="","",ROUND(千円単!M84/1000,0)) -> 1868 | N84: =IF(千円単!N84="","",ROUND(千円単!N84/1000,0)) -> 90 | O84: =IF(千円単!O84="","",ROUND(千円単!O84/1000,0)) -> 1252 | P84: =IF(千円単!P84="","",ROUND(千円単!P84/1000,0)) -> 43 | Q84: =IF(千円単!Q84="","",ROUND(千円単!Q84/1000,0)) -> 107 | R84: =IF(千円単!R84="","",ROUND(千円単!R84/1000,0)) -> 504 | S84: =IF(千円単!S84="","",ROUND(千円単!S84/1000,0)) -> 236 | T84: =IF(千円単!T84="","",ROUND(千円単!T84/1000,0)) -> 0 | U84: =IF(千円単!U84="","",ROUND(千円単!U84/1000,0)) -> 913 | V84: =IF(千円単!V84="","",ROUND(千円単!V84/1000,0)) -> 416 | W84: =IF(千円単!W84="","",ROUND(千円単!W84/1000,0)) -> 497 | X84: =IF(千円単!X84="","",ROUND(千円単!X84/1000,0)) -> -409 | Y84: =IF(千円単!Y84="","",ROUND(千円単!Y84/1000,0)) -> 107
A85: 2020 | B85: 46 | C85: 17 | D85: 1 | E85: 84 | F85: 公共 | G85: 042129 | H85: 宮城県 | I85: 登米市 | J85: =IF(千円単!J85="","",ROUND(千円単!J85/1000,0)) -> 1096 | K85: =IF(千円単!K85="","",ROUND(千円単!K85/1000,0)) -> 255 | L85: =IF(千円単!L85="","",ROUND(千円単!L85/1000,0)) -> 448 | M85: =IF(千円単!M85="","",ROUND(千円単!M85/1000,0)) -> 1138 | N85: =IF(千円単!N85="","",ROUND(千円単!N85/1000,0)) -> 141 | O85: =IF(千円単!O85="","",ROUND(千円単!O85/1000,0)) -> 719 | P85: =IF(千円単!P85="","",ROUND(千円単!P85/1000,0)) -> 34 | Q85: =IF(千円単!Q85="","",ROUND(千円単!Q85/1000,0)) -> -42 | R85: =IF(千円単!R85="","",ROUND(千円単!R85/1000,0)) -> 598 | S85: =IF(千円単!S85="","",ROUND(千円単!S85/1000,0)) -> 379 | T85: =IF(千円単!T85="","",ROUND(千円単!T85/1000,0)) -> 0 | U85: =IF(千円単!U85="","",ROUND(千円単!U85/1000,0)) -> 936 | V85: =IF(千円単!V85="","",ROUND(千円単!V85/1000,0)) -> 151 | W85: =IF(千円単!W85="","",ROUND(千円単!W85/1000,0)) -> 785 | X85: =IF(千円単!X85="","",ROUND(千円単!X85/1000,0)) -> -338 | Y85: =IF(千円単!Y85="","",ROUND(千円単!Y85/1000,0)) -> -42
A86: 2020 | B86: 46 | C86: 17 | D86: 1 | E86: 85 | F86: 公共 | G86: 042137 | H86: 宮城県 | I86: 栗原市 | J86: =IF(千円単!J86="","",ROUND(千円単!J86/1000,0)) -> 624 | K86: =IF(千円単!K86="","",ROUND(千円単!K86/1000,0)) -> 203 | L86: =IF(千円単!L86="","",ROUND(千円単!L86/1000,0)) -> 257 | M86: =IF(千円単!M86="","",ROUND(千円単!M86/1000,0)) -> 593 | N86: =IF(千円単!N86="","",ROUND(千円単!N86/1000,0)) -> 73 | O86: =IF(千円単!O86="","",ROUND(千円単!O86/1000,0)) -> 332 | P86: =IF(千円単!P86="","",ROUND(千円単!P86/1000,0)) -> 35 | Q86: =IF(千円単!Q86="","",ROUND(千円単!Q86/1000,0)) -> 31 | R86: =IF(千円単!R86="","",ROUND(千円単!R86/1000,0)) -> 781 | S86: =IF(千円単!S86="","",ROUND(千円単!S86/1000,0)) -> 494 | T86: =IF(千円単!T86="","",ROUND(千円単!T86/1000,0)) -> 0 | U86: =IF(千円単!U86="","",ROUND(千円単!U86/1000,0)) -> 936 | V86: =IF(千円単!V86="","",ROUND(千円単!V86/1000,0)) -> 336 | W86: =IF(千円単!W86="","",ROUND(千円単!W86/1000,0)) -> 600 | X86: =IF(千円単!X86="","",ROUND(千円単!X86/1000,0)) -> -155 | Y86: =IF(千円単!Y86="","",ROUND(千円単!Y86/1000,0)) -> 31
A87: 2020 | B87: 46 | C87: 17 | D87: 1 | E87: 86 | F87: 公共 | G87: 042145 | H87: 宮城県 | I87: 東松島市 | J87: =IF(千円単!J87="","",ROUND(千円単!J87/1000,0)) -> 2356 | K87: =IF(千円単!K87="","",ROUND(千円単!K87/1000,0)) -> 495 | L87: =IF(千円単!L87="","",ROUND(千円単!L87/1000,0)) -> 772 | M87: =IF(千円単!M87="","",ROUND(千円単!M87/1000,0)) -> 1836 | N87: =IF(千円単!N87="","",ROUND(千円単!N87/1000,0)) -> 146 | O87: =IF(千円単!O87="","",ROUND(千円単!O87/1000,0)) -> 1184 | P87: =IF(千円単!P87="","",ROUND(千円単!P87/1000,0)) -> 19 | Q87: =IF(千円単!Q87="","",ROUND(千円単!Q87/1000,0)) -> 520 | R87: =IF(千円単!R87="","",ROUND(千円単!R87/1000,0)) -> 693 | S87: =IF(千円単!S87="","",ROUND(千円単!S87/1000,0)) -> 70 | T87: =IF(千円単!T87="","",ROUND(千円単!T87/1000,0)) -> 557 | U87: =IF(千円単!U87="","",ROUND(千円単!U87/1000,0)) -> 2625 | V87: =IF(千円単!V87="","",ROUND(千円単!V87/1000,0)) -> 2026 | W87: =IF(千円単!W87="","",ROUND(千円単!W87/1000,0)) -> 599 | X87: =IF(千円単!X87="","",ROUND(千円単!X87/1000,0)) -> -1932 | Y87: =IF(千円単!Y87="","",ROUND(千円単!Y87/1000,0)) -> 520
A88: 2020 | B88: 46 | C88: 17 | D88: 1 | E88: 87 | F88: 公共 | G88: 042153 | H88: 宮城県 | I88: 大崎市 | J88: =IF(千円単!J88="","",ROUND(千円単!J88/1000,0)) -> 2757 | K88: =IF(千円単!K88="","",ROUND(千円単!K88/1000,0)) -> 922 | L88: =IF(千円単!L88="","",ROUND(千円単!L88/1000,0)) -> 1050 | M88: =IF(千円単!M88="","",ROUND(千円単!M88/1000,0)) -> 2700 | N88: =IF(千円単!N88="","",ROUND(千円単!N88/1000,0)) -> 308 | O88: =IF(千円単!O88="","",ROUND(千円単!O88/1000,0)) -> 1602 | P88: =IF(千円単!P88="","",ROUND(千円単!P88/1000,0)) -> 65 | Q88: =IF(千円単!Q88="","",ROUND(千円単!Q88/1000,0)) -> 56 | R88: =IF(千円単!R88="","",ROUND(千円単!R88/1000,0)) -> 2675 | S88: =IF(千円単!S88="","",ROUND(千円単!S88/1000,0)) -> 1590 | T88: =IF(千円単!T88="","",ROUND(千円単!T88/1000,0)) -> 198 | U88: =IF(千円単!U88="","",ROUND(千円単!U88/1000,0)) -> 3490 | V88: =IF(千円単!V88="","",ROUND(千円単!V88/1000,0)) -> 1351 | W88: =IF(千円単!W88="","",ROUND(千円単!W88/1000,0)) -> 2131 | X88: =IF(千円単!X88="","",ROUND(千円単!X88/1000,0)) -> -815 | Y88: =IF(千円単!Y88="","",ROUND(千円単!Y88/1000,0)) -> 56
A89: 2020 | B89: 46 | C89: 17 | D89: 1 | E89: 88 | F89: 公共 | G89: 042161 | H89: 宮城県 | I89: 富谷市 | J89: =IF(千円単!J89="","",ROUND(千円単!J89/1000,0)) -> 1078 | K89: =IF(千円単!K89="","",ROUND(千円単!K89/1000,0)) -> 518 | L89: =IF(千円単!L89="","",ROUND(千円単!L89/1000,0)) -> 11 | M89: =IF(千円単!M89="","",ROUND(千円単!M89/1000,0)) -> 994 | N89: =IF(千円単!N89="","",ROUND(千円単!N89/1000,0)) -> 30 | O89: =IF(千円単!O89="","",ROUND(千円単!O89/1000,0)) -> 590 | P89: =IF(千円単!P89="","",ROUND(千円単!P89/1000,0)) -> 18 | Q89: =IF(千円単!Q89="","",ROUND(千円単!Q89/1000,0)) -> 83 | R89: =IF(千円単!R89="","",ROUND(千円単!R89/1000,0)) -> 132 | S89: =IF(千円単!S89="","",ROUND(千円単!S89/1000,0)) -> 41 | T89: =IF(千円単!T89="","",ROUND(千円単!T89/1000,0)) -> 59 | U89: =IF(千円単!U89="","",ROUND(千円単!U89/1000,0)) -> 314 | V89: =IF(千円単!V89="","",ROUND(千円単!V89/1000,0)) -> 80 | W89: =IF(千円単!W89="","",ROUND(千円単!W89/1000,0)) -> 234 | X89: =IF(千円単!X89="","",ROUND(千円単!X89/1000,0)) -> -182 | Y89: =IF(千円単!Y89="","",ROUND(千円単!Y89/1000,0)) -> 83
A90: 2020 | B90: 46 | C90: 17 | D90: 1 | E90: 89 | F90: 公共 | G90: 043214 | H90: 宮城県 | I90: 大河原町 | J90: =IF(千円単!J90="","",ROUND(千円単!J90/1000,0)) -> 709 | K90: =IF(千円単!K90="","",ROUND(千円単!K90/1000,0)) -> 359 | L90: =IF(千円単!L90="","",ROUND(千円単!L90/1000,0)) -> 156 | M90: =IF(千円単!M90="","",ROUND(千円単!M90/1000,0)) -> 557 | N90: =IF(千円単!N90="","",ROUND(千円単!N90/1000,0)) -> 62 | O90: =IF(千円単!O90="","",ROUND(千円単!O90/1000,0)) -> 325 | P90: =IF(千円単!P90="","",ROUND(千円単!P90/1000,0)) -> 15 | Q90: =IF(千円単!Q90="","",ROUND(千円単!Q90/1000,0)) -> 151 | R90: =IF(千円単!R90="","",ROUND(千円単!R90/1000,0)) -> 975 | S90: =IF(千円単!S90="","",ROUND(千円単!S90/1000,0)) -> 586 | T90: =IF(千円単!T90="","",ROUND(千円単!T90/1000,0)) -> 37 | U90: =IF(千円単!U90="","",ROUND(千円単!U90/1000,0)) -> 1223 | V90: =IF(千円単!V90="","",ROUND(千円単!V90/1000,0)) -> 741 | W90: =IF(千円単!W90="","",ROUND(千円単!W90/1000,0)) -> 482 | X90: =IF(千円単!X90="","",ROUND(千円単!X90/1000,0)) -> -249 | Y90: =IF(千円単!Y90="","",ROUND(千円単!Y90/1000,0)) -> 151
A91: 2020 | B91: 46 | C91: 17 | D91: 1 | E91: 90 | F91: 公共 | G91: 043222 | H91: 宮城県 | I91: 村田町 | J91: =IF(千円単!J91="","",ROUND(千円単!J91/1000,0)) -> 280 | K91: =IF(千円単!K91="","",ROUND(千円単!K91/1000,0)) -> 150 | L91: =IF(千円単!L91="","",ROUND(千円単!L91/1000,0)) -> 29 | M91: =IF(千円単!M91="","",ROUND(千円単!M91/1000,0)) -> 267 | N91: =IF(千円単!N91="","",ROUND(千円単!N91/1000,0)) -> 28 | O91: =IF(千円単!O91="","",ROUND(千円単!O91/1000,0)) -> 182 | P91: =IF(千円単!P91="","",ROUND(千円単!P91/1000,0)) -> 7 | Q91: =IF(千円単!Q91="","",ROUND(千円単!Q91/1000,0)) -> 12 | R91: =IF(千円単!R91="","",ROUND(千円単!R91/1000,0)) -> 175 | S91: =IF(千円単!S91="","",ROUND(千円単!S91/1000,0)) -> 66 | T91: =IF(千円単!T91="","",ROUND(千円単!T91/1000,0)) -> 0 | U91: =IF(千円単!U91="","",ROUND(千円単!U91/1000,0)) -> 260 | V91: =IF(千円単!V91="","",ROUND(千円単!V91/1000,0)) -> 46 | W91: =IF(千円単!W91="","",ROUND(千円単!W91/1000,0)) -> 214 | X91: =IF(千円単!X91="","",ROUND(千円単!X91/1000,0)) -> -85 | Y91: =IF(千円単!Y91="","",ROUND(千円単!Y91/1000,0)) -> 12
A92: 2020 | B92: 46 | C92: 17 | D92: 1 | E92: 91 | F92: 公共 | G92: 043231 | H92: 宮城県 | I92: 柴田町 | J92: =IF(千円単!J92="","",ROUND(千円単!J92/1000,0)) -> 1138 | K92: =IF(千円単!K92="","",ROUND(千円単!K92/1000,0)) -> 539 | L92: =IF(千円単!L92="","",ROUND(千円単!L92/1000,0)) -> 170 | M92: =IF(千円単!M92="","",ROUND(千円単!M92/1000,0)) -> 1079 | N92: =IF(千円単!N92="","",ROUND(千円単!N92/1000,0)) -> 102 | O92: =IF(千円単!O92="","",ROUND(千円単!O92/1000,0)) -> 704 | P92: =IF(千円単!P92="","",ROUND(千円単!P92/1000,0)) -> 5 | Q92: =IF(千円単!Q92="","",ROUND(千円単!Q92/1000,0)) -> 59 | R92: =IF(千円単!R92="","",ROUND(千円単!R92/1000,0)) -> 1754 | S92: =IF(千円単!S92="","",ROUND(千円単!S92/1000,0)) -> 474 | T92: =IF(千円単!T92="","",ROUND(千円単!T92/1000,0)) -> 131 | U92: =IF(千円単!U92="","",ROUND(千円単!U92/1000,0)) -> 2059 | V92: =IF(千円単!V92="","",ROUND(千円単!V92/1000,0)) -> 1469 | W92: =IF(千円単!W92="","",ROUND(千円単!W92/1000,0)) -> 589 | X92: =IF(千円単!X92="","",ROUND(千円単!X92/1000,0)) -> -305 | Y92: =IF(千円単!Y92="","",ROUND(千円単!Y92/1000,0)) -> 59
A93: 2020 | B93: 46 | C93: 17 | D93: 1 | E93: 92 | F93: 公共 | G93: 043613 | H93: 宮城県 | I93: 亘理町 | J93: =IF(千円単!J93="","",ROUND(千円単!J93/1000,0)) -> 1202 | K93: =IF(千円単!K93="","",ROUND(千円単!K93/1000,0)) -> 417 | L93: =IF(千円単!L93="","",ROUND(千円単!L93/1000,0)) -> 492 | M93: =IF(千円単!M93="","",ROUND(千円単!M93/1000,0)) -> 913 | N93: =IF(千円単!N93="","",ROUND(千円単!N93/1000,0)) -> 116 | O93: =IF(千円単!O93="","",ROUND(千円単!O93/1000,0)) -> 590 | P93: =IF(千円単!P93="","",ROUND(千円単!P93/1000,0)) -> 12 | Q93: =IF(千円単!Q93="","",ROUND(千円単!Q93/1000,0)) -> 289 | R93: =IF(千円単!R93="","",ROUND(千円単!R93/1000,0)) -> 842 | S93: =IF(千円単!S93="","",ROUND(千円単!S93/1000,0)) -> 455 | T93: =IF(千円単!T93="","",ROUND(千円単!T93/1000,0)) -> 126 | U93: =IF(千円単!U93="","",ROUND(千円単!U93/1000,0)) -> 1241 | V93: =IF(千円単!V93="","",ROUND(千円単!V93/1000,0)) -> 523 | W93: =IF(千円単!W93="","",ROUND(千円単!W93/1000,0)) -> 718 | X93: =IF(千円単!X93="","",ROUND(千円単!X93/1000,0)) -> -400 | Y93: =IF(千円単!Y93="","",ROUND(千円単!Y93/1000,0)) -> 289
A94: 2020 | B94: 46 | C94: 17 | D94: 1 | E94: 93 | F94: 公共 | G94: 044067 | H94: 宮城県 | I94: 利府町 | J94: =IF(千円単!J94="","",ROUND(千円単!J94/1000,0)) -> 1207 | K94: =IF(千円単!K94="","",ROUND(千円単!K94/1000,0)) -> 388 | L94: =IF(千円単!L94="","",ROUND(千円単!L94/1000,0)) -> 100 | M94: =IF(千円単!M94="","",ROUND(千円単!M94/1000,0)) -> 1181 | N94: =IF(千円単!N94="","",ROUND(千円単!N94/1000,0)) -> 37 | O94: =IF(千円単!O94="","",ROUND(千円単!O94/1000,0)) -> 847 | P94: =IF(千円単!P94="","",ROUND(千円単!P94/1000,0)) -> 17 | Q94: =IF(千円単!Q94="","",ROUND(千円単!Q94/1000,0)) -> 26 | R94: =IF(千円単!R94="","",ROUND(千円単!R94/1000,0)) -> 249 | S94: =IF(千円単!S94="","",ROUND(千円単!S94/1000,0)) -> 186 | T94: =IF(千円単!T94="","",ROUND(千円単!T94/1000,0)) -> 19 | U94: =IF(千円単!U94="","",ROUND(千円単!U94/1000,0)) -> 394 | V94: =IF(千円単!V94="","",ROUND(千円単!V94/1000,0)) -> 159 | W94: =IF(千円単!W94="","",ROUND(千円単!W94/1000,0)) -> 235 | X94: =IF(千円単!X94="","",ROUND(千円単!X94/1000,0)) -> -145 | Y94: =IF(千円単!Y94="","",ROUND(千円単!Y94/1000,0)) -> 26
A95: 2020 | B95: 46 | C95: 17 | D95: 1 | E95: 94 | F95: 公共 | G95: 045012 | H95: 宮城県 | I95: 涌谷町 | J95: =IF(千円単!J95="","",ROUND(千円単!J95/1000,0)) -> 350 | K95: =IF(千円単!K95="","",ROUND(千円単!K95/1000,0)) -> 84 | L95: =IF(千円単!L95="","",ROUND(千円単!L95/1000,0)) -> 156 | M95: =IF(千円単!M95="","",ROUND(千円単!M95/1000,0)) -> 342 | N95: =IF(千円単!N95="","",ROUND(千円単!N95/1000,0)) -> 53 | O95: =IF(千円単!O95="","",ROUND(千円単!O95/1000,0)) -> 204 | P95: =IF(千円単!P95="","",ROUND(千円単!P95/1000,0)) -> 25 | Q95: =IF(千円単!Q95="","",ROUND(千円単!Q95/1000,0)) -> 8 | R95: =IF(千円単!R95="","",ROUND(千円単!R95/1000,0)) -> 238 | S95: =IF(千円単!S95="","",ROUND(千円単!S95/1000,0)) -> 111 | T95: =IF(千円単!T95="","",ROUND(千円単!T95/1000,0)) -> 0 | U95: =IF(千円単!U95="","",ROUND(千円単!U95/1000,0)) -> 338 | V95: =IF(千円単!V95="","",ROUND(千円単!V95/1000,0)) -> 85 | W95: =IF(千円単!W95="","",ROUND(千円単!W95/1000,0)) -> 253 | X95: =IF(千円単!X95="","",ROUND(千円単!X95/1000,0)) -> -100 | Y95: =IF(千円単!Y95="","",ROUND(千円単!Y95/1000,0)) -> 8
A96: 2020 | B96: 46 | C96: 17 | D96: 1 | E96: 95 | F96: 公共 | G96: 045055 | H96: 宮城県 | I96: 美里町 | J96: =IF(千円単!J96="","",ROUND(千円単!J96/1000,0)) -> 441 | K96: =IF(千円単!K96="","",ROUND(千円単!K96/1000,0)) -> 151 | L96: =IF(千円単!L96="","",ROUND(千円単!L96/1000,0)) -> 112 | M96: =IF(千円単!M96="","",ROUND(千円単!M96/1000,0)) -> 436 | N96: =IF(千円単!N96="","",ROUND(千円単!N96/1000,0)) -> 61 | O96: =IF(千円単!O96="","",ROUND(千円単!O96/1000,0)) -> 251 | P96: =IF(千円単!P96="","",ROUND(千円単!P96/1000,0)) -> 10 | Q96: =IF(千円単!Q96="","",ROUND(千円単!Q96/1000,0)) -> 5 | R96: =IF(千円単!R96="","",ROUND(千円単!R96/1000,0)) -> 716 | S96: =IF(千円単!S96="","",ROUND(千円単!S96/1000,0)) -> 530 | T96: =IF(千円単!T96="","",ROUND(千円単!T96/1000,0)) -> 66 | U96: =IF(千円単!U96="","",ROUND(千円単!U96/1000,0)) -> 990 | V96: =IF(千円単!V96="","",ROUND(千円単!V96/1000,0)) -> 634 | W96: =IF(千円単!W96="","",ROUND(千円単!W96/1000,0)) -> 356 | X96: =IF(千円単!X96="","",ROUND(千円単!X96/1000,0)) -> -273 | Y96: =IF(千円単!Y96="","",ROUND(千円単!Y96/1000,0)) -> 5
A97: 2020 | B97: 46 | C97: 17 | D97: 1 | E97: 96 | F97: 公共 | G97: 052019 | H97: 秋田県 | I97: 秋田市 | J97: =IF(千円単!J97="","",ROUND(千円単!J97/1000,0)) -> 10060 | K97: =IF(千円単!K97="","",ROUND(千円単!K97/1000,0)) -> 4809 | L97: =IF(千円単!L97="","",ROUND(千円単!L97/1000,0)) -> 3199 | M97: =IF(千円単!M97="","",ROUND(千円単!M97/1000,0)) -> 9677 | N97: =IF(千円単!N97="","",ROUND(千円単!N97/1000,0)) -> 810 | O97: =IF(千円単!O97="","",ROUND(千円単!O97/1000,0)) -> 5104 | P97: =IF(千円単!P97="","",ROUND(千円単!P97/1000,0)) -> 376 | Q97: =IF(千円単!Q97="","",ROUND(千円単!Q97/1000,0)) -> 383 | R97: =IF(千円単!R97="","",ROUND(千円単!R97/1000,0)) -> 5265 | S97: =IF(千円単!S97="","",ROUND(千円単!S97/1000,0)) -> 3001 | T97: =IF(千円単!T97="","",ROUND(千円単!T97/1000,0)) -> 864 | U97: =IF(千円単!U97="","",ROUND(千円単!U97/1000,0)) -> 9629 | V97: =IF(千円単!V97="","",ROUND(千円単!V97/1000,0)) -> 4123 | W97: =IF(千円単!W97="","",ROUND(千円単!W97/1000,0)) -> 5502 | X97: =IF(千円単!X97="","",ROUND(千円単!X97/1000,0)) -> -4364 | Y97: =IF(千円単!Y97="","",ROUND(千円単!Y97/1000,0)) -> 383
A98: 2020 | B98: 46 | C98: 17 | D98: 1 | E98: 97 | F98: 公共 | G98: 052027 | H98: 秋田県 | I98: 能代市 | J98: =IF(千円単!J98="","",ROUND(千円単!J98/1000,0)) -> 1501 | K98: =IF(千円単!K98="","",ROUND(千円単!K98/1000,0)) -> 416 | L98: =IF(千円単!L98="","",ROUND(千円単!L98/1000,0)) -> 730 | M98: =IF(千円単!M98="","",ROUND(千円単!M98/1000,0)) -> 1295 | N98: =IF(千円単!N98="","",ROUND(千円単!N98/1000,0)) -> 145 | O98: =IF(千円単!O98="","",ROUND(千円単!O98/1000,0)) -> 820 | P98: =IF(千円単!P98="","",ROUND(千円単!P98/1000,0)) -> 29 | Q98: =IF(千円単!Q98="","",ROUND(千円単!Q98/1000,0)) -> 206 | R98: =IF(千円単!R98="","",ROUND(千円単!R98/1000,0)) -> 1526 | S98: =IF(千円単!S98="","",ROUND(千円単!S98/1000,0)) -> 1064 | T98: =IF(千円単!T98="","",ROUND(千円単!T98/1000,0)) -> 63 | U98: =IF(千円単!U98="","",ROUND(千円単!U98/1000,0)) -> 2028 | V98: =IF(千円単!V98="","",ROUND(千円単!V98/1000,0)) -> 1162 | W98: =IF(千円単!W98="","",ROUND(千円単!W98/1000,0)) -> 866 | X98: =IF(千円単!X98="","",ROUND(千円単!X98/1000,0)) -> -503 | Y98: =IF(千円単!Y98="","",ROUND(千円単!Y98/1000,0)) -> 206
A99: 2020 | B99: 46 | C99: 17 | D99: 1 | E99: 98 | F99: 公共 | G99: 052035 | H99: 秋田県 | I99: 横手市 | J99: =IF(千円単!J99="","",ROUND(千円単!J99/1000,0)) -> 1606 | K99: =IF(千円単!K99="","",ROUND(千円単!K99/1000,0)) -> 631 | L99: =IF(千円単!L99="","",ROUND(千円単!L99/1000,0)) -> 695 | M99: =IF(千円単!M99="","",ROUND(千円単!M99/1000,0)) -> 1581 | N99: =IF(千円単!N99="","",ROUND(千円単!N99/1000,0)) -> 204 | O99: =IF(千円単!O99="","",ROUND(千円単!O99/1000,0)) -> 849 | P99: =IF(千円単!P99="","",ROUND(千円単!P99/1000,0)) -> 91 | Q99: =IF(千円単!Q99="","",ROUND(千円単!Q99/1000,0)) -> 25 | R99: =IF(千円単!R99="","",ROUND(千円単!R99/1000,0)) -> 1156 | S99: =IF(千円単!S99="","",ROUND(千円単!S99/1000,0)) -> 592 | T99: =IF(千円単!T99="","",ROUND(千円単!T99/1000,0)) -> 439 | U99: =IF(千円単!U99="","",ROUND(千円単!U99/1000,0)) -> 1663 | V99: =IF(千円単!V99="","",ROUND(千円単!V99/1000,0)) -> 313 | W99: =IF(千円単!W99="","",ROUND(千円単!W99/1000,0)) -> 1350 | X99: =IF(千円単!X99="","",ROUND(千円単!X99/1000,0)) -> -507 | Y99: =IF(千円単!Y99="","",ROUND(千円単!Y99/1000,0)) -> 25
A100: 2020 | B100: 46 | C100: 17 | D100: 1 | E100: 99 | F100: 公共 | G100: 052043 | H100: 秋田県 | I100: 大館市 | J100: =IF(千円単!J100="","",ROUND(千円単!J100/1000,0)) -> 1227 | K100: =IF(千円単!K100="","",ROUND(千円単!K100/1000,0)) -> 489 | L100: =IF(千円単!L100="","",ROUND(千円単!L100/1000,0)) -> 506 | M100: =IF(千円単!M100="","",ROUND(千円単!M100/1000,0)) -> 1232 | N100: =IF(千円単!N100="","",ROUND(千円単!N100/1000,0)) -> 170 | O100: =IF(千円単!O100="","",ROUND(千円単!O100/1000,0)) -> 654 | P100: =IF(千円単!P100="","",ROUND(千円単!P100/1000,0)) -> 56 | Q100: =IF(千円単!Q100="","",ROUND(千円単!Q100/1000,0)) -> -4 | R100: =IF(千円単!R100="","",ROUND(千円単!R100/1000,0)) -> 929 | S100: =IF(千円単!S100="","",ROUND(千円単!S100/1000,0)) -> 604 | T100: =IF(千円単!T100="","",ROUND(千円単!T100/1000,0)) -> 167 | U100: =IF(千円単!U100="","",ROUND(千円単!U100/1000,0)) -> 1482 | V100: =IF(千円単!V100="","",ROUND(千円単!V100/1000,0)) -> 392 | W100: =IF(千円単!W100="","",ROUND(千円単!W100/1000,0)) -> 1090 | X100: =IF(千円単!X100="","",ROUND(千円単!X100/1000,0)) -> -553 | Y100: =IF(千円単!Y100="","",ROUND(千円単!Y100/1000,0)) -> -4
A101: 2020 | B101: 46 | C101: 17 | D101: 1 | E101: 100 | F101: 公共 | G101: 052060 | H101: 秋田県 | I101: 男鹿市 | J101: =IF(千円単!J101="","",ROUND(千円単!J101/1000,0)) -> 646 | K101: =IF(千円単!K101="","",ROUND(千円単!K101/1000,0)) -> 195 | L101: =IF(千円単!L101="","",ROUND(千円単!L101/1000,0)) -> 273 | M101: =IF(千円単!M101="","",ROUND(千円単!M101/1000,0)) -> 600 | N101: =IF(千円単!N101="","",ROUND(千円単!N101/1000,0)) -> 106 | O101: =IF(千円単!O101="","",ROUND(千円単!O101/1000,0)) -> 367 | P101: =IF(千円単!P101="","",ROUND(千円単!P101/1000,0)) -> 19 | Q101: =IF(千円単!Q101="","",ROUND(千円単!Q101/1000,0)) -> 46 | R101: =IF(千円単!R101="","",ROUND(千円単!R101/1000,0)) -> 562 | S101: =IF(千円単!S101="","",ROUND(千円単!S101/1000,0)) -> 423 | T101: =IF(千円単!T101="","",ROUND(千円単!T101/1000,0)) -> 128 | U101: =IF(千円単!U101="","",ROUND(千円単!U101/1000,0)) -> 812 | V101: =IF(千円単!V101="","",ROUND(千円単!V101/1000,0)) -> 15 | W101: =IF(千円単!W101="","",ROUND(千円単!W101/1000,0)) -> 798 | X101: =IF(千円単!X101="","",ROUND(千円単!X101/1000,0)) -> -250 | Y101: =IF(千円単!Y101="","",ROUND(千円単!Y101/1000,0)) -> 46
A102: 2020 | B102: 46 | C102: 17 | D102: 1 | E102: 101 | F102: 公共 | G102: 052078 | H102: 秋田県 | I102: 湯沢市 | J102: =IF(千円単!J102="","",ROUND(千円単!J102/1000,0)) -> 680 | K102: =IF(千円単!K102="","",ROUND(千円単!K102/1000,0)) -> 187 | L102: =IF(千円単!L102="","",ROUND(千円単!L102/1000,0)) -> 312 | M102: =IF(千円単!M102="","",ROUND(千円単!M102/1000,0)) -> 650 | N102: =IF(千円単!N102="","",ROUND(千円単!N102/1000,0)) -> 99 | O102: =IF(千円単!O102="","",ROUND(千円単!O102/1000,0)) -> 397 | P102: =IF(千円単!P102="","",ROUND(千円単!P102/1000,0)) -> 16 | Q102: =IF(千円単!Q102="","",ROUND(千円単!Q102/1000,0)) -> 30 | R102: =IF(千円単!R102="","",ROUND(千円単!R102/1000,0)) -> 567 | S102: =IF(千円単!S102="","",ROUND(千円単!S102/1000,0)) -> 241 | T102: =IF(千円単!T102="","",ROUND(千円単!T102/1000,0)) -> 244 | U102: =IF(千円単!U102="","",ROUND(千円単!U102/1000,0)) -> 803 | V102: =IF(千円単!V102="","",ROUND(千円単!V102/1000,0)) -> 178 | W102: =IF(千円単!W102="","",ROUND(千円単!W102/1000,0)) -> 625 | X102: =IF(千円単!X102="","",ROUND(千円単!X102/1000,0)) -> -236 | Y102: =IF(千円単!Y102="","",ROUND(千円単!Y102/1000,0)) -> 30
A103: 2020 | B103: 46 | C103: 17 | D103: 1 | E103: 102 | F103: 公共 | G103: 052094 | H103: 秋田県 | I103: 鹿角市 | J103: =IF(千円単!J103="","",ROUND(千円単!J103/1000,0)) -> 703 | K103: =IF(千円単!K103="","",ROUND(千円単!K103/1000,0)) -> 180 | L103: =IF(千円単!L103="","",ROUND(千円単!L103/1000,0)) -> 389 | M103: =IF(千円単!M103="","",ROUND(千円単!M103/1000,0)) -> 698 | N103: =IF(千円単!N103="","",ROUND(千円単!N103/1000,0)) -> 90 | O103: =IF(千円単!O103="","",ROUND(千円単!O103/1000,0)) -> 351 | P103: =IF(千円単!P103="","",ROUND(千円単!P103/1000,0)) -> 12 | Q103: =IF(千円単!Q103="","",ROUND(千円単!Q103/1000,0)) -> 6 | R103: =IF(千円単!R103="","",ROUND(千円単!R103/1000,0)) -> 413 | S103: =IF(千円単!S103="","",ROUND(千円単!S103/1000,0)) -> 268 | T103: =IF(千円単!T103="","",ROUND(千円単!T103/1000,0)) -> 89 | U103: =IF(千円単!U103="","",ROUND(千円単!U103/1000,0)) -> 628 | V103: =IF(千円単!V103="","",ROUND(千円単!V103/1000,0)) -> 149 | W103: =IF(千円単!W103="","",ROUND(千円単!W103/1000,0)) -> 479 | X103: =IF(千円単!X103="","",ROUND(千円単!X103/1000,0)) -> -215 | Y103: =IF(千円単!Y103="","",ROUND(千円単!Y103/1000,0)) -> 6
A104: 2020 | B104: 46 | C104: 17 | D104: 1 | E104: 103 | F104: 公共 | G104: 052108 | H104: 秋田県 | I104: 由利本荘市 | J104: =IF(千円単!J104="","",ROUND(千円単!J104/1000,0)) -> 1066 | K104: =IF(千円単!K104="","",ROUND(千円単!K104/1000,0)) -> 276 | L104: =IF(千円単!L104="","",ROUND(千円単!L104/1000,0)) -> 533 | M104: =IF(千円単!M104="","",ROUND(千円単!M104/1000,0)) -> 1051 | N104: =IF(千円単!N104="","",ROUND(千円単!N104/1000,0)) -> 147 | O104: =IF(千円単!O104="","",ROUND(千円単!O104/1000,0)) -> 615 | P104: =IF(千円単!P104="","",ROUND(千円単!P104/1000,0)) -> 39 | Q104: =IF(千円単!Q104="","",ROUND(千円単!Q104/1000,0)) -> 15 | R104: =IF(千円単!R104="","",ROUND(千円単!R104/1000,0)) -> 933 | S104: =IF(千円単!S104="","",ROUND(千円単!S104/1000,0)) -> 465 | T104: =IF(千円単!T104="","",ROUND(千円単!T104/1000,0)) -> 0 | U104: =IF(千円単!U104="","",ROUND(千円単!U104/1000,0)) -> 1312 | V104: =IF(千円単!V104="","",ROUND(千円単!V104/1000,0)) -> 286 | W104: =IF(千円単!W104="","",ROUND(千円単!W104/1000,0)) -> 1026 | X104: =IF(千円単!X104="","",ROUND(千円単!X104/1000,0)) -> -379 | Y104: =IF(千円単!Y104="","",ROUND(千円単!Y104/1000,0)) -> 15
A105: 2020 | B105: 46 | C105: 17 | D105: 1 | E105: 104 | F105: 公共 | G105: 052116 | H105: 秋田県 | I105: 潟上市 | J105: =IF(千円単!J105="","",ROUND(千円単!J105/1000,0)) -> 578 | K105: =IF(千円単!K105="","",ROUND(千円単!K105/1000,0)) -> 271 | L105: =IF(千円単!L105="","",ROUND(千円単!L105/1000,0)) -> 127 | M105: =IF(千円単!M105="","",ROUND(千円単!M105/1000,0)) -> 568 | N105: =IF(千円単!N105="","",ROUND(千円単!N105/1000,0)) -> 49 | O105: =IF(千円単!O105="","",ROUND(千円単!O105/1000,0)) -> 343 | P105: =IF(千円単!P105="","",ROUND(千円単!P105/1000,0)) -> 25 | Q105: =IF(千円単!Q105="","",ROUND(千円単!Q105/1000,0)) -> 10 | R105: =IF(千円単!R105="","",ROUND(千円単!R105/1000,0)) -> 173 | S105: =IF(千円単!S105="","",ROUND(千円単!S105/1000,0)) -> 79 | T105: =IF(千円単!T105="","",ROUND(千円単!T105/1000,0)) -> 94 | U105: =IF(千円単!U105="","",ROUND(千円単!U105/1000,0)) -> 342 | V105: =IF(千円単!V105="","",ROUND(千円単!V105/1000,0)) -> 18 | W105: =IF(千円単!W105="","",ROUND(千円単!W105/1000,0)) -> 324 | X105: =IF(千円単!X105="","",ROUND(千円単!X105/1000,0)) -> -169 | Y105: =IF(千円単!Y105="","",ROUND(千円単!Y105/1000,0)) -> 10
A106: 2020 | B106: 46 | C106: 17 | D106: 1 | E106: 105 | F106: 公共 | G106: 052124 | H106: 秋田県 | I106: 大仙市 | J106: =IF(千円単!J106="","",ROUND(千円単!J106/1000,0)) -> 1278 | K106: =IF(千円単!K106="","",ROUND(千円単!K106/1000,0)) -> 338 | L106: =IF(千円単!L106="","",ROUND(千円単!L106/1000,0)) -> 558 | M106: =IF(千円単!M106="","",ROUND(千円単!M106/1000,0)) -> 1030 | N106: =IF(千円単!N106="","",ROUND(千円単!N106/1000,0)) -> 140 | O106: =IF(千円単!O106="","",ROUND(千円単!O106/1000,0)) -> 527 | P106: =IF(千円単!P106="","",ROUND(千円単!P106/1000,0)) -> 45 | Q106: =IF(千円単!Q106="","",ROUND(千円単!Q106/1000,0)) -> 248 | R106: =IF(千円単!R106="","",ROUND(千円単!R106/1000,0)) -> 488 | S106: =IF(千円単!S106="","",ROUND(千円単!S106/1000,0)) -> 230 | T106: =IF(千円単!T106="","",ROUND(千円単!T106/1000,0)) -> 189 | U106: =IF(千円単!U106="","",ROUND(千円単!U106/1000,0)) -> 864 | V106: =IF(千円単!V106="","",ROUND(千円単!V106/1000,0)) -> 104 | W106: =IF(千円単!W106="","",ROUND(千円単!W106/1000,0)) -> 759 | X106: =IF(千円単!X106="","",ROUND(千円単!X106/1000,0)) -> -375 | Y106: =IF(千円単!Y106="","",ROUND(千円単!Y106/1000,0)) -> 248
A107: 2020 | B107: 46 | C107: 17 | D107: 1 | E107: 106 | F107: 公共 | G107: 052132 | H107: 秋田県 | I107: 北秋田市 | J107: =IF(千円単!J107="","",ROUND(千円単!J107/1000,0)) -> 872 | K107: =IF(千円単!K107="","",ROUND(千円単!K107/1000,0)) -> 237 | L107: =IF(千円単!L107="","",ROUND(千円単!L107/1000,0)) -> 374 | M107: =IF(千円単!M107="","",ROUND(千円単!M107/1000,0)) -> 843 | N107: =IF(千円単!N107="","",ROUND(千円単!N107/1000,0)) -> 101 | O107: =IF(千円単!O107="","",ROUND(千円単!O107/1000,0)) -> 496 | P107: =IF(千円単!P107="","",ROUND(千円単!P107/1000,0)) -> 48 | Q107: =IF(千円単!Q107="","",ROUND(千円単!Q107/1000,0)) -> 29 | R107: =IF(千円単!R107="","",ROUND(千円単!R107/1000,0)) -> 1378 | S107: =IF(千円単!S107="","",ROUND(千円単!S107/1000,0)) -> 616 | T107: =IF(千円単!T107="","",ROUND(千円単!T107/1000,0)) -> 38 | U107: =IF(千円単!U107="","",ROUND(千円単!U107/1000,0)) -> 1513 | V107: =IF(千円単!V107="","",ROUND(千円単!V107/1000,0)) -> 806 | W107: =IF(千円単!W107="","",ROUND(千円単!W107/1000,0)) -> 707 | X107: =IF(千円単!X107="","",ROUND(千円単!X107/1000,0)) -> -135 | Y107: =IF(千円単!Y107="","",ROUND(千円単!Y107/1000,0)) -> 29
A108: 2020 | B108: 46 | C108: 17 | D108: 1 | E108: 107 | F108: 公共 | G108: 052159 | H108: 秋田県 | I108: 仙北市 | J108: =IF(千円単!J108="","",ROUND(千円単!J108/1000,0)) -> 488 | K108: =IF(千円単!K108="","",ROUND(千円単!K108/1000,0)) -> 106 | L108: =IF(千円単!L108="","",ROUND(千円単!L108/1000,0)) -> 256 | M108: =IF(千円単!M108="","",ROUND(千円単!M108/1000,0)) -> 496 | N108: =IF(千円単!N108="","",ROUND(千円単!N108/1000,0)) -> 57 | O108: =IF(千円単!O108="","",ROUND(千円単!O108/1000,0)) -> 277 | P108: =IF(千円単!P108="","",ROUND(千円単!P108/1000,0)) -> 14 | Q108: =IF(千円単!Q108="","",ROUND(千円単!Q108/1000,0)) -> -8 | R108: =IF(千円単!R108="","",ROUND(千円単!R108/1000,0)) -> 283 | S108: =IF(千円単!S108="","",ROUND(千円単!S108/1000,0)) -> 124 | T108: =IF(千円単!T108="","",ROUND(千円単!T108/1000,0)) -> 153 | U108: =IF(千円単!U108="","",ROUND(千円単!U108/1000,0)) -> 404 | V108: =IF(千円単!V108="","",ROUND(千円単!V108/1000,0)) -> 25 | W108: =IF(千円単!W108="","",ROUND(千円単!W108/1000,0)) -> 379 | X108: =IF(千円単!X108="","",ROUND(千円単!X108/1000,0)) -> -121 | Y108: =IF(千円単!Y108="","",ROUND(千円単!Y108/1000,0)) -> -8
A109: 2020 | B109: 46 | C109: 17 | D109: 1 | E109: 108 | F109: 公共 | G109: 062014 | H109: 山形県 | I109: 山形市 | J109: =IF(千円単!J109="","",ROUND(千円単!J109/1000,0)) -> 6777 | K109: =IF(千円単!K109="","",ROUND(千円単!K109/1000,0)) -> 3826 | L109: =IF(千円単!L109="","",ROUND(千円単!L109/1000,0)) -> 1258 | M109: =IF(千円単!M109="","",ROUND(千円単!M109/1000,0)) -> 6690 | N109: =IF(千円単!N109="","",ROUND(千円単!N109/1000,0)) -> 1089 | O109: =IF(千円単!O109="","",ROUND(千円単!O109/1000,0)) -> 4145 | P109: =IF(千円単!P109="","",ROUND(千円単!P109/1000,0)) -> 222 | Q109: =IF(千円単!Q109="","",ROUND(千円単!Q109/1000,0)) -> 87 | R109: =IF(千円単!R109="","",ROUND(千円単!R109/1000,0)) -> 5973 | S109: =IF(千円単!S109="","",ROUND(千円単!S109/1000,0)) -> 3588 | T109: =IF(千円単!T109="","",ROUND(千円単!T109/1000,0)) -> 1726 | U109: =IF(千円単!U109="","",ROUND(千円単!U109/1000,0)) -> 8020 | V109: =IF(千円単!V109="","",ROUND(千円単!V109/1000,0)) -> 2048 | W109: =IF(千円単!W109="","",ROUND(千円単!W109/1000,0)) -> 5972 | X109: =IF(千円単!X109="","",ROUND(千円単!X109/1000,0)) -> -2048 | Y109: =IF(千円単!Y109="","",ROUND(千円単!Y109/1000,0)) -> 87
A110: 2020 | B110: 46 | C110: 17 | D110: 1 | E110: 109 | F110: 公共 | G110: 062022 | H110: 山形県 | I110: 米沢市 | J110: =IF(千円単!J110="","",ROUND(千円単!J110/1000,0)) -> 2155 | K110: =IF(千円単!K110="","",ROUND(千円単!K110/1000,0)) -> 1093 | L110: =IF(千円単!L110="","",ROUND(千円単!L110/1000,0)) -> 499 | M110: =IF(千円単!M110="","",ROUND(千円単!M110/1000,0)) -> 2128 | N110: =IF(千円単!N110="","",ROUND(千円単!N110/1000,0)) -> 246 | O110: =IF(千円単!O110="","",ROUND(千円単!O110/1000,0)) -> 1210 | P110: =IF(千円単!P110="","",ROUND(千円単!P110/1000,0)) -> 129 | Q110: =IF(千円単!Q110="","",ROUND(千円単!Q110/1000,0)) -> 28 | R110: =IF(千円単!R110="","",ROUND(千円単!R110/1000,0)) -> 1437 | S110: =IF(千円単!S110="","",ROUND(千円単!S110/1000,0)) -> 805 | T110: =IF(千円単!T110="","",ROUND(千円単!T110/1000,0)) -> 178 | U110: =IF(千円単!U110="","",ROUND(千円単!U110/1000,0)) -> 2051 | V110: =IF(千円単!V110="","",ROUND(千円単!V110/1000,0)) -> 857 | W110: =IF(千円単!W110="","",ROUND(千円単!W110/1000,0)) -> 1194 | X110: =IF(千円単!X110="","",ROUND(千円単!X110/1000,0)) -> -614 | Y110: =IF(千円単!Y110="","",ROUND(千円単!Y110/1000,0)) -> 28
A111: 2020 | B111: 46 | C111: 17 | D111: 1 | E111: 110 | F111: 公共 | G111: 062031 | H111: 山形県 | I111: 鶴岡市 | J111: =IF(千円単!J111="","",ROUND(千円単!J111/1000,0)) -> 4255 | K111: =IF(千円単!K111="","",ROUND(千円単!K111/1000,0)) -> 2118 | L111: =IF(千円単!L111="","",ROUND(千円単!L111/1000,0)) -> 592 | M111: =IF(千円単!M111="","",ROUND(千円単!M111/1000,0)) -> 4105 | N111: =IF(千円単!N111="","",ROUND(千円単!N111/1000,0)) -> 441 | O111: =IF(千円単!O111="","",ROUND(千円単!O111/1000,0)) -> 2385 | P111: =IF(千円単!P111="","",ROUND(千円単!P111/1000,0)) -> 157 | Q111: =IF(千円単!Q111="","",ROUND(千円単!Q111/1000,0)) -> 150 | R111: =IF(千円単!R111="","",ROUND(千円単!R111/1000,0)) -> 3422 | S111: =IF(千円単!S111="","",ROUND(千円単!S111/1000,0)) -> 1304 | T111: =IF(千円単!T111="","",ROUND(千円単!T111/1000,0)) -> 1016 | U111: =IF(千円単!U111="","",ROUND(千円単!U111/1000,0)) -> 4989 | V111: =IF(千円単!V111="","",ROUND(千円単!V111/1000,0)) -> 2445 | W111: =IF(千円単!W111="","",ROUND(千円単!W111/1000,0)) -> 2543 | X111: =IF(千円単!X111="","",ROUND(千円単!X111/1000,0)) -> -1566 | Y111: =IF(千円単!Y111="","",ROUND(千円単!Y111/1000,0)) -> 150
A112: 2020 | B112: 46 | C112: 17 | D112: 1 | E112: 111 | F112: 公共 | G112: 062049 | H112: 山形県 | I112: 酒田市 | J112: =IF(千円単!J112="","",ROUND(千円単!J112/1000,0)) -> 3651 | K112: =IF(千円単!K112="","",ROUND(千円単!K112/1000,0)) -> 1487 | L112: =IF(千円単!L112="","",ROUND(千円単!L112/1000,0)) -> 1749 | M112: =IF(千円単!M112="","",ROUND(千円単!M112/1000,0)) -> 3539 | N112: =IF(千円単!N112="","",ROUND(千円単!N112/1000,0)) -> 438 | O112: =IF(千円単!O112="","",ROUND(千円単!O112/1000,0)) -> 2105 | P112: =IF(千円単!P112="","",ROUND(千円単!P112/1000,0)) -> 113 | Q112: =IF(千円単!Q112="","",ROUND(千円単!Q112/1000,0)) -> 112 | R112: =IF(千円単!R112="","",ROUND(千円単!R112/1000,0)) -> 340 | S112: =IF(千円単!S112="","",ROUND(千円単!S112/1000,0)) -> 126 | T112: =IF(千円単!T112="","",ROUND(千円単!T112/1000,0)) -> 86 | U112: =IF(千円単!U112="","",ROUND(千円単!U112/1000,0)) -> 2065 | V112: =IF(千円単!V112="","",ROUND(千円単!V112/1000,0)) -> 228 | W112: =IF(千円単!W112="","",ROUND(千円単!W112/1000,0)) -> 1837 | X112: =IF(千円単!X112="","",ROUND(千円単!X112/1000,0)) -> -1725 | Y112: =IF(千円単!Y112="","",ROUND(千円単!Y112/1000,0)) -> 112
A113: 2020 | B113: 46 | C113: 17 | D113: 1 | E113: 112 | F113: 公共 | G113: 062057 | H113: 山形県 | I113: 新庄市 | J113: =IF(千円単!J113="","",ROUND(千円単!J113/1000,0)) -> 957 | K113: =IF(千円単!K113="","",ROUND(千円単!K113/1000,0)) -> 344 | L113: =IF(千円単!L113="","",ROUND(千円単!L113/1000,0)) -> 309 | M113: =IF(千円単!M113="","",ROUND(千円単!M113/1000,0)) -> 904 | N113: =IF(千円単!N113="","",ROUND(千円単!N113/1000,0)) -> 87 | O113: =IF(千円単!O113="","",ROUND(千円単!O113/1000,0)) -> 560 | P113: =IF(千円単!P113="","",ROUND(千円単!P113/1000,0)) -> 47 | Q113: =IF(千円単!Q113="","",ROUND(千円単!Q113/1000,0)) -> 52 | R113: =IF(千円単!R113="","",ROUND(千円単!R113/1000,0)) -> 398 | S113: =IF(千円単!S113="","",ROUND(千円単!S113/1000,0)) -> 210 | T113: =IF(千円単!T113="","",ROUND(千円単!T113/1000,0)) -> 0 | U113: =IF(千円単!U113="","",ROUND(千円単!U113/1000,0)) -> 691 | V113: =IF(千円単!V113="","",ROUND(千円単!V113/1000,0)) -> 130 | W113: =IF(千円単!W113="","",ROUND(千円単!W113/1000,0)) -> 560 | X113: =IF(千円単!X113="","",ROUND(千円単!X113/1000,0)) -> -293 | Y113: =IF(千円単!Y113="","",ROUND(千円単!Y113/1000,0)) -> 52
A114: 2020 | B114: 46 | C114: 17 | D114: 1 | E114: 113 | F114: 公共 | G114: 062065 | H114: 山形県 | I114: 寒河江市 | J114: =IF(千円単!J114="","",ROUND(千円単!J114/1000,0)) -> 1319 | K114: =IF(千円単!K114="","",ROUND(千円単!K114/1000,0)) -> 519 | L114: =IF(千円単!L114="","",ROUND(千円単!L114/1000,0)) -> 345 | M114: =IF(千円単!M114="","",ROUND(千円単!M114/1000,0)) -> 1302 | N114: =IF(千円単!N114="","",ROUND(千円単!N114/1000,0)) -> 123 | O114: =IF(千円単!O114="","",ROUND(千円単!O114/1000,0)) -> 860 | P114: =IF(千円単!P114="","",ROUND(千円単!P114/1000,0)) -> 53 | Q114: =IF(千円単!Q114="","",ROUND(千円単!Q114/1000,0)) -> 17 | R114: =IF(千円単!R114="","",ROUND(千円単!R114/1000,0)) -> 531 | S114: =IF(千円単!S114="","",ROUND(千円単!S114/1000,0)) -> 261 | T114: =IF(千円単!T114="","",ROUND(千円単!T114/1000,0)) -> 71 | U114: =IF(千円単!U114="","",ROUND(千円単!U114/1000,0)) -> 987 | V114: =IF(千円単!V114="","",ROUND(千円単!V114/1000,0)) -> 427 | W114: =IF(千円単!W114="","",ROUND(千円単!W114/1000,0)) -> 560 | X114: =IF(千円単!X114="","",ROUND(千円単!X114/1000,0)) -> -455 | Y114: =IF(千円単!Y114="","",ROUND(千円単!Y114/1000,0)) -> 17
A115: 2020 | B115: 46 | C115: 17 | D115: 1 | E115: 114 | F115: 公共 | G115: 062073 | H115: 山形県 | I115: 上山市 | J115: =IF(千円単!J115="","",ROUND(千円単!J115/1000,0)) -> 982 | K115: =IF(千円単!K115="","",ROUND(千円単!K115/1000,0)) -> 458 | L115: =IF(千円単!L115="","",ROUND(千円単!L115/1000,0)) -> 230 | M115: =IF(千円単!M115="","",ROUND(千円単!M115/1000,0)) -> 943 | N115: =IF(千円単!N115="","",ROUND(千円単!N115/1000,0)) -> 79 | O115: =IF(千円単!O115="","",ROUND(千円単!O115/1000,0)) -> 596 | P115: =IF(千円単!P115="","",ROUND(千円単!P115/1000,0)) -> 23 | Q115: =IF(千円単!Q115="","",ROUND(千円単!Q115/1000,0)) -> 38 | R115: =IF(千円単!R115="","",ROUND(千円単!R115/1000,0)) -> 973 | S115: =IF(千円単!S115="","",ROUND(千円単!S115/1000,0)) -> 600 | T115: =IF(千円単!T115="","",ROUND(千円単!T115/1000,0)) -> 41 | U115: =IF(千円単!U115="","",ROUND(千円単!U115/1000,0)) -> 1521 | V115: =IF(千円単!V115="","",ROUND(千円単!V115/1000,0)) -> 1138 | W115: =IF(千円単!W115="","",ROUND(千円単!W115/1000,0)) -> 383 | X115: =IF(千円単!X115="","",ROUND(千円単!X115/1000,0)) -> -548 | Y115: =IF(千円単!Y115="","",ROUND(千円単!Y115/1000,0)) -> 38
A116: 2020 | B116: 46 | C116: 17 | D116: 1 | E116: 115 | F116: 公共 | G116: 062081 | H116: 山形県 | I116: 村山市 | J116: =IF(千円単!J116="","",ROUND(千円単!J116/1000,0)) -> 567 | K116: =IF(千円単!K116="","",ROUND(千円単!K116/1000,0)) -> 203 | L116: =IF(千円単!L116="","",ROUND(千円単!L116/1000,0)) -> 115 | M116: =IF(千円単!M116="","",ROUND(千円単!M116/1000,0)) -> 560 | N116: =IF(千円単!N116="","",ROUND(千円単!N116/1000,0)) -> 61 | O116: =IF(千円単!O116="","",ROUND(千円単!O116/1000,0)) -> 344 | P116: =IF(千円単!P116="","",ROUND(千円単!P116/1000,0)) -> 21 | Q116: =IF(千円単!Q116="","",ROUND(千円単!Q116/1000,0)) -> 7 | R116: =IF(千円単!R116="","",ROUND(千円単!R116/1000,0)) -> 462 | S116: =IF(千円単!S116="","",ROUND(千円単!S116/1000,0)) -> 159 | T116: =IF(千円単!T116="","",ROUND(千円単!T116/1000,0)) -> 0 | U116: =IF(千円単!U116="","",ROUND(千円単!U116/1000,0)) -> 563 | V116: =IF(千円単!V116="","",ROUND(千円単!V116/1000,0)) -> 99 | W116: =IF(千円単!W116="","",ROUND(千円単!W116/1000,0)) -> 464 | X116: =IF(千円単!X116="","",ROUND(千円単!X116/1000,0)) -> -101 | Y116: =IF(千円単!Y116="","",ROUND(千円単!Y116/1000,0)) -> 7
A117: 2020 | B117: 46 | C117: 17 | D117: 1 | E117: 116 | F117: 公共 | G117: 062090 | H117: 山形県 | I117: 長井市 | J117: =IF(千円単!J117="","",ROUND(千円単!J117/1000,0)) -> 609 | K117: =IF(千円単!K117="","",ROUND(千円単!K117/1000,0)) -> 277 | L117: =IF(千円単!L117="","",ROUND(千円単!L117/1000,0)) -> 178 | M117: =IF(千円単!M117="","",ROUND(千円単!M117/1000,0)) -> 609 | N117: =IF(千円単!N117="","",ROUND(千円単!N117/1000,0)) -> 61 | O117: =IF(千円単!O117="","",ROUND(千円単!O117/1000,0)) -> 439 | P117: =IF(千円単!P117="","",ROUND(千円単!P117/1000,0)) -> 9 | Q117: =IF(千円単!Q117="","",ROUND(千円単!Q117/1000,0)) -> 0 | R117: =IF(千円単!R117="","",ROUND(千円単!R117/1000,0)) -> 377 | S117: =IF(千円単!S117="","",ROUND(千円単!S117/1000,0)) -> 198 | T117: =IF(千円単!T117="","",ROUND(千円単!T117/1000,0)) -> 158 | U117: =IF(千円単!U117="","",ROUND(千円単!U117/1000,0)) -> 663 | V117: =IF(千円単!V117="","",ROUND(千円単!V117/1000,0)) -> 135 | W117: =IF(千円単!W117="","",ROUND(千円単!W117/1000,0)) -> 528 | X117: =IF(千円単!X117="","",ROUND(千円単!X117/1000,0)) -> -286 | Y117: =IF(千円単!Y117="","",ROUND(千円単!Y117/1000,0)) -> 0
A118: 2020 | B118: 46 | C118: 17 | D118: 1 | E118: 117 | F118: 公共 | G118: 062103 | H118: 山形県 | I118: 天童市 | J118: =IF(千円単!J118="","",ROUND(千円単!J118/1000,0)) -> 1007 | K118: =IF(千円単!K118="","",ROUND(千円単!K118/1000,0)) -> 748 | L118: =IF(千円単!L118="","",ROUND(千円単!L118/1000,0)) -> 77 | M118: =IF(千円単!M118="","",ROUND(千円単!M118/1000,0)) -> 1038 | N118: =IF(千円単!N118="","",ROUND(千円単!N118/1000,0)) -> 128 | O118: =IF(千円単!O118="","",ROUND(千円単!O118/1000,0)) -> 552 | P118: =IF(千円単!P118="","",ROUND(千円単!P118/1000,0)) -> 23 | Q118: =IF(千円単!Q118="","",ROUND(千円単!Q118/1000,0)) -> -31 | R118: =IF(千円単!R118="","",ROUND(千円単!R118/1000,0)) -> 618 | S118: =IF(千円単!S118="","",ROUND(千円単!S118/1000,0)) -> 380 | T118: =IF(千円単!T118="","",ROUND(千円単!T118/1000,0)) -> 136 | U118: =IF(千円単!U118="","",ROUND(千円単!U118/1000,0)) -> 1111 | V118: =IF(千円単!V118="","",ROUND(千円単!V118/1000,0)) -> 527 | W118: =IF(千円単!W118="","",ROUND(千円単!W118/1000,0)) -> 582 | X118: =IF(千円単!X118="","",ROUND(千円単!X118/1000,0)) -> -493 | Y118: =IF(千円単!Y118="","",ROUND(千円単!Y118/1000,0)) -> -31
A119: 2020 | B119: 46 | C119: 17 | D119: 1 | E119: 118 | F119: 公共 | G119: 062111 | H119: 山形県 | I119: 東根市 | J119: =IF(千円単!J119="","",ROUND(千円単!J119/1000,0)) -> 1420 | K119: =IF(千円単!K119="","",ROUND(千円単!K119/1000,0)) -> 667 | L119: =IF(千円単!L119="","",ROUND(千円単!L119/1000,0)) -> 319 | M119: =IF(千円単!M119="","",ROUND(千円単!M119/1000,0)) -> 1413 | N119: =IF(千円単!N119="","",ROUND(千円単!N119/1000,0)) -> 138 | O119: =IF(千円単!O119="","",ROUND(千円単!O119/1000,0)) -> 788 | P119: =IF(千円単!P119="","",ROUND(千円単!P119/1000,0)) -> 35 | Q119: =IF(千円単!Q119="","",ROUND(千円単!Q119/1000,0)) -> 7 | R119: =IF(千円単!R119="","",ROUND(千円単!R119/1000,0)) -> 954 | S119: =IF(千円単!S119="","",ROUND(千円単!S119/1000,0)) -> 454 | T119: =IF(千円単!T119="","",ROUND(千円単!T119/1000,0)) -> 203 | U119: =IF(千円単!U119="","",ROUND(千円単!U119/1000,0)) -> 1217 | V119: =IF(千円単!V119="","",ROUND(千円単!V119/1000,0)) -> 660 | W119: =IF(千円単!W119="","",ROUND(千円単!W119/1000,0)) -> 557 | X119: =IF(千円単!X119="","",ROUND(千円単!X119/1000,0)) -> -263 | Y119: =IF(千円単!Y119="","",ROUND(千円単!Y119/1000,0)) -> 7
A120: 2020 | B120: 46 | C120: 17 | D120: 1 | E120: 119 | F120: 公共 | G120: 062138 | H120: 山形県 | I120: 南陽市 | J120: =IF(千円単!J120="","",ROUND(千円単!J120/1000,0)) -> 944 | K120: =IF(千円単!K120="","",ROUND(千円単!K120/1000,0)) -> 350 | L120: =IF(千円単!L120="","",ROUND(千円単!L120/1000,0)) -> 395 | M120: =IF(千円単!M120="","",ROUND(千円単!M120/1000,0)) -> 943 | N120: =IF(千円単!N120="","",ROUND(千円単!N120/1000,0)) -> 121 | O120: =IF(千円単!O120="","",ROUND(千円単!O120/1000,0)) -> 559 | P120: =IF(千円単!P120="","",ROUND(千円単!P120/1000,0)) -> 36 | Q120: =IF(千円単!Q120="","",ROUND(千円単!Q120/1000,0)) -> 1 | R120: =IF(千円単!R120="","",ROUND(千円単!R120/1000,0)) -> 661 | S120: =IF(千円単!S120="","",ROUND(千円単!S120/1000,0)) -> 270 | T120: =IF(千円単!T120="","",ROUND(千円単!T120/1000,0)) -> 51 | U120: =IF(千円単!U120="","",ROUND(千円単!U120/1000,0)) -> 1016 | V120: =IF(千円単!V120="","",ROUND(千円単!V120/1000,0)) -> 330 | W120: =IF(千円単!W120="","",ROUND(千円単!W120/1000,0)) -> 686 | X120: =IF(千円単!X120="","",ROUND(千円単!X120/1000,0)) -> -355 | Y120: =IF(千円単!Y120="","",ROUND(千円単!Y120/1000,0)) -> 1
A121: 2020 | B121: 46 | C121: 17 | D121: 1 | E121: 120 | F121: 公共 | G121: 063011 | H121: 山形県 | I121: 山辺町 | J121: =IF(千円単!J121="","",ROUND(千円単!J121/1000,0)) -> 351 | K121: =IF(千円単!K121="","",ROUND(千円単!K121/1000,0)) -> 170 | L121: =IF(千円単!L121="","",ROUND(千円単!L121/1000,0)) -> 55 | M121: =IF(千円単!M121="","",ROUND(千円単!M121/1000,0)) -> 336 | N121: =IF(千円単!N121="","",ROUND(千円単!N121/1000,0)) -> 50 | O121: =IF(千円単!O121="","",ROUND(千円単!O121/1000,0)) -> 195 | P121: =IF(千円単!P121="","",ROUND(千円単!P121/1000,0)) -> 22 | Q121: =IF(千円単!Q121="","",ROUND(千円単!Q121/1000,0)) -> 15 | R121: =IF(千円単!R121="","",ROUND(千円単!R121/1000,0)) -> 268 | S121: =IF(千円単!S121="","",ROUND(千円単!S121/1000,0)) -> 160 | T121: =IF(千円単!T121="","",ROUND(千円単!T121/1000,0)) -> 104 | U121: =IF(千円単!U121="","",ROUND(千円単!U121/1000,0)) -> 342 | V121: =IF(千円単!V121="","",ROUND(千円単!V121/1000,0)) -> 17 | W121: =IF(千円単!W121="","",ROUND(千円単!W121/1000,0)) -> 325 | X121: =IF(千円単!X121="","",ROUND(千円単!X121/1000,0)) -> -74 | Y121: =IF(千円単!Y121="","",ROUND(千円単!Y121/1000,0)) -> 15
A122: 2020 | B122: 46 | C122: 17 | D122: 1 | E122: 121 | F122: 公共 | G122: 064289 | H122: 山形県 | I122: 庄内町 | J122: =IF(千円単!J122="","",ROUND(千円単!J122/1000,0)) -> 475 | K122: =IF(千円単!K122="","",ROUND(千円単!K122/1000,0)) -> 141 | L122: =IF(千円単!L122="","",ROUND(千円単!L122/1000,0)) -> 63 | M122: =IF(千円単!M122="","",ROUND(千円単!M122/1000,0)) -> 447 | N122: =IF(千円単!N122="","",ROUND(千円単!N122/1000,0)) -> 62 | O122: =IF(千円単!O122="","",ROUND(千円単!O122/1000,0)) -> 272 | P122: =IF(千円単!P122="","",ROUND(千円単!P122/1000,0)) -> 15 | Q122: =IF(千円単!Q122="","",ROUND(千円単!Q122/1000,0)) -> 28 | R122: =IF(千円単!R122="","",ROUND(千円単!R122/1000,0)) -> 323 | S122: =IF(千円単!S122="","",ROUND(千円単!S122/1000,0)) -> 29 | T122: =IF(千円単!T122="","",ROUND(千円単!T122/1000,0)) -> 291 | U122: =IF(千円単!U122="","",ROUND(千円単!U122/1000,0)) -> 325 | V122: =IF(千円単!V122="","",ROUND(千円単!V122/1000,0)) -> 33 | W122: =IF(千円単!W122="","",ROUND(千円単!W122/1000,0)) -> 292 | X122: =IF(千円単!X122="","",ROUND(千円単!X122/1000,0)) -> -2 | Y122: =IF(千円単!Y122="","",ROUND(千円単!Y122/1000,0)) -> 28
A123: 2020 | B123: 46 | C123: 17 | D123: 1 | E123: 122 | F123: 公共 | G123: 069663 | H123: 山形県 | I123: 尾花沢市大石田町環境衛生事業組合（事業会計分） | J123: =IF(千円単!J123="","",ROUND(千円単!J123/1000,0)) -> 409 | K123: =IF(千円単!K123="","",ROUND(千円単!K123/1000,0)) -> 119 | L123: =IF(千円単!L123="","",ROUND(千円単!L123/1000,0)) -> 136 | M123: =IF(千円単!M123="","",ROUND(千円単!M123/1000,0)) -> 414 | N123: =IF(千円単!N123="","",ROUND(千円単!N123/1000,0)) -> 67 | O123: =IF(千円単!O123="","",ROUND(千円単!O123/1000,0)) -> 206 | P123: =IF(千円単!P123="","",ROUND(千円単!P123/1000,0)) -> 28 | Q123: =IF(千円単!Q123="","",ROUND(千円単!Q123/1000,0)) -> -5 | R123: =IF(千円単!R123="","",ROUND(千円単!R123/1000,0)) -> 403 | S123: =IF(千円単!S123="","",ROUND(千円単!S123/1000,0)) -> 227 | T123: =IF(千円単!T123="","",ROUND(千円単!T123/1000,0)) -> 115 | U123: =IF(千円単!U123="","",ROUND(千円単!U123/1000,0)) -> 433 | V123: =IF(千円単!V123="","",ROUND(千円単!V123/1000,0)) -> 194 | W123: =IF(千円単!W123="","",ROUND(千円単!W123/1000,0)) -> 238 | X123: =IF(千円単!X123="","",ROUND(千円単!X123/1000,0)) -> -29 | Y123: =IF(千円単!Y123="","",ROUND(千円単!Y123/1000,0)) -> -5
A124: 2020 | B124: 46 | C124: 17 | D124: 1 | E124: 123 | F124: 公共 | G124: 072010 | H124: 福島県 | I124: 福島市 | J124: =IF(千円単!J124="","",ROUND(千円単!J124/1000,0)) -> 7374 | K124: =IF(千円単!K124="","",ROUND(千円単!K124/1000,0)) -> 3134 | L124: =IF(千円単!L124="","",ROUND(千円単!L124/1000,0)) -> 2351 | M124: =IF(千円単!M124="","",ROUND(千円単!M124/1000,0)) -> 6522 | N124: =IF(千円単!N124="","",ROUND(千円単!N124/1000,0)) -> 839 | O124: =IF(千円単!O124="","",ROUND(千円単!O124/1000,0)) -> 3838 | P124: =IF(千円単!P124="","",ROUND(千円単!P124/1000,0)) -> 112 | Q124: =IF(千円単!Q124="","",ROUND(千円単!Q124/1000,0)) -> 852 | R124: =IF(千円単!R124="","",ROUND(千円単!R124/1000,0)) -> 3997 | S124: =IF(千円単!S124="","",ROUND(千円単!S124/1000,0)) -> 2734 | T124: =IF(千円単!T124="","",ROUND(千円単!T124/1000,0)) -> 0 | U124: =IF(千円単!U124="","",ROUND(千円単!U124/1000,0)) -> 6981 | V124: =IF(千円単!V124="","",ROUND(千円単!V124/1000,0)) -> 3368 | W124: =IF(千円単!W124="","",ROUND(千円単!W124/1000,0)) -> 3613 | X124: =IF(千円単!X124="","",ROUND(千円単!X124/1000,0)) -> -2985 | Y124: =IF(千円単!Y124="","",ROUND(千円単!Y124/1000,0)) -> 852
A125: 2020 | B125: 46 | C125: 17 | D125: 1 | E125: 124 | F125: 公共 | G125: 072028 | H125: 福島県 | I125: 会津若松市 | J125: =IF(千円単!J125="","",ROUND(千円単!J125/1000,0)) -> 3006 | K125: =IF(千円単!K125="","",ROUND(千円単!K125/1000,0)) -> 1505 | L125: =IF(千円単!L125="","",ROUND(千円単!L125/1000,0)) -> 618 | M125: =IF(千円単!M125="","",ROUND(千円単!M125/1000,0)) -> 2875 | N125: =IF(千円単!N125="","",ROUND(千円単!N125/1000,0)) -> 261 | O125: =IF(千円単!O125="","",ROUND(千円単!O125/1000,0)) -> 1923 | P125: =IF(千円単!P125="","",ROUND(千円単!P125/1000,0)) -> 177 | Q125: =IF(千円単!Q125="","",ROUND(千円単!Q125/1000,0)) -> 131 | R125: =IF(千円単!R125="","",ROUND(千円単!R125/1000,0)) -> 836 | S125: =IF(千円単!S125="","",ROUND(千円単!S125/1000,0)) -> 512 | T125: =IF(千円単!T125="","",ROUND(千円単!T125/1000,0)) -> 60 | U125: =IF(千円単!U125="","",ROUND(千円単!U125/1000,0)) -> 1967 | V125: =IF(千円単!V125="","",ROUND(千円単!V125/1000,0)) -> 760 | W125: =IF(千円単!W125="","",ROUND(千円単!W125/1000,0)) -> 1207 | X125: =IF(千円単!X125="","",ROUND(千円単!X125/1000,0)) -> -1131 | Y125: =IF(千円単!Y125="","",ROUND(千円単!Y125/1000,0)) -> 131
A126: 2020 | B126: 46 | C126: 17 | D126: 1 | E126: 125 | F126: 公共 | G126: 072036 | H126: 福島県 | I126: 郡山市 | J126: =IF(千円単!J126="","",ROUND(千円単!J126/1000,0)) -> 8156 | K126: =IF(千円単!K126="","",ROUND(千円単!K126/1000,0)) -> 3867 | L126: =IF(千円単!L126="","",ROUND(千円単!L126/1000,0)) -> 2902 | M126: =IF(千円単!M126="","",ROUND(千円単!M126/1000,0)) -> 7940 | N126: =IF(千円単!N126="","",ROUND(千円単!N126/1000,0)) -> 943 | O126: =IF(千円単!O126="","",ROUND(千円単!O126/1000,0)) -> 3987 | P126: =IF(千円単!P126="","",ROUND(千円単!P126/1000,0)) -> 308 | Q126: =IF(千円単!Q126="","",ROUND(千円単!Q126/1000,0)) -> 216 | R126: =IF(千円単!R126="","",ROUND(千円単!R126/1000,0)) -> 8226 | S126: =IF(千円単!S126="","",ROUND(千円単!S126/1000,0)) -> 3891 | T126: =IF(千円単!T126="","",ROUND(千円単!T126/1000,0)) -> 0 | U126: =IF(千円単!U126="","",ROUND(千円単!U126/1000,0)) -> 13679 | V126: =IF(千円単!V126="","",ROUND(千円単!V126/1000,0)) -> 8630 | W126: =IF(千円単!W126="","",ROUND(千円単!W126/1000,0)) -> 5049 | X126: =IF(千円単!X126="","",ROUND(千円単!X126/1000,0)) -> -5453 | Y126: =IF(千円単!Y126="","",ROUND(千円単!Y126/1000,0)) -> 216
A127: 2020 | B127: 46 | C127: 17 | D127: 1 | E127: 126 | F127: 公共 | G127: 072044 | H127: 福島県 | I127: いわき市 | J127: =IF(千円単!J127="","",ROUND(千円単!J127/1000,0)) -> 8194 | K127: =IF(千円単!K127="","",ROUND(千円単!K127/1000,0)) -> 3504 | L127: =IF(千円単!L127="","",ROUND(千円単!L127/1000,0)) -> 2734 | M127: =IF(千円単!M127="","",ROUND(千円単!M127/1000,0)) -> 7725 | N127: =IF(千円単!N127="","",ROUND(千円単!N127/1000,0)) -> 844 | O127: =IF(千円単!O127="","",ROUND(千円単!O127/1000,0)) -> 4297 | P127: =IF(千円単!P127="","",ROUND(千円単!P127/1000,0)) -> 217 | Q127: =IF(千円単!Q127="","",ROUND(千円単!Q127/1000,0)) -> 468 | R127: =IF(千円単!R127="","",ROUND(千円単!R127/1000,0)) -> 5522 | S127: =IF(千円単!S127="","",ROUND(千円単!S127/1000,0)) -> 2915 | T127: =IF(千円単!T127="","",ROUND(千円単!T127/1000,0)) -> 1000 | U127: =IF(千円単!U127="","",ROUND(千円単!U127/1000,0)) -> 8336 | V127: =IF(千円単!V127="","",ROUND(千円単!V127/1000,0)) -> 4255 | W127: =IF(千円単!W127="","",ROUND(千円単!W127/1000,0)) -> 4011 | X127: =IF(千円単!X127="","",ROUND(千円単!X127/1000,0)) -> -2814 | Y127: =IF(千円単!Y127="","",ROUND(千円単!Y127/1000,0)) -> 468
A128: 2020 | B128: 46 | C128: 17 | D128: 1 | E128: 127 | F128: 公共 | G128: 072052 | H128: 福島県 | I128: 白河市 | J128: =IF(千円単!J128="","",ROUND(千円単!J128/1000,0)) -> 1369 | K128: =IF(千円単!K128="","",ROUND(千円単!K128/1000,0)) -> 387 | L128: =IF(千円単!L128="","",ROUND(千円単!L128/1000,0)) -> 197 | M128: =IF(千円単!M128="","",ROUND(千円単!M128/1000,0)) -> 1348 | N128: =IF(千円単!N128="","",ROUND(千円単!N128/1000,0)) -> 149 | O128: =IF(千円単!O128="","",ROUND(千円単!O128/1000,0)) -> 744 | P128: =IF(千円単!P128="","",ROUND(千円単!P128/1000,0)) -> 46 | Q128: =IF(千円単!Q128="","",ROUND(千円単!Q128/1000,0)) -> 22 | R128: =IF(千円単!R128="","",ROUND(千円単!R128/1000,0)) -> 1035 | S128: =IF(千円単!S128="","",ROUND(千円単!S128/1000,0)) -> 227 | T128: =IF(千円単!T128="","",ROUND(千円単!T128/1000,0)) -> 612 | U128: =IF(千円単!U128="","",ROUND(千円単!U128/1000,0)) -> 1135 | V128: =IF(千円単!V128="","",ROUND(千円単!V128/1000,0)) -> 401 | W128: =IF(千円単!W128="","",ROUND(千円単!W128/1000,0)) -> 734 | X128: =IF(千円単!X128="","",ROUND(千円単!X128/1000,0)) -> -100 | Y128: =IF(千円単!Y128="","",ROUND(千円単!Y128/1000,0)) -> 22
A129: 2020 | B129: 46 | C129: 17 | D129: 1 | E129: 128 | F129: 公共 | G129: 072079 | H129: 福島県 | I129: 須賀川市 | J129: =IF(千円単!J129="","",ROUND(千円単!J129/1000,0)) -> 1449 | K129: =IF(千円単!K129="","",ROUND(千円単!K129/1000,0)) -> 532 | L129: =IF(千円単!L129="","",ROUND(千円単!L129/1000,0)) -> 519 | M129: =IF(千円単!M129="","",ROUND(千円単!M129/1000,0)) -> 1191 | N129: =IF(千円単!N129="","",ROUND(千円単!N129/1000,0)) -> 141 | O129: =IF(千円単!O129="","",ROUND(千円単!O129/1000,0)) -> 605 | P129: =IF(千円単!P129="","",ROUND(千円単!P129/1000,0)) -> 63 | Q129: =IF(千円単!Q129="","",ROUND(千円単!Q129/1000,0)) -> 258 | R129: =IF(千円単!R129="","",ROUND(千円単!R129/1000,0)) -> 992 | S129: =IF(千円単!S129="","",ROUND(千円単!S129/1000,0)) -> 505 | T129: =IF(千円単!T129="","",ROUND(千円単!T129/1000,0)) -> 136 | U129: =IF(千円単!U129="","",ROUND(千円単!U129/1000,0)) -> 1399 | V129: =IF(千円単!V129="","",ROUND(千円単!V129/1000,0)) -> 723 | W129: =IF(千円単!W129="","",ROUND(千円単!W129/1000,0)) -> 677 | X129: =IF(千円単!X129="","",ROUND(千円単!X129/1000,0)) -> -407 | Y129: =IF(千円単!Y129="","",ROUND(千円単!Y129/1000,0)) -> 258
A130: 2020 | B130: 46 | C130: 17 | D130: 1 | E130: 129 | F130: 公共 | G130: 072087 | H130: 福島県 | I130: 喜多方市 | J130: =IF(千円単!J130="","",ROUND(千円単!J130/1000,0)) -> 780 | K130: =IF(千円単!K130="","",ROUND(千円単!K130/1000,0)) -> 188 | L130: =IF(千円単!L130="","",ROUND(千円単!L130/1000,0)) -> 363 | M130: =IF(千円単!M130="","",ROUND(千円単!M130/1000,0)) -> 741 | N130: =IF(千円単!N130="","",ROUND(千円単!N130/1000,0)) -> 92 | O130: =IF(千円単!O130="","",ROUND(千円単!O130/1000,0)) -> 424 | P130: =IF(千円単!P130="","",ROUND(千円単!P130/1000,0)) -> 57 | Q130: =IF(千円単!Q130="","",ROUND(千円単!Q130/1000,0)) -> 39 | R130: =IF(千円単!R130="","",ROUND(千円単!R130/1000,0)) -> 647 | S130: =IF(千円単!S130="","",ROUND(千円単!S130/1000,0)) -> 220 | T130: =IF(千円単!T130="","",ROUND(千円単!T130/1000,0)) -> 39 | U130: =IF(千円単!U130="","",ROUND(千円単!U130/1000,0)) -> 885 | V130: =IF(千円単!V130="","",ROUND(千円単!V130/1000,0)) -> 424 | W130: =IF(千円単!W130="","",ROUND(千円単!W130/1000,0)) -> 460 | X130: =IF(千円単!X130="","",ROUND(千円単!X130/1000,0)) -> -238 | Y130: =IF(千円単!Y130="","",ROUND(千円単!Y130/1000,0)) -> 39
A131: 2020 | B131: 46 | C131: 17 | D131: 1 | E131: 130 | F131: 公共 | G131: 072095 | H131: 福島県 | I131: 相馬市 | J131: =IF(千円単!J131="","",ROUND(千円単!J131/1000,0)) -> 1429 | K131: =IF(千円単!K131="","",ROUND(千円単!K131/1000,0)) -> 258 | L131: =IF(千円単!L131="","",ROUND(千円単!L131/1000,0)) -> 599 | M131: =IF(千円単!M131="","",ROUND(千円単!M131/1000,0)) -> 1400 | N131: =IF(千円単!N131="","",ROUND(千円単!N131/1000,0)) -> 84 | O131: =IF(千円単!O131="","",ROUND(千円単!O131/1000,0)) -> 946 | P131: =IF(千円単!P131="","",ROUND(千円単!P131/1000,0)) -> 49 | Q131: =IF(千円単!Q131="","",ROUND(千円単!Q131/1000,0)) -> 29 | R131: =IF(千円単!R131="","",ROUND(千円単!R131/1000,0)) -> 2488 | S131: =IF(千円単!S131="","",ROUND(千円単!S131/1000,0)) -> 2311 | T131: =IF(千円単!T131="","",ROUND(千円単!T131/1000,0)) -> 57 | U131: =IF(千円単!U131="","",ROUND(千円単!U131/1000,0)) -> 2866 | V131: =IF(千円単!V131="","",ROUND(千円単!V131/1000,0)) -> 44 | W131: =IF(千円単!W131="","",ROUND(千円単!W131/1000,0)) -> 2822 | X131: =IF(千円単!X131="","",ROUND(千円単!X131/1000,0)) -> -379 | Y131: =IF(千円単!Y131="","",ROUND(千円単!Y131/1000,0)) -> 29
A132: 2020 | B132: 46 | C132: 17 | D132: 1 | E132: 131 | F132: 公共 | G132: 072109 | H132: 福島県 | I132: 二本松市 | J132: =IF(千円単!J132="","",ROUND(千円単!J132/1000,0)) -> 797 | K132: =IF(千円単!K132="","",ROUND(千円単!K132/1000,0)) -> 214 | L132: =IF(千円単!L132="","",ROUND(千円単!L132/1000,0)) -> 427 | M132: =IF(千円単!M132="","",ROUND(千円単!M132/1000,0)) -> 797 | N132: =IF(千円単!N132="","",ROUND(千円単!N132/1000,0)) -> 92 | O132: =IF(千円単!O132="","",ROUND(千円単!O132/1000,0)) -> 337 | P132: =IF(千円単!P132="","",ROUND(千円単!P132/1000,0)) -> 32 | Q132: =IF(千円単!Q132="","",ROUND(千円単!Q132/1000,0)) -> 0 | R132: =IF(千円単!R132="","",ROUND(千円単!R132/1000,0)) -> 91 | S132: =IF(千円単!S132="","",ROUND(千円単!S132/1000,0)) -> 26 | T132: =IF(千円単!T132="","",ROUND(千円単!T132/1000,0)) -> 55 | U132: =IF(千円単!U132="","",ROUND(千円単!U132/1000,0)) -> 422 | V132: =IF(千円単!V132="","",ROUND(千円単!V132/1000,0)) -> 31 | W132: =IF(千円単!W132="","",ROUND(千円単!W132/1000,0)) -> 392 | X132: =IF(千円単!X132="","",ROUND(千円単!X132/1000,0)) -> -331 | Y132: =IF(千円単!Y132="","",ROUND(千円単!Y132/1000,0)) -> 0
A133: 2020 | B133: 46 | C133: 17 | D133: 1 | E133: 132 | F133: 公共 | G133: 072117 | H133: 福島県 | I133: 田村市 | J133: =IF(千円単!J133="","",ROUND(千円単!J133/1000,0)) -> 603 | K133: =IF(千円単!K133="","",ROUND(千円単!K133/1000,0)) -> 153 | L133: =IF(千円単!L133="","",ROUND(千円単!L133/1000,0)) -> 256 | M133: =IF(千円単!M133="","",ROUND(千円単!M133/1000,0)) -> 570 | N133: =IF(千円単!N133="","",ROUND(千円単!N133/1000,0)) -> 86 | O133: =IF(千円単!O133="","",ROUND(千円単!O133/1000,0)) -> 325 | P133: =IF(千円単!P133="","",ROUND(千円単!P133/1000,0)) -> 10 | Q133: =IF(千円単!Q133="","",ROUND(千円単!Q133/1000,0)) -> 33 | R133: =IF(千円単!R133="","",ROUND(千円単!R133/1000,0)) -> 442 | S133: =IF(千円単!S133="","",ROUND(千円単!S133/1000,0)) -> 139 | T133: =IF(千円単!T133="","",ROUND(千円単!T133/1000,0)) -> 0 | U133: =IF(千円単!U133="","",ROUND(千円単!U133/1000,0)) -> 614 | V133: =IF(千円単!V133="","",ROUND(千円単!V133/1000,0)) -> 288 | W133: =IF(千円単!W133="","",ROUND(千円単!W133/1000,0)) -> 327 | X133: =IF(千円単!X133="","",ROUND(千円単!X133/1000,0)) -> -172 | Y133: =IF(千円単!Y133="","",ROUND(千円単!Y133/1000,0)) -> 33
A134: 2020 | B134: 46 | C134: 17 | D134: 1 | E134: 133 | F134: 公共 | G134: 072125 | H134: 福島県 | I134: 南相馬市 | J134: =IF(千円単!J134="","",ROUND(千円単!J134/1000,0)) -> 1616 | K134: =IF(千円単!K134="","",ROUND(千円単!K134/1000,0)) -> 469 | L134: =IF(千円単!L134="","",ROUND(千円単!L134/1000,0)) -> 562 | M134: =IF(千円単!M134="","",ROUND(千円単!M134/1000,0)) -> 1407 | N134: =IF(千円単!N134="","",ROUND(千円単!N134/1000,0)) -> 151 | O134: =IF(千円単!O134="","",ROUND(千円単!O134/1000,0)) -> 884 | P134: =IF(千円単!P134="","",ROUND(千円単!P134/1000,0)) -> 54 | Q134: =IF(千円単!Q134="","",ROUND(千円単!Q134/1000,0)) -> 208 | R134: =IF(千円単!R134="","",ROUND(千円単!R134/1000,0)) -> 1036 | S134: =IF(千円単!S134="","",ROUND(千円単!S134/1000,0)) -> 642 | T134: =IF(千円単!T134="","",ROUND(千円単!T134/1000,0)) -> 0 | U134: =IF(千円単!U134="","",ROUND(千円単!U134/1000,0)) -> 1581 | V134: =IF(千円単!V134="","",ROUND(千円単!V134/1000,0)) -> 775 | W134: =IF(千円単!W134="","",ROUND(千円単!W134/1000,0)) -> 806 | X134: =IF(千円単!X134="","",ROUND(千円単!X134/1000,0)) -> -545 | Y134: =IF(千円単!Y134="","",ROUND(千円単!Y134/1000,0)) -> 208
A135: 2020 | B135: 46 | C135: 17 | D135: 1 | E135: 134 | F135: 公共 | G135: 072133 | H135: 福島県 | I135: 伊達市 | J135: =IF(千円単!J135="","",ROUND(千円単!J135/1000,0)) -> 865 | K135: =IF(千円単!K135="","",ROUND(千円単!K135/1000,0)) -> 282 | L135: =IF(千円単!L135="","",ROUND(千円単!L135/1000,0)) -> 357 | M135: =IF(千円単!M135="","",ROUND(千円単!M135/1000,0)) -> 755 | N135: =IF(千円単!N135="","",ROUND(千円単!N135/1000,0)) -> 100 | O135: =IF(千円単!O135="","",ROUND(千円単!O135/1000,0)) -> 356 | P135: =IF(千円単!P135="","",ROUND(千円単!P135/1000,0)) -> 34 | Q135: =IF(千円単!Q135="","",ROUND(千円単!Q135/1000,0)) -> 110 | R135: =IF(千円単!R135="","",ROUND(千円単!R135/1000,0)) -> 733 | S135: =IF(千円単!S135="","",ROUND(千円単!S135/1000,0)) -> 638 | T135: =IF(千円単!T135="","",ROUND(千円単!T135/1000,0)) -> 35 | U135: =IF(千円単!U135="","",ROUND(千円単!U135/1000,0)) -> 979 | V135: =IF(千円単!V135="","",ROUND(千円単!V135/1000,0)) -> 357 | W135: =IF(千円単!W135="","",ROUND(千円単!W135/1000,0)) -> 621 | X135: =IF(千円単!X135="","",ROUND(千円単!X135/1000,0)) -> -246 | Y135: =IF(千円単!Y135="","",ROUND(千円単!Y135/1000,0)) -> 110
A136: 2020 | B136: 46 | C136: 17 | D136: 1 | E136: 135 | F136: 公共 | G136: 072141 | H136: 福島県 | I136: 本宮市 | J136: =IF(千円単!J136="","",ROUND(千円単!J136/1000,0)) -> 827 | K136: =IF(千円単!K136="","",ROUND(千円単!K136/1000,0)) -> 233 | L136: =IF(千円単!L136="","",ROUND(千円単!L136/1000,0)) -> 314 | M136: =IF(千円単!M136="","",ROUND(千円単!M136/1000,0)) -> 748 | N136: =IF(千円単!N136="","",ROUND(千円単!N136/1000,0)) -> 56 | O136: =IF(千円単!O136="","",ROUND(千円単!O136/1000,0)) -> 403 | P136: =IF(千円単!P136="","",ROUND(千円単!P136/1000,0)) -> 11 | Q136: =IF(千円単!Q136="","",ROUND(千円単!Q136/1000,0)) -> 79 | R136: =IF(千円単!R136="","",ROUND(千円単!R136/1000,0)) -> 1141 | S136: =IF(千円単!S136="","",ROUND(千円単!S136/1000,0)) -> 368 | T136: =IF(千円単!T136="","",ROUND(千円単!T136/1000,0)) -> 0 | U136: =IF(千円単!U136="","",ROUND(千円単!U136/1000,0)) -> 1426 | V136: =IF(千円単!V136="","",ROUND(千円単!V136/1000,0)) -> 1027 | W136: =IF(千円単!W136="","",ROUND(千円単!W136/1000,0)) -> 399 | X136: =IF(千円単!X136="","",ROUND(千円単!X136/1000,0)) -> -285 | Y136: =IF(千円単!Y136="","",ROUND(千円単!Y136/1000,0)) -> 79
A137: 2020 | B137: 46 | C137: 17 | D137: 1 | E137: 136 | F137: 公共 | G137: 074471 | H137: 福島県 | I137: 会津美里町 | J137: =IF(千円単!J137="","",ROUND(千円単!J137/1000,0)) -> 447 | K137: =IF(千円単!K137="","",ROUND(千円単!K137/1000,0)) -> 91 | L137: =IF(千円単!L137="","",ROUND(千円単!L137/1000,0)) -> 178 | M137: =IF(千円単!M137="","",ROUND(千円単!M137/1000,0)) -> 447 | N137: =IF(千円単!N137="","",ROUND(千円単!N137/1000,0)) -> 38 | O137: =IF(千円単!O137="","",ROUND(千円単!O137/1000,0)) -> 297 | P137: =IF(千円単!P137="","",ROUND(千円単!P137/1000,0)) -> 19 | Q137: =IF(千円単!Q137="","",ROUND(千円単!Q137/1000,0)) -> 0 | R137: =IF(千円単!R137="","",ROUND(千円単!R137/1000,0)) -> 282 | S137: =IF(千円単!S137="","",ROUND(千円単!S137/1000,0)) -> 105 | T137: =IF(千円単!T137="","",ROUND(千円単!T137/1000,0)) -> 0 | U137: =IF(千円単!U137="","",ROUND(千円単!U137/1000,0)) -> 375 | V137: =IF(千円単!V137="","",ROUND(千円単!V137/1000,0)) -> 150 | W137: =IF(千円単!W137="","",ROUND(千円単!W137/1000,0)) -> 224 | X137: =IF(千円単!X137="","",ROUND(千円単!X137/1000,0)) -> -92 | Y137: =IF(千円単!Y137="","",ROUND(千円単!Y137/1000,0)) -> 0
A138: 2020 | B138: 46 | C138: 17 | D138: 1 | E138: 137 | F138: 公共 | G138: 074616 | H138: 福島県 | I138: 西郷村 | J138: =IF(千円単!J138="","",ROUND(千円単!J138/1000,0)) -> 710 | K138: =IF(千円単!K138="","",ROUND(千円単!K138/1000,0)) -> 212 | L138: =IF(千円単!L138="","",ROUND(千円単!L138/1000,0)) -> 275 | M138: =IF(千円単!M138="","",ROUND(千円単!M138/1000,0)) -> 547 | N138: =IF(千円単!N138="","",ROUND(千円単!N138/1000,0)) -> 63 | O138: =IF(千円単!O138="","",ROUND(千円単!O138/1000,0)) -> 314 | P138: =IF(千円単!P138="","",ROUND(千円単!P138/1000,0)) -> 23 | Q138: =IF(千円単!Q138="","",ROUND(千円単!Q138/1000,0)) -> 162 | R138: =IF(千円単!R138="","",ROUND(千円単!R138/1000,0)) -> 181 | S138: =IF(千円単!S138="","",ROUND(千円単!S138/1000,0)) -> 50 | T138: =IF(千円単!T138="","",ROUND(千円単!T138/1000,0)) -> 70 | U138: =IF(千円単!U138="","",ROUND(千円単!U138/1000,0)) -> 443 | V138: =IF(千円単!V138="","",ROUND(千円単!V138/1000,0)) -> 180 | W138: =IF(千円単!W138="","",ROUND(千円単!W138/1000,0)) -> 264 | X138: =IF(千円単!X138="","",ROUND(千円単!X138/1000,0)) -> -263 | Y138: =IF(千円単!Y138="","",ROUND(千円単!Y138/1000,0)) -> 162
A139: 2020 | B139: 46 | C139: 17 | D139: 1 | E139: 138 | F139: 公共 | G139: 075213 | H139: 福島県 | I139: 三春町 | J139: =IF(千円単!J139="","",ROUND(千円単!J139/1000,0)) -> 160 | K139: =IF(千円単!K139="","",ROUND(千円単!K139/1000,0)) -> 71 | L139: =IF(千円単!L139="","",ROUND(千円単!L139/1000,0)) -> 19 | M139: =IF(千円単!M139="","",ROUND(千円単!M139/1000,0)) -> 179 | N139: =IF(千円単!N139="","",ROUND(千円単!N139/1000,0)) -> 19 | O139: =IF(千円単!O139="","",ROUND(千円単!O139/1000,0)) -> 119 | P139: =IF(千円単!P139="","",ROUND(千円単!P139/1000,0)) -> 9 | Q139: =IF(千円単!Q139="","",ROUND(千円単!Q139/1000,0)) -> -19 | R139: =IF(千円単!R139="","",ROUND(千円単!R139/1000,0)) -> 141 | S139: =IF(千円単!S139="","",ROUND(千円単!S139/1000,0)) -> 17 | T139: =IF(千円単!T139="","",ROUND(千円単!T139/1000,0)) -> 0 | U139: =IF(千円単!U139="","",ROUND(千円単!U139/1000,0)) -> 173 | V139: =IF(千円単!V139="","",ROUND(千円単!V139/1000,0)) -> 49 | W139: =IF(千円単!W139="","",ROUND(千円単!W139/1000,0)) -> 124 | X139: =IF(千円単!X139="","",ROUND(千円単!X139/1000,0)) -> -32 | Y139: =IF(千円単!Y139="","",ROUND(千円単!Y139/1000,0)) -> -19
A140: 2020 | B140: 46 | C140: 17 | D140: 1 | E140: 139 | F140: 公共 | G140: 082015 | H140: 茨城県 | I140: 水戸市 | J140: =IF(千円単!J140="","",ROUND(千円単!J140/1000,0)) -> 8637 | K140: =IF(千円単!K140="","",ROUND(千円単!K140/1000,0)) -> 3234 | L140: =IF(千円単!L140="","",ROUND(千円単!L140/1000,0)) -> 3509 | M140: =IF(千円単!M140="","",ROUND(千円単!M140/1000,0)) -> 8436 | N140: =IF(千円単!N140="","",ROUND(千円単!N140/1000,0)) -> 1260 | O140: =IF(千円単!O140="","",ROUND(千円単!O140/1000,0)) -> 5421 | P140: =IF(千円単!P140="","",ROUND(千円単!P140/1000,0)) -> 200 | Q140: =IF(千円単!Q140="","",ROUND(千円単!Q140/1000,0)) -> 201 | R140: =IF(千円単!R140="","",ROUND(千円単!R140/1000,0)) -> 5355 | S140: =IF(千円単!S140="","",ROUND(千円単!S140/1000,0)) -> 2810 | T140: =IF(千円単!T140="","",ROUND(千円単!T140/1000,0)) -> 630 | U140: =IF(千円単!U140="","",ROUND(千円単!U140/1000,0)) -> 9371 | V140: =IF(千円単!V140="","",ROUND(千円単!V140/1000,0)) -> 3802 | W140: =IF(千円単!W140="","",ROUND(千円単!W140/1000,0)) -> 5568 | X140: =IF(千円単!X140="","",ROUND(千円単!X140/1000,0)) -> -4015 | Y140: =IF(千円単!Y140="","",ROUND(千円単!Y140/1000,0)) -> 201
A141: 2020 | B141: 46 | C141: 17 | D141: 1 | E141: 140 | F141: 公共 | G141: 082023 | H141: 茨城県 | I141: 日立市 | J141: =IF(千円単!J141="","",ROUND(千円単!J141/1000,0)) -> 3848 | K141: =IF(千円単!K141="","",ROUND(千円単!K141/1000,0)) -> 2506 | L141: =IF(千円単!L141="","",ROUND(千円単!L141/1000,0)) -> 91 | M141: =IF(千円単!M141="","",ROUND(千円単!M141/1000,0)) -> 3478 | N141: =IF(千円単!N141="","",ROUND(千円単!N141/1000,0)) -> 188 | O141: =IF(千円単!O141="","",ROUND(千円単!O141/1000,0)) -> 2057 | P141: =IF(千円単!P141="","",ROUND(千円単!P141/1000,0)) -> 99 | Q141: =IF(千円単!Q141="","",ROUND(千円単!Q141/1000,0)) -> 370 | R141: =IF(千円単!R141="","",ROUND(千円単!R141/1000,0)) -> 1536 | S141: =IF(千円単!S141="","",ROUND(千円単!S141/1000,0)) -> 599 | T141: =IF(千円単!T141="","",ROUND(千円単!T141/1000,0)) -> 245 | U141: =IF(千円単!U141="","",ROUND(千円単!U141/1000,0)) -> 2831 | V141: =IF(千円単!V141="","",ROUND(千円単!V141/1000,0)) -> 1538 | W141: =IF(千円単!W141="","",ROUND(千円単!W141/1000,0)) -> 1293 | X141: =IF(千円単!X141="","",ROUND(千円単!X141/1000,0)) -> -1295 | Y141: =IF(千円単!Y141="","",ROUND(千円単!Y141/1000,0)) -> 370
A142: 2020 | B142: 46 | C142: 17 | D142: 1 | E142: 141 | F142: 公共 | G142: 082031 | H142: 茨城県 | I142: 土浦市 | J142: =IF(千円単!J142="","",ROUND(千円単!J142/1000,0)) -> 4196 | K142: =IF(千円単!K142="","",ROUND(千円単!K142/1000,0)) -> 1932 | L142: =IF(千円単!L142="","",ROUND(千円単!L142/1000,0)) -> 1016 | M142: =IF(千円単!M142="","",ROUND(千円単!M142/1000,0)) -> 4053 | N142: =IF(千円単!N142="","",ROUND(千円単!N142/1000,0)) -> 283 | O142: =IF(千円単!O142="","",ROUND(千円単!O142/1000,0)) -> 2447 | P142: =IF(千円単!P142="","",ROUND(千円単!P142/1000,0)) -> 111 | Q142: =IF(千円単!Q142="","",ROUND(千円単!Q142/1000,0)) -> 144 | R142: =IF(千円単!R142="","",ROUND(千円単!R142/1000,0)) -> 1313 | S142: =IF(千円単!S142="","",ROUND(千円単!S142/1000,0)) -> 823 | T142: =IF(千円単!T142="","",ROUND(千円単!T142/1000,0)) -> 107 | U142: =IF(千円単!U142="","",ROUND(千円単!U142/1000,0)) -> 2662 | V142: =IF(千円単!V142="","",ROUND(千円単!V142/1000,0)) -> 1278 | W142: =IF(千円単!W142="","",ROUND(千円単!W142/1000,0)) -> 1384 | X142: =IF(千円単!X142="","",ROUND(千円単!X142/1000,0)) -> -1349 | Y142: =IF(千円単!Y142="","",ROUND(千円単!Y142/1000,0)) -> 144
A143: 2020 | B143: 46 | C143: 17 | D143: 1 | E143: 142 | F143: 公共 | G143: 082040 | H143: 茨城県 | I143: 古河市 | J143: =IF(千円単!J143="","",ROUND(千円単!J143/1000,0)) -> 3002 | K143: =IF(千円単!K143="","",ROUND(千円単!K143/1000,0)) -> 1263 | L143: =IF(千円単!L143="","",ROUND(千円単!L143/1000,0)) -> 849 | M143: =IF(千円単!M143="","",ROUND(千円単!M143/1000,0)) -> 2972 | N143: =IF(千円単!N143="","",ROUND(千円単!N143/1000,0)) -> 231 | O143: =IF(千円単!O143="","",ROUND(千円単!O143/1000,0)) -> 1716 | P143: =IF(千円単!P143="","",ROUND(千円単!P143/1000,0)) -> 113 | Q143: =IF(千円単!Q143="","",ROUND(千円単!Q143/1000,0)) -> 30 | R143: =IF(千円単!R143="","",ROUND(千円単!R143/1000,0)) -> 773 | S143: =IF(千円単!S143="","",ROUND(千円単!S143/1000,0)) -> 390 | T143: =IF(千円単!T143="","",ROUND(千円単!T143/1000,0)) -> 172 | U143: =IF(千円単!U143="","",ROUND(千円単!U143/1000,0)) -> 1581 | V143: =IF(千円単!V143="","",ROUND(千円単!V143/1000,0)) -> 447 | W143: =IF(千円単!W143="","",ROUND(千円単!W143/1000,0)) -> 1134 | X143: =IF(千円単!X143="","",ROUND(千円単!X143/1000,0)) -> -808 | Y143: =IF(千円単!Y143="","",ROUND(千円単!Y143/1000,0)) -> 30
A144: 2020 | B144: 46 | C144: 17 | D144: 1 | E144: 143 | F144: 公共 | G144: 082058 | H144: 茨城県 | I144: 石岡市 | J144: =IF(千円単!J144="","",ROUND(千円単!J144/1000,0)) -> 1808 | K144: =IF(千円単!K144="","",ROUND(千円単!K144/1000,0)) -> 475 | L144: =IF(千円単!L144="","",ROUND(千円単!L144/1000,0)) -> 1016 | M144: =IF(千円単!M144="","",ROUND(千円単!M144/1000,0)) -> 1706 | N144: =IF(千円単!N144="","",ROUND(千円単!N144/1000,0)) -> 152 | O144: =IF(千円単!O144="","",ROUND(千円単!O144/1000,0)) -> 1010 | P144: =IF(千円単!P144="","",ROUND(千円単!P144/1000,0)) -> 35 | Q144: =IF(千円単!Q144="","",ROUND(千円単!Q144/1000,0)) -> 102 | R144: =IF(千円単!R144="","",ROUND(千円単!R144/1000,0)) -> 279 | S144: =IF(千円単!S144="","",ROUND(千円単!S144/1000,0)) -> 206 | T144: =IF(千円単!T144="","",ROUND(千円単!T144/1000,0)) -> 0 | U144: =IF(千円単!U144="","",ROUND(千円単!U144/1000,0)) -> 983 | V144: =IF(千円単!V144="","",ROUND(千円単!V144/1000,0)) -> 406 | W144: =IF(千円単!W144="","",ROUND(千円単!W144/1000,0)) -> 577 | X144: =IF(千円単!X144="","",ROUND(千円単!X144/1000,0)) -> -705 | Y144: =IF(千円単!Y144="","",ROUND(千円単!Y144/1000,0)) -> 102
A145: 2020 | B145: 46 | C145: 17 | D145: 1 | E145: 144 | F145: 公共 | G145: 082074 | H145: 茨城県 | I145: 結城市 | J145: =IF(千円単!J145="","",ROUND(千円単!J145/1000,0)) -> 1242 | K145: =IF(千円単!K145="","",ROUND(千円単!K145/1000,0)) -> 496 | L145: =IF(千円単!L145="","",ROUND(千円単!L145/1000,0)) -> 365 | M145: =IF(千円単!M145="","",ROUND(千円単!M145/1000,0)) -> 1241 | N145: =IF(千円単!N145="","",ROUND(千円単!N145/1000,0)) -> 99 | O145: =IF(千円単!O145="","",ROUND(千円単!O145/1000,0)) -> 780 | P145: =IF(千円単!P145="","",ROUND(千円単!P145/1000,0)) -> 47 | Q145: =IF(千円単!Q145="","",ROUND(千円単!Q145/1000,0)) -> 2 | R145: =IF(千円単!R145="","",ROUND(千円単!R145/1000,0)) -> 417 | S145: =IF(千円単!S145="","",ROUND(千円単!S145/1000,0)) -> 222 | T145: =IF(千円単!T145="","",ROUND(千円単!T145/1000,0)) -> 75 | U145: =IF(千円単!U145="","",ROUND(千円単!U145/1000,0)) -> 817 | V145: =IF(千円単!V145="","",ROUND(千円単!V145/1000,0)) -> 368 | W145: =IF(千円単!W145="","",ROUND(千円単!W145/1000,0)) -> 449 | X145: =IF(千円単!X145="","",ROUND(千円単!X145/1000,0)) -> -401 | Y145: =IF(千円単!Y145="","",ROUND(千円単!Y145/1000,0)) -> 2
A146: 2020 | B146: 46 | C146: 17 | D146: 1 | E146: 145 | F146: 公共 | G146: 082082 | H146: 茨城県 | I146: 龍ケ崎市 | J146: =IF(千円単!J146="","",ROUND(千円単!J146/1000,0)) -> 2625 | K146: =IF(千円単!K146="","",ROUND(千円単!K146/1000,0)) -> 1161 | L146: =IF(千円単!L146="","",ROUND(千円単!L146/1000,0)) -> 369 | M146: =IF(千円単!M146="","",ROUND(千円単!M146/1000,0)) -> 2291 | N146: =IF(千円単!N146="","",ROUND(千円単!N146/1000,0)) -> 152 | O146: =IF(千円単!O146="","",ROUND(千円単!O146/1000,0)) -> 1500 | P146: =IF(千円単!P146="","",ROUND(千円単!P146/1000,0)) -> 38 | Q146: =IF(千円単!Q146="","",ROUND(千円単!Q146/1000,0)) -> 334 | R146: =IF(千円単!R146="","",ROUND(千円単!R146/1000,0)) -> 1004 | S146: =IF(千円単!S146="","",ROUND(千円単!S146/1000,0)) -> 592 | T146: =IF(千円単!T146="","",ROUND(千円単!T146/1000,0)) -> 126 | U146: =IF(千円単!U146="","",ROUND(千円単!U146/1000,0)) -> 1772 | V146: =IF(千円単!V146="","",ROUND(千円単!V146/1000,0)) -> 662 | W146: =IF(千円単!W146="","",ROUND(千円単!W146/1000,0)) -> 1110 | X146: =IF(千円単!X146="","",ROUND(千円単!X146/1000,0)) -> -768 | Y146: =IF(千円単!Y146="","",ROUND(千円単!Y146/1000,0)) -> 334
A147: 2020 | B147: 46 | C147: 17 | D147: 1 | E147: 146 | F147: 公共 | G147: 082104 | H147: 茨城県 | I147: 下妻市 | J147: =IF(千円単!J147="","",ROUND(千円単!J147/1000,0)) -> 745 | K147: =IF(千円単!K147="","",ROUND(千円単!K147/1000,0)) -> 155 | L147: =IF(千円単!L147="","",ROUND(千円単!L147/1000,0)) -> 403 | M147: =IF(千円単!M147="","",ROUND(千円単!M147/1000,0)) -> 709 | N147: =IF(千円単!N147="","",ROUND(千円単!N147/1000,0)) -> 85 | O147: =IF(千円単!O147="","",ROUND(千円単!O147/1000,0)) -> 364 | P147: =IF(千円単!P147="","",ROUND(千円単!P147/1000,0)) -> 33 | Q147: =IF(千円単!Q147="","",ROUND(千円単!Q147/1000,0)) -> 36 | R147: =IF(千円単!R147="","",ROUND(千円単!R147/1000,0)) -> 452 | S147: =IF(千円単!S147="","",ROUND(千円単!S147/1000,0)) -> 201 | T147: =IF(千円単!T147="","",ROUND(千円単!T147/1000,0)) -> 103 | U147: =IF(千円単!U147="","",ROUND(千円単!U147/1000,0)) -> 610 | V147: =IF(千円単!V147="","",ROUND(千円単!V147/1000,0)) -> 215 | W147: =IF(千円単!W147="","",ROUND(千円単!W147/1000,0)) -> 395 | X147: =IF(千円単!X147="","",ROUND(千円単!X147/1000,0)) -> -158 | Y147: =IF(千円単!Y147="","",ROUND(千円単!Y147/1000,0)) -> 36
A148: 2020 | B148: 46 | C148: 17 | D148: 1 | E148: 147 | F148: 公共 | G148: 082112 | H148: 茨城県 | I148: 常総市 | J148: =IF(千円単!J148="","",ROUND(千円単!J148/1000,0)) -> 887 | K148: =IF(千円単!K148="","",ROUND(千円単!K148/1000,0)) -> 207 | L148: =IF(千円単!L148="","",ROUND(千円単!L148/1000,0)) -> 361 | M148: =IF(千円単!M148="","",ROUND(千円単!M148/1000,0)) -> 865 | N148: =IF(千円単!N148="","",ROUND(千円単!N148/1000,0)) -> 115 | O148: =IF(千円単!O148="","",ROUND(千円単!O148/1000,0)) -> 498 | P148: =IF(千円単!P148="","",ROUND(千円単!P148/1000,0)) -> 29 | Q148: =IF(千円単!Q148="","",ROUND(千円単!Q148/1000,0)) -> 21 | R148: =IF(千円単!R148="","",ROUND(千円単!R148/1000,0)) -> 1400 | S148: =IF(千円単!S148="","",ROUND(千円単!S148/1000,0)) -> 857 | T148: =IF(千円単!T148="","",ROUND(千円単!T148/1000,0)) -> 0 | U148: =IF(千円単!U148="","",ROUND(千円単!U148/1000,0)) -> 1608 | V148: =IF(千円単!V148="","",ROUND(千円単!V148/1000,0)) -> 1121 | W148: =IF(千円単!W148="","",ROUND(千円単!W148/1000,0)) -> 487 | X148: =IF(千円単!X148="","",ROUND(千円単!X148/1000,0)) -> -208 | Y148: =IF(千円単!Y148="","",ROUND(千円単!Y148/1000,0)) -> 21
A149: 2020 | B149: 46 | C149: 17 | D149: 1 | E149: 148 | F149: 公共 | G149: 082121 | H149: 茨城県 | I149: 常陸太田市 | J149: =IF(千円単!J149="","",ROUND(千円単!J149/1000,0)) -> 870 | K149: =IF(千円単!K149="","",ROUND(千円単!K149/1000,0)) -> 233 | L149: =IF(千円単!L149="","",ROUND(千円単!L149/1000,0)) -> 379 | M149: =IF(千円単!M149="","",ROUND(千円単!M149/1000,0)) -> 697 | N149: =IF(千円単!N149="","",ROUND(千円単!N149/1000,0)) -> 70 | O149: =IF(千円単!O149="","",ROUND(千円単!O149/1000,0)) -> 428 | P149: =IF(千円単!P149="","",ROUND(千円単!P149/1000,0)) -> 32 | Q149: =IF(千円単!Q149="","",ROUND(千円単!Q149/1000,0)) -> 173 | R149: =IF(千円単!R149="","",ROUND(千円単!R149/1000,0)) -> 722 | S149: =IF(千円単!S149="","",ROUND(千円単!S149/1000,0)) -> 293 | T149: =IF(千円単!T149="","",ROUND(千円単!T149/1000,0)) -> 155 | U149: =IF(千円単!U149="","",ROUND(千円単!U149/1000,0)) -> 916 | V149: =IF(千円単!V149="","",ROUND(千円単!V149/1000,0)) -> 581 | W149: =IF(千円単!W149="","",ROUND(千円単!W149/1000,0)) -> 335 | X149: =IF(千円単!X149="","",ROUND(千円単!X149/1000,0)) -> -194 | Y149: =IF(千円単!Y149="","",ROUND(千円単!Y149/1000,0)) -> 173
A150: 2020 | B150: 46 | C150: 17 | D150: 1 | E150: 149 | F150: 公共 | G150: 082155 | H150: 茨城県 | I150: 北茨城市 | J150: =IF(千円単!J150="","",ROUND(千円単!J150/1000,0)) -> 425 | K150: =IF(千円単!K150="","",ROUND(千円単!K150/1000,0)) -> 66 | L150: =IF(千円単!L150="","",ROUND(千円単!L150/1000,0)) -> 170 | M150: =IF(千円単!M150="","",ROUND(千円単!M150/1000,0)) -> 482 | N150: =IF(千円単!N150="","",ROUND(千円単!N150/1000,0)) -> 54 | O150: =IF(千円単!O150="","",ROUND(千円単!O150/1000,0)) -> 310 | P150: =IF(千円単!P150="","",ROUND(千円単!P150/1000,0)) -> 28 | Q150: =IF(千円単!Q150="","",ROUND(千円単!Q150/1000,0)) -> -57 | R150: =IF(千円単!R150="","",ROUND(千円単!R150/1000,0)) -> 327 | S150: =IF(千円単!S150="","",ROUND(千円単!S150/1000,0)) -> 131 | T150: =IF(千円単!T150="","",ROUND(千円単!T150/1000,0)) -> 0 | U150: =IF(千円単!U150="","",ROUND(千円単!U150/1000,0)) -> 384 | V150: =IF(千円単!V150="","",ROUND(千円単!V150/1000,0)) -> 175 | W150: =IF(千円単!W150="","",ROUND(千円単!W150/1000,0)) -> 210 | X150: =IF(千円単!X150="","",ROUND(千円単!X150/1000,0)) -> -57 | Y150: =IF(千円単!Y150="","",ROUND(千円単!Y150/1000,0)) -> -57
A151: 2020 | B151: 46 | C151: 17 | D151: 1 | E151: 150 | F151: 公共 | G151: 082163 | H151: 茨城県 | I151: 笠間市 | J151: =IF(千円単!J151="","",ROUND(千円単!J151/1000,0)) -> 1687 | K151: =IF(千円単!K151="","",ROUND(千円単!K151/1000,0)) -> 595 | L151: =IF(千円単!L151="","",ROUND(千円単!L151/1000,0)) -> 554 | M151: =IF(千円単!M151="","",ROUND(千円単!M151/1000,0)) -> 1709 | N151: =IF(千円単!N151="","",ROUND(千円単!N151/1000,0)) -> 213 | O151: =IF(千円単!O151="","",ROUND(千円単!O151/1000,0)) -> 1008 | P151: =IF(千円単!P151="","",ROUND(千円単!P151/1000,0)) -> 65 | Q151: =IF(千円単!Q151="","",ROUND(千円単!Q151/1000,0)) -> -22 | R151: =IF(千円単!R151="","",ROUND(千円単!R151/1000,0)) -> 2027 | S151: =IF(千円単!S151="","",ROUND(千円単!S151/1000,0)) -> 1081 | T151: =IF(千円単!T151="","",ROUND(千円単!T151/1000,0)) -> 0 | U151: =IF(千円単!U151="","",ROUND(千円単!U151/1000,0)) -> 2552 | V151: =IF(千円単!V151="","",ROUND(千円単!V151/1000,0)) -> 1410 | W151: =IF(千円単!W151="","",ROUND(千円単!W151/1000,0)) -> 1142 | X151: =IF(千円単!X151="","",ROUND(千円単!X151/1000,0)) -> -524 | Y151: =IF(千円単!Y151="","",ROUND(千円単!Y151/1000,0)) -> -22
A152: 2020 | B152: 46 | C152: 17 | D152: 1 | E152: 151 | F152: 公共 | G152: 082198 | H152: 茨城県 | I152: 牛久市 | J152: =IF(千円単!J152="","",ROUND(千円単!J152/1000,0)) -> 1498 | K152: =IF(千円単!K152="","",ROUND(千円単!K152/1000,0)) -> 819 | L152: =IF(千円単!L152="","",ROUND(千円単!L152/1000,0)) -> 164 | M152: =IF(千円単!M152="","",ROUND(千円単!M152/1000,0)) -> 1495 | N152: =IF(千円単!N152="","",ROUND(千円単!N152/1000,0)) -> 120 | O152: =IF(千円単!O152="","",ROUND(千円単!O152/1000,0)) -> 815 | P152: =IF(千円単!P152="","",ROUND(千円単!P152/1000,0)) -> 38 | Q152: =IF(千円単!Q152="","",ROUND(千円単!Q152/1000,0)) -> 3 | R152: =IF(千円単!R152="","",ROUND(千円単!R152/1000,0)) -> 1131 | S152: =IF(千円単!S152="","",ROUND(千円単!S152/1000,0)) -> 392 | T152: =IF(千円単!T152="","",ROUND(千円単!T152/1000,0)) -> 410 | U152: =IF(千円単!U152="","",ROUND(千円単!U152/1000,0)) -> 1235 | V152: =IF(千円単!V152="","",ROUND(千円単!V152/1000,0)) -> 549 | W152: =IF(千円単!W152="","",ROUND(千円単!W152/1000,0)) -> 686 | X152: =IF(千円単!X152="","",ROUND(千円単!X152/1000,0)) -> -104 | Y152: =IF(千円単!Y152="","",ROUND(千円単!Y152/1000,0)) -> 3
A153: 2020 | B153: 46 | C153: 17 | D153: 1 | E153: 152 | F153: 公共 | G153: 082201 | H153: 茨城県 | I153: つくば市 | J153: =IF(千円単!J153="","",ROUND(千円単!J153/1000,0)) -> 8418 | K153: =IF(千円単!K153="","",ROUND(千円単!K153/1000,0)) -> 3375 | L153: =IF(千円単!L153="","",ROUND(千円単!L153/1000,0)) -> 394 | M153: =IF(千円単!M153="","",ROUND(千円単!M153/1000,0)) -> 8518 | N153: =IF(千円単!N153="","",ROUND(千円単!N153/1000,0)) -> 414 | O153: =IF(千円単!O153="","",ROUND(千円単!O153/1000,0)) -> 6071 | P153: =IF(千円単!P153="","",ROUND(千円単!P153/1000,0)) -> 76 | Q153: =IF(千円単!Q153="","",ROUND(千円単!Q153/1000,0)) -> -100 | R153: =IF(千円単!R153="","",ROUND(千円単!R153/1000,0)) -> 1516 | S153: =IF(千円単!S153="","",ROUND(千円単!S153/1000,0)) -> 472 | T153: =IF(千円単!T153="","",ROUND(千円単!T153/1000,0)) -> 297 | U153: =IF(千円単!U153="","",ROUND(千円単!U153/1000,0)) -> 3347 | V153: =IF(千円単!V153="","",ROUND(千円単!V153/1000,0)) -> 1594 | W153: =IF(千円単!W153="","",ROUND(千円単!W153/1000,0)) -> 1753 | X153: =IF(千円単!X153="","",ROUND(千円単!X153/1000,0)) -> -1831 | Y153: =IF(千円単!Y153="","",ROUND(千円単!Y153/1000,0)) -> -100
A154: 2020 | B154: 46 | C154: 17 | D154: 1 | E154: 153 | F154: 公共 | G154: 082210 | H154: 茨城県 | I154: ひたちなか市 | J154: =IF(千円単!J154="","",ROUND(千円単!J154/1000,0)) -> 3995 | K154: =IF(千円単!K154="","",ROUND(千円単!K154/1000,0)) -> 1317 | L154: =IF(千円単!L154="","",ROUND(千円単!L154/1000,0)) -> 1682 | M154: =IF(千円単!M154="","",ROUND(千円単!M154/1000,0)) -> 3323 | N154: =IF(千円単!N154="","",ROUND(千円単!N154/1000,0)) -> 419 | O154: =IF(千円単!O154="","",ROUND(千円単!O154/1000,0)) -> 2037 | P154: =IF(千円単!P154="","",ROUND(千円単!P154/1000,0)) -> 89 | Q154: =IF(千円単!Q154="","",ROUND(千円単!Q154/1000,0)) -> 672 | R154: =IF(千円単!R154="","",ROUND(千円単!R154/1000,0)) -> 1688 | S154: =IF(千円単!S154="","",ROUND(千円単!S154/1000,0)) -> 1364 | T154: =IF(千円単!T154="","",ROUND(千円単!T154/1000,0)) -> 4 | U154: =IF(千円単!U154="","",ROUND(千円単!U154/1000,0)) -> 3380 | V154: =IF(千円単!V154="","",ROUND(千円単!V154/1000,0)) -> 1177 | W154: =IF(千円単!W154="","",ROUND(千円単!W154/1000,0)) -> 2203 | X154: =IF(千円単!X154="","",ROUND(千円単!X154/1000,0)) -> -1692 | Y154: =IF(千円単!Y154="","",ROUND(千円単!Y154/1000,0)) -> 672
A155: 2020 | B155: 46 | C155: 17 | D155: 1 | E155: 154 | F155: 公共 | G155: 082228 | H155: 茨城県 | I155: 鹿嶋市 | J155: =IF(千円単!J155="","",ROUND(千円単!J155/1000,0)) -> 1481 | K155: =IF(千円単!K155="","",ROUND(千円単!K155/1000,0)) -> 527 | L155: =IF(千円単!L155="","",ROUND(千円単!L155/1000,0)) -> 433 | M155: =IF(千円単!M155="","",ROUND(千円単!M155/1000,0)) -> 1365 | N155: =IF(千円単!N155="","",ROUND(千円単!N155/1000,0)) -> 129 | O155: =IF(千円単!O155="","",ROUND(千円単!O155/1000,0)) -> 880 | P155: =IF(千円単!P155="","",ROUND(千円単!P155/1000,0)) -> 33 | Q155: =IF(千円単!Q155="","",ROUND(千円単!Q155/1000,0)) -> 116 | R155: =IF(千円単!R155="","",ROUND(千円単!R155/1000,0)) -> 624 | S155: =IF(千円単!S155="","",ROUND(千円単!S155/1000,0)) -> 397 | T155: =IF(千円単!T155="","",ROUND(千円単!T155/1000,0)) -> 0 | U155: =IF(千円単!U155="","",ROUND(千円単!U155/1000,0)) -> 1114 | V155: =IF(千円単!V155="","",ROUND(千円単!V155/1000,0)) -> 603 | W155: =IF(千円単!W155="","",ROUND(千円単!W155/1000,0)) -> 511 | X155: =IF(千円単!X155="","",ROUND(千円単!X155/1000,0)) -> -489 | Y155: =IF(千円単!Y155="","",ROUND(千円単!Y155/1000,0)) -> 116
A156: 2020 | B156: 46 | C156: 17 | D156: 1 | E156: 155 | F156: 公共 | G156: 082236 | H156: 茨城県 | I156: 潮来市 | J156: =IF(千円単!J156="","",ROUND(千円単!J156/1000,0)) -> 1150 | K156: =IF(千円単!K156="","",ROUND(千円単!K156/1000,0)) -> 328 | L156: =IF(千円単!L156="","",ROUND(千円単!L156/1000,0)) -> 362 | M156: =IF(千円単!M156="","",ROUND(千円単!M156/1000,0)) -> 1082 | N156: =IF(千円単!N156="","",ROUND(千円単!N156/1000,0)) -> 90 | O156: =IF(千円単!O156="","",ROUND(千円単!O156/1000,0)) -> 594 | P156: =IF(千円単!P156="","",ROUND(千円単!P156/1000,0)) -> 30 | Q156: =IF(千円単!Q156="","",ROUND(千円単!Q156/1000,0)) -> 68 | R156: =IF(千円単!R156="","",ROUND(千円単!R156/1000,0)) -> 1015 | S156: =IF(千円単!S156="","",ROUND(千円単!S156/1000,0)) -> 462 | T156: =IF(千円単!T156="","",ROUND(千円単!T156/1000,0)) -> 375 | U156: =IF(千円単!U156="","",ROUND(千円単!U156/1000,0)) -> 1153 | V156: =IF(千円単!V156="","",ROUND(千円単!V156/1000,0)) -> 516 | W156: =IF(千円単!W156="","",ROUND(千円単!W156/1000,0)) -> 637 | X156: =IF(千円単!X156="","",ROUND(千円単!X156/1000,0)) -> -138 | Y156: =IF(千円単!Y156="","",ROUND(千円単!Y156/1000,0)) -> 68
A157: 2020 | B157: 46 | C157: 17 | D157: 1 | E157: 156 | F157: 公共 | G157: 082244 | H157: 茨城県 | I157: 守谷市 | J157: =IF(千円単!J157="","",ROUND(千円単!J157/1000,0)) -> 2128 | K157: =IF(千円単!K157="","",ROUND(千円単!K157/1000,0)) -> 1224 | L157: =IF(千円単!L157="","",ROUND(千円単!L157/1000,0)) -> 23 | M157: =IF(千円単!M157="","",ROUND(千円単!M157/1000,0)) -> 1854 | N157: =IF(千円単!N157="","",ROUND(千円単!N157/1000,0)) -> 57 | O157: =IF(千円単!O157="","",ROUND(千円単!O157/1000,0)) -> 1125 | P157: =IF(千円単!P157="","",ROUND(千円単!P157/1000,0)) -> 65 | Q157: =IF(千円単!Q157="","",ROUND(千円単!Q157/1000,0)) -> 274 | R157: =IF(千円単!R157="","",ROUND(千円単!R157/1000,0)) -> 151 | S157: =IF(千円単!S157="","",ROUND(千円単!S157/1000,0)) -> 0 | T157: =IF(千円単!T157="","",ROUND(千円単!T157/1000,0)) -> 32 | U157: =IF(千円単!U157="","",ROUND(千円単!U157/1000,0)) -> 456 | V157: =IF(千円単!V157="","",ROUND(千円単!V157/1000,0)) -> 187 | W157: =IF(千円単!W157="","",ROUND(千円単!W157/1000,0)) -> 269 | X157: =IF(千円単!X157="","",ROUND(千円単!X157/1000,0)) -> -306 | Y157: =IF(千円単!Y157="","",ROUND(千円単!Y157/1000,0)) -> 274
A158: 2020 | B158: 46 | C158: 17 | D158: 1 | E158: 157 | F158: 公共 | G158: 082252 | H158: 茨城県 | I158: 常陸大宮市 | J158: =IF(千円単!J158="","",ROUND(千円単!J158/1000,0)) -> 540 | K158: =IF(千円単!K158="","",ROUND(千円単!K158/1000,0)) -> 151 | L158: =IF(千円単!L158="","",ROUND(千円単!L158/1000,0)) -> 267 | M158: =IF(千円単!M158="","",ROUND(千円単!M158/1000,0)) -> 415 | N158: =IF(千円単!N158="","",ROUND(千円単!N158/1000,0)) -> 51 | O158: =IF(千円単!O158="","",ROUND(千円単!O158/1000,0)) -> 229 | P158: =IF(千円単!P158="","",ROUND(千円単!P158/1000,0)) -> 27 | Q158: =IF(千円単!Q158="","",ROUND(千円単!Q158/1000,0)) -> 125 | R158: =IF(千円単!R158="","",ROUND(千円単!R158/1000,0)) -> 652 | S158: =IF(千円単!S158="","",ROUND(千円単!S158/1000,0)) -> 409 | T158: =IF(千円単!T158="","",ROUND(千円単!T158/1000,0)) -> 6 | U158: =IF(千円単!U158="","",ROUND(千円単!U158/1000,0)) -> 891 | V158: =IF(千円単!V158="","",ROUND(千円単!V158/1000,0)) -> 704 | W158: =IF(千円単!W158="","",ROUND(千円単!W158/1000,0)) -> 187 | X158: =IF(千円単!X158="","",ROUND(千円単!X158/1000,0)) -> -239 | Y158: =IF(千円単!Y158="","",ROUND(千円単!Y158/1000,0)) -> 125
A159: 2020 | B159: 46 | C159: 17 | D159: 1 | E159: 158 | F159: 公共 | G159: 082261 | H159: 茨城県 | I159: 那珂市 | J159: =IF(千円単!J159="","",ROUND(千円単!J159/1000,0)) -> 1372 | K159: =IF(千円単!K159="","",ROUND(千円単!K159/1000,0)) -> 488 | L159: =IF(千円単!L159="","",ROUND(千円単!L159/1000,0)) -> 595 | M159: =IF(千円単!M159="","",ROUND(千円単!M159/1000,0)) -> 1111 | N159: =IF(千円単!N159="","",ROUND(千円単!N159/1000,0)) -> 144 | O159: =IF(千円単!O159="","",ROUND(千円単!O159/1000,0)) -> 615 | P159: =IF(千円単!P159="","",ROUND(千円単!P159/1000,0)) -> 49 | Q159: =IF(千円単!Q159="","",ROUND(千円単!Q159/1000,0)) -> 261 | R159: =IF(千円単!R159="","",ROUND(千円単!R159/1000,0)) -> 975 | S159: =IF(千円単!S159="","",ROUND(千円単!S159/1000,0)) -> 601 | T159: =IF(千円単!T159="","",ROUND(千円単!T159/1000,0)) -> 41 | U159: =IF(千円単!U159="","",ROUND(千円単!U159/1000,0)) -> 1563 | V159: =IF(千円単!V159="","",ROUND(千円単!V159/1000,0)) -> 850 | W159: =IF(千円単!W159="","",ROUND(千円単!W159/1000,0)) -> 713 | X159: =IF(千円単!X159="","",ROUND(千円単!X159/1000,0)) -> -587 | Y159: =IF(千円単!Y159="","",ROUND(千円単!Y159/1000,0)) -> 261
A160: 2020 | B160: 46 | C160: 17 | D160: 1 | E160: 159 | F160: 公共 | G160: 082279 | H160: 茨城県 | I160: 筑西市 | J160: =IF(千円単!J160="","",ROUND(千円単!J160/1000,0)) -> 1630 | K160: =IF(千円単!K160="","",ROUND(千円単!K160/1000,0)) -> 516 | L160: =IF(千円単!L160="","",ROUND(千円単!L160/1000,0)) -> 741 | M160: =IF(千円単!M160="","",ROUND(千円単!M160/1000,0)) -> 1553 | N160: =IF(千円単!N160="","",ROUND(千円単!N160/1000,0)) -> 156 | O160: =IF(千円単!O160="","",ROUND(千円単!O160/1000,0)) -> 855 | P160: =IF(千円単!P160="","",ROUND(千円単!P160/1000,0)) -> 59 | Q160: =IF(千円単!Q160="","",ROUND(千円単!Q160/1000,0)) -> 77 | R160: =IF(千円単!R160="","",ROUND(千円単!R160/1000,0)) -> 783 | S160: =IF(千円単!S160="","",ROUND(千円単!S160/1000,0)) -> 292 | T160: =IF(千円単!T160="","",ROUND(千円単!T160/1000,0)) -> 255 | U160: =IF(千円単!U160="","",ROUND(千円単!U160/1000,0)) -> 1220 | V160: =IF(千円単!V160="","",ROUND(千円単!V160/1000,0)) -> 397 | W160: =IF(千円単!W160="","",ROUND(千円単!W160/1000,0)) -> 822 | X160: =IF(千円単!X160="","",ROUND(千円単!X160/1000,0)) -> -436 | Y160: =IF(千円単!Y160="","",ROUND(千円単!Y160/1000,0)) -> 77
A161: 2020 | B161: 46 | C161: 17 | D161: 1 | E161: 160 | F161: 公共 | G161: 082287 | H161: 茨城県 | I161: 坂東市 | J161: =IF(千円単!J161="","",ROUND(千円単!J161/1000,0)) -> 897 | K161: =IF(千円単!K161="","",ROUND(千円単!K161/1000,0)) -> 294 | L161: =IF(千円単!L161="","",ROUND(千円単!L161/1000,0)) -> 274 | M161: =IF(千円単!M161="","",ROUND(千円単!M161/1000,0)) -> 801 | N161: =IF(千円単!N161="","",ROUND(千円単!N161/1000,0)) -> 62 | O161: =IF(千円単!O161="","",ROUND(千円単!O161/1000,0)) -> 459 | P161: =IF(千円単!P161="","",ROUND(千円単!P161/1000,0)) -> 25 | Q161: =IF(千円単!Q161="","",ROUND(千円単!Q161/1000,0)) -> 96 | R161: =IF(千円単!R161="","",ROUND(千円単!R161/1000,0)) -> 360 | S161: =IF(千円単!S161="","",ROUND(千円単!S161/1000,0)) -> 82 | T161: =IF(千円単!T161="","",ROUND(千円単!T161/1000,0)) -> 228 | U161: =IF(千円単!U161="","",ROUND(千円単!U161/1000,0)) -> 533 | V161: =IF(千円単!V161="","",ROUND(千円単!V161/1000,0)) -> 151 | W161: =IF(千円単!W161="","",ROUND(千円単!W161/1000,0)) -> 382 | X161: =IF(千円単!X161="","",ROUND(千円単!X161/1000,0)) -> -174 | Y161: =IF(千円単!Y161="","",ROUND(千円単!Y161/1000,0)) -> 96
A162: 2020 | B162: 46 | C162: 17 | D162: 1 | E162: 161 | F162: 公共 | G162: 082295 | H162: 茨城県 | I162: 稲敷市 | J162: =IF(千円単!J162="","",ROUND(千円単!J162/1000,0)) -> 470 | K162: =IF(千円単!K162="","",ROUND(千円単!K162/1000,0)) -> 36 | L162: =IF(千円単!L162="","",ROUND(千円単!L162/1000,0)) -> 296 | M162: =IF(千円単!M162="","",ROUND(千円単!M162/1000,0)) -> 366 | N162: =IF(千円単!N162="","",ROUND(千円単!N162/1000,0)) -> 57 | O162: =IF(千円単!O162="","",ROUND(千円単!O162/1000,0)) -> 238 | P162: =IF(千円単!P162="","",ROUND(千円単!P162/1000,0)) -> 9 | Q162: =IF(千円単!Q162="","",ROUND(千円単!Q162/1000,0)) -> 105 | R162: =IF(千円単!R162="","",ROUND(千円単!R162/1000,0)) -> 8 | S162: =IF(千円単!S162="","",ROUND(千円単!S162/1000,0)) -> 3 | T162: =IF(千円単!T162="","",ROUND(千円単!T162/1000,0)) -> 5 | U162: =IF(千円単!U162="","",ROUND(千円単!U162/1000,0)) -> 211 | V162: =IF(千円単!V162="","",ROUND(千円単!V162/1000,0)) -> 3 | W162: =IF(千円単!W162="","",ROUND(千円単!W162/1000,0)) -> 208 | X162: =IF(千円単!X162="","",ROUND(千円単!X162/1000,0)) -> -203 | Y162: =IF(千円単!Y162="","",ROUND(千円単!Y162/1000,0)) -> 105
A163: 2020 | B163: 46 | C163: 17 | D163: 1 | E163: 162 | F163: 公共 | G163: 082309 | H163: 茨城県 | I163: かすみがうら市 | J163: =IF(千円単!J163="","",ROUND(千円単!J163/1000,0)) -> 585 | K163: =IF(千円単!K163="","",ROUND(千円単!K163/1000,0)) -> 284 | L163: =IF(千円単!L163="","",ROUND(千円単!L163/1000,0)) -> 134 | M163: =IF(千円単!M163="","",ROUND(千円単!M163/1000,0)) -> 566 | N163: =IF(千円単!N163="","",ROUND(千円単!N163/1000,0)) -> 53 | O163: =IF(千円単!O163="","",ROUND(千円単!O163/1000,0)) -> 240 | P163: =IF(千円単!P163="","",ROUND(千円単!P163/1000,0)) -> 42 | Q163: =IF(千円単!Q163="","",ROUND(千円単!Q163/1000,0)) -> 19 | R163: =IF(千円単!R163="","",ROUND(千円単!R163/1000,0)) -> 180 | S163: =IF(千円単!S163="","",ROUND(千円単!S163/1000,0)) -> 40 | T163: =IF(千円単!T163="","",ROUND(千円単!T163/1000,0)) -> 135 | U163: =IF(千円単!U163="","",ROUND(千円単!U163/1000,0)) -> 313 | V163: =IF(千円単!V163="","",ROUND(千円単!V163/1000,0)) -> 29 | W163: =IF(千円単!W163="","",ROUND(千円単!W163/1000,0)) -> 284 | X163: =IF(千円単!X163="","",ROUND(千円単!X163/1000,0)) -> -133 | Y163: =IF(千円単!Y163="","",ROUND(千円単!Y163/1000,0)) -> 19
A164: 2020 | B164: 46 | C164: 17 | D164: 1 | E164: 163 | F164: 公共 | G164: 082317 | H164: 茨城県 | I164: 桜川市 | J164: =IF(千円単!J164="","",ROUND(千円単!J164/1000,0)) -> 397 | K164: =IF(千円単!K164="","",ROUND(千円単!K164/1000,0)) -> 74 | L164: =IF(千円単!L164="","",ROUND(千円単!L164/1000,0)) -> 231 | M164: =IF(千円単!M164="","",ROUND(千円単!M164/1000,0)) -> 513 | N164: =IF(千円単!N164="","",ROUND(千円単!N164/1000,0)) -> 82 | O164: =IF(千円単!O164="","",ROUND(千円単!O164/1000,0)) -> 245 | P164: =IF(千円単!P164="","",ROUND(千円単!P164/1000,0)) -> 27 | Q164: =IF(千円単!Q164="","",ROUND(千円単!Q164/1000,0)) -> -116 | R164: =IF(千円単!R164="","",ROUND(千円単!R164/1000,0)) -> 353 | S164: =IF(千円単!S164="","",ROUND(千円単!S164/1000,0)) -> 44 | T164: =IF(千円単!T164="","",ROUND(千円単!T164/1000,0)) -> 0 | U164: =IF(千円単!U164="","",ROUND(千円単!U164/1000,0)) -> 353 | V164: =IF(千円単!V164="","",ROUND(千円単!V164/1000,0)) -> 89 | W164: =IF(千円単!W164="","",ROUND(千円単!W164/1000,0)) -> 264 | X164: =IF(千円単!X164="","",ROUND(千円単!X164/1000,0)) -> 0 | Y164: =IF(千円単!Y164="","",ROUND(千円単!Y164/1000,0)) -> -116
A165: 2020 | B165: 46 | C165: 17 | D165: 1 | E165: 164 | F165: 公共 | G165: 082325 | H165: 茨城県 | I165: 神栖市 | J165: =IF(千円単!J165="","",ROUND(千円単!J165/1000,0)) -> 1680 | K165: =IF(千円単!K165="","",ROUND(千円単!K165/1000,0)) -> 668 | L165: =IF(千円単!L165="","",ROUND(千円単!L165/1000,0)) -> 373 | M165: =IF(千円単!M165="","",ROUND(千円単!M165/1000,0)) -> 1600 | N165: =IF(千円単!N165="","",ROUND(千円単!N165/1000,0)) -> 95 | O165: =IF(千円単!O165="","",ROUND(千円単!O165/1000,0)) -> 862 | P165: =IF(千円単!P165="","",ROUND(千円単!P165/1000,0)) -> 83 | Q165: =IF(千円単!Q165="","",ROUND(千円単!Q165/1000,0)) -> 80 | R165: =IF(千円単!R165="","",ROUND(千円単!R165/1000,0)) -> 1739 | S165: =IF(千円単!S165="","",ROUND(千円単!S165/1000,0)) -> 640 | T165: =IF(千円単!T165="","",ROUND(千円単!T165/1000,0)) -> 265 | U165: =IF(千円単!U165="","",ROUND(千円単!U165/1000,0)) -> 1824 | V165: =IF(千円単!V165="","",ROUND(千円単!V165/1000,0)) -> 1480 | W165: =IF(千円単!W165="","",ROUND(千円単!W165/1000,0)) -> 345 | X165: =IF(千円単!X165="","",ROUND(千円単!X165/1000,0)) -> -85 | Y165: =IF(千円単!Y165="","",ROUND(千円単!Y165/1000,0)) -> 80
A166: 2020 | B166: 46 | C166: 17 | D166: 1 | E166: 165 | F166: 公共 | G166: 082333 | H166: 茨城県 | I166: 行方市 | J166: =IF(千円単!J166="","",ROUND(千円単!J166/1000,0)) -> 255 | K166: =IF(千円単!K166="","",ROUND(千円単!K166/1000,0)) -> 45 | L166: =IF(千円単!L166="","",ROUND(千円単!L166/1000,0)) -> 162 | M166: =IF(千円単!M166="","",ROUND(千円単!M166/1000,0)) -> 251 | N166: =IF(千円単!N166="","",ROUND(千円単!N166/1000,0)) -> 34 | O166: =IF(千円単!O166="","",ROUND(千円単!O166/1000,0)) -> 143 | P166: =IF(千円単!P166="","",ROUND(千円単!P166/1000,0)) -> 15 | Q166: =IF(千円単!Q166="","",ROUND(千円単!Q166/1000,0)) -> 4 | R166: =IF(千円単!R166="","",ROUND(千円単!R166/1000,0)) -> 87 | S166: =IF(千円単!S166="","",ROUND(千円単!S166/1000,0)) -> 25 | T166: =IF(千円単!T166="","",ROUND(千円単!T166/1000,0)) -> 61 | U166: =IF(千円単!U166="","",ROUND(千円単!U166/1000,0)) -> 186 | V166: =IF(千円単!V166="","",ROUND(千円単!V166/1000,0)) -> 27 | W166: =IF(千円単!W166="","",ROUND(千円単!W166/1000,0)) -> 158 | X166: =IF(千円単!X166="","",ROUND(千円単!X166/1000,0)) -> -98 | Y166: =IF(千円単!Y166="","",ROUND(千円単!Y166/1000,0)) -> 4
A167: 2020 | B167: 46 | C167: 17 | D167: 1 | E167: 166 | F167: 公共 | G167: 082341 | H167: 茨城県 | I167: 鉾田市 | J167: =IF(千円単!J167="","",ROUND(千円単!J167/1000,0)) -> 267 | K167: =IF(千円単!K167="","",ROUND(千円単!K167/1000,0)) -> 24 | L167: =IF(千円単!L167="","",ROUND(千円単!L167/1000,0)) -> 151 | M167: =IF(千円単!M167="","",ROUND(千円単!M167/1000,0)) -> 264 | N167: =IF(千円単!N167="","",ROUND(千円単!N167/1000,0)) -> 37 | O167: =IF(千円単!O167="","",ROUND(千円単!O167/1000,0)) -> 156 | P167: =IF(千円単!P167="","",ROUND(千円単!P167/1000,0)) -> 16 | Q167: =IF(千円単!Q167="","",ROUND(千円単!Q167/1000,0)) -> 3 | R167: =IF(千円単!R167="","",ROUND(千円単!R167/1000,0)) -> 264 | S167: =IF(千円単!S167="","",ROUND(千円単!S167/1000,0)) -> 145 | T167: =IF(千円単!T167="","",ROUND(千円単!T167/1000,0)) -> 0 | U167: =IF(千円単!U167="","",ROUND(千円単!U167/1000,0)) -> 358 | V167: =IF(千円単!V167="","",ROUND(千円単!V167/1000,0)) -> 284 | W167: =IF(千円単!W167="","",ROUND(千円単!W167/1000,0)) -> 74 | X167: =IF(千円単!X167="","",ROUND(千円単!X167/1000,0)) -> -94 | Y167: =IF(千円単!Y167="","",ROUND(千円単!Y167/1000,0)) -> 3
A168: 2020 | B168: 46 | C168: 17 | D168: 1 | E168: 167 | F168: 公共 | G168: 082350 | H168: 茨城県 | I168: つくばみらい市 | J168: =IF(千円単!J168="","",ROUND(千円単!J168/1000,0)) -> 1315 | K168: =IF(千円単!K168="","",ROUND(千円単!K168/1000,0)) -> 348 | L168: =IF(千円単!L168="","",ROUND(千円単!L168/1000,0)) -> 425 | M168: =IF(千円単!M168="","",ROUND(千円単!M168/1000,0)) -> 1036 | N168: =IF(千円単!N168="","",ROUND(千円単!N168/1000,0)) -> 72 | O168: =IF(千円単!O168="","",ROUND(千円単!O168/1000,0)) -> 651 | P168: =IF(千円単!P168="","",ROUND(千円単!P168/1000,0)) -> 50 | Q168: =IF(千円単!Q168="","",ROUND(千円単!Q168/1000,0)) -> 279 | R168: =IF(千円単!R168="","",ROUND(千円単!R168/1000,0)) -> 275 | S168: =IF(千円単!S168="","",ROUND(千円単!S168/1000,0)) -> 152 | T168: =IF(千円単!T168="","",ROUND(千円単!T168/1000,0)) -> 4 | U168: =IF(千円単!U168="","",ROUND(千円単!U168/1000,0)) -> 674 | V168: =IF(千円単!V168="","",ROUND(千円単!V168/1000,0)) -> 361 | W168: =IF(千円単!W168="","",ROUND(千円単!W168/1000,0)) -> 313 | X168: =IF(千円単!X168="","",ROUND(千円単!X168/1000,0)) -> -399 | Y168: =IF(千円単!Y168="","",ROUND(千円単!Y168/1000,0)) -> 279
A169: 2020 | B169: 46 | C169: 17 | D169: 1 | E169: 168 | F169: 公共 | G169: 082368 | H169: 茨城県 | I169: 小美玉市 | J169: =IF(千円単!J169="","",ROUND(千円単!J169/1000,0)) -> 962 | K169: =IF(千円単!K169="","",ROUND(千円単!K169/1000,0)) -> 230 | L169: =IF(千円単!L169="","",ROUND(千円単!L169/1000,0)) -> 464 | M169: =IF(千円単!M169="","",ROUND(千円単!M169/1000,0)) -> 870 | N169: =IF(千円単!N169="","",ROUND(千円単!N169/1000,0)) -> 114 | O169: =IF(千円単!O169="","",ROUND(千円単!O169/1000,0)) -> 477 | P169: =IF(千円単!P169="","",ROUND(千円単!P169/1000,0)) -> 66 | Q169: =IF(千円単!Q169="","",ROUND(千円単!Q169/1000,0)) -> 93 | R169: =IF(千円単!R169="","",ROUND(千円単!R169/1000,0)) -> 397 | S169: =IF(千円単!S169="","",ROUND(千円単!S169/1000,0)) -> 193 | T169: =IF(千円単!T169="","",ROUND(千円単!T169/1000,0)) -> 0 | U169: =IF(千円単!U169="","",ROUND(千円単!U169/1000,0)) -> 848 | V169: =IF(千円単!V169="","",ROUND(千円単!V169/1000,0)) -> 401 | W169: =IF(千円単!W169="","",ROUND(千円単!W169/1000,0)) -> 447 | X169: =IF(千円単!X169="","",ROUND(千円単!X169/1000,0)) -> -451 | Y169: =IF(千円単!Y169="","",ROUND(千円単!Y169/1000,0)) -> 93
A170: 2020 | B170: 46 | C170: 17 | D170: 1 | E170: 169 | F170: 公共 | G170: 083020 | H170: 茨城県 | I170: 茨城町 | J170: =IF(千円単!J170="","",ROUND(千円単!J170/1000,0)) -> 659 | K170: =IF(千円単!K170="","",ROUND(千円単!K170/1000,0)) -> 135 | L170: =IF(千円単!L170="","",ROUND(千円単!L170/1000,0)) -> 339 | M170: =IF(千円単!M170="","",ROUND(千円単!M170/1000,0)) -> 632 | N170: =IF(千円単!N170="","",ROUND(千円単!N170/1000,0)) -> 77 | O170: =IF(千円単!O170="","",ROUND(千円単!O170/1000,0)) -> 331 | P170: =IF(千円単!P170="","",ROUND(千円単!P170/1000,0)) -> 44 | Q170: =IF(千円単!Q170="","",ROUND(千円単!Q170/1000,0)) -> 28 | R170: =IF(千円単!R170="","",ROUND(千円単!R170/1000,0)) -> 273 | S170: =IF(千円単!S170="","",ROUND(千円単!S170/1000,0)) -> 62 | T170: =IF(千円単!T170="","",ROUND(千円単!T170/1000,0)) -> 0 | U170: =IF(千円単!U170="","",ROUND(千円単!U170/1000,0)) -> 412 | V170: =IF(千円単!V170="","",ROUND(千円単!V170/1000,0)) -> 132 | W170: =IF(千円単!W170="","",ROUND(千円単!W170/1000,0)) -> 280 | X170: =IF(千円単!X170="","",ROUND(千円単!X170/1000,0)) -> -139 | Y170: =IF(千円単!Y170="","",ROUND(千円単!Y170/1000,0)) -> 28
A171: 2020 | B171: 46 | C171: 17 | D171: 1 | E171: 170 | F171: 公共 | G171: 083411 | H171: 茨城県 | I171: 東海村 | J171: =IF(千円単!J171="","",ROUND(千円単!J171/1000,0)) -> 776 | K171: =IF(千円単!K171="","",ROUND(千円単!K171/1000,0)) -> 328 | L171: =IF(千円単!L171="","",ROUND(千円単!L171/1000,0)) -> 189 | M171: =IF(千円単!M171="","",ROUND(千円単!M171/1000,0)) -> 775 | N171: =IF(千円単!N171="","",ROUND(千円単!N171/1000,0)) -> 62 | O171: =IF(千円単!O171="","",ROUND(千円単!O171/1000,0)) -> 472 | P171: =IF(千円単!P171="","",ROUND(千円単!P171/1000,0)) -> 21 | Q171: =IF(千円単!Q171="","",ROUND(千円単!Q171/1000,0)) -> 1 | R171: =IF(千円単!R171="","",ROUND(千円単!R171/1000,0)) -> 433 | S171: =IF(千円単!S171="","",ROUND(千円単!S171/1000,0)) -> 123 | T171: =IF(千円単!T171="","",ROUND(千円単!T171/1000,0)) -> 0 | U171: =IF(千円単!U171="","",ROUND(千円単!U171/1000,0)) -> 587 | V171: =IF(千円単!V171="","",ROUND(千円単!V171/1000,0)) -> 263 | W171: =IF(千円単!W171="","",ROUND(千円単!W171/1000,0)) -> 324 | X171: =IF(千円単!X171="","",ROUND(千円単!X171/1000,0)) -> -154 | Y171: =IF(千円単!Y171="","",ROUND(千円単!Y171/1000,0)) -> 1
A172: 2020 | B172: 46 | C172: 17 | D172: 1 | E172: 171 | F172: 公共 | G172: 084425 | H172: 茨城県 | I172: 美浦村 | J172: =IF(千円単!J172="","",ROUND(千円単!J172/1000,0)) -> 494 | K172: =IF(千円単!K172="","",ROUND(千円単!K172/1000,0)) -> 225 | L172: =IF(千円単!L172="","",ROUND(千円単!L172/1000,0)) -> 116 | M172: =IF(千円単!M172="","",ROUND(千円単!M172/1000,0)) -> 531 | N172: =IF(千円単!N172="","",ROUND(千円単!N172/1000,0)) -> 65 | O172: =IF(千円単!O172="","",ROUND(千円単!O172/1000,0)) -> 270 | P172: =IF(千円単!P172="","",ROUND(千円単!P172/1000,0)) -> 22 | Q172: =IF(千円単!Q172="","",ROUND(千円単!Q172/1000,0)) -> -37 | R172: =IF(千円単!R172="","",ROUND(千円単!R172/1000,0)) -> 415 | S172: =IF(千円単!S172="","",ROUND(千円単!S172/1000,0)) -> 224 | T172: =IF(千円単!T172="","",ROUND(千円単!T172/1000,0)) -> 0 | U172: =IF(千円単!U172="","",ROUND(千円単!U172/1000,0)) -> 625 | V172: =IF(千円単!V172="","",ROUND(千円単!V172/1000,0)) -> 426 | W172: =IF(千円単!W172="","",ROUND(千円単!W172/1000,0)) -> 192 | X172: =IF(千円単!X172="","",ROUND(千円単!X172/1000,0)) -> -211 | Y172: =IF(千円単!Y172="","",ROUND(千円単!Y172/1000,0)) -> -37
A173: 2020 | B173: 46 | C173: 17 | D173: 1 | E173: 172 | F173: 公共 | G173: 084433 | H173: 茨城県 | I173: 阿見町 | J173: =IF(千円単!J173="","",ROUND(千円単!J173/1000,0)) -> 1561 | K173: =IF(千円単!K173="","",ROUND(千円単!K173/1000,0)) -> 734 | L173: =IF(千円単!L173="","",ROUND(千円単!L173/1000,0)) -> 283 | M173: =IF(千円単!M173="","",ROUND(千円単!M173/1000,0)) -> 1337 | N173: =IF(千円単!N173="","",ROUND(千円単!N173/1000,0)) -> 101 | O173: =IF(千円単!O173="","",ROUND(千円単!O173/1000,0)) -> 660 | P173: =IF(千円単!P173="","",ROUND(千円単!P173/1000,0)) -> 30 | Q173: =IF(千円単!Q173="","",ROUND(千円単!Q173/1000,0)) -> 224 | R173: =IF(千円単!R173="","",ROUND(千円単!R173/1000,0)) -> 606 | S173: =IF(千円単!S173="","",ROUND(千円単!S173/1000,0)) -> 209 | T173: =IF(千円単!T173="","",ROUND(千円単!T173/1000,0)) -> 218 | U173: =IF(千円単!U173="","",ROUND(千円単!U173/1000,0)) -> 964 | V173: =IF(千円単!V173="","",ROUND(千円単!V173/1000,0)) -> 447 | W173: =IF(千円単!W173="","",ROUND(千円単!W173/1000,0)) -> 517 | X173: =IF(千円単!X173="","",ROUND(千円単!X173/1000,0)) -> -358 | Y173: =IF(千円単!Y173="","",ROUND(千円単!Y173/1000,0)) -> 224
A174: 2020 | B174: 46 | C174: 17 | D174: 1 | E174: 173 | F174: 公共 | G174: 089192 | H174: 茨城県 | I174: 取手地方広域下水道組合 | J174: =IF(千円単!J174="","",ROUND(千円単!J174/1000,0)) -> 3943 | K174: =IF(千円単!K174="","",ROUND(千円単!K174/1000,0)) -> 1124 | L174: =IF(千円単!L174="","",ROUND(千円単!L174/1000,0)) -> 1555 | M174: =IF(千円単!M174="","",ROUND(千円単!M174/1000,0)) -> 3816 | N174: =IF(千円単!N174="","",ROUND(千円単!N174/1000,0)) -> 369 | O174: =IF(千円単!O174="","",ROUND(千円単!O174/1000,0)) -> 2379 | P174: =IF(千円単!P174="","",ROUND(千円単!P174/1000,0)) -> 262 | Q174: =IF(千円単!Q174="","",ROUND(千円単!Q174/1000,0)) -> 127 | R174: =IF(千円単!R174="","",ROUND(千円単!R174/1000,0)) -> 1932 | S174: =IF(千円単!S174="","",ROUND(千円単!S174/1000,0)) -> 719 | T174: =IF(千円単!T174="","",ROUND(千円単!T174/1000,0)) -> 313 | U174: =IF(千円単!U174="","",ROUND(千円単!U174/1000,0)) -> 3070 | V174: =IF(千円単!V174="","",ROUND(千円単!V174/1000,0)) -> 1607 | W174: =IF(千円単!W174="","",ROUND(千円単!W174/1000,0)) -> 1462 | X174: =IF(千円単!X174="","",ROUND(千円単!X174/1000,0)) -> -1138 | Y174: =IF(千円単!Y174="","",ROUND(千円単!Y174/1000,0)) -> 127
A175: 2020 | B175: 46 | C175: 17 | D175: 1 | E175: 174 | F175: 公共 | G175: 089222 | H175: 茨城県 | I175: 日立・高萩広域下水道組合 | J175: =IF(千円単!J175="","",ROUND(千円単!J175/1000,0)) -> 2197 | K175: =IF(千円単!K175="","",ROUND(千円単!K175/1000,0)) -> 1169 | L175: =IF(千円単!L175="","",ROUND(千円単!L175/1000,0)) -> 442 | M175: =IF(千円単!M175="","",ROUND(千円単!M175/1000,0)) -> 2196 | N175: =IF(千円単!N175="","",ROUND(千円単!N175/1000,0)) -> 179 | O175: =IF(千円単!O175="","",ROUND(千円単!O175/1000,0)) -> 1329 | P175: =IF(千円単!P175="","",ROUND(千円単!P175/1000,0)) -> 179 | Q175: =IF(千円単!Q175="","",ROUND(千円単!Q175/1000,0)) -> 1 | R175: =IF(千円単!R175="","",ROUND(千円単!R175/1000,0)) -> 786 | S175: =IF(千円単!S175="","",ROUND(千円単!S175/1000,0)) -> 207 | T175: =IF(千円単!T175="","",ROUND(千円単!T175/1000,0)) -> 0 | U175: =IF(千円単!U175="","",ROUND(千円単!U175/1000,0)) -> 1757 | V175: =IF(千円単!V175="","",ROUND(千円単!V175/1000,0)) -> 638 | W175: =IF(千円単!W175="","",ROUND(千円単!W175/1000,0)) -> 1119 | X175: =IF(千円単!X175="","",ROUND(千円単!X175/1000,0)) -> -972 | Y175: =IF(千円単!Y175="","",ROUND(千円単!Y175/1000,0)) -> 1
A176: 2020 | B176: 46 | C176: 17 | D176: 1 | E176: 175 | F176: 公共 | G176: 089354 | H176: 茨城県 | I176: ひたちなか・東海広域事務組合 | J176: =IF(千円単!J176="","",ROUND(千円単!J176/1000,0)) -> 537 | K176: =IF(千円単!K176="","",ROUND(千円単!K176/1000,0)) -> 71 | L176: =IF(千円単!L176="","",ROUND(千円単!L176/1000,0)) -> 0 | M176: =IF(千円単!M176="","",ROUND(千円単!M176/1000,0)) -> 533 | N176: =IF(千円単!N176="","",ROUND(千円単!N176/1000,0)) -> 0 | O176: =IF(千円単!O176="","",ROUND(千円単!O176/1000,0)) -> 469 | P176: =IF(千円単!P176="","",ROUND(千円単!P176/1000,0)) -> 16 | Q176: =IF(千円単!Q176="","",ROUND(千円単!Q176/1000,0)) -> 4 | R176: =IF(千円単!R176="","",ROUND(千円単!R176/1000,0)) -> 0 | S176: =IF(千円単!S176="","",ROUND(千円単!S176/1000,0)) -> 0 | T176: =IF(千円単!T176="","",ROUND(千円単!T176/1000,0)) -> 0 | U176: =IF(千円単!U176="","",ROUND(千円単!U176/1000,0)) -> 4 | V176: =IF(千円単!V176="","",ROUND(千円単!V176/1000,0)) -> 0 | W176: =IF(千円単!W176="","",ROUND(千円単!W176/1000,0)) -> 3 | X176: =IF(千円単!X176="","",ROUND(千円単!X176/1000,0)) -> -4 | Y176: =IF(千円単!Y176="","",ROUND(千円単!Y176/1000,0)) -> 4
A177: 2020 | B177: 46 | C177: 17 | D177: 1 | E177: 176 | F177: 公共 | G177: 092011 | H177: 栃木県 | I177: 宇都宮市 | J177: =IF(千円単!J177="","",ROUND(千円単!J177/1000,0)) -> 11163 | K177: =IF(千円単!K177="","",ROUND(千円単!K177/1000,0)) -> 6740 | L177: =IF(千円単!L177="","",ROUND(千円単!L177/1000,0)) -> 2055 | M177: =IF(千円単!M177="","",ROUND(千円単!M177/1000,0)) -> 11044 | N177: =IF(千円単!N177="","",ROUND(千円単!N177/1000,0)) -> 783 | O177: =IF(千円単!O177="","",ROUND(千円単!O177/1000,0)) -> 5973 | P177: =IF(千円単!P177="","",ROUND(千円単!P177/1000,0)) -> 489 | Q177: =IF(千円単!Q177="","",ROUND(千円単!Q177/1000,0)) -> 120 | R177: =IF(千円単!R177="","",ROUND(千円単!R177/1000,0)) -> 4842 | S177: =IF(千円単!S177="","",ROUND(千円単!S177/1000,0)) -> 2022 | T177: =IF(千円単!T177="","",ROUND(千円単!T177/1000,0)) -> 164 | U177: =IF(千円単!U177="","",ROUND(千円単!U177/1000,0)) -> 9263 | V177: =IF(千円単!V177="","",ROUND(千円単!V177/1000,0)) -> 4723 | W177: =IF(千円単!W177="","",ROUND(千円単!W177/1000,0)) -> 4540 | X177: =IF(千円単!X177="","",ROUND(千円単!X177/1000,0)) -> -4421 | Y177: =IF(千円単!Y177="","",ROUND(千円単!Y177/1000,0)) -> 120
A178: 2020 | B178: 46 | C178: 17 | D178: 1 | E178: 177 | F178: 公共 | G178: 092029 | H178: 栃木県 | I178: 足利市 | J178: =IF(千円単!J178="","",ROUND(千円単!J178/1000,0)) -> 4308 | K178: =IF(千円単!K178="","",ROUND(千円単!K178/1000,0)) -> 1613 | L178: =IF(千円単!L178="","",ROUND(千円単!L178/1000,0)) -> 1679 | M178: =IF(千円単!M178="","",ROUND(千円単!M178/1000,0)) -> 3942 | N178: =IF(千円単!N178="","",ROUND(千円単!N178/1000,0)) -> 518 | O178: =IF(千円単!O178="","",ROUND(千円単!O178/1000,0)) -> 2366 | P178: =IF(千円単!P178="","",ROUND(千円単!P178/1000,0)) -> 160 | Q178: =IF(千円単!Q178="","",ROUND(千円単!Q178/1000,0)) -> 365 | R178: =IF(千円単!R178="","",ROUND(千円単!R178/1000,0)) -> 2657 | S178: =IF(千円単!S178="","",ROUND(千円単!S178/1000,0)) -> 1567 | T178: =IF(千円単!T178="","",ROUND(千円単!T178/1000,0)) -> 431 | U178: =IF(千円単!U178="","",ROUND(千円単!U178/1000,0)) -> 4121 | V178: =IF(千円単!V178="","",ROUND(千円単!V178/1000,0)) -> 750 | W178: =IF(千円単!W178="","",ROUND(千円単!W178/1000,0)) -> 3371 | X178: =IF(千円単!X178="","",ROUND(千円単!X178/1000,0)) -> -1464 | Y178: =IF(千円単!Y178="","",ROUND(千円単!Y178/1000,0)) -> 365
A179: 2020 | B179: 46 | C179: 17 | D179: 1 | E179: 178 | F179: 公共 | G179: 092037 | H179: 栃木県 | I179: 栃木市 | J179: =IF(千円単!J179="","",ROUND(千円単!J179/1000,0)) -> 3445 | K179: =IF(千円単!K179="","",ROUND(千円単!K179/1000,0)) -> 1213 | L179: =IF(千円単!L179="","",ROUND(千円単!L179/1000,0)) -> 1623 | M179: =IF(千円単!M179="","",ROUND(千円単!M179/1000,0)) -> 3069 | N179: =IF(千円単!N179="","",ROUND(千円単!N179/1000,0)) -> 384 | O179: =IF(千円単!O179="","",ROUND(千円単!O179/1000,0)) -> 1677 | P179: =IF(千円単!P179="","",ROUND(千円単!P179/1000,0)) -> 122 | Q179: =IF(千円単!Q179="","",ROUND(千円単!Q179/1000,0)) -> 376 | R179: =IF(千円単!R179="","",ROUND(千円単!R179/1000,0)) -> 1874 | S179: =IF(千円単!S179="","",ROUND(千円単!S179/1000,0)) -> 940 | T179: =IF(千円単!T179="","",ROUND(千円単!T179/1000,0)) -> 557 | U179: =IF(千円単!U179="","",ROUND(千円単!U179/1000,0)) -> 3068 | V179: =IF(千円単!V179="","",ROUND(千円単!V179/1000,0)) -> 1418 | W179: =IF(千円単!W179="","",ROUND(千円単!W179/1000,0)) -> 1650 | X179: =IF(千円単!X179="","",ROUND(千円単!X179/1000,0)) -> -1194 | Y179: =IF(千円単!Y179="","",ROUND(千円単!Y179/1000,0)) -> 376
A180: 2020 | B180: 46 | C180: 17 | D180: 1 | E180: 179 | F180: 公共 | G180: 092045 | H180: 栃木県 | I180: 佐野市 | J180: =IF(千円単!J180="","",ROUND(千円単!J180/1000,0)) -> 4144 | K180: =IF(千円単!K180="","",ROUND(千円単!K180/1000,0)) -> 1112 | L180: =IF(千円単!L180="","",ROUND(千円単!L180/1000,0)) -> 1510 | M180: =IF(千円単!M180="","",ROUND(千円単!M180/1000,0)) -> 3678 | N180: =IF(千円単!N180="","",ROUND(千円単!N180/1000,0)) -> 289 | O180: =IF(千円単!O180="","",ROUND(千円単!O180/1000,0)) -> 2517 | P180: =IF(千円単!P180="","",ROUND(千円単!P180/1000,0)) -> 123 | Q180: =IF(千円単!Q180="","",ROUND(千円単!Q180/1000,0)) -> 465 | R180: =IF(千円単!R180="","",ROUND(千円単!R180/1000,0)) -> 1234 | S180: =IF(千円単!S180="","",ROUND(千円単!S180/1000,0)) -> 491 | T180: =IF(千円単!T180="","",ROUND(千円単!T180/1000,0)) -> 190 | U180: =IF(千円単!U180="","",ROUND(千円単!U180/1000,0)) -> 2400 | V180: =IF(千円単!V180="","",ROUND(千円単!V180/1000,0)) -> 1087 | W180: =IF(千円単!W180="","",ROUND(千円単!W180/1000,0)) -> 1314 | X180: =IF(千円単!X180="","",ROUND(千円単!X180/1000,0)) -> -1166 | Y180: =IF(千円単!Y180="","",ROUND(千円単!Y180/1000,0)) -> 465
A181: 2020 | B181: 46 | C181: 17 | D181: 1 | E181: 180 | F181: 公共 | G181: 092053 | H181: 栃木県 | I181: 鹿沼市 | J181: =IF(千円単!J181="","",ROUND(千円単!J181/1000,0)) -> 2301 | K181: =IF(千円単!K181="","",ROUND(千円単!K181/1000,0)) -> 885 | L181: =IF(千円単!L181="","",ROUND(千円単!L181/1000,0)) -> 871 | M181: =IF(千円単!M181="","",ROUND(千円単!M181/1000,0)) -> 1749 | N181: =IF(千円単!N181="","",ROUND(千円単!N181/1000,0)) -> 194 | O181: =IF(千円単!O181="","",ROUND(千円単!O181/1000,0)) -> 1024 | P181: =IF(千円単!P181="","",ROUND(千円単!P181/1000,0)) -> 117 | Q181: =IF(千円単!Q181="","",ROUND(千円単!Q181/1000,0)) -> 552 | R181: =IF(千円単!R181="","",ROUND(千円単!R181/1000,0)) -> 1116 | S181: =IF(千円単!S181="","",ROUND(千円単!S181/1000,0)) -> 404 | T181: =IF(千円単!T181="","",ROUND(千円単!T181/1000,0)) -> 0 | U181: =IF(千円単!U181="","",ROUND(千円単!U181/1000,0)) -> 2113 | V181: =IF(千円単!V181="","",ROUND(千円単!V181/1000,0)) -> 1244 | W181: =IF(千円単!W181="","",ROUND(千円単!W181/1000,0)) -> 853 | X181: =IF(千円単!X181="","",ROUND(千円単!X181/1000,0)) -> -997 | Y181: =IF(千円単!Y181="","",ROUND(千円単!Y181/1000,0)) -> 552
A182: 2020 | B182: 46 | C182: 17 | D182: 1 | E182: 181 | F182: 公共 | G182: 092061 | H182: 栃木県 | I182: 日光市 | J182: =IF(千円単!J182="","",ROUND(千円単!J182/1000,0)) -> 2401 | K182: =IF(千円単!K182="","",ROUND(千円単!K182/1000,0)) -> 974 | L182: =IF(千円単!L182="","",ROUND(千円単!L182/1000,0)) -> 786 | M182: =IF(千円単!M182="","",ROUND(千円単!M182/1000,0)) -> 2141 | N182: =IF(千円単!N182="","",ROUND(千円単!N182/1000,0)) -> 178 | O182: =IF(千円単!O182="","",ROUND(千円単!O182/1000,0)) -> 1065 | P182: =IF(千円単!P182="","",ROUND(千円単!P182/1000,0)) -> 60 | Q182: =IF(千円単!Q182="","",ROUND(千円単!Q182/1000,0)) -> 260 | R182: =IF(千円単!R182="","",ROUND(千円単!R182/1000,0)) -> 859 | S182: =IF(千円単!S182="","",ROUND(千円単!S182/1000,0)) -> 504 | T182: =IF(千円単!T182="","",ROUND(千円単!T182/1000,0)) -> 226 | U182: =IF(千円単!U182="","",ROUND(千円単!U182/1000,0)) -> 1578 | V182: =IF(千円単!V182="","",ROUND(千円単!V182/1000,0)) -> 336 | W182: =IF(千円単!W182="","",ROUND(千円単!W182/1000,0)) -> 1242 | X182: =IF(千円単!X182="","",ROUND(千円単!X182/1000,0)) -> -719 | Y182: =IF(千円単!Y182="","",ROUND(千円単!Y182/1000,0)) -> 260
A183: 2020 | B183: 46 | C183: 17 | D183: 1 | E183: 182 | F183: 公共 | G183: 092088 | H183: 栃木県 | I183: 小山市 | J183: =IF(千円単!J183="","",ROUND(千円単!J183/1000,0)) -> 3949 | K183: =IF(千円単!K183="","",ROUND(千円単!K183/1000,0)) -> 1353 | L183: =IF(千円単!L183="","",ROUND(千円単!L183/1000,0)) -> 1415 | M183: =IF(千円単!M183="","",ROUND(千円単!M183/1000,0)) -> 3580 | N183: =IF(千円単!N183="","",ROUND(千円単!N183/1000,0)) -> 382 | O183: =IF(千円単!O183="","",ROUND(千円単!O183/1000,0)) -> 2228 | P183: =IF(千円単!P183="","",ROUND(千円単!P183/1000,0)) -> 68 | Q183: =IF(千円単!Q183="","",ROUND(千円単!Q183/1000,0)) -> 369 | R183: =IF(千円単!R183="","",ROUND(千円単!R183/1000,0)) -> 2353 | S183: =IF(千円単!S183="","",ROUND(千円単!S183/1000,0)) -> 1526 | T183: =IF(千円単!T183="","",ROUND(千円単!T183/1000,0)) -> 173 | U183: =IF(千円単!U183="","",ROUND(千円単!U183/1000,0)) -> 3781 | V183: =IF(千円単!V183="","",ROUND(千円単!V183/1000,0)) -> 1560 | W183: =IF(千円単!W183="","",ROUND(千円単!W183/1000,0)) -> 2221 | X183: =IF(千円単!X183="","",ROUND(千円単!X183/1000,0)) -> -1429 | Y183: =IF(千円単!Y183="","",ROUND(千円単!Y183/1000,0)) -> 369
A184: 2020 | B184: 46 | C184: 17 | D184: 1 | E184: 183 | F184: 公共 | G184: 092096 | H184: 栃木県 | I184: 真岡市 | J184: =IF(千円単!J184="","",ROUND(千円単!J184/1000,0)) -> 1770 | K184: =IF(千円単!K184="","",ROUND(千円単!K184/1000,0)) -> 697 | L184: =IF(千円単!L184="","",ROUND(千円単!L184/1000,0)) -> 590 | M184: =IF(千円単!M184="","",ROUND(千円単!M184/1000,0)) -> 1459 | N184: =IF(千円単!N184="","",ROUND(千円単!N184/1000,0)) -> 151 | O184: =IF(千円単!O184="","",ROUND(千円単!O184/1000,0)) -> 857 | P184: =IF(千円単!P184="","",ROUND(千円単!P184/1000,0)) -> 71 | Q184: =IF(千円単!Q184="","",ROUND(千円単!Q184/1000,0)) -> 311 | R184: =IF(千円単!R184="","",ROUND(千円単!R184/1000,0)) -> 710 | S184: =IF(千円単!S184="","",ROUND(千円単!S184/1000,0)) -> 521 | T184: =IF(千円単!T184="","",ROUND(千円単!T184/1000,0)) -> 95 | U184: =IF(千円単!U184="","",ROUND(千円単!U184/1000,0)) -> 1435 | V184: =IF(千円単!V184="","",ROUND(千円単!V184/1000,0)) -> 429 | W184: =IF(千円単!W184="","",ROUND(千円単!W184/1000,0)) -> 1006 | X184: =IF(千円単!X184="","",ROUND(千円単!X184/1000,0)) -> -725 | Y184: =IF(千円単!Y184="","",ROUND(千円単!Y184/1000,0)) -> 311
A185: 2020 | B185: 46 | C185: 17 | D185: 1 | E185: 184 | F185: 公共 | G185: 092100 | H185: 栃木県 | I185: 大田原市 | J185: =IF(千円単!J185="","",ROUND(千円単!J185/1000,0)) -> 1056 | K185: =IF(千円単!K185="","",ROUND(千円単!K185/1000,0)) -> 473 | L185: =IF(千円単!L185="","",ROUND(千円単!L185/1000,0)) -> 350 | M185: =IF(千円単!M185="","",ROUND(千円単!M185/1000,0)) -> 889 | N185: =IF(千円単!N185="","",ROUND(千円単!N185/1000,0)) -> 79 | O185: =IF(千円単!O185="","",ROUND(千円単!O185/1000,0)) -> 492 | P185: =IF(千円単!P185="","",ROUND(千円単!P185/1000,0)) -> 28 | Q185: =IF(千円単!Q185="","",ROUND(千円単!Q185/1000,0)) -> 168 | R185: =IF(千円単!R185="","",ROUND(千円単!R185/1000,0)) -> 175 | S185: =IF(千円単!S185="","",ROUND(千円単!S185/1000,0)) -> 103 | T185: =IF(千円単!T185="","",ROUND(千円単!T185/1000,0)) -> 16 | U185: =IF(千円単!U185="","",ROUND(千円単!U185/1000,0)) -> 579 | V185: =IF(千円単!V185="","",ROUND(千円単!V185/1000,0)) -> 174 | W185: =IF(千円単!W185="","",ROUND(千円単!W185/1000,0)) -> 405 | X185: =IF(千円単!X185="","",ROUND(千円単!X185/1000,0)) -> -403 | Y185: =IF(千円単!Y185="","",ROUND(千円単!Y185/1000,0)) -> 168
A186: 2020 | B186: 46 | C186: 17 | D186: 1 | E186: 185 | F186: 公共 | G186: 092118 | H186: 栃木県 | I186: 矢板市 | J186: =IF(千円単!J186="","",ROUND(千円単!J186/1000,0)) -> 836 | K186: =IF(千円単!K186="","",ROUND(千円単!K186/1000,0)) -> 196 | L186: =IF(千円単!L186="","",ROUND(千円単!L186/1000,0)) -> 308 | M186: =IF(千円単!M186="","",ROUND(千円単!M186/1000,0)) -> 639 | N186: =IF(千円単!N186="","",ROUND(千円単!N186/1000,0)) -> 48 | O186: =IF(千円単!O186="","",ROUND(千円単!O186/1000,0)) -> 378 | P186: =IF(千円単!P186="","",ROUND(千円単!P186/1000,0)) -> 21 | Q186: =IF(千円単!Q186="","",ROUND(千円単!Q186/1000,0)) -> 197 | R186: =IF(千円単!R186="","",ROUND(千円単!R186/1000,0)) -> 141 | S186: =IF(千円単!S186="","",ROUND(千円単!S186/1000,0)) -> 94 | T186: =IF(千円単!T186="","",ROUND(千円単!T186/1000,0)) -> 0 | U186: =IF(千円単!U186="","",ROUND(千円単!U186/1000,0)) -> 343 | V186: =IF(千円単!V186="","",ROUND(千円単!V186/1000,0)) -> 120 | W186: =IF(千円単!W186="","",ROUND(千円単!W186/1000,0)) -> 223 | X186: =IF(千円単!X186="","",ROUND(千円単!X186/1000,0)) -> -202 | Y186: =IF(千円単!Y186="","",ROUND(千円単!Y186/1000,0)) -> 197
A187: 2020 | B187: 46 | C187: 17 | D187: 1 | E187: 186 | F187: 公共 | G187: 092134 | H187: 栃木県 | I187: 那須塩原市 | J187: =IF(千円単!J187="","",ROUND(千円単!J187/1000,0)) -> 2390 | K187: =IF(千円単!K187="","",ROUND(千円単!K187/1000,0)) -> 841 | L187: =IF(千円単!L187="","",ROUND(千円単!L187/1000,0)) -> 780 | M187: =IF(千円単!M187="","",ROUND(千円単!M187/1000,0)) -> 2161 | N187: =IF(千円単!N187="","",ROUND(千円単!N187/1000,0)) -> 182 | O187: =IF(千円単!O187="","",ROUND(千円単!O187/1000,0)) -> 1329 | P187: =IF(千円単!P187="","",ROUND(千円単!P187/1000,0)) -> 75 | Q187: =IF(千円単!Q187="","",ROUND(千円単!Q187/1000,0)) -> 228 | R187: =IF(千円単!R187="","",ROUND(千円単!R187/1000,0)) -> 606 | S187: =IF(千円単!S187="","",ROUND(千円単!S187/1000,0)) -> 277 | T187: =IF(千円単!T187="","",ROUND(千円単!T187/1000,0)) -> 60 | U187: =IF(千円単!U187="","",ROUND(千円単!U187/1000,0)) -> 1283 | V187: =IF(千円単!V187="","",ROUND(千円単!V187/1000,0)) -> 435 | W187: =IF(千円単!W187="","",ROUND(千円単!W187/1000,0)) -> 847 | X187: =IF(千円単!X187="","",ROUND(千円単!X187/1000,0)) -> -677 | Y187: =IF(千円単!Y187="","",ROUND(千円単!Y187/1000,0)) -> 228
A188: 2020 | B188: 46 | C188: 17 | D188: 1 | E188: 187 | F188: 公共 | G188: 092142 | H188: 栃木県 | I188: さくら市 | J188: =IF(千円単!J188="","",ROUND(千円単!J188/1000,0)) -> 764 | K188: =IF(千円単!K188="","",ROUND(千円単!K188/1000,0)) -> 203 | L188: =IF(千円単!L188="","",ROUND(千円単!L188/1000,0)) -> 390 | M188: =IF(千円単!M188="","",ROUND(千円単!M188/1000,0)) -> 609 | N188: =IF(千円単!N188="","",ROUND(千円単!N188/1000,0)) -> 75 | O188: =IF(千円単!O188="","",ROUND(千円単!O188/1000,0)) -> 335 | P188: =IF(千円単!P188="","",ROUND(千円単!P188/1000,0)) -> 28 | Q188: =IF(千円単!Q188="","",ROUND(千円単!Q188/1000,0)) -> 155 | R188: =IF(千円単!R188="","",ROUND(千円単!R188/1000,0)) -> 343 | S188: =IF(千円単!S188="","",ROUND(千円単!S188/1000,0)) -> 155 | T188: =IF(千円単!T188="","",ROUND(千円単!T188/1000,0)) -> 9 | U188: =IF(千円単!U188="","",ROUND(千円単!U188/1000,0)) -> 672 | V188: =IF(千円単!V188="","",ROUND(千円単!V188/1000,0)) -> 367 | W188: =IF(千円単!W188="","",ROUND(千円単!W188/1000,0)) -> 305 | X188: =IF(千円単!X188="","",ROUND(千円単!X188/1000,0)) -> -329 | Y188: =IF(千円単!Y188="","",ROUND(千円単!Y188/1000,0)) -> 155
A189: 2020 | B189: 46 | C189: 17 | D189: 1 | E189: 188 | F189: 公共 | G189: 092169 | H189: 栃木県 | I189: 下野市 | J189: =IF(千円単!J189="","",ROUND(千円単!J189/1000,0)) -> 1388 | K189: =IF(千円単!K189="","",ROUND(千円単!K189/1000,0)) -> 569 | L189: =IF(千円単!L189="","",ROUND(千円単!L189/1000,0)) -> 230 | M189: =IF(千円単!M189="","",ROUND(千円単!M189/1000,0)) -> 1148 | N189: =IF(千円単!N189="","",ROUND(千円単!N189/1000,0)) -> 83 | O189: =IF(千円単!O189="","",ROUND(千円単!O189/1000,0)) -> 707 | P189: =IF(千円単!P189="","",ROUND(千円単!P189/1000,0)) -> 26 | Q189: =IF(千円単!Q189="","",ROUND(千円単!Q189/1000,0)) -> 240 | R189: =IF(千円単!R189="","",ROUND(千円単!R189/1000,0)) -> 558 | S189: =IF(千円単!S189="","",ROUND(千円単!S189/1000,0)) -> 236 | T189: =IF(千円単!T189="","",ROUND(千円単!T189/1000,0)) -> 88 | U189: =IF(千円単!U189="","",ROUND(千円単!U189/1000,0)) -> 905 | V189: =IF(千円単!V189="","",ROUND(千円単!V189/1000,0)) -> 545 | W189: =IF(千円単!W189="","",ROUND(千円単!W189/1000,0)) -> 360 | X189: =IF(千円単!X189="","",ROUND(千円単!X189/1000,0)) -> -347 | Y189: =IF(千円単!Y189="","",ROUND(千円単!Y189/1000,0)) -> 240
A190: 2020 | B190: 46 | C190: 17 | D190: 1 | E190: 189 | F190: 公共 | G190: 093017 | H190: 栃木県 | I190: 上三川町 | J190: =IF(千円単!J190="","",ROUND(千円単!J190/1000,0)) -> 640 | K190: =IF(千円単!K190="","",ROUND(千円単!K190/1000,0)) -> 226 | L190: =IF(千円単!L190="","",ROUND(千円単!L190/1000,0)) -> 87 | M190: =IF(千円単!M190="","",ROUND(千円単!M190/1000,0)) -> 614 | N190: =IF(千円単!N190="","",ROUND(千円単!N190/1000,0)) -> 63 | O190: =IF(千円単!O190="","",ROUND(千円単!O190/1000,0)) -> 338 | P190: =IF(千円単!P190="","",ROUND(千円単!P190/1000,0)) -> 22 | Q190: =IF(千円単!Q190="","",ROUND(千円単!Q190/1000,0)) -> 26 | R190: =IF(千円単!R190="","",ROUND(千円単!R190/1000,0)) -> 435 | S190: =IF(千円単!S190="","",ROUND(千円単!S190/1000,0)) -> 89 | T190: =IF(千円単!T190="","",ROUND(千円単!T190/1000,0)) -> 253 | U190: =IF(千円単!U190="","",ROUND(千円単!U190/1000,0)) -> 454 | V190: =IF(千円単!V190="","",ROUND(千円単!V190/1000,0)) -> 166 | W190: =IF(千円単!W190="","",ROUND(千円単!W190/1000,0)) -> 288 | X190: =IF(千円単!X190="","",ROUND(千円単!X190/1000,0)) -> -19 | Y190: =IF(千円単!Y190="","",ROUND(千円単!Y190/1000,0)) -> 26
A191: 2020 | B191: 46 | C191: 17 | D191: 1 | E191: 190 | F191: 公共 | G191: 093611 | H191: 栃木県 | I191: 壬生町 | J191: =IF(千円単!J191="","",ROUND(千円単!J191/1000,0)) -> 1112 | K191: =IF(千円単!K191="","",ROUND(千円単!K191/1000,0)) -> 463 | L191: =IF(千円単!L191="","",ROUND(千円単!L191/1000,0)) -> 333 | M191: =IF(千円単!M191="","",ROUND(千円単!M191/1000,0)) -> 997 | N191: =IF(千円単!N191="","",ROUND(千円単!N191/1000,0)) -> 75 | O191: =IF(千円単!O191="","",ROUND(千円単!O191/1000,0)) -> 554 | P191: =IF(千円単!P191="","",ROUND(千円単!P191/1000,0)) -> 54 | Q191: =IF(千円単!Q191="","",ROUND(千円単!Q191/1000,0)) -> 116 | R191: =IF(千円単!R191="","",ROUND(千円単!R191/1000,0)) -> 491 | S191: =IF(千円単!S191="","",ROUND(千円単!S191/1000,0)) -> 218 | T191: =IF(千円単!T191="","",ROUND(千円単!T191/1000,0)) -> 5 | U191: =IF(千円単!U191="","",ROUND(千円単!U191/1000,0)) -> 906 | V191: =IF(千円単!V191="","",ROUND(千円単!V191/1000,0)) -> 588 | W191: =IF(千円単!W191="","",ROUND(千円単!W191/1000,0)) -> 318 | X191: =IF(千円単!X191="","",ROUND(千円単!X191/1000,0)) -> -415 | Y191: =IF(千円単!Y191="","",ROUND(千円単!Y191/1000,0)) -> 116
A192: 2020 | B192: 46 | C192: 17 | D192: 1 | E192: 191 | F192: 公共 | G192: 093645 | H192: 栃木県 | I192: 野木町 | J192: =IF(千円単!J192="","",ROUND(千円単!J192/1000,0)) -> 516 | K192: =IF(千円単!K192="","",ROUND(千円単!K192/1000,0)) -> 162 | L192: =IF(千円単!L192="","",ROUND(千円単!L192/1000,0)) -> 246 | M192: =IF(千円単!M192="","",ROUND(千円単!M192/1000,0)) -> 432 | N192: =IF(千円単!N192="","",ROUND(千円単!N192/1000,0)) -> 48 | O192: =IF(千円単!O192="","",ROUND(千円単!O192/1000,0)) -> 224 | P192: =IF(千円単!P192="","",ROUND(千円単!P192/1000,0)) -> 0 | Q192: =IF(千円単!Q192="","",ROUND(千円単!Q192/1000,0)) -> 84 | R192: =IF(千円単!R192="","",ROUND(千円単!R192/1000,0)) -> 206 | S192: =IF(千円単!S192="","",ROUND(千円単!S192/1000,0)) -> 153 | T192: =IF(千円単!T192="","",ROUND(千円単!T192/1000,0)) -> 0 | U192: =IF(千円単!U192="","",ROUND(千円単!U192/1000,0)) -> 385 | V192: =IF(千円単!V192="","",ROUND(千円単!V192/1000,0)) -> 143 | W192: =IF(千円単!W192="","",ROUND(千円単!W192/1000,0)) -> 242 | X192: =IF(千円単!X192="","",ROUND(千円単!X192/1000,0)) -> -179 | Y192: =IF(千円単!Y192="","",ROUND(千円単!Y192/1000,0)) -> 84
A193: 2020 | B193: 46 | C193: 17 | D193: 1 | E193: 192 | F193: 公共 | G193: 093866 | H193: 栃木県 | I193: 高根沢町 | J193: =IF(千円単!J193="","",ROUND(千円単!J193/1000,0)) -> 628 | K193: =IF(千円単!K193="","",ROUND(千円単!K193/1000,0)) -> 175 | L193: =IF(千円単!L193="","",ROUND(千円単!L193/1000,0)) -> 266 | M193: =IF(千円単!M193="","",ROUND(千円単!M193/1000,0)) -> 598 | N193: =IF(千円単!N193="","",ROUND(千円単!N193/1000,0)) -> 61 | O193: =IF(千円単!O193="","",ROUND(千円単!O193/1000,0)) -> 300 | P193: =IF(千円単!P193="","",ROUND(千円単!P193/1000,0)) -> 13 | Q193: =IF(千円単!Q193="","",ROUND(千円単!Q193/1000,0)) -> 30 | R193: =IF(千円単!R193="","",ROUND(千円単!R193/1000,0)) -> 380 | S193: =IF(千円単!S193="","",ROUND(千円単!S193/1000,0)) -> 136 | T193: =IF(千円単!T193="","",ROUND(千円単!T193/1000,0)) -> 0 | U193: =IF(千円単!U193="","",ROUND(千円単!U193/1000,0)) -> 558 | V193: =IF(千円単!V193="","",ROUND(千円単!V193/1000,0)) -> 334 | W193: =IF(千円単!W193="","",ROUND(千円単!W193/1000,0)) -> 224 | X193: =IF(千円単!X193="","",ROUND(千円単!X193/1000,0)) -> -178 | Y193: =IF(千円単!Y193="","",ROUND(千円単!Y193/1000,0)) -> 30
A194: 2020 | B194: 46 | C194: 17 | D194: 1 | E194: 193 | F194: 公共 | G194: 102016 | H194: 群馬県 | I194: 前橋市 | J194: =IF(千円単!J194="","",ROUND(千円単!J194/1000,0)) -> 7016 | K194: =IF(千円単!K194="","",ROUND(千円単!K194/1000,0)) -> 3027 | L194: =IF(千円単!L194="","",ROUND(千円単!L194/1000,0)) -> 2412 | M194: =IF(千円単!M194="","",ROUND(千円単!M194/1000,0)) -> 6642 | N194: =IF(千円単!N194="","",ROUND(千円単!N194/1000,0)) -> 638 | O194: =IF(千円単!O194="","",ROUND(千円単!O194/1000,0)) -> 3154 | P194: =IF(千円単!P194="","",ROUND(千円単!P194/1000,0)) -> 334 | Q194: =IF(千円単!Q194="","",ROUND(千円単!Q194/1000,0)) -> 374 | R194: =IF(千円単!R194="","",ROUND(千円単!R194/1000,0)) -> 2815 | S194: =IF(千円単!S194="","",ROUND(千円単!S194/1000,0)) -> 1490 | T194: =IF(千円単!T194="","",ROUND(千円単!T194/1000,0)) -> 460 | U194: =IF(千円単!U194="","",ROUND(千円単!U194/1000,0)) -> 5488 | V194: =IF(千円単!V194="","",ROUND(千円単!V194/1000,0)) -> 2382 | W194: =IF(千円単!W194="","",ROUND(千円単!W194/1000,0)) -> 3014 | X194: =IF(千円単!X194="","",ROUND(千円単!X194/1000,0)) -> -2673 | Y194: =IF(千円単!Y194="","",ROUND(千円単!Y194/1000,0)) -> 374
A195: 2020 | B195: 46 | C195: 17 | D195: 1 | E195: 194 | F195: 公共 | G195: 102024 | H195: 群馬県 | I195: 高崎市 | J195: =IF(千円単!J195="","",ROUND(千円単!J195/1000,0)) -> 7777 | K195: =IF(千円単!K195="","",ROUND(千円単!K195/1000,0)) -> 3751 | L195: =IF(千円単!L195="","",ROUND(千円単!L195/1000,0)) -> 2598 | M195: =IF(千円単!M195="","",ROUND(千円単!M195/1000,0)) -> 6628 | N195: =IF(千円単!N195="","",ROUND(千円単!N195/1000,0)) -> 702 | O195: =IF(千円単!O195="","",ROUND(千円単!O195/1000,0)) -> 3546 | P195: =IF(千円単!P195="","",ROUND(千円単!P195/1000,0)) -> 343 | Q195: =IF(千円単!Q195="","",ROUND(千円単!Q195/1000,0)) -> 1149 | R195: =IF(千円単!R195="","",ROUND(千円単!R195/1000,0)) -> 3133 | S195: =IF(千円単!S195="","",ROUND(千円単!S195/1000,0)) -> 1550 | T195: =IF(千円単!T195="","",ROUND(千円単!T195/1000,0)) -> 407 | U195: =IF(千円単!U195="","",ROUND(千円単!U195/1000,0)) -> 6350 | V195: =IF(千円単!V195="","",ROUND(千円単!V195/1000,0)) -> 3277 | W195: =IF(千円単!W195="","",ROUND(千円単!W195/1000,0)) -> 3069 | X195: =IF(千円単!X195="","",ROUND(千円単!X195/1000,0)) -> -3217 | Y195: =IF(千円単!Y195="","",ROUND(千円単!Y195/1000,0)) -> 1149
A196: 2020 | B196: 46 | C196: 17 | D196: 1 | E196: 195 | F196: 公共 | G196: 102032 | H196: 群馬県 | I196: 桐生市 | J196: =IF(千円単!J196="","",ROUND(千円単!J196/1000,0)) -> 2739 | K196: =IF(千円単!K196="","",ROUND(千円単!K196/1000,0)) -> 1323 | L196: =IF(千円単!L196="","",ROUND(千円単!L196/1000,0)) -> 683 | M196: =IF(千円単!M196="","",ROUND(千円単!M196/1000,0)) -> 2550 | N196: =IF(千円単!N196="","",ROUND(千円単!N196/1000,0)) -> 187 | O196: =IF(千円単!O196="","",ROUND(千円単!O196/1000,0)) -> 1388 | P196: =IF(千円単!P196="","",ROUND(千円単!P196/1000,0)) -> 93 | Q196: =IF(千円単!Q196="","",ROUND(千円単!Q196/1000,0)) -> 189 | R196: =IF(千円単!R196="","",ROUND(千円単!R196/1000,0)) -> 531 | S196: =IF(千円単!S196="","",ROUND(千円単!S196/1000,0)) -> 274 | T196: =IF(千円単!T196="","",ROUND(千円単!T196/1000,0)) -> 146 | U196: =IF(千円単!U196="","",ROUND(千円単!U196/1000,0)) -> 1381 | V196: =IF(千円単!V196="","",ROUND(千円単!V196/1000,0)) -> 239 | W196: =IF(千円単!W196="","",ROUND(千円単!W196/1000,0)) -> 1142 | X196: =IF(千円単!X196="","",ROUND(千円単!X196/1000,0)) -> -850 | Y196: =IF(千円単!Y196="","",ROUND(千円単!Y196/1000,0)) -> 189
A197: 2020 | B197: 46 | C197: 17 | D197: 1 | E197: 196 | F197: 公共 | G197: 102041 | H197: 群馬県 | I197: 伊勢崎市 | J197: =IF(千円単!J197="","",ROUND(千円単!J197/1000,0)) -> 2530 | K197: =IF(千円単!K197="","",ROUND(千円単!K197/1000,0)) -> 730 | L197: =IF(千円単!L197="","",ROUND(千円単!L197/1000,0)) -> 1174 | M197: =IF(千円単!M197="","",ROUND(千円単!M197/1000,0)) -> 2488 | N197: =IF(千円単!N197="","",ROUND(千円単!N197/1000,0)) -> 278 | O197: =IF(千円単!O197="","",ROUND(千円単!O197/1000,0)) -> 1247 | P197: =IF(千円単!P197="","",ROUND(千円単!P197/1000,0)) -> 170 | Q197: =IF(千円単!Q197="","",ROUND(千円単!Q197/1000,0)) -> 42 | R197: =IF(千円単!R197="","",ROUND(千円単!R197/1000,0)) -> 1381 | S197: =IF(千円単!S197="","",ROUND(千円単!S197/1000,0)) -> 862 | T197: =IF(千円単!T197="","",ROUND(千円単!T197/1000,0)) -> 114 | U197: =IF(千円単!U197="","",ROUND(千円単!U197/1000,0)) -> 2219 | V197: =IF(千円単!V197="","",ROUND(千円単!V197/1000,0)) -> 1249 | W197: =IF(千円単!W197="","",ROUND(千円単!W197/1000,0)) -> 971 | X197: =IF(千円単!X197="","",ROUND(千円単!X197/1000,0)) -> -838 | Y197: =IF(千円単!Y197="","",ROUND(千円単!Y197/1000,0)) -> 42
A198: 2020 | B198: 46 | C198: 17 | D198: 1 | E198: 197 | F198: 公共 | G198: 102059 | H198: 群馬県 | I198: 太田市 | J198: =IF(千円単!J198="","",ROUND(千円単!J198/1000,0)) -> 2889 | K198: =IF(千円単!K198="","",ROUND(千円単!K198/1000,0)) -> 831 | L198: =IF(千円単!L198="","",ROUND(千円単!L198/1000,0)) -> 1191 | M198: =IF(千円単!M198="","",ROUND(千円単!M198/1000,0)) -> 2877 | N198: =IF(千円単!N198="","",ROUND(千円単!N198/1000,0)) -> 349 | O198: =IF(千円単!O198="","",ROUND(千円単!O198/1000,0)) -> 1600 | P198: =IF(千円単!P198="","",ROUND(千円単!P198/1000,0)) -> 57 | Q198: =IF(千円単!Q198="","",ROUND(千円単!Q198/1000,0)) -> 12 | R198: =IF(千円単!R198="","",ROUND(千円単!R198/1000,0)) -> 2077 | S198: =IF(千円単!S198="","",ROUND(千円単!S198/1000,0)) -> 1198 | T198: =IF(千円単!T198="","",ROUND(千円単!T198/1000,0)) -> 330 | U198: =IF(千円単!U198="","",ROUND(千円単!U198/1000,0)) -> 2812 | V198: =IF(千円単!V198="","",ROUND(千円単!V198/1000,0)) -> 1400 | W198: =IF(千円単!W198="","",ROUND(千円単!W198/1000,0)) -> 1412 | X198: =IF(千円単!X198="","",ROUND(千円単!X198/1000,0)) -> -735 | Y198: =IF(千円単!Y198="","",ROUND(千円単!Y198/1000,0)) -> 12
A199: 2020 | B199: 46 | C199: 17 | D199: 1 | E199: 198 | F199: 公共 | G199: 102067 | H199: 群馬県 | I199: 沼田市 | J199: =IF(千円単!J199="","",ROUND(千円単!J199/1000,0)) -> 783 | K199: =IF(千円単!K199="","",ROUND(千円単!K199/1000,0)) -> 275 | L199: =IF(千円単!L199="","",ROUND(千円単!L199/1000,0)) -> 400 | M199: =IF(千円単!M199="","",ROUND(千円単!M199/1000,0)) -> 770 | N199: =IF(千円単!N199="","",ROUND(千円単!N199/1000,0)) -> 88 | O199: =IF(千円単!O199="","",ROUND(千円単!O199/1000,0)) -> 334 | P199: =IF(千円単!P199="","",ROUND(千円単!P199/1000,0)) -> 37 | Q199: =IF(千円単!Q199="","",ROUND(千円単!Q199/1000,0)) -> 13 | R199: =IF(千円単!R199="","",ROUND(千円単!R199/1000,0)) -> 282 | S199: =IF(千円単!S199="","",ROUND(千円単!S199/1000,0)) -> 158 | T199: =IF(千円単!T199="","",ROUND(千円単!T199/1000,0)) -> 95 | U199: =IF(千円単!U199="","",ROUND(千円単!U199/1000,0)) -> 547 | V199: =IF(千円単!V199="","",ROUND(千円単!V199/1000,0)) -> 128 | W199: =IF(千円単!W199="","",ROUND(千円単!W199/1000,0)) -> 420 | X199: =IF(千円単!X199="","",ROUND(千円単!X199/1000,0)) -> -265 | Y199: =IF(千円単!Y199="","",ROUND(千円単!Y199/1000,0)) -> 13
A200: 2020 | B200: 46 | C200: 17 | D200: 1 | E200: 199 | F200: 公共 | G200: 102075 | H200: 群馬県 | I200: 館林市 | J200: =IF(千円単!J200="","",ROUND(千円単!J200/1000,0)) -> 1411 | K200: =IF(千円単!K200="","",ROUND(千円単!K200/1000,0)) -> 586 | L200: =IF(千円単!L200="","",ROUND(千円単!L200/1000,0)) -> 427 | M200: =IF(千円単!M200="","",ROUND(千円単!M200/1000,0)) -> 1310 | N200: =IF(千円単!N200="","",ROUND(千円単!N200/1000,0)) -> 100 | O200: =IF(千円単!O200="","",ROUND(千円単!O200/1000,0)) -> 847 | P200: =IF(千円単!P200="","",ROUND(千円単!P200/1000,0)) -> 41 | Q200: =IF(千円単!Q200="","",ROUND(千円単!Q200/1000,0)) -> 101 | R200: =IF(千円単!R200="","",ROUND(千円単!R200/1000,0)) -> 408 | S200: =IF(千円単!S200="","",ROUND(千円単!S200/1000,0)) -> 200 | T200: =IF(千円単!T200="","",ROUND(千円単!T200/1000,0)) -> 34 | U200: =IF(千円単!U200="","",ROUND(千円単!U200/1000,0)) -> 979 | V200: =IF(千円単!V200="","",ROUND(千円単!V200/1000,0)) -> 451 | W200: =IF(千円単!W200="","",ROUND(千円単!W200/1000,0)) -> 528 | X200: =IF(千円単!X200="","",ROUND(千円単!X200/1000,0)) -> -571 | Y200: =IF(千円単!Y200="","",ROUND(千円単!Y200/1000,0)) -> 101
... 3407 more rows

Sheet R1収支
A1: 決算年度 | B1: 業務コード | C1: 業種コード | D1: 事業コード | E1: 並び順 | F1: 事業区分 | G1: 団体コード | H1: 都道府県 | I1: 団体名 | J1: 収入 | K1: 料金収入 | L1: 繰入金 | M1: 支出 | N1: 支払利息 | O1: 減価償却費 | P1: 職員給与費 | Q1: 収支差引 | R1: 収入 | S1: 地方債 | T1: 繰入金 | U1: 支出 | V1: 建設改良費 | W1: 元金償還金 | X1: 収支差引 | Y1: 収支再差引
A2: 2019 | B2: 46 | C2: 17 | D2: 1 | E2: 1 | F2: 公共 | G2: 011002 | H2: 北海道 | I2: 札幌市 | J2: 49360 | K2: 19151 | L2: 18724 | M2: 46871 | N2: 3216 | O2: 24657 | P2: 3009 | Q2: 2489 | R2: 19616 | S2: 13875 | T2: 488 | U2: 36210 | V2: 19989 | W2: 16203 | X2: -16594 | Y2: 2489
A3: 2019 | B3: 46 | C3: 17 | D3: 1 | E3: 2 | F3: 公共 | G3: 012025 | H3: 北海道 | I3: 函館市 | J3: 7436 | K3: 4171 | L3: 1064 | M3: 6480 | N3: 806 | O3: 3489 | P3: 373 | Q3: 957 | R3: 3874 | S3: 2800 | T3: 625 | U3: 6346 | V3: 2174 | W3: 4164 | X3: -2472 | Y3: 957
A4: 2019 | B4: 46 | C4: 17 | D4: 1 | E4: 3 | F4: 公共 | G4: 012033 | H4: 北海道 | I4: 小樽市 | J4: 3603 | K4: 1871 | L4: 828 | M4: 3176 | N4: 172 | O4: 1810 | P4: 103 | Q4: 427 | R4: 1485 | S4: 521 | T4: 377 | U4: 2963 | V4: 856 | W4: 2106 | X4: -1478 | Y4: 427
A5: 2019 | B5: 46 | C5: 17 | D5: 1 | E5: 4 | F5: 公共 | G5: 012041 | H5: 北海道 | I5: 旭川市 | J5: 8674 | K5: 5256 | L5: 947 | M5: 7941 | N5: 520 | O5: 4671 | P5: 368 | Q5: 734 | R5: 2174 | S5: 1305 | T5: 154 | U5: 5772 | V5: 1871 | W5: 3901 | X5: -3598 | Y5: 734
A6: 2019 | B6: 46 | C6: 17 | D6: 1 | E6: 5 | F6: 公共 | G6: 012050 | H6: 北海道 | I6: 室蘭市 | J6: 2992 | K6: 1436 | L6: 820 | M6: 2604 | N6: 216 | O6: 1419 | P6: 104 | Q6: 389 | R6: 632 | S6: 302 | T6: 96 | U6: 1500 | V6: 610 | W6: 887 | X6: -868 | Y6: 389
A7: 2019 | B7: 46 | C7: 17 | D7: 1 | E7: 6 | F7: 公共 | G7: 012068 | H7: 北海道 | I7: 釧路市 | J7: 6288 | K7: 3487 | L7: 779 | M7: 5144 | N7: 383 | O7: 2940 | P7: 237 | Q7: 1143 | R7: 2722 | S7: 1675 | T7: 389 | U7: 4285 | V7: 2041 | W7: 2243 | X7: -1562 | Y7: 1143
A8: 2019 | B8: 46 | C8: 17 | D8: 1 | E8: 7 | F8: 公共 | G8: 012076 | H8: 北海道 | I8: 帯広市 | J8: 4605 | K8: 2659 | L8: 869 | M8: 3991 | N8: 394 | O8: 2250 | P8: 97 | Q8: 615 | R8: 927 | S8: 551 | T8: 3 | U8: 2785 | V8: 811 | W8: 1974 | X8: -1859 | Y8: 615
A9: 2019 | B9: 46 | C9: 17 | D9: 1 | E9: 8 | F9: 公共 | G9: 012084 | H9: 北海道 | I9: 北見市 | J9: 4130 | K9: 1709 | L9: 1040 | M9: 3793 | N9: 433 | O9: 2357 | P9: 181 | Q9: 336 | R9: 2191 | S9: 1270 | T9: 444 | U9: 3510 | V9: 1333 | W9: 2177 | X9: -1320 | Y9: 336
A10: 2019 | B10: 46 | C10: 17 | D10: 1 | E10: 9 | F10: 公共 | G10: 012106 | H10: 北海道 | I10: 岩見沢市 | J10: 2577 | K10: 1190 | L10: 513 | M10: 2310 | N10: 182 | O10: 1308 | P10: 28 | Q10: 266 | R10: 1074 | S10: 315 | T10: 387 | U10: 1799 | V10: 710 | W10: 1088 | X10: -725 | Y10: 266
A11: 2019 | B11: 46 | C11: 17 | D11: 1 | E11: 10 | F11: 公共 | G11: 012131 | H11: 北海道 | I11: 苫小牧市 | J11: 5131 | K11: 2332 | L11: 1101 | M11: 4572 | N11: 514 | O11: 2687 | P11: 141 | Q11: 559 | R11: 1979 | S11: 1307 | T11: 212 | U11: 3684 | V11: 1807 | W11: 1876 | X11: -1705 | Y11: 559
A12: 2019 | B12: 46 | C12: 17 | D12: 1 | E12: 11 | F12: 公共 | G12: 012149 | H12: 北海道 | I12: 稚内市 | J12: 1105 | K12: 457 | L12: 385 | M12: 1077 | N12: 117 | O12: 613 | P12: 16 | Q12: 28 | R12: 604 | S12: 319 | T12: 105 | U12: 1059 | V12: 416 | W12: 643 | X12: -456 | Y12: 28
A13: 2019 | B13: 46 | C13: 17 | D13: 1 | E13: 12 | F13: 公共 | G13: 012173 | H13: 北海道 | I13: 江別市 | J13: 3449 | K13: 1263 | L13: 880 | M13: 3307 | N13: 199 | O13: 2035 | P13: 140 | Q13: 142 | R13: 1127 | S13: 633 | T13: 32 | U13: 2113 | V13: 1119 | W13: 994 | X13: -986 | Y13: 142
A14: 2019 | B14: 46 | C14: 17 | D14: 1 | E14: 13 | F14: 公共 | G14: 012190 | H14: 北海道 | I14: 紋別市 | J14: 1266 | K14: 419 | L14: 538 | M14: 1037 | N14: 107 | O14: 630 | P14: 29 | Q14: 229 | R14: 333 | S14: 273 | T14: 36 | U14: 914 | V14: 193 | W14: 721 | X14: -581 | Y14: 229
A15: 2019 | B15: 46 | C15: 17 | D15: 1 | E15: 14 | F15: 公共 | G15: 012220 | H15: 北海道 | I15: 三笠市 | J15: 577 | K15: 190 | L15: 221 | M15: 545 | N15: 56 | O15: 380 | P15: 17 | Q15: 32 | R15: 117 | S15: 7 | T15: 0 | U15: 340 | V15: 23 | W15: 317 | X15: -223 | Y15: 32
A16: 2019 | B16: 46 | C16: 17 | D16: 1 | E16: 15 | F16: 公共 | G16: 012238 | H16: 北海道 | I16: 根室市 | J16: 802 | K16: 430 | L16: 147 | M16: 848 | N16: 35 | O16: 471 | P16: 35 | Q16: -47 | R16: 140 | S16: 72 | T16: 15 | U16: 361 | V16: 158 | W16: 201 | X16: -222 | Y16: -47
A17: 2019 | B17: 46 | C17: 17 | D17: 1 | E17: 16 | F17: 公共 | G17: 012246 | H17: 北海道 | I17: 千歳市 | J17: 3294 | K17: 1389 | L17: 781 | M17: 3037 | N17: 178 | O17: 1835 | P17: 140 | Q17: 257 | R17: 449 | S17: 206 | T17: 29 | U17: 1316 | V17: 683 | W17: 621 | X17: -868 | Y17: 257
A18: 2019 | B18: 46 | C18: 17 | D18: 1 | E18: 17 | F18: 公共 | G18: 012254 | H18: 北海道 | I18: 滝川市 | J18: 1273 | K18: 714 | L18: 230 | M18: 1221 | N18: 101 | O18: 798 | P18: 8 | Q18: 52 | R18: 862 | S18: 364 | T18: 306 | U18: 1295 | V18: 614 | W18: 681 | X18: -433 | Y18: 52
A19: 2019 | B19: 46 | C19: 17 | D19: 1 | E19: 18 | F19: 公共 | G19: 012262 | H19: 北海道 | I19: 砂川市 | J19: 735 | K19: 341 | L19: 233 | M19: 513 | N19: 48 | O19: 335 | P19: 18 | Q19: 222 | R19: 180 | S19: 136 | T19: 0 | U19: 533 | V19: 121 | W19: 411 | X19: -352 | Y19: 222
A20: 2019 | B20: 46 | C20: 17 | D20: 1 | E20: 19 | F20: 公共 | G20: 012301 | H20: 北海道 | I20: 登別市 | J20: 1808 | K20: 658 | L20: 697 | M20: 1662 | N20: 284 | O20: 981 | P20: 56 | Q20: 146 | R20: 854 | S20: 604 | T20: 157 | U20: 1547 | V20: 324 | W20: 1223 | X20: -693 | Y20: 146
A21: 2019 | B21: 46 | C21: 17 | D21: 1 | E21: 20 | F21: 公共 | G21: 012319 | H21: 北海道 | I21: 恵庭市 | J21: 2596 | K21: 1009 | L21: 678 | M21: 2494 | N21: 170 | O21: 1507 | P21: 69 | Q21: 102 | R21: 1231 | S21: 699 | T21: 107 | U21: 2129 | V21: 1148 | W21: 981 | X21: -898 | Y21: 102
A22: 2019 | B22: 46 | C22: 17 | D22: 1 | E22: 21 | F22: 公共 | G22: 012335 | H22: 北海道 | I22: 伊達市 | J22: 1111 | K22: 606 | L22: 157 | M22: 1111 | N22: 92 | O22: 641 | P22: 58 | Q22: 0 | R22: 662 | S22: 211 | T22: 0 | U22: 1041 | V22: 400 | W22: 640 | X22: -379 | Y22: 0
A23: 2019 | B23: 46 | C23: 17 | D23: 1 | E23: 22 | F23: 公共 | G23: 012343 | H23: 北海道 | I23: 北広島市 | J23: 2276 | K23: 791 | L23: 453 | M23: 2253 | N23: 121 | O23: 1463 | P23: 79 | Q23: 24 | R23: 658 | S23: 388 | T23: 0 | U23: 1248 | V23: 551 | W23: 695 | X23: -590 | Y23: 24
A24: 2019 | B24: 46 | C24: 17 | D24: 1 | E24: 23 | F24: 公共 | G24: 012351 | H24: 北海道 | I24: 石狩市 | J24: 1369 | K24: 588 | L24: 455 | M24: 1296 | N24: 148 | O24: 786 | P24: 64 | Q24: 74 | R24: 597 | S24: 444 | T24: 44 | U24: 1077 | V24: 300 | W24: 777 | X24: -480 | Y24: 74
A25: 2019 | B25: 46 | C25: 17 | D25: 1 | E25: 24 | F25: 公共 | G25: 012360 | H25: 北海道 | I25: 北斗市 | J25: 972 | K25: 584 | L25: 93 | M25: 905 | N25: 108 | O25: 562 | P25: 35 | Q25: 66 | R25: 310 | S25: 52 | T25: 0 | U25: 587 | V25: 116 | W25: 471 | X25: -277 | Y25: 66
A26: 2019 | B26: 46 | C26: 17 | D26: 1 | E26: 25 | F26: 公共 | G26: 013455 | H26: 北海道 | I26: 森町 | J26: 470 | K26: 84 | L26: 240 | M26: 460 | N26: 64 | O26: 272 | P26: 17 | Q26: 9 | R26: 261 | S26: 89 | T26: 0 | U26: 402 | V26: 180 | W26: 222 | X26: -142 | Y26: 9
A27: 2019 | B27: 46 | C27: 17 | D27: 1 | E27: 26 | F27: 公共 | G27: 014028 | H27: 北海道 | I27: 岩内町 | J27: 506 | K27: 69 | L27: 228 | M27: 506 | N27: 55 | O27: 334 | P27: 16 | Q27: 0 | R27: 863 | S27: 302 | T27: 0 | U27: 1032 | V27: 665 | W27: 368 | X27: -169 | Y27: 0
A28: 2019 | B28: 46 | C28: 17 | D28: 1 | E28: 27 | F28: 公共 | G28: 014290 | H28: 北海道 | I28: 栗山町 | J28: 570 | K28: 178 | L28: 245 | M28: 443 | N28: 28 | O28: 275 | P28: 17 | Q28: 127 | R28: 175 | S28: 82 | T28: 54 | U28: 449 | V28: 81 | W28: 368 | X28: -273 | Y28: 127
A29: 2019 | B29: 46 | C29: 17 | D29: 1 | E29: 28 | F29: 公共 | G29: 014532 | H29: 北海道 | I29: 東神楽町 | J29: 196 | K29: 113 | L29: 21 | M29: 252 | N29: 16 | O29: 127 | P29: 14 | Q29: -56 | R29: 150 | S29: 28 | T29: 113 | U29: 156 | V29: 28 | W29: 128 | X29: -6 | Y29: -56
A30: 2019 | B30: 46 | C30: 17 | D30: 1 | E30: 29 | F30: 公共 | G30: 015148 | H30: 北海道 | I30: 枝幸町 | J30: 246 | K30: 64 | L30: 113 | M30: 242 | N30: 17 | O30: 154 | P30: 8 | Q30: 5 | R30: 96 | S30: 22 | T30: 22 | U30: 182 | V30: 64 | W30: 118 | X30: -86 | Y30: 5
A31: 2019 | B31: 46 | C31: 17 | D31: 1 | E31: 30 | F31: 公共 | G31: 015555 | H31: 北海道 | I31: 遠軽町 | J31: 819 | K31: 228 | L31: 379 | M31: 713 | N31: 62 | O31: 409 | P31: 40 | Q31: 106 | R31: 352 | S31: 157 | T31: 49 | U31: 662 | V31: 308 | W31: 354 | X31: -310 | Y31: 106
A32: 2019 | B32: 46 | C32: 17 | D32: 1 | E32: 31 | F32: 公共 | G32: 015865 | H32: 北海道 | I32: むかわ町 | J32: 325 | K32: 54 | L32: 125 | M32: 321 | N32: 23 | O32: 118 | P32: 8 | Q32: 4 | R32: 340 | S32: 90 | T32: 0 | U32: 417 | V32: 276 | W32: 129 | X32: -77 | Y32: 4
A33: 2019 | B33: 46 | C33: 17 | D33: 1 | E33: 32 | F33: 公共 | G33: 016314 | H33: 北海道 | I33: 音更町 | J33: 1115 | K33: 579 | L33: 264 | M33: 931 | N33: 114 | O33: 565 | P33: 5 | Q33: 184 | R33: 583 | S33: 337 | T33: 77 | U33: 1124 | V33: 433 | W33: 691 | X33: -541 | Y33: 184
A34: 2019 | B34: 46 | C34: 17 | D34: 1 | E34: 33 | F34: 公共 | G34: 016365 | H34: 北海道 | I34: 清水町 | J34: 237 | K34: 88 | L34: 89 | M34: 208 | N34: 5 | O34: 124 | P34: 14 | Q34: 29 | R34: 21 | S34: 0 | T34: 6 | U34: 89 | V34: 14 | W34: 75 | X34: -67 | Y34: 29
A35: 2019 | B35: 46 | C35: 17 | D35: 1 | E35: 34 | F35: 公共 | G35: 016446 | H35: 北海道 | I35: 池田町 | J35: 347 | K35: 97 | L35: 113 | M35: 330 | N35: 18 | O35: 197 | P35: 42 | Q35: 18 | R35: 129 | S35: 47 | T35: 6 | U35: 216 | V35: 51 | W35: 165 | X35: -87 | Y35: 18
A36: 2019 | B36: 46 | C36: 17 | D36: 1 | E36: 35 | F36: 公共 | G36: 022021 | H36: 青森県 | I36: 弘前市 | J36: 4774 | K36: 2785 | L36: 1239 | M36: 4086 | N36: 468 | O36: 2092 | P36: 193 | Q36: 688 | R36: 1444 | S36: 1089 | T36: 0 | U36: 3403 | V36: 289 | W36: 3114 | X36: -1960 | Y36: 688
A37: 2019 | B37: 46 | C37: 17 | D37: 1 | E37: 36 | F37: 公共 | G37: 022047 | H37: 青森県 | I37: 黒石市 | J37: 704 | K37: 326 | L37: 73 | M37: 570 | N37: 87 | O37: 305 | P37: 31 | Q37: 134 | R37: 638 | S37: 333 | T37: 280 | U37: 743 | V37: 105 | W37: 638 | X37: -105 | Y37: 134
A38: 2019 | B38: 46 | C38: 17 | D38: 1 | E38: 37 | F38: 公共 | G38: 022055 | H38: 青森県 | I38: 五所川原市 | J38: 644 | K38: 359 | L38: 83 | M38: 756 | N38: 79 | O38: 429 | P38: 24 | Q38: -112 | R38: 740 | S38: 344 | T38: 0 | U38: 942 | V38: 483 | W38: 459 | X38: -202 | Y38: -112
A39: 2019 | B39: 46 | C39: 17 | D39: 1 | E39: 38 | F39: 公共 | G39: 022063 | H39: 青森県 | I39: 十和田市 | J39: 1602 | K39: 829 | L39: 349 | M39: 1536 | N39: 205 | O39: 909 | P39: 70 | Q39: 66 | R39: 1248 | S39: 788 | T39: 137 | U39: 1887 | V39: 764 | W39: 1122 | X39: -639 | Y39: 66
A40: 2019 | B40: 46 | C40: 17 | D40: 1 | E40: 39 | F40: 公共 | G40: 022101 | H40: 青森県 | I40: 平川市 | J40: 663 | K40: 300 | L40: 243 | M40: 568 | N40: 79 | O40: 330 | P40: 19 | Q40: 95 | R40: 125 | S40: 38 | T40: 0 | U40: 431 | V40: 38 | W40: 392 | X40: -306 | Y40: 95
A41: 2019 | B41: 46 | C41: 17 | D41: 1 | E41: 40 | F41: 公共 | G41: 023612 | H41: 青森県 | I41: 藤崎町 | J41: 239 | K41: 87 | L41: 77 | M41: 238 | N41: 33 | O41: 163 | P41: 0 | Q41: 1 | R41: 356 | S41: 187 | T41: 0 | U41: 451 | V41: 236 | W41: 215 | X41: -95 | Y41: 1
A42: 2019 | B42: 46 | C42: 17 | D42: 1 | E42: 41 | F42: 公共 | G42: 023671 | H42: 青森県 | I42: 田舎館村 | J42: 287 | K42: 106 | L42: 79 | M42: 221 | N42: 40 | O42: 127 | P42: 6 | Q42: 66 | R42: 132 | S42: 74 | T42: 57 | U42: 219 | V42: 5 | W42: 214 | X42: -87 | Y42: 66
A43: 2019 | B43: 46 | C43: 17 | D43: 1 | E43: 42 | F43: 公共 | G43: 023817 | H43: 青森県 | I43: 板柳町 | J43: 298 | K43: 81 | L43: 74 | M43: 263 | N43: 53 | O43: 157 | P43: 8 | Q43: 35 | R43: 325 | S43: 176 | T43: 77 | U43: 399 | V43: 179 | W43: 219 | X43: -73 | Y43: 35
A44: 2019 | B44: 46 | C44: 17 | D44: 1 | E44: 43 | F44: 公共 | G44: 023841 | H44: 青森県 | I44: 鶴田町 | J44: 388 | K44: 56 | L44: 195 | M44: 318 | N44: 53 | O44: 229 | P44: 5 | Q44: 70 | R44: 7 | S44: 0 | T44: 5 | U44: 211 | V44: 2 | W44: 210 | X44: -205 | Y44: 70
A45: 2019 | B45: 46 | C45: 17 | D45: 1 | E45: 44 | F45: 公共 | G45: 024112 | H45: 青森県 | I45: 六ケ所村 | J45: 669 | K45: 44 | L45: 372 | M45: 668 | N45: 70 | O45: 417 | P45: 19 | Q45: 1 | R45: 252 | S45: 127 | T45: 0 | U45: 412 | V45: 227 | W45: 184 | X45: -159 | Y45: 1
A46: 2019 | B46: 46 | C46: 17 | D46: 1 | E46: 45 | F46: 公共 | G46: 032018 | H46: 岩手県 | I46: 盛岡市 | J46: 8086 | K46: 4275 | L46: 2723 | M46: 7339 | N46: 712 | O46: 4057 | P46: 324 | Q46: 748 | R46: 2354 | S46: 975 | T46: 499 | U46: 5512 | V46: 2135 | W46: 3374 | X46: -3158 | Y46: 748
A47: 2019 | B47: 46 | C47: 17 | D47: 1 | E47: 46 | F47: 公共 | G47: 032026 | H47: 岩手県 | I47: 宮古市 | J47: 1535 | K47: 537 | L47: 396 | M47: 1326 | N47: 134 | O47: 695 | P47: 51 | Q47: 209 | R47: 1475 | S47: 285 | T47: 1064 | U47: 2113 | V47: 1229 | W47: 883 | X47: -638 | Y47: 209
A48: 2019 | B48: 46 | C48: 17 | D48: 1 | E48: 47 | F48: 公共 | G48: 032051 | H48: 岩手県 | I48: 花巻市 | J48: 2209 | K48: 718 | L48: 1086 | M48: 2151 | N48: 354 | O48: 1273 | P48: 54 | Q48: 58 | R48: 1708 | S48: 1084 | T48: 0 | U48: 2873 | V48: 689 | W48: 2184 | X48: -1165 | Y48: 58
A49: 2019 | B49: 46 | C49: 17 | D49: 1 | E49: 48 | F49: 公共 | G49: 032069 | H49: 岩手県 | I49: 北上市 | J49: 2003 | K49: 1216 | L49: 484 | M49: 2095 | N49: 296 | O49: 955 | P49: 43 | Q49: -92 | R49: 1020 | S49: 542 | T49: 0 | U49: 1769 | V49: 281 | W49: 1488 | X49: -749 | Y49: -92
A50: 2019 | B50: 46 | C50: 17 | D50: 1 | E50: 49 | F50: 公共 | G50: 032077 | H50: 岩手県 | I50: 久慈市 | J50: 877 | K50: 151 | L50: 422 | M50: 845 | N50: 102 | O50: 503 | P50: 53 | Q50: 33 | R50: 875 | S50: 335 | T50: 0 | U50: 830 | V50: 475 | W50: 356 | X50: 45 | Y50: 33
A51: 2019 | B51: 46 | C51: 17 | D51: 1 | E51: 50 | F51: 公共 | G51: 032085 | H51: 岩手県 | I51: 遠野市 | J51: 543 | K51: 125 | L51: 282 | M51: 528 | N51: 86 | O51: 302 | P51: 23 | Q51: 14 | R51: 319 | S51: 43 | T51: 224 | U51: 451 | V51: 106 | W51: 345 | X51: -132 | Y51: 14
A52: 2019 | B52: 46 | C52: 17 | D52: 1 | E52: 51 | F52: 公共 | G52: 032115 | H52: 岩手県 | I52: 釜石市 | J52: 1171 | K52: 398 | L52: 327 | M52: 1206 | N52: 74 | O52: 669 | P52: 64 | Q52: -35 | R52: 2129 | S52: 251 | T52: 1614 | U52: 2471 | V52: 2208 | W52: 262 | X52: -342 | Y52: -35
A53: 2019 | B53: 46 | C53: 17 | D53: 1 | E53: 52 | F53: 公共 | G53: 032166 | H53: 岩手県 | I53: 滝沢市 | J53: 1111 | K53: 497 | L53: 288 | M53: 950 | N53: 98 | O53: 567 | P53: 25 | Q53: 161 | R53: 487 | S53: 296 | T53: 17 | U53: 847 | V53: 473 | W53: 374 | X53: -361 | Y53: 161
A54: 2019 | B54: 46 | C54: 17 | D54: 1 | E54: 53 | F54: 公共 | G54: 033014 | H54: 岩手県 | I54: 雫石町 | J54: 447 | K54: 114 | L54: 181 | M54: 453 | N54: 57 | O54: 313 | P54: 6 | Q54: -6 | R54: 401 | S54: 280 | T54: 0 | U54: 587 | V54: 232 | W54: 354 | X54: -186 | Y54: -6
A55: 2019 | B55: 46 | C55: 17 | D55: 1 | E55: 54 | F55: 公共 | G55: 033031 | H55: 岩手県 | I55: 岩手町 | J55: 251 | K55: 43 | L55: 130 | M55: 246 | N55: 36 | O55: 147 | P55: 19 | Q55: 4 | R55: 206 | S55: 126 | T55: 0 | U55: 273 | V55: 138 | W55: 135 | X55: -67 | Y55: 4
A56: 2019 | B56: 46 | C56: 17 | D56: 1 | E56: 55 | F56: 公共 | G56: 033219 | H56: 岩手県 | I56: 紫波町 | J56: 712 | K56: 303 | L56: 365 | M56: 755 | N56: 76 | O56: 478 | P56: 27 | Q56: -42 | R56: 155 | S56: 99 | T56: 7 | U56: 478 | V56: 203 | W56: 275 | X56: -323 | Y56: -42
A57: 2019 | B57: 46 | C57: 17 | D57: 1 | E57: 56 | F57: 公共 | G57: 033227 | H57: 岩手県 | I57: 矢巾町 | J57: 915 | K57: 404 | L57: 323 | M57: 644 | N57: 69 | O57: 376 | P57: 6 | Q57: 271 | R57: 206 | S57: 80 | T57: 41 | U57: 443 | V57: 223 | W57: 220 | X57: -237 | Y57: 271
A58: 2019 | B58: 46 | C58: 17 | D58: 1 | E58: 57 | F58: 公共 | G58: 033812 | H58: 岩手県 | I58: 金ケ崎町 | J58: 456 | K58: 173 | L58: 189 | M58: 411 | N58: 69 | O58: 204 | P58: 6 | Q58: 45 | R58: 209 | S58: 156 | T58: 30 | U58: 390 | V58: 37 | W58: 353 | X58: -180 | Y58: 45
A59: 2019 | B59: 46 | C59: 17 | D59: 1 | E59: 58 | F59: 公共 | G59: 041009 | H59: 宮城県 | I59: 仙台市 | J59: 34033 | K59: 16144 | L59: 6554 | M59: 30711 | N59: 2975 | O59: 19203 | P59: 1098 | Q59: 3322 | R59: 19955 | S59: 13709 | T59: 1586 | U59: 33050 | V59: 14532 | W59: 18518 | X59: -13096 | Y59: 3322
A60: 2019 | B60: 46 | C60: 17 | D60: 1 | E60: 59 | F60: 公共 | G60: 042064 | H60: 宮城県 | I60: 白石市 | J60: 831 | K60: 555 | L60: 50 | M60: 769 | N60: 98 | O60: 474 | P60: 19 | Q60: 62 | R60: 524 | S60: 321 | T60: 141 | U60: 843 | V60: 124 | W60: 719 | X60: -320 | Y60: 62
A61: 2019 | B61: 46 | C61: 17 | D61: 1 | E61: 60 | F61: 公共 | G61: 042072 | H61: 宮城県 | I61: 名取市 | J61: 2819 | K61: 1297 | L61: 760 | M61: 2823 | N61: 268 | O61: 1555 | P61: 54 | Q61: -4 | R61: 2284 | S61: 789 | T61: 0 | U61: 3447 | V61: 1790 | W61: 1657 | X61: -1163 | Y61: -4
A62: 2019 | B62: 46 | C62: 17 | D62: 1 | E62: 61 | F62: 公共 | G62: 042111 | H62: 宮城県 | I62: 岩沼市 | J62: 1827 | K62: 684 | L62: 216 | M62: 1754 | N62: 101 | O62: 1179 | P62: 43 | Q62: 73 | R62: 520 | S62: 146 | T62: 10 | U62: 2333 | V62: 1803 | W62: 530 | X62: -1813 | Y62: 73
A63: 2019 | B63: 46 | C63: 17 | D63: 1 | E63: 62 | F63: 公共 | G63: 045012 | H63: 宮城県 | I63: 涌谷町 | J63: 351 | K63: 82 | L63: 164 | M63: 334 | N63: 55 | O63: 193 | P63: 25 | Q63: 16 | R63: 188 | S63: 75 | T63: 0 | U63: 291 | V63: 52 | W63: 239 | X63: -103 | Y63: 16
A64: 2019 | B64: 46 | C64: 17 | D64: 1 | E64: 63 | F64: 公共 | G64: 045055 | H64: 宮城県 | I64: 美里町 | J64: 432 | K64: 141 | L64: 190 | M64: 428 | N64: 65 | O64: 246 | P64: 18 | Q64: 4 | R64: 628 | S64: 363 | T64: 0 | U64: 769 | V64: 425 | W64: 344 | X64: -141 | Y64: 4
A65: 2019 | B65: 46 | C65: 17 | D65: 1 | E65: 64 | F65: 公共 | G65: 052019 | H65: 秋田県 | I65: 秋田市 | J65: 10125 | K65: 4900 | L65: 3263 | M65: 8922 | N65: 912 | O65: 5151 | P65: 326 | Q65: 1203 | R65: 5479 | S65: 3273 | T65: 839 | U65: 9625 | V65: 4213 | W65: 5411 | X65: -4145 | Y65: 1203
A66: 2019 | B66: 46 | C66: 17 | D66: 1 | E66: 65 | F66: 公共 | G66: 052027 | H66: 秋田県 | I66: 能代市 | J66: 1455 | K66: 405 | L66: 668 | M66: 1343 | N66: 156 | O66: 806 | P66: 26 | Q66: 113 | R66: 2188 | S66: 1314 | T66: 66 | U66: 2657 | V66: 1860 | W66: 797 | X66: -469 | Y66: 113
A67: 2019 | B67: 46 | C67: 17 | D67: 1 | E67: 66 | F67: 公共 | G67: 052035 | H67: 秋田県 | I67: 横手市 | J67: 1628 | K67: 634 | L67: 720 | M67: 1556 | N67: 232 | O67: 845 | P67: 95 | Q67: 72 | R67: 1206 | S67: 626 | T67: 440 | U67: 1741 | V67: 355 | W67: 1386 | X67: -535 | Y67: 72
A68: 2019 | B68: 46 | C68: 17 | D68: 1 | E68: 67 | F68: 公共 | G68: 052043 | H68: 秋田県 | I68: 大館市 | J68: 1197 | K68: 481 | L68: 489 | M68: 1212 | N68: 190 | O68: 646 | P68: 57 | Q68: -15 | R68: 1068 | S68: 716 | T68: 163 | U68: 1574 | V68: 491 | W68: 1083 | X68: -507 | Y68: -15
A69: 2019 | B69: 46 | C69: 17 | D69: 1 | E69: 68 | F69: 公共 | G69: 052060 | H69: 秋田県 | I69: 男鹿市 | J69: 654 | K69: 193 | L69: 295 | M69: 585 | N69: 116 | O69: 362 | P69: 16 | Q69: 68 | R69: 591 | S69: 380 | T69: 98 | U69: 892 | V69: 262 | W69: 630 | X69: -300 | Y69: 68
A70: 2019 | B70: 46 | C70: 17 | D70: 1 | E70: 69 | F70: 公共 | G70: 052116 | H70: 秋田県 | I70: 潟上市 | J70: 568 | K70: 266 | L70: 112 | M70: 570 | N70: 56 | O70: 345 | P70: 25 | Q70: -2 | R70: 217 | S70: 122 | T70: 95 | U70: 375 | V70: 31 | W70: 344 | X70: -158 | Y70: -2
A71: 2019 | B71: 46 | C71: 17 | D71: 1 | E71: 70 | F71: 公共 | G71: 052124 | H71: 秋田県 | I71: 大仙市 | J71: 1264 | K71: 322 | L71: 569 | M71: 1015 | N71: 153 | O71: 511 | P71: 50 | Q71: 249 | R71: 745 | S71: 377 | T71: 220 | U71: 1090 | V71: 337 | W71: 752 | X71: -344 | Y71: 249
A72: 2019 | B72: 46 | C72: 17 | D72: 1 | E72: 71 | F72: 公共 | G72: 062014 | H72: 山形県 | I72: 山形市 | J72: 6944 | K72: 3853 | L72: 1419 | M72: 6847 | N72: 1197 | O72: 4096 | P72: 275 | Q72: 97 | R72: 6188 | S72: 3733 | T72: 1558 | U72: 8339 | V72: 2527 | W72: 5812 | X72: -2150 | Y72: 97
A73: 2019 | B73: 46 | C73: 17 | D73: 1 | E73: 72 | F73: 公共 | G73: 062022 | H73: 山形県 | I73: 米沢市 | J73: 2147 | K73: 1079 | L73: 510 | M73: 2183 | N73: 271 | O73: 1181 | P73: 132 | Q73: -36 | R73: 1429 | S73: 781 | T73: 151 | U73: 2134 | V73: 951 | W73: 1183 | X73: -706 | Y73: -36
A74: 2019 | B74: 46 | C74: 17 | D74: 1 | E74: 73 | F74: 公共 | G74: 062031 | H74: 山形県 | I74: 鶴岡市 | J74: 4325 | K74: 2128 | L74: 733 | M74: 4271 | N74: 498 | O74: 2382 | P74: 166 | Q74: 55 | R74: 3445 | S74: 1428 | T74: 937 | U74: 4839 | V74: 2374 | W74: 2465 | X74: -1394 | Y74: 55
A75: 2019 | B75: 46 | C75: 17 | D75: 1 | E75: 74 | F75: 公共 | G75: 062049 | H75: 山形県 | I75: 酒田市 | J75: 3621 | K75: 1479 | L75: 1745 | M75: 3596 | N75: 480 | O75: 2119 | P75: 94 | Q75: 25 | R75: 490 | S75: 252 | T75: 0 | U75: 2339 | V75: 455 | W75: 1876 | X75: -1849 | Y75: 25
A76: 2019 | B76: 46 | C76: 17 | D76: 1 | E76: 75 | F76: 公共 | G76: 062103 | H76: 山形県 | I76: 天童市 | J76: 1028 | K76: 788 | L76: 56 | M76: 1026 | N76: 138 | O76: 566 | P76: 17 | Q76: 2 | R76: 530 | S76: 300 | T76: 144 | U76: 999 | V76: 393 | W76: 606 | X76: -469 | Y76: 2
A77: 2019 | B77: 46 | C77: 17 | D77: 1 | E77: 76 | F77: 公共 | G77: 062138 | H77: 山形県 | I77: 南陽市 | J77: 998 | K77: 346 | L77: 445 | M77: 990 | N77: 134 | O77: 554 | P77: 35 | Q77: 8 | R77: 642 | S77: 261 | T77: 54 | U77: 1050 | V77: 355 | W77: 695 | X77: -409 | Y77: 8
A78: 2019 | B78: 46 | C78: 17 | D78: 1 | E78: 77 | F78: 公共 | G78: 064289 | H78: 山形県 | I78: 庄内町 | J78: 481 | K78: 139 | L78: 68 | M78: 473 | N78: 68 | O78: 275 | P78: 20 | Q78: 8 | R78: 307 | S78: 20 | T78: 284 | U78: 305 | V78: 20 | W78: 285 | X78: 2 | Y78: 8
A79: 2019 | B79: 46 | C79: 17 | D79: 1 | E79: 78 | F79: 公共 | G79: 072010 | H79: 福島県 | I79: 福島市 | J79: 7415 | K79: 3188 | L79: 2444 | M79: 6710 | N79: 925 | O79: 3833 | P79: 111 | Q79: 705 | R79: 2801 | S79: 1326 | T79: 0 | U79: 5774 | V79: 2162 | W79: 3612 | X79: -2973 | Y79: 705
A80: 2019 | B80: 46 | C80: 17 | D80: 1 | E80: 79 | F80: 公共 | G80: 072036 | H80: 福島県 | I80: 郡山市 | J80: 8039 | K80: 3888 | L80: 2845 | M80: 7940 | N80: 1041 | O80: 3974 | P80: 243 | Q80: 99 | R80: 8385 | S80: 3809 | T80: 0 | U80: 10784 | V80: 5490 | W80: 5293 | X80: -2399 | Y80: 99
A81: 2019 | B81: 46 | C81: 17 | D81: 1 | E81: 80 | F81: 公共 | G81: 072044 | H81: 福島県 | I81: いわき市 | J81: 8398 | K81: 3446 | L81: 2842 | M81: 7900 | N81: 916 | O81: 4264 | P81: 201 | Q81: 498 | R81: 4351 | S81: 2415 | T81: 1040 | U81: 7132 | V81: 3131 | W81: 3993 | X81: -2782 | Y81: 498
A82: 2019 | B82: 46 | C82: 17 | D82: 1 | E82: 81 | F82: 公共 | G82: 072109 | H82: 福島県 | I82: 二本松市 | J82: 534 | K82: 145 | L82: 287 | M82: 534 | N82: 71 | O82: 236 | P82: 27 | Q82: 0 | R82: 31 | S82: 15 | T82: 6 | U82: 283 | V82: 20 | W82: 263 | X82: -251 | Y82: 0
A83: 2019 | B83: 46 | C83: 17 | D83: 1 | E83: 82 | F83: 公共 | G83: 072117 | H83: 福島県 | I83: 田村市 | J83: 552 | K83: 147 | L83: 258 | M83: 552 | N83: 91 | O83: 322 | P83: 11 | Q83: 0 | R83: 318 | S83: 72 | T83: 0 | U83: 479 | V83: 161 | W83: 318 | X83: -161 | Y83: 0
A84: 2019 | B84: 46 | C84: 17 | D84: 1 | E84: 83 | F84: 公共 | G84: 072125 | H84: 福島県 | I84: 南相馬市 | J84: 1806 | K84: 462 | L84: 567 | M84: 1675 | N84: 167 | O84: 893 | P84: 48 | Q84: 131 | R84: 1070 | S84: 687 | T84: 0 | U84: 1544 | V84: 735 | W84: 808 | X84: -474 | Y84: 131
A85: 2019 | B85: 46 | C85: 17 | D85: 1 | E85: 84 | F85: 公共 | G85: 072141 | H85: 福島県 | I85: 本宮市 | J85: 794 | K85: 240 | L85: 305 | M85: 742 | N85: 63 | O85: 423 | P85: 14 | Q85: 52 | R85: 544 | S85: 339 | T85: 40 | U85: 753 | V85: 347 | W85: 406 | X85: -208 | Y85: 52
A86: 2019 | B86: 46 | C86: 17 | D86: 1 | E86: 85 | F86: 公共 | G86: 075213 | H86: 福島県 | I86: 三春町 | J86: 191 | K86: 90 | L86: 21 | M86: 196 | N86: 21 | O86: 134 | P86: 10 | Q86: -5 | R86: 99 | S86: 0 | T86: 0 | U86: 125 | V86: 4 | W86: 121 | X86: -26 | Y86: -5
A87: 2019 | B87: 46 | C87: 17 | D87: 1 | E87: 86 | F87: 公共 | G87: 082015 | H87: 茨城県 | I87: 水戸市 | J87: 8799 | K87: 3234 | L87: 3693 | M87: 8494 | N87: 1382 | O87: 5397 | P87: 193 | Q87: 305 | R87: 5762 | S87: 2993 | T87: 650 | U87: 9845 | V87: 4279 | W87: 5563 | X87: -4083 | Y87: 305
A88: 2019 | B88: 46 | C88: 17 | D88: 1 | E88: 87 | F88: 公共 | G88: 082023 | H88: 茨城県 | I88: 日立市 | J88: 3871 | K88: 2529 | L88: 93 | M88: 3470 | N88: 215 | O88: 2071 | P88: 98 | Q88: 402 | R88: 947 | S88: 280 | T88: 326 | U88: 2151 | V88: 844 | W88: 1308 | X88: -1204 | Y88: 402
A89: 2019 | B89: 46 | C89: 17 | D89: 1 | E89: 88 | F89: 公共 | G89: 082121 | H89: 茨城県 | I89: 常陸太田市 | J89: 964 | K89: 233 | L89: 468 | M89: 725 | N89: 78 | O89: 428 | P89: 34 | Q89: 239 | R89: 223 | S89: 124 | T89: 9 | U89: 569 | V89: 227 | W89: 342 | X89: -346 | Y89: 239
A90: 2019 | B90: 46 | C90: 17 | D90: 1 | E90: 89 | F90: 公共 | G90: 082163 | H90: 茨城県 | I90: 笠間市 | J90: 1807 | K90: 585 | L90: 649 | M90: 1759 | N90: 234 | O90: 1020 | P90: 62 | Q90: 49 | R90: 1294 | S90: 801 | T90: 248 | U90: 1867 | V90: 648 | W90: 1219 | X90: -573 | Y90: 49
A91: 2019 | B91: 46 | C91: 17 | D91: 1 | E91: 90 | F91: 公共 | G91: 082228 | H91: 茨城県 | I91: 鹿嶋市 | J91: 1404 | K91: 521 | L91: 422 | M91: 1371 | N91: 141 | O91: 872 | P91: 29 | Q91: 33 | R91: 784 | S91: 458 | T91: 0 | U91: 1300 | V91: 809 | W91: 489 | X91: -516 | Y91: 33
A92: 2019 | B92: 46 | C92: 17 | D92: 1 | E92: 91 | F92: 公共 | G92: 082244 | H92: 茨城県 | I92: 守谷市 | J92: 2315 | K92: 1373 | L92: 28 | M92: 1994 | N92: 65 | O92: 1154 | P92: 68 | Q92: 322 | R92: 267 | S92: 0 | T92: 19 | U92: 476 | V92: 129 | W92: 278 | X92: -209 | Y92: 322
A93: 2019 | B93: 46 | C93: 17 | D93: 1 | E93: 92 | F93: 公共 | G93: 082252 | H93: 茨城県 | I93: 常陸大宮市 | J93: 520 | K93: 144 | L93: 254 | M93: 434 | N93: 55 | O93: 222 | P93: 27 | Q93: 86 | R93: 456 | S93: 291 | T93: 9 | U93: 662 | V93: 471 | W93: 191 | X93: -206 | Y93: 86
A94: 2019 | B94: 46 | C94: 17 | D94: 1 | E94: 93 | F94: 公共 | G94: 082295 | H94: 茨城県 | I94: 稲敷市 | J94: 505 | K94: 44 | L94: 284 | M94: 373 | N94: 62 | O94: 236 | P94: 12 | Q94: 132 | R94: 53 | S94: 8 | T94: 45 | U94: 236 | V94: 27 | W94: 206 | X94: -183 | Y94: 132
A95: 2019 | B95: 46 | C95: 17 | D95: 1 | E95: 94 | F95: 公共 | G95: 082309 | H95: 茨城県 | I95: かすみがうら市 | J95: 767 | K95: 274 | L95: 327 | M95: 599 | N95: 59 | O95: 239 | P95: 52 | Q95: 167 | R95: 102 | S95: 42 | T95: 54 | U95: 322 | V95: 35 | W95: 287 | X95: -220 | Y95: 167
A96: 2019 | B96: 46 | C96: 17 | D96: 1 | E96: 95 | F96: 公共 | G96: 083411 | H96: 茨城県 | I96: 東海村 | J96: 756 | K96: 321 | L96: 173 | M96: 744 | N96: 73 | O96: 450 | P96: 24 | Q96: 12 | R96: 568 | S96: 61 | T96: 0 | U96: 523 | V96: 177 | W96: 346 | X96: 45 | Y96: 12
A97: 2019 | B97: 46 | C97: 17 | D97: 1 | E97: 96 | F97: 公共 | G97: 089192 | H97: 茨城県 | I97: 取手地方広域下水道組合 | J97: 3955 | K97: 1098 | L97: 1582 | M97: 3797 | N97: 400 | O97: 2395 | P97: 252 | Q97: 158 | R97: 1799 | S97: 774 | T97: 270 | U97: 2941 | V97: 1469 | W97: 1470 | X97: -1142 | Y97: 158
A98: 2019 | B98: 46 | C98: 17 | D98: 1 | E98: 97 | F98: 公共 | G98: 089222 | H98: 茨城県 | I98: 日立・高萩広域下水道組合 | J98: 2187 | K98: 1165 | L98: 464 | M98: 2185 | N98: 207 | O98: 1324 | P98: 186 | Q98: 2 | R98: 911 | S98: 252 | T98: 0 | U98: 1827 | V98: 666 | W98: 1161 | X98: -916 | Y98: 2
A99: 2019 | B99: 46 | C99: 17 | D99: 1 | E99: 98 | F99: 公共 | G99: 092011 | H99: 栃木県 | I99: 宇都宮市 | J99: 11500 | K99: 6834 | L99: 2254 | M99: 11195 | N99: 897 | O99: 5968 | P99: 409 | Q99: 305 | R99: 3057 | S99: 1165 | T99: 230 | U99: 7504 | V99: 2923 | W99: 4582 | X99: -4448 | Y99: 305
A100: 2019 | B100: 46 | C100: 17 | D100: 1 | E100: 99 | F100: 公共 | G100: 092037 | H100: 栃木県 | I100: 栃木市 | J100: 3463 | K100: 1185 | L100: 1707 | M100: 3134 | N100: 426 | O100: 1656 | P100: 138 | Q100: 328 | R100: 1519 | S100: 697 | T100: 420 | U100: 2849 | V100: 1193 | W100: 1656 | X100: -1330 | Y100: 328
A101: 2019 | B101: 46 | C101: 17 | D101: 1 | E101: 100 | F101: 公共 | G101: 092088 | H101: 栃木県 | I101: 小山市 | J101: 3826 | K101: 1329 | L101: 1403 | M101: 3545 | N101: 423 | O101: 2197 | P101: 75 | Q101: 281 | R101: 2327 | S101: 1477 | T101: 178 | U101: 3781 | V101: 1606 | W101: 2174 | X101: -1454 | Y101: 281
A102: 2019 | B102: 46 | C102: 17 | D102: 1 | E102: 101 | F102: 公共 | G102: 092142 | H102: 栃木県 | I102: さくら市 | J102: 831 | K102: 196 | L102: 423 | M102: 666 | N102: 81 | O102: 395 | P102: 30 | Q102: 165 | R102: 510 | S102: 222 | T102: 10 | U102: 875 | V102: 573 | W102: 302 | X102: -365 | Y102: 165
A103: 2019 | B103: 46 | C103: 17 | D103: 1 | E103: 102 | F103: 公共 | G103: 092169 | H103: 栃木県 | I103: 下野市 | J103: 1450 | K103: 554 | L103: 242 | M103: 1165 | N103: 92 | O103: 701 | P103: 23 | Q103: 285 | R103: 637 | S103: 225 | T103: 203 | U103: 873 | V103: 520 | W103: 353 | X103: -235 | Y103: 285
A104: 2019 | B104: 46 | C104: 17 | D104: 1 | E104: 103 | F104: 公共 | G104: 093017 | H104: 栃木県 | I104: 上三川町 | J104: 649 | K104: 232 | L104: 106 | M104: 632 | N104: 69 | O104: 332 | P104: 21 | Q104: 17 | R104: 534 | S104: 148 | T104: 249 | U104: 568 | V104: 277 | W104: 291 | X104: -33 | Y104: 17
A105: 2019 | B105: 46 | C105: 17 | D105: 1 | E105: 104 | F105: 公共 | G105: 093866 | H105: 栃木県 | I105: 高根沢町 | J105: 585 | K105: 165 | L105: 245 | M105: 552 | N105: 66 | O105: 322 | P105: 15 | Q105: 33 | R105: 286 | S105: 88 | T105: 0 | U105: 448 | V105: 229 | W105: 218 | X105: -162 | Y105: 33
A106: 2019 | B106: 46 | C106: 17 | D106: 1 | E106: 105 | F106: 公共 | G106: 102016 | H106: 群馬県 | I106: 前橋市 | J106: 6946 | K106: 3031 | L106: 2357 | M106: 6508 | N106: 704 | O106: 3111 | P106: 315 | Q106: 437 | R106: 3147 | S106: 1759 | T106: 462 | U106: 5767 | V106: 2673 | W106: 3094 | X106: -2620 | Y106: 437
A107: 2019 | B107: 46 | C107: 17 | D107: 1 | E107: 106 | F107: 公共 | G107: 102024 | H107: 群馬県 | I107: 高崎市 | J107: 8283 | K107: 3781 | L107: 3114 | M107: 6705 | N107: 776 | O107: 3465 | P107: 389 | Q107: 1578 | R107: 3604 | S107: 1902 | T107: 395 | U107: 6769 | V107: 3811 | W107: 2957 | X107: -3165 | Y107: 1578
A108: 2019 | B108: 46 | C108: 17 | D108: 1 | E108: 107 | F108: 公共 | G108: 102059 | H108: 群馬県 | I108: 太田市 | J108: 2855 | K108: 820 | L108: 1205 | M108: 2881 | N108: 372 | O108: 1537 | P108: 59 | Q108: -26 | R108: 2313 | S108: 1504 | T108: 257 | U108: 3177 | V108: 1733 | W108: 1439 | X108: -865 | Y108: -26
A109: 2019 | B109: 46 | C109: 17 | D109: 1 | E109: 108 | F109: 公共 | G109: 102105 | H109: 群馬県 | I109: 富岡市 | J109: 457 | K109: 124 | L109: 131 | M109: 366 | N109: 47 | O109: 222 | P109: 12 | Q109: 91 | R109: 312 | S109: 56 | T109: 187 | U109: 433 | V109: 175 | W109: 258 | X109: -121 | Y109: 91
A110: 2019 | B110: 46 | C110: 17 | D110: 1 | E110: 109 | F110: 公共 | G110: 111007 | H110: 埼玉県 | I110: さいたま市 | J110: 24517 | K110: 16964 | L110: 4429 | M110: 23570 | N110: 2743 | O110: 12889 | P110: 589 | Q110: 947 | R110: 13477 | S110: 11480 | T110: 358 | U110: 24963 | V110: 12883 | W110: 12076 | X110: -11486 | Y110: 947
A111: 2019 | B111: 46 | C111: 17 | D111: 1 | E111: 110 | F111: 公共 | G111: 112011 | H111: 埼玉県 | I111: 川越市 | J111: 6025 | K111: 3204 | L111: 1910 | M111: 6010 | N111: 322 | O111: 2706 | P111: 381 | Q111: 15 | R111: 650 | S111: 339 | T111: 260 | U111: 2214 | V111: 1020 | W111: 1193 | X111: -1564 | Y111: 15
A112: 2019 | B112: 46 | C112: 17 | D112: 1 | E112: 111 | F112: 公共 | G112: 112020 | H112: 埼玉県 | I112: 熊谷市 | J112: 3751 | K112: 1284 | L112: 1462 | M112: 3498 | N112: 276 | O112: 2042 | P112: 128 | Q112: 253 | R112: 833 | S112: 518 | T112: 55 | U112: 2179 | V112: 853 | W112: 1326 | X112: -1346 | Y112: 253
A113: 2019 | B113: 46 | C113: 17 | D113: 1 | E113: 112 | F113: 公共 | G113: 112038 | H113: 埼玉県 | I113: 川口市 | J113: 10926 | K113: 5872 | L113: 2013 | M113: 10097 | N113: 868 | O113: 4746 | P113: 536 | Q113: 829 | R113: 5394 | S113: 2947 | T113: 100 | U113: 7741 | V113: 4196 | W113: 3545 | X113: -2348 | Y113: 829
A114: 2019 | B114: 46 | C114: 17 | D114: 1 | E114: 113 | F114: 公共 | G114: 112062 | H114: 埼玉県 | I114: 行田市 | J114: 1978 | K114: 542 | L114: 871 | M114: 1789 | N114: 200 | O114: 1032 | P114: 42 | Q114: 189 | R114: 530 | S114: 223 | T114: 209 | U114: 1250 | V114: 369 | W114: 879 | X114: -721 | Y114: 189
A115: 2019 | B115: 46 | C115: 17 | D115: 1 | E115: 114 | F115: 公共 | G115: 112071 | H115: 埼玉県 | I115: 秩父市 | J115: 1088 | K115: 339 | L115: 508 | M115: 962 | N115: 88 | O115: 451 | P115: 87 | Q115: 126 | R115: 241 | S115: 173 | T115: 24 | U115: 591 | V115: 180 | W115: 410 | X115: -349 | Y115: 126
A116: 2019 | B116: 46 | C116: 17 | D116: 1 | E116: 115 | F116: 公共 | G116: 112089 | H116: 埼玉県 | I116: 所沢市 | J116: 5781 | K116: 3223 | L116: 1491 | M116: 5488 | N116: 338 | O116: 3051 | P116: 352 | Q116: 293 | R116: 1163 | S116: 600 | T116: 322 | U116: 3500 | V116: 2326 | W116: 1170 | X116: -2337 | Y116: 293
A117: 2019 | B117: 46 | C117: 17 | D117: 1 | E117: 116 | F117: 公共 | G117: 112097 | H117: 埼玉県 | I117: 飯能市 | J117: 1973 | K117: 873 | L117: 423 | M117: 1820 | N117: 155 | O117: 1008 | P117: 83 | Q117: 154 | R117: 1055 | S117: 495 | T117: 167 | U117: 1563 | V117: 950 | W117: 613 | X117: -508 | Y117: 154
A118: 2019 | B118: 46 | C118: 17 | D118: 1 | E118: 117 | F118: 公共 | G118: 112101 | H118: 埼玉県 | I118: 加須市 | J118: 1683 | K118: 499 | L118: 630 | M118: 1610 | N118: 189 | O118: 1003 | P118: 41 | Q118: 73 | R118: 711 | S118: 342 | T118: 150 | U118: 1322 | V118: 323 | W118: 998 | X118: -611 | Y118: 73
A119: 2019 | B119: 46 | C119: 17 | D119: 1 | E119: 118 | F119: 公共 | G119: 112119 | H119: 埼玉県 | I119: 本庄市 | J119: 1607 | K119: 639 | L119: 368 | M119: 1536 | N119: 118 | O119: 874 | P119: 48 | Q119: 71 | R119: 989 | S119: 496 | T119: 186 | U119: 1211 | V119: 711 | W119: 500 | X119: -222 | Y119: 71
A120: 2019 | B120: 46 | C120: 17 | D120: 1 | E120: 119 | F120: 公共 | G120: 112127 | H120: 埼玉県 | I120: 東松山市 | J120: 2217 | K120: 901 | L120: 424 | M120: 2093 | N120: 106 | O120: 1171 | P120: 97 | Q120: 124 | R120: 184 | S120: 113 | T120: 6 | U120: 612 | V120: 206 | W120: 405 | X120: -427 | Y120: 124
A121: 2019 | B121: 46 | C121: 17 | D121: 1 | E121: 120 | F121: 公共 | G121: 112143 | H121: 埼玉県 | I121: 春日部市 | J121: 4364 | K121: 2450 | L121: 1170 | M121: 4052 | N121: 570 | O121: 2263 | P121: 77 | Q121: 311 | R121: 2902 | S121: 2097 | T121: 254 | U121: 4492 | V121: 1396 | W121: 3096 | X121: -1590 | Y121: 311
A122: 2019 | B122: 46 | C122: 17 | D122: 1 | E122: 121 | F122: 公共 | G122: 112151 | H122: 埼玉県 | I122: 狭山市 | J122: 3356 | K122: 1719 | L122: 894 | M122: 3025 | N122: 257 | O122: 1860 | P122: 93 | Q122: 331 | R122: 586 | S122: 289 | T122: 106 | U122: 1791 | V122: 732 | W122: 1058 | X122: -1204 | Y122: 331
A123: 2019 | B123: 46 | C123: 17 | D123: 1 | E123: 122 | F123: 公共 | G123: 112178 | H123: 埼玉県 | I123: 鴻巣市 | J123: 2192 | K123: 1027 | L123: 595 | M123: 2092 | N123: 216 | O123: 1228 | P123: 48 | Q123: 100 | R123: 1350 | S123: 636 | T123: 445 | U123: 1976 | V123: 894 | W123: 1082 | X123: -626 | Y123: 100
A124: 2019 | B124: 46 | C124: 17 | D124: 1 | E124: 123 | F124: 公共 | G124: 112186 | H124: 埼玉県 | I124: 深谷市 | J124: 2312 | K124: 1221 | L124: 488 | M124: 2227 | N124: 266 | O124: 1298 | P124: 56 | Q124: 85 | R124: 1744 | S124: 1184 | T124: 62 | U124: 2780 | V124: 1591 | W124: 1188 | X124: -1036 | Y124: 85
A125: 2019 | B125: 46 | C125: 17 | D125: 1 | E125: 124 | F125: 公共 | G125: 112194 | H125: 埼玉県 | I125: 上尾市 | J125: 3615 | K125: 2141 | L125: 470 | M125: 3560 | N125: 260 | O125: 1980 | P125: 71 | Q125: 55 | R125: 2283 | S125: 1048 | T125: 48 | U125: 3205 | V125: 2081 | W125: 1120 | X125: -922 | Y125: 55
A126: 2019 | B126: 46 | C126: 17 | D126: 1 | E126: 125 | F126: 公共 | G126: 112241 | H126: 埼玉県 | I126: 戸田市 | J126: 2674 | K126: 1310 | L126: 851 | M126: 2445 | N126: 145 | O126: 1094 | P126: 77 | Q126: 229 | R126: 1106 | S126: 993 | T126: 0 | U126: 1776 | V126: 1209 | W126: 567 | X126: -670 | Y126: 229
A127: 2019 | B127: 46 | C127: 17 | D127: 1 | E127: 126 | F127: 公共 | G127: 112259 | H127: 埼玉県 | I127: 入間市 | J127: 2338 | K127: 1351 | L127: 438 | M127: 2158 | N127: 153 | O127: 1312 | P127: 51 | Q127: 180 | R127: 259 | S127: 177 | T127: 62 | U127: 1028 | V127: 263 | W127: 754 | X127: -769 | Y127: 180
A128: 2019 | B128: 46 | C128: 17 | D128: 1 | E128: 127 | F128: 公共 | G128: 112283 | H128: 埼玉県 | I128: 志木市 | J128: 1855 | K128: 814 | L128: 382 | M128: 1759 | N128: 107 | O128: 871 | P128: 66 | Q128: 96 | R128: 553 | S128: 210 | T128: 218 | U128: 913 | V128: 328 | W128: 562 | X128: -360 | Y128: 96
A129: 2019 | B129: 46 | C129: 17 | D129: 1 | E129: 128 | F129: 公共 | G129: 112291 | H129: 埼玉県 | I129: 和光市 | J129: 1137 | K129: 614 | L129: 352 | M129: 996 | N129: 66 | O129: 471 | P129: 38 | Q129: 141 | R129: 151 | S129: 110 | T129: 16 | U129: 563 | V129: 178 | W129: 385 | X129: -413 | Y129: 141
A130: 2019 | B130: 46 | C130: 17 | D130: 1 | E130: 129 | F130: 公共 | G130: 112313 | H130: 埼玉県 | I130: 桶川市 | J130: 1590 | K130: 590 | L130: 164 | M130: 1565 | N130: 117 | O130: 980 | P130: 52 | Q130: 25 | R130: 595 | S130: 170 | T130: 361 | U130: 786 | V130: 277 | W130: 508 | X130: -190 | Y130: 25
A131: 2019 | B131: 46 | C131: 17 | D131: 1 | E131: 130 | F131: 公共 | G131: 112321 | H131: 埼玉県 | I131: 久喜市 | J131: 3761 | K131: 1299 | L131: 1384 | M131: 3629 | N131: 267 | O131: 1763 | P131: 100 | Q131: 132 | R131: 1470 | S131: 1153 | T131: 62 | U131: 2434 | V131: 961 | W131: 1472 | X131: -964 | Y131: 132
A132: 2019 | B132: 46 | C132: 17 | D132: 1 | E132: 131 | F132: 公共 | G132: 112330 | H132: 埼玉県 | I132: 北本市 | J132: 974 | K132: 501 | L132: 269 | M132: 986 | N132: 73 | O132: 495 | P132: 51 | Q132: -12 | R132: 340 | S132: 147 | T132: 161 | U132: 640 | V132: 192 | W132: 448 | X132: -301 | Y132: -12
A133: 2019 | B133: 46 | C133: 17 | D133: 1 | E133: 132 | F133: 公共 | G133: 112356 | H133: 埼玉県 | I133: 富士見市 | J133: 1419 | K133: 881 | L133: 255 | M133: 1289 | N133: 117 | O133: 662 | P133: 28 | Q133: 130 | R133: 358 | S133: 222 | T133: 28 | U133: 937 | V133: 368 | W133: 569 | X133: -579 | Y133: 130
A134: 2019 | B134: 46 | C134: 17 | D134: 1 | E134: 133 | F134: 公共 | G134: 112381 | H134: 埼玉県 | I134: 蓮田市 | J134: 967 | K134: 483 | L134: 252 | M134: 916 | N134: 104 | O134: 510 | P134: 25 | Q134: 51 | R134: 512 | S134: 259 | T134: 246 | U134: 657 | V134: 130 | W134: 527 | X134: -145 | Y134: 51
A135: 2019 | B135: 46 | C135: 17 | D135: 1 | E135: 134 | F135: 公共 | G135: 112402 | H135: 埼玉県 | I135: 幸手市 | J135: 679 | K135: 171 | L135: 191 | M135: 670 | N135: 71 | O135: 389 | P135: 33 | Q135: 9 | R135: 709 | S135: 256 | T135: 245 | U135: 789 | V135: 517 | W135: 272 | X135: -81 | Y135: 9
A136: 2019 | B136: 46 | C136: 17 | D136: 1 | E136: 135 | F136: 公共 | G136: 112429 | H136: 埼玉県 | I136: 日高市 | J136: 970 | K136: 625 | L136: 106 | M136: 932 | N136: 84 | O136: 474 | P136: 70 | Q136: 38 | R136: 344 | S136: 293 | T136: 34 | U136: 749 | V136: 226 | W136: 524 | X136: -406 | Y136: 38
A137: 2019 | B137: 46 | C137: 17 | D137: 1 | E137: 136 | F137: 公共 | G137: 112437 | H137: 埼玉県 | I137: 吉川市 | J137: 1437 | K137: 588 | L137: 196 | M137: 1333 | N137: 92 | O137: 820 | P137: 35 | Q137: 103 | R137: 620 | S137: 363 | T137: 101 | U137: 879 | V137: 466 | W137: 414 | X137: -259 | Y137: 103
A138: 2019 | B138: 46 | C138: 17 | D138: 1 | E138: 137 | F138: 公共 | G138: 112453 | H138: 埼玉県 | I138: ふじみ野市 | J138: 1638 | K138: 986 | L138: 254 | M138: 1452 | N138: 51 | O138: 703 | P138: 57 | Q138: 186 | R138: 257 | S138: 187 | T138: 13 | U138: 502 | V138: 252 | W138: 250 | X138: -245 | Y138: 186
A139: 2019 | B139: 46 | C139: 17 | D139: 1 | E139: 138 | F139: 公共 | G139: 113247 | H139: 埼玉県 | I139: 三芳町 | J139: 631 | K139: 433 | L139: 44 | M139: 493 | N139: 16 | O139: 235 | P139: 14 | Q139: 138 | R139: 56 | S139: 43 | T139: 12 | U139: 126 | V139: 60 | W139: 66 | X139: -70 | Y139: 138
A140: 2019 | B140: 46 | C140: 17 | D140: 1 | E140: 139 | F140: 公共 | G140: 113859 | H140: 埼玉県 | I140: 上里町 | J140: 201 | K140: 57 | L140: 98 | M140: 200 | N140: 39 | O140: 111 | P140: 16 | Q140: 1 | R140: 98 | S140: 54 | T140: 16 | U140: 173 | V140: 80 | W140: 92 | X140: -74 | Y140: 1
A141: 2019 | B141: 46 | C141: 17 | D141: 1 | E141: 140 | F141: 公共 | G141: 118907 | H141: 埼玉県 | I141: 毛呂山・越生・鳩山公共下水道組合 | J141: 1596 | K141: 432 | L141: 510 | M141: 1515 | N141: 100 | O141: 896 | P141: 109 | Q141: 81 | R141: 411 | S141: 109 | T141: 137 | U141: 752 | V141: 303 | W141: 445 | X141: -340 | Y141: 81
A142: 2019 | B142: 46 | C142: 17 | D142: 1 | E142: 141 | F142: 公共 | G142: 121002 | H142: 千葉県 | I142: 千葉市 | J142: 28062 | K142: 13238 | L142: 7467 | M142: 26851 | N142: 3461 | O142: 15225 | P142: 701 | Q142: 1211 | R142: 13825 | S142: 10291 | T142: 38 | U142: 24569 | V142: 9550 | W142: 15014 | X142: -10744 | Y142: 1211
A143: 2019 | B143: 46 | C143: 17 | D143: 1 | E143: 142 | F143: 公共 | G143: 122033 | H143: 千葉県 | I143: 市川市 | J143: 7851 | K143: 4745 | L143: 1065 | M143: 7615 | N143: 556 | O143: 3833 | P143: 310 | Q143: 236 | R143: 7182 | S143: 4531 | T143: 175 | U143: 8810 | V143: 6760 | W143: 2046 | X143: -1628 | Y143: 236
A144: 2019 | B144: 46 | C144: 17 | D144: 1 | E144: 143 | F144: 公共 | G144: 122041 | H144: 千葉県 | I144: 船橋市 | J144: 16734 | K144: 6967 | L144: 6224 | M144: 16381 | N144: 2105 | O144: 9554 | P144: 392 | Q144: 353 | R144: 12246 | S144: 7237 | T144: 536 | U144: 19648 | V144: 9442 | W144: 10177 | X144: -7402 | Y144: 353
A145: 2019 | B145: 46 | C145: 17 | D145: 1 | E145: 144 | F145: 公共 | G145: 122076 | H145: 千葉県 | I145: 松戸市 | J145: 11493 | K145: 6237 | L145: 1664 | M145: 11002 | N145: 1007 | O145: 6147 | P145: 258 | Q145: 491 | R145: 4801 | S145: 2154 | T145: 136 | U145: 7716 | V145: 3592 | W145: 4124 | X145: -2916 | Y145: 491
A146: 2019 | B146: 46 | C146: 17 | D146: 1 | E146: 145 | F146: 公共 | G146: 122106 | H146: 千葉県 | I146: 茂原市 | J146: 1332 | K146: 640 | L146: 212 | M146: 1281 | N146: 69 | O146: 790 | P146: 86 | Q146: 51 | R146: 607 | S146: 245 | T146: 114 | U146: 1059 | V146: 585 | W146: 472 | X146: -451 | Y146: 51
A147: 2019 | B147: 46 | C147: 17 | D147: 1 | E147: 146 | F147: 公共 | G147: 122114 | H147: 千葉県 | I147: 成田市 | J147: 3402 | K147: 1215 | L147: 267 | M147: 3284 | N147: 96 | O147: 2237 | P147: 84 | Q147: 119 | R147: 659 | S147: 286 | T147: 0 | U147: 1061 | V147: 605 | W147: 455 | X147: -402 | Y147: 119
A148: 2019 | B148: 46 | C148: 17 | D148: 1 | E148: 147 | F148: 公共 | G148: 122122 | H148: 千葉県 | I148: 佐倉市 | J148: 3820 | K148: 2382 | L148: 258 | M148: 3207 | N148: 60 | O148: 1625 | P148: 170 | Q148: 613 | R148: 326 | S148: 51 | T148: 0 | U148: 1145 | V148: 897 | W148: 248 | X148: -819 | Y148: 613
A149: 2019 | B149: 46 | C149: 17 | D149: 1 | E149: 148 | F149: 公共 | G149: 122165 | H149: 千葉県 | I149: 習志野市 | J149: 6313 | K149: 2683 | L149: 1420 | M149: 5939 | N149: 470 | O149: 3413 | P149: 248 | Q149: 374 | R149: 1585 | S149: 857 | T149: 65 | U149: 2987 | V149: 821 | W149: 2165 | X149: -1402 | Y149: 374
A150: 2019 | B150: 46 | C150: 17 | D150: 1 | E150: 149 | F150: 公共 | G150: 122173 | H150: 千葉県 | I150: 柏市 | J150: 9279 | K150: 5509 | L150: 1223 | M150: 8856 | N150: 710 | O150: 4700 | P150: 216 | Q150: 423 | R150: 3748 | S150: 1253 | T150: 1 | U150: 5472 | V150: 2389 | W150: 3079 | X150: -1724 | Y150: 423
A151: 2019 | B151: 46 | C151: 17 | D151: 1 | E151: 150 | F151: 公共 | G151: 122190 | H151: 千葉県 | I151: 市原市 | J151: 5734 | K151: 2094 | L151: 841 | M151: 5734 | N151: 341 | O151: 3938 | P151: 187 | Q151: 0 | R151: 2652 | S151: 1188 | T151: 198 | U151: 3846 | V151: 2003 | W151: 1840 | X151: -1194 | Y151: 0
A152: 2019 | B152: 46 | C152: 17 | D152: 1 | E152: 151 | F152: 公共 | G152: 122203 | H152: 千葉県 | I152: 流山市 | J152: 3299 | K152: 1955 | L152: 501 | M152: 3015 | N152: 322 | O152: 1494 | P152: 96 | Q152: 285 | R152: 2674 | S152: 778 | T152: 100 | U152: 3192 | V152: 2106 | W152: 1086 | X152: -518 | Y152: 285
A153: 2019 | B153: 46 | C153: 17 | D153: 1 | E153: 152 | F153: 公共 | G153: 122211 | H153: 千葉県 | I153: 八千代市 | J153: 3297 | K153: 2176 | L153: 423 | M153: 3135 | N153: 152 | O153: 1473 | P153: 128 | Q153: 162 | R153: 1532 | S153: 594 | T153: 311 | U153: 2382 | V153: 1711 | W153: 584 | X153: -850 | Y153: 162
A154: 2019 | B154: 46 | C154: 17 | D154: 1 | E154: 153 | F154: 公共 | G154: 122289 | H154: 千葉県 | I154: 四街道市 | J154: 1860 | K154: 884 | L154: 209 | M154: 1858 | N154: 89 | O154: 1107 | P154: 59 | Q154: 3 | R154: 177 | S154: 65 | T154: 55 | U154: 533 | V154: 161 | W154: 372 | X154: -356 | Y154: 3
A155: 2019 | B155: 46 | C155: 17 | D155: 1 | E155: 154 | F155: 公共 | G155: 122335 | H155: 千葉県 | I155: 富里市 | J155: 968 | K155: 344 | L155: 237 | M155: 854 | N155: 47 | O155: 504 | P155: 42 | Q155: 114 | R155: 98 | S155: 22 | T155: 46 | U155: 308 | V155: 88 | W155: 220 | X155: -210 | Y155: 114
A156: 2019 | B156: 46 | C156: 17 | D156: 1 | E156: 155 | F156: 公共 | G156: 123226 | H156: 千葉県 | I156: 酒々井町 | J156: 250 | K156: 218 | L156: 0 | M156: 291 | N156: 14 | O156: 167 | P156: 4 | Q156: -42 | R156: 66 | S156: 14 | T156: 34 | U156: 145 | V156: 75 | W156: 70 | X156: -79 | Y156: -42
A157: 2019 | B157: 46 | C157: 17 | D157: 1 | E157: 156 | F157: 公共 | G157: 130001 | H157: 東京都 | I157: 東京都 | J157: 344586 | K157: 158360 | L157: 120780 | M157: 317512 | N157: 17649 | O157: 172703 | P157: 13263 | Q157: 27074 | R157: 168050 | S157: 74039 | T157: 0 | U157: 335609 | V157: 207417 | W157: 128193 | X157: -167559 | Y157: 27074
A158: 2019 | B158: 46 | C158: 17 | D158: 1 | E158: 157 | F158: 公共 | G158: 132110 | H158: 東京都 | I158: 小平市 | J158: 4239 | K158: 2017 | L158: 844 | M158: 3790 | N158: 120 | O158: 2089 | P158: 90 | Q158: 449 | R158: 985 | S158: 712 | T158: 205 | U158: 1895 | V158: 1055 | W158: 590 | X158: -911 | Y158: 449
A159: 2019 | B159: 46 | C159: 17 | D159: 1 | E159: 158 | F159: 公共 | G159: 132187 | H159: 東京都 | I159: 福生市 | J159: 1498 | K159: 947 | L159: 208 | M159: 1266 | N159: 68 | O159: 684 | P159: 24 | Q159: 232 | R159: 381 | S159: 210 | T159: 0 | U159: 983 | V159: 355 | W159: 346 | X159: -603 | Y159: 232
A160: 2019 | B160: 46 | C160: 17 | D160: 1 | E160: 159 | F160: 公共 | G160: 132217 | H160: 東京都 | I160: 清瀬市 | J160: 1119 | K160: 882 | L160: 72 | M160: 1016 | N160: 49 | O160: 441 | P160: 42 | Q160: 103 | R160: 172 | S160: 142 | T160: 0 | U160: 476 | V160: 132 | W160: 344 | X160: -304 | Y160: 103
A161: 2019 | B161: 46 | C161: 17 | D161: 1 | E161: 160 | F161: 公共 | G161: 132241 | H161: 東京都 | I161: 多摩市 | J161: 3397 | K161: 2123 | L161: 229 | M161: 2810 | N161: 20 | O161: 1470 | P161: 96 | Q161: 587 | R161: 43 | S161: 0 | T161: 42 | U161: 199 | V161: 79 | W161: 120 | X161: -156 | Y161: 587
A162: 2019 | B162: 46 | C162: 17 | D162: 1 | E162: 161 | F162: 公共 | G162: 132250 | H162: 東京都 | I162: 稲城市 | J162: 1852 | K162: 1040 | L162: 105 | M162: 1795 | N162: 130 | O162: 1073 | P162: 68 | Q162: 57 | R162: 484 | S162: 56 | T162: 245 | U162: 883 | V162: 273 | W162: 610 | X162: -399 | Y162: 57
A163: 2019 | B163: 46 | C163: 17 | D163: 1 | E163: 162 | F163: 公共 | G163: 132292 | H163: 東京都 | I163: 西東京市 | J163: 3098 | K163: 2019 | L163: 63 | M163: 2882 | N163: 118 | O163: 1505 | P163: 68 | Q163: 217 | R163: 390 | S163: 327 | T163: 0 | U163: 985 | V163: 353 | W163: 632 | X163: -595 | Y163: 217
A164: 2019 | B164: 46 | C164: 17 | D164: 1 | E164: 163 | F164: 公共 | G164: 141003 | H164: 神奈川県 | I164: 横浜市 | J164: 128729 | K164: 55432 | L164: 41728 | M164: 112332 | N164: 7613 | O164: 74678 | P164: 5837 | Q164: 16397 | R164: 69205 | S164: 55595 | T164: 0 | U164: 129561 | V164: 44981 | W164: 84579 | X164: -60356 | Y164: 16397
A165: 2019 | B165: 46 | C165: 17 | D165: 1 | E165: 164 | F165: 公共 | G165: 141305 | H165: 神奈川県 | I165: 川崎市 | J165: 41636 | K165: 22436 | L165: 11765 | M165: 37090 | N165: 3592 | O165: 22311 | P165: 2631 | Q165: 4545 | R165: 31012 | S165: 22095 | T165: 618 | U165: 49650 | V165: 15495 | W165: 32340 | X165: -18638 | Y165: 4545
A166: 2019 | B166: 46 | C166: 17 | D166: 1 | E166: 165 | F166: 公共 | G166: 141500 | H166: 神奈川県 | I166: 相模原市 | J166: 15209 | K166: 8658 | L166: 4309 | M166: 14132 | N166: 1571 | O166: 8261 | P166: 399 | Q166: 1078 | R166: 7819 | S166: 5152 | T166: 253 | U166: 15358 | V166: 8154 | W166: 7196 | X166: -7539 | Y166: 1078
A167: 2019 | B167: 46 | C167: 17 | D167: 1 | E167: 166 | F167: 公共 | G167: 142018 | H167: 神奈川県 | I167: 横須賀市 | J167: 15031 | K167: 6843 | L167: 2485 | M167: 14093 | N167: 994 | O167: 8377 | P167: 900 | Q167: 938 | R167: 8329 | S167: 4714 | T167: 1243 | U167: 12798 | V167: 5040 | W167: 7758 | X167: -4469 | Y167: 938
A168: 2019 | B168: 46 | C168: 17 | D168: 1 | E168: 167 | F168: 公共 | G168: 142034 | H168: 神奈川県 | I168: 平塚市 | J168: 7515 | K168: 3309 | L168: 2162 | M168: 7019 | N168: 815 | O168: 4235 | P168: 154 | Q168: 496 | R168: 2797 | S168: 1543 | T168: 716 | U168: 5384 | V168: 1728 | W168: 3656 | X168: -2587 | Y168: 496
A169: 2019 | B169: 46 | C169: 17 | D169: 1 | E169: 168 | F169: 公共 | G169: 142042 | H169: 神奈川県 | I169: 鎌倉市 | J169: 7086 | K169: 2349 | L169: 2257 | M169: 6345 | N169: 656 | O169: 3962 | P169: 239 | Q169: 741 | R169: 1757 | S169: 1311 | T169: 284 | U169: 3963 | V169: 543 | W169: 3417 | X169: -2206 | Y169: 741
A170: 2019 | B170: 46 | C170: 17 | D170: 1 | E170: 169 | F170: 公共 | G170: 142051 | H170: 神奈川県 | I170: 藤沢市 | J170: 12052 | K170: 5768 | L170: 4038 | M170: 11736 | N170: 991 | O170: 5377 | P170: 499 | Q170: 316 | R170: 2535 | S170: 1636 | T170: 205 | U170: 6635 | V170: 2145 | W170: 4489 | X170: -4100 | Y170: 316
A171: 2019 | B171: 46 | C171: 17 | D171: 1 | E171: 170 | F171: 公共 | G171: 142069 | H171: 神奈川県 | I171: 小田原市 | J171: 6325 | K171: 3345 | L171: 1921 | M171: 6067 | N171: 753 | O171: 3240 | P171: 159 | Q171: 258 | R171: 3375 | S171: 2354 | T171: 0 | U171: 5662 | V171: 2256 | W171: 3406 | X171: -2287 | Y171: 258
A172: 2019 | B172: 46 | C172: 17 | D172: 1 | E172: 171 | F172: 公共 | G172: 142077 | H172: 神奈川県 | I172: 茅ヶ崎市 | J172: 5456 | K172: 2654 | L172: 1649 | M172: 4982 | N172: 567 | O172: 2638 | P172: 141 | Q172: 474 | R172: 1829 | S172: 1191 | T172: 422 | U172: 3883 | V172: 1428 | W172: 2355 | X172: -2053 | Y172: 474
A173: 2019 | B173: 46 | C173: 17 | D173: 1 | E173: 172 | F173: 公共 | G173: 142085 | H173: 神奈川県 | I173: 逗子市 | J173: 1869 | K173: 639 | L173: 273 | M173: 2006 | N173: 55 | O173: 1325 | P173: 45 | Q173: -137 | R173: 409 | S173: 16 | T173: 294 | U173: 671 | V173: 217 | W173: 454 | X173: -262 | Y173: -137
A174: 2019 | B174: 46 | C174: 17 | D174: 1 | E174: 173 | F174: 公共 | G174: 142115 | H174: 神奈川県 | I174: 秦野市 | J174: 5273 | K174: 2083 | L174: 1977 | M174: 4406 | N174: 562 | O174: 2506 | P174: 204 | Q174: 867 | R174: 1659 | S174: 1075 | T174: 80 | U174: 3815 | V174: 1718 | W174: 2096 | X174: -2157 | Y174: 867
A175: 2019 | B175: 46 | C175: 17 | D175: 1 | E175: 174 | F175: 公共 | G175: 142140 | H175: 神奈川県 | I175: 伊勢原市 | J175: 3309 | K175: 1181 | L175: 729 | M175: 3161 | N175: 276 | O175: 1841 | P175: 88 | Q175: 147 | R175: 2155 | S175: 1315 | T175: 167 | U175: 2875 | V175: 1603 | W175: 1271 | X175: -720 | Y175: 147
A176: 2019 | B176: 46 | C176: 17 | D176: 1 | E176: 175 | F176: 公共 | G176: 142158 | H176: 神奈川県 | I176: 海老名市 | J176: 2963 | K176: 1781 | L176: 166 | M176: 2700 | N176: 216 | O176: 1560 | P176: 77 | Q176: 262 | R176: 961 | S176: 872 | T176: 43 | U176: 1874 | V176: 661 | W176: 1213 | X176: -913 | Y176: 262
A177: 2019 | B177: 46 | C177: 17 | D177: 1 | E177: 176 | F177: 公共 | G177: 142166 | H177: 神奈川県 | I177: 座間市 | J177: 2674 | K177: 1753 | L177: 416 | M177: 2360 | N177: 300 | O177: 1363 | P177: 83 | Q177: 315 | R177: 618 | S177: 512 | T177: 91 | U177: 1802 | V177: 256 | W177: 1546 | X177: -1184 | Y177: 315
A178: 2019 | B178: 46 | C178: 17 | D178: 1 | E178: 177 | F178: 公共 | G178: 142174 | H178: 神奈川県 | I178: 南足柄市 | J178: 1045 | K178: 605 | L178: 180 | M178: 957 | N178: 121 | O178: 563 | P178: 18 | Q178: 87 | R178: 440 | S178: 267 | T178: 120 | U178: 762 | V178: 173 | W178: 589 | X178: -322 | Y178: 87
A179: 2019 | B179: 46 | C179: 17 | D179: 1 | E179: 178 | F179: 公共 | G179: 143014 | H179: 神奈川県 | I179: 葉山町 | J179: 1301 | K179: 239 | L179: 614 | M179: 1234 | N179: 132 | O179: 825 | P179: 42 | Q179: 68 | R179: 715 | S179: 278 | T179: 0 | U179: 1065 | V179: 528 | W179: 536 | X179: -350 | Y179: 68
A180: 2019 | B180: 46 | C180: 17 | D180: 1 | E180: 179 | F180: 公共 | G180: 143219 | H180: 神奈川県 | I180: 寒川町 | J180: 1259 | K180: 542 | L180: 395 | M180: 1257 | N180: 122 | O180: 769 | P180: 60 | Q180: 2 | R180: 416 | S180: 281 | T180: 59 | U180: 903 | V180: 377 | W180: 526 | X180: -487 | Y180: 2
A181: 2019 | B181: 46 | C181: 17 | D181: 1 | E181: 180 | F181: 公共 | G181: 143669 | H181: 神奈川県 | I181: 開成町 | J181: 480 | K181: 230 | L181: 136 | M181: 458 | N181: 44 | O181: 237 | P181: 5 | Q181: 21 | R181: 185 | S181: 73 | T181: 79 | U181: 326 | V181: 107 | W181: 220 | X181: -141 | Y181: 21
A182: 2019 | B182: 46 | C182: 17 | D182: 1 | E182: 181 | F182: 公共 | G182: 143821 | H182: 神奈川県 | I182: 箱根町 | J182: 1438 | K182: 711 | L182: 60 | M182: 1446 | N182: 74 | O182: 928 | P182: 55 | Q182: -8 | R182: 761 | S182: 370 | T182: 165 | U182: 1036 | V182: 635 | W182: 402 | X182: -275 | Y182: -8
A183: 2019 | B183: 46 | C183: 17 | D183: 1 | E183: 182 | F183: 公共 | G183: 143847 | H183: 神奈川県 | I183: 湯河原町 | J183: 879 | K183: 452 | L183: 90 | M183: 936 | N183: 55 | O183: 587 | P183: 51 | Q183: -57 | R183: 203 | S183: 62 | T183: 123 | U183: 382 | V183: 44 | W183: 338 | X183: -179 | Y183: -57
A184: 2019 | B184: 46 | C184: 17 | D184: 1 | E184: 183 | F184: 公共 | G184: 151009 | H184: 新潟県 | I184: 新潟市 | J184: 29986 | K184: 11823 | L184: 9919 | M184: 30053 | N184: 4899 | O184: 17990 | P184: 970 | Q184: -67 | R184: 24281 | S184: 17082 | T184: 2546 | U184: 35856 | V184: 15322 | W184: 20533 | X184: -11575 | Y184: -67
A185: 2019 | B185: 46 | C185: 17 | D185: 1 | E185: 184 | F185: 公共 | G185: 152021 | H185: 新潟県 | I185: 長岡市 | J185: 7685 | K185: 3301 | L185: 1920 | M185: 7625 | N185: 773 | O185: 4820 | P185: 140 | Q185: 60 | R185: 3333 | S185: 1173 | T185: 0 | U185: 5849 | V185: 2231 | W185: 3618 | X185: -2517 | Y185: 60
A186: 2019 | B186: 46 | C186: 17 | D186: 1 | E186: 185 | F186: 公共 | G186: 152056 | H186: 新潟県 | I186: 柏崎市 | J186: 3339 | K186: 1016 | L186: 1145 | M186: 3217 | N186: 293 | O186: 2121 | P186: 91 | Q186: 122 | R186: 1946 | S186: 1186 | T186: 421 | U186: 2894 | V186: 843 | W186: 2052 | X186: -949 | Y186: 122
A187: 2019 | B187: 46 | C187: 17 | D187: 1 | E187: 186 | F187: 公共 | G187: 152064 | H187: 新潟県 | I187: 新発田市 | J187: 1885 | K187: 703 | L187: 339 | M187: 1875 | N187: 372 | O187: 1058 | P187: 117 | Q187: 10 | R187: 3690 | S187: 1912 | T187: 637 | U187: 3976 | V187: 2912 | W187: 1063 | X187: -286 | Y187: 10
A188: 2019 | B188: 46 | C188: 17 | D188: 1 | E188: 187 | F188: 公共 | G188: 152081 | H188: 新潟県 | I188: 小千谷市 | J188: 1337 | K188: 477 | L188: 626 | M188: 1000 | N188: 154 | O188: 573 | P188: 47 | Q188: 337 | R188: 294 | S188: 254 | T188: 0 | U188: 1038 | V188: 174 | W188: 863 | X188: -744 | Y188: 337
A189: 2019 | B189: 46 | C189: 17 | D189: 1 | E189: 188 | F189: 公共 | G189: 152111 | H189: 新潟県 | I189: 見附市 | J189: 1705 | K189: 576 | L189: 605 | M189: 1721 | N189: 178 | O189: 960 | P189: 43 | Q189: -17 | R189: 1828 | S189: 1018 | T189: 205 | U189: 2406 | V189: 1472 | W189: 934 | X189: -579 | Y189: -17
A190: 2019 | B190: 46 | C190: 17 | D190: 1 | E190: 189 | F190: 公共 | G190: 152161 | H190: 新潟県 | I190: 糸魚川市 | J190: 1787 | K190: 609 | L190: 520 | M190: 1787 | N190: 207 | O190: 1132 | P190: 40 | Q190: 0 | R190: 1254 | S190: 608 | T190: 304 | U190: 1759 | V190: 704 | W190: 1054 | X190: -505 | Y190: 0
A191: 2019 | B191: 46 | C191: 17 | D191: 1 | E191: 190 | F191: 公共 | G191: 152170 | H191: 新潟県 | I191: 妙高市 | J191: 977 | K191: 355 | L191: 391 | M191: 766 | N191: 75 | O191: 459 | P191: 19 | Q191: 210 | R191: 251 | S191: 97 | T191: 122 | U191: 638 | V191: 161 | W191: 441 | X191: -386 | Y191: 210
A192: 2019 | B192: 46 | C192: 17 | D192: 1 | E192: 191 | F192: 公共 | G192: 152234 | H192: 新潟県 | I192: 阿賀野市 | J192: 1066 | K192: 265 | L192: 451 | M192: 1101 | N192: 158 | O192: 695 | P192: 30 | Q192: -36 | R192: 1184 | S192: 532 | T192: 177 | U192: 1497 | V192: 911 | W192: 586 | X192: -313 | Y192: -36
A193: 2019 | B193: 46 | C193: 17 | D193: 1 | E193: 192 | F193: 公共 | G193: 152251 | H193: 新潟県 | I193: 魚沼市 | J193: 1182 | K193: 492 | L193: 477 | M193: 1004 | N193: 122 | O193: 571 | P193: 23 | Q193: 177 | R193: 381 | S193: 112 | T193: 0 | U193: 887 | V193: 135 | W193: 752 | X193: -506 | Y193: 177
A194: 2019 | B194: 46 | C194: 17 | D194: 1 | E194: 193 | F194: 公共 | G194: 152269 | H194: 新潟県 | I194: 南魚沼市 | J194: 1432 | K194: 422 | L194: 445 | M194: 1347 | N194: 148 | O194: 866 | P194: 23 | Q194: 85 | R194: 1315 | S194: 675 | T194: 323 | U194: 1552 | V194: 389 | W194: 1164 | X194: -238 | Y194: 85
A195: 2019 | B195: 46 | C195: 17 | D195: 1 | E195: 194 | F195: 公共 | G195: 152277 | H195: 新潟県 | I195: 胎内市 | J195: 843 | K195: 220 | L195: 300 | M195: 696 | N195: 101 | O195: 438 | P195: 10 | Q195: 147 | R195: 371 | S195: 354 | T195: 15 | U195: 702 | V195: 47 | W195: 655 | X195: -332 | Y195: 147
A196: 2019 | B196: 46 | C196: 17 | D196: 1 | E196: 195 | F196: 公共 | G196: 153079 | H196: 新潟県 | I196: 聖籠町 | J196: 520 | K196: 159 | L196: 211 | M196: 478 | N196: 75 | O196: 298 | P196: 14 | Q196: 42 | R196: 84 | S196: 81 | T196: 0 | U196: 282 | V196: 28 | W196: 254 | X196: -198 | Y196: 42
A197: 2019 | B197: 46 | C197: 17 | D197: 1 | E197: 196 | F197: 公共 | G197: 162019 | H197: 富山県 | I197: 富山市 | J197: 13182 | K197: 6158 | L197: 4167 | M197: 11229 | N197: 1524 | O197: 7106 | P197: 242 | Q197: 1953 | R197: 6640 | S197: 3156 | T197: 1618 | U197: 12710 | V197: 4507 | W197: 8198 | X197: -6070 | Y197: 1953
A198: 2019 | B198: 46 | C198: 17 | D198: 1 | E198: 197 | F198: 公共 | G198: 162027 | H198: 富山県 | I198: 高岡市 | J198: 4370 | K198: 2480 | L198: 846 | M198: 3837 | N198: 478 | O198: 2033 | P198: 68 | Q198: 533 | R198: 2336 | S198: 1479 | T198: 283 | U198: 4025 | V198: 962 | W198: 3058 | X198: -1689 | Y198: 533
A199: 2019 | B199: 46 | C199: 17 | D199: 1 | E199: 198 | F199: 公共 | G199: 162043 | H199: 富山県 | I199: 魚津市 | J199: 1066 | K199: 405 | L199: 354 | M199: 1057 | N199: 130 | O199: 744 | P199: 15 | Q199: 8 | R199: 2041 | S199: 1711 | T199: 0 | U199: 2477 | V199: 183 | W199: 2294 | X199: -435 | Y199: 8
A200: 2019 | B200: 46 | C200: 17 | D200: 1 | E200: 199 | F200: 公共 | G200: 162060 | H200: 富山県 | I200: 滑川市 | J200: 806 | K200: 224 | L200: 375 | M200: 684 | N200: 108 | O200: 463 | P200: 18 | Q200: 123 | R200: 736 | S200: 425 | T200: 0 | U200: 1124 | V200: 488 | W200: 635 | X200: -387 | Y200: 123
... 3418 more rows

Sheet R2公共
A13: 団体 コード | B13: 都道府県名 | C13: 団体名 | D13: 事業 コード | E13: 類型区分 | F13: 処理区域内人口別区分 | G13: 有収水量密度別 区分 | H13: 供用開始後年数別区分 | I13: 処理区域内 人口 | J13: 有収水量 密度 | K13: 供用開始 後年 | L13: 事業別 普及率 | M13: 進捗率 | N13: 一般家庭使用料 （1ヶ月20m3あたり） | O13: 処理区域内 人口密度 | P13: 施設利用率 | Q13: 有収率 | R13: 水洗化率 | S13: 使用料単価 | T13: 汚水処理原価 | U13: 汚水処理原価（分流式下水道等に要する経費控除前） | V13: 汚水処理原価（維持管理費） | W13: 汚水処理原価（資本費） | X13: 経費回収率 | Y13: 経費回収率 （分流式下水道等に要する経費控除前） | Z13: 経費回収率 （維持管理費） | AA13: 処理区域１人 あたりの管理運営費（汚水分） | AB13: 処理区域１人 あたりの維持管理費（汚水分） | AC13: 処理区域１人 あたりの資本費（汚水分） | AD13: 職員1人あたりの処理区域内人口 | AE13: 職員給与費 対営業収益比率 | AF13: 総収支比率 | AG13: 経常収支比率 | AH13: 事業別 資金不足比率 | AI13: 利子負担率 | AJ13: 自己資本 構成比率 | AK13: 固定資産対 長期資本比率 | AL13: 処理区域内人口 1人あたり企業債（地方債）残高
I14: 人 | J14: 千㎥/ｈa | K14: 年 | L14: ％ | M14: ％ | N14: 円/月 | O14: 人/ha | P14: ％ | Q14: ％ | R14: ％ | S14: 円/m3 | T14: 円/m3 | U14: 円/m3 | V14: 円/m3 | W14: 円/m3 | X14: ％ | Y14: ％ | Z14: ％ | AA14: 円/人 | AB14: 円/人 | AC14: 円/人 | AD14: 人/人 | AE14: ％ | AF14: ％ | AG14: ％ | AH14: ％ | AI14: ％ | AJ14: ％ | AK14: ％ | AL14: 千円/人
A16: 011002 | B16: 北海道 | C16: 札幌市 | D16: 1171 | E16: 政令市等 | F16: 政令市等 | G16: 政令市等 | H16: 政令市等 | I16: 1946978 | J16: 8.2 | K16: 60 | L16: 99.3 | M16: 104.9 | N16: 1371 | O16: 79 | P16: 63.2 | Q16: 75 | R16: 100 | S16: 88.24 | T16: 95.34 | U16: 95.34 | V16: 53.93 | W16: 41.41 | X16: 92.5 | Y16: 92.5 | Z16: 163.6 | AA16: 9887 | AB16: 5592 | AC16: 4294 | AD16: 3781 | AE16: 8.6 | AF16: 102.5 | AG16: 102.4 | AH16: 0 | AI16: 1.2 | AJ16: 57.6 | AK16: 101.8 | AL16: 121
A17: 041009 | B17: 宮城県 | C17: 仙台市 | D17: 1171 | E17: 政令市等 | F17: 政令市等 | G17: 政令市等 | H17: 政令市等 | I17: 1046847 | J17: 6.5 | K17: 57 | L17: 98.5 | M17: 107.1 | N17: 1917 | O17: 61 | P17: 63.8 | Q17: 84.2 | R17: 99.7 | S17: 134.06 | T17: 115.7 | U17: 115.7 | V17: 55.07 | W17: 60.63 | X17: 115.9 | Y17: 115.9 | Z17: 243.4 | AA17: 12180 | AB17: 5797 | AC17: 6383 | AD17: 4436 | AE17: 6.3 | AF17: 105.4 | AG17: 107.5 | AH17: 0 | AI17: 1.5 | AJ17: 70 | AK17: 101.7 | AL17: 168
A18: 111007 | B18: 埼玉県 | C18: さいたま市 | D18: 1171 | E18: 政令市等 | F18: 政令市等 | G18: 政令市等 | H18: 政令市等 | I18: 1248591 | J18: 9.7 | K18: 56 | L18: 94 | M18: 113.1 | N18: 2459 | O18: 100 | P18: 48.7 | Q18: 80.9 | R18: 97.5 | S18: 139.39 | T18: 133.14 | U18: 133.14 | V18: 58.09 | W18: 75.05 | X18: 104.7 | Y18: 104.7 | Z18: 240 | AA18: 12856 | AB18: 5609 | AC18: 7247 | AD18: 7477 | AE18: 2.7 | AF18: 103.5 | AG18: 103.4 | AH18: 0 | AI18: 1.4 | AJ18: 56.1 | AK18: 101.2 | AL18: 144
A19: 121002 | B19: 千葉県 | C19: 千葉市 | D19: 1171 | E19: 政令市等 | F19: 政令市等 | G19: 政令市等 | H19: 政令市等 | I19: 880651 | J19: 8.5 | K19: 58 | L19: 90.3 | M19: 96.8 | N19: 2035 | O19: 77 | P19: 58 | Q19: 78.9 | R19: 99.8 | S19: 132.8 | T19: 124.8 | U19: 124.8 | V19: 65.36 | W19: 59.44 | X19: 106.4 | Y19: 106.4 | Z19: 203.2 | AA19: 13710 | AB19: 7180 | AC19: 6529 | AD19: 5370 | AE19: 3.5 | AF19: 102.8 | AG19: 102.7 | AH19: 0 | AI19: 1.6 | AJ19: 51.7 | AK19: 103.7 | AL19: 232
A20: 130001 | B20: 東京都 | C20: 東京都 | D20: 1171 | E20: 政令市等 | F20: 政令市等 | G20: 政令市等 | H20: 政令市等 | I20: 9559878 | J20: 21.3 | K20: 69 | L20: 99.9 | M20: 110 | N20: 2068 | O20: 170 | P20: 57.2 | Q20: 95.4 | R20: 100 | S20: 120.55 | T20: 118.31 | U20: 118.31 | V20: 69.18 | W20: 49.13 | X20: 101.9 | Y20: 101.9 | Z20: 174.3 | AA20: 14847 | AB20: 8681 | AC20: 6166 | AD20: 3936 | AE20: 5.1 | AF20: 105.7 | AG20: 104 | AH20: 0 | AI20: 1.2 | AJ20: 74.6 | AK20: 101.3 | AL20: 129
A21: 141003 | B21: 神奈川県 | C21: 横浜市 | D21: 1171 | E21: 政令市等 | F21: 政令市等 | G21: 政令市等 | H21: 政令市等 | I21: 3760515 | J21: 12.2 | K21: 59 | L21: 100 | M21: 101.6 | N21: 2035 | O21: 119 | P21: 62.4 | Q21: 72.3 | R21: 99.8 | S21: 139.16 | T21: 109.92 | U21: 109.92 | V21: 56.05 | W21: 53.88 | X21: 126.6 | Y21: 126.6 | Z21: 248.3 | AA21: 11274 | AB21: 5748 | AC21: 5526 | AD21: 3893 | AE21: 6.4 | AF21: 109.7 | AG21: 109.7 | AH21: 0 | AI21: 1 | AJ21: 66.6 | AK21: 100.8 | AL21: 171
A22: 141305 | B22: 神奈川県 | C22: 川崎市 | D22: 1171 | E22: 政令市等 | F22: 政令市等 | G22: 政令市等 | H22: 政令市等 | I22: 1532738 | J22: 14.5 | K22: 90 | L22: 99.5 | M22: 104.5 | N22: 2156 | O22: 143 | P22: 51.3 | Q22: 84.6 | R22: 99 | S22: 142.34 | T22: 118.21 | U22: 118.21 | V22: 51.03 | W22: 67.18 | X22: 120.4 | Y22: 120.4 | Z22: 278.9 | AA22: 12008 | AB22: 5184 | AC22: 6824 | AD22: 3421 | AE22: 8.8 | AF22: 110.8 | AG22: 110.6 | AH22: 0 | AI22: 1 | AJ22: 53.4 | AK22: 103 | AL22: 192
A23: 141500 | B23: 神奈川県 | C23: 相模原市 | D23: 1171 | E23: 政令市等 | F23: 政令市等 | G23: 政令市等 | H23: 政令市等 | I23: 697205 | J23: 9.7 | K23: 53 | L23: 97.1 | M23: 100.3 | N23: 2036 | O23: 90 | P23: 0 | Q23: 93.5 | R23: 99.1 | S23: 115.6 | T23: 106.36 | U23: 133.03 | V23: 46.94 | W23: 59.42 | X23: 108.7 | Y23: 86.9 | Z23: 246.3 | AA23: 11408 | AB23: 5035 | AC23: 6373 | AD23: 6835 | AE23: 3.6 | AF23: 108.1 | AG23: 108.1 | AH23: 0 | AI23: 1.8 | AJ23: 67.5 | AK23: 100.9 | AL23: 111
A24: 151009 | B24: 新潟県 | C24: 新潟市 | D24: 1171 | E24: 政令市等 | F24: 政令市等 | G24: 政令市等 | H24: 政令市等 | I24: 657094 | J24: 5.8 | K24: 54 | L24: 84 | M24: 99.7 | N24: 3047 | O24: 55 | P24: 95.3 | Q24: 63.2 | R24: 92.2 | S24: 169.12 | T24: 172.57 | U24: 187.81 | V24: 62.57 | W24: 110 | X24: 98 | Y24: 90 | Z24: 270.3 | AA24: 18416 | AB24: 6677 | AC24: 11739 | AD24: 3477 | AE24: 4.4 | AF24: 102.2 | AG24: 102.1 | AH24: 0 | AI24: 1.5 | AJ24: 45.7 | AK24: 103.6 | AL24: 451
A25: 221007 | B25: 静岡県 | C25: 静岡市 | D25: 1171 | E25: 政令市等 | F25: 政令市等 | G25: 政令市等 | H25: 政令市等 | I25: 586881 | J25: 7.2 | K25: 61 | L25: 84.8 | M25: 100.6 | N25: 2770 | O25: 66 | P25: 67.9 | Q25: 52.4 | R25: 90.6 | S25: 149.23 | T25: 149.24 | U25: 172.68 | V25: 68.44 | W25: 80.8 | X25: 100 | Y25: 86.4 | Z25: 218 | AA25: 16329 | AB25: 7488 | AC25: 8841 | AD25: 2692 | AE25: 6.6 | AF25: 106.6 | AG25: 106.6 | AH25: 0 | AI25: 1.5 | AJ25: 60.2 | AK25: 99.5 | AL25: 245
A26: 221309 | B26: 静岡県 | C26: 浜松市 | D26: 1171 | E26: 政令市等 | F26: 政令市等 | G26: 政令市等 | H26: 政令市等 | I26: 577753 | J26: 5.7 | K26: 55 | L26: 72.4 | M26: 91.5 | N26: 2948 | O26: 49 | P26: 70.3 | Q26: 84 | R26: 97.8 | S26: 131.63 | T26: 120.9 | U26: 120.9 | V26: 27.78 | W26: 93.11 | X26: 108.9 | Y26: 108.9 | Z26: 473.8 | AA26: 13939 | AB26: 3203 | AC26: 10736 | AD26: 5555 | AE26: 3.4 | AF26: 114.7 | AG26: 114.9 | AH26: 0 | AI26: 1.8 | AJ26: 60.5 | AK26: 101.5 | AL26: 192
A27: 231002 | B27: 愛知県 | C27: 名古屋市 | D27: 1171 | E27: 政令市等 | F27: 政令市等 | G27: 政令市等 | H27: 政令市等 | I27: 2278100 | J27: 9.1 | K27: 109 | L27: 99.3 | M27: 100 | N27: 1804 | O27: 80 | P27: 54.1 | Q27: 65.6 | R27: 99.8 | S27: 115.49 | T27: 117.52 | U27: 117.52 | V27: 56.61 | W27: 60.9 | X27: 98.3 | Y27: 98.3 | Z27: 204 | AA27: 13293 | AB27: 6404 | AC27: 6889 | AD27: 2351 | AE27: 10 | AF27: 102.5 | AG27: 102.4 | AH27: 0 | AI27: 1.3 | AJ27: 57.4 | AK27: 100.5 | AL27: 192
A28: 261009 | B28: 京都府 | C28: 京都市 | D28: 1171 | E28: 政令市等 | F28: 政令市等 | G28: 政令市等 | H28: 政令市等 | I28: 1385500 | J28: 11.2 | K28: 87 | L28: 99.2 | M28: 105.4 | N28: 2013 | O28: 91 | P28: 56.7 | Q28: 57.5 | R28: 99.4 | S28: 117.3 | T28: 105.31 | U28: 105.31 | V28: 48.72 | W28: 56.59 | X28: 111.4 | Y28: 111.4 | Z28: 240.7 | AA28: 13051 | AB28: 6038 | AC28: 7013 | AD28: 2483 | AE28: 8.9 | AF28: 102.4 | AG28: 106.9 | AH28: 0 | AI28: 1.4 | AJ28: 59.9 | AK28: 103 | AL28: 187
A29: 271004 | B29: 大阪府 | C29: 大阪市 | D29: 1171 | E29: 政令市等 | F29: 政令市等 | G29: 政令市等 | H29: 政令市等 | I29: 2740445 | J29: 20.7 | K29: 81 | L29: 100 | M29: 99.8 | N29: 1276 | O29: 144 | P29: 54 | Q29: 73.4 | R29: 100 | S29: 80.84 | T29: 91.14 | U29: 91.14 | V29: 54.81 | W29: 36.33 | X29: 88.7 | Y29: 88.7 | Z29: 147.5 | AA29: 13094 | AB29: 7875 | AC29: 5220 | AD29: 6448 | AE29: 3.6 | AF29: 99.6 | AG29: 99 | AH29: 0 | AI29: 1.1 | AJ29: 58.1 | AK29: 99.6 | AL29: 162
A30: 271403 | B30: 大阪府 | C30: 堺市 | D30: 1171 | E30: 政令市等 | F30: 政令市等 | G30: 政令市等 | H30: 政令市等 | I30: 817253 | J30: 8.2 | K30: 61 | L30: 98.5 | M30: 102.2 | N30: 2821 | O30: 80 | P30: 66.5 | Q30: 83.2 | R30: 95.7 | S30: 173.22 | T30: 149.06 | U30: 149.06 | V30: 57.1 | W30: 91.96 | X30: 116.2 | Y30: 116.2 | Z30: 303.3 | AA30: 15198 | AB30: 5822 | AC30: 9376 | AD30: 2848 | AE30: 7.6 | AF30: 106.6 | AG30: 106.9 | AH30: 0 | AI30: 1.6 | AJ30: 48.5 | AK30: 102.4 | AL30: 296
A31: 281000 | B31: 兵庫県 | C31: 神戸市 | D31: 1171 | E31: 政令市等 | F31: 政令市等 | G31: 政令市等 | H31: 政令市等 | I31: 1486758 | J31: 9.9 | K31: 63 | L31: 97.7 | M31: 99.5 | N31: 1760 | O31: 87 | P31: 69.8 | Q31: 93.7 | R31: 99.9 | S31: 110.77 | T31: 111.57 | U31: 111.57 | V31: 46.26 | W31: 65.3 | X31: 99.3 | Y31: 99.3 | Z31: 239.4 | AA31: 12619 | AB31: 5233 | AC31: 7386 | AD31: 3965 | AE31: 10.5 | AF31: 101.5 | AG31: 102.4 | AH31: 0 | AI31: 1.5 | AJ31: 76.2 | AK31: 96.7 | AL31: 93
A32: 331007 | B32: 岡山県 | C32: 岡山市 | D32: 1171 | E32: 政令市等 | F32: 政令市等 | G32: 政令市等 | H32: 政令市等 | I32: 473588 | J32: 6.8 | K32: 59 | L32: 67 | M32: 84.5 | N32: 3011 | O32: 62 | P32: 63.7 | Q32: 85.5 | R32: 90.9 | S32: 176.57 | T32: 181.3 | U32: 207.41 | V32: 67.24 | W32: 114.06 | X32: 97.4 | Y32: 85.1 | Z32: 262.6 | AA32: 19804 | AB32: 7344 | AC32: 12459 | AD32: 3700 | AE32: 4 | AF32: 100 | AG32: 99.8 | AH32: 0 | AI32: 1.5 | AJ32: 42 | AK32: 104.6 | AL32: 409
A33: 341002 | B33: 広島県 | C33: 広島市 | D33: 1171 | E33: 政令市等 | F33: 政令市等 | G33: 政令市等 | H33: 政令市等 | I33: 1128520 | J33: 8.3 | K33: 60 | L33: 94.6 | M33: 106.4 | N33: 2260 | O33: 80 | P33: 63 | Q33: 83.5 | R33: 98.3 | S33: 159.22 | T33: 144.73 | U33: 144.73 | V33: 48.73 | W33: 95.99 | X33: 110 | Y33: 110 | Z33: 326.7 | AA33: 14986 | AB33: 5046 | AC33: 9940 | AD33: 2835 | AE33: 7.8 | AF33: 103 | AG33: 103 | AH33: 0 | AI33: 1.4 | AJ33: 49.1 | AK33: 105.8 | AL33: 339
A34: 401005 | B34: 福岡県 | C34: 北九州市 | D34: 1171 | E34: 政令市等 | F34: 政令市等 | G34: 政令市等 | H34: 政令市等 | I34: 927687 | J34: 5.8 | K34: 58 | L34: 98.7 | M34: 72.7 | N34: 2207 | O34: 58 | P34: 60.4 | Q34: 74 | R34: 99.7 | S34: 140.37 | T34: 132.64 | U34: 132.64 | V34: 60.42 | W34: 72.23 | X34: 105.8 | Y34: 105.8 | Z34: 232.3 | AA34: 13433 | AB34: 6118 | AC34: 7314 | AD34: 5947 | AE34: 4.8 | AF34: 104.6 | AG34: 104.4 | AH34: 0 | AI34: 1.2 | AJ34: 65.3 | AK34: 101 | AL34: 151
A35: 401307 | B35: 福岡県 | C35: 福岡市 | D35: 1171 | E35: 政令市等 | F35: 政令市等 | G35: 政令市等 | H35: 政令市等 | I35: 1559580 | J35: 9.1 | K35: 59 | L35: 99.7 | M35: 97.4 | N35: 2651 | O35: 91 | P35: 58 | Q35: 83.5 | R35: 99.7 | S35: 169.15 | T35: 135.38 | U35: 135.38 | V35: 64.69 | W35: 70.69 | X35: 124.9 | Y35: 124.9 | Z35: 261.5 | AA35: 13628 | AB35: 6512 | AC35: 7117 | AD35: 4769 | AE35: 3.1 | AF35: 114.8 | AG35: 113.3 | AH35: 0 | AI35: 1.4 | AJ35: 55.1 | AK35: 101.6 | AL35: 219
A36: 431001 | B36: 熊本県 | C36: 熊本市 | D36: 1171 | E36: 政令市等 | F36: 政令市等 | G36: 政令市等 | H36: 政令市等 | I36: 660810 | J36: 6 | K36: 61 | L36: 90.3 | M36: 95.9 | N36: 2346 | O36: 55 | P36: 69.1 | Q36: 85 | R36: 97.4 | S36: 141.65 | T36: 150 | U36: 151.91 | V36: 64.65 | W36: 85.35 | X36: 94.4 | Y36: 93.2 | Z36: 219.1 | AA36: 16421 | AB36: 7077 | AC36: 9343 | AD36: 3117 | AE36: 9.6 | AF36: 110.1 | AG36: 110.1 | AH36: 0.9 | AI36: 1.4 | AJ36: 52.5 | AK36: 99.4 | AL36: 203
B37: 団体数 | C37: 21 | E37: 政令市等 計 | M37: 102.4 | N37: 2238 | O37: 100 | P37: 59 | Q37: 79.9 | R37: 99.1 | S37: 125 | T37: 118.38 | U37: 119.85 | V37: 59.26 | W37: 59.11 | X37: 105.6 | Y37: 104.3 | Z37: 210.9 | AA37: 13541 | AB37: 6779 | AC37: 6762 | AD37: 3836 | AE37: 6.1 | AF37: 105.5 | AG37: 105.1 | AH37: 0 | AI37: 1.3 | AJ37: 63.4 | AK37: 101.4 | AL37: 176
A38: 112011 | B38: 埼玉県 | C38: 川越市 | D38: 1171 | E38: Aa1 | F38: A | G38: a | H38: 1 | I38: 313462 | J38: 8.8 | K38: 57 | L38: 88.7 | M38: 100.9 | N38: 1595 | O38: 82 | P38: 0 | Q38: 68.6 | R38: 98.2 | S38: 95.93 | T38: 109.11 | U38: 109.11 | V38: 58.69 | W38: 50.42 | X38: 87.9 | Y38: 87.9 | Z38: 163.4 | AA38: 11661 | AB38: 6273 | AC38: 5389 | AD38: 4749 | AE38: 9.2 | AF38: 101.8 | AG38: 100.7 | AH38: 0.3 | AI38: 1.9 | AJ38: 79.7 | AK38: 94.9 | AL38: 49
A39: 112038 | B39: 埼玉県 | C39: 川口市 | D39: 1171 | E39: Aa1 | F39: A | G39: a | H39: 1 | I39: 534316 | J39: 12.4 | K39: 62 | L39: 87.9 | M39: 105.1 | N39: 1998 | O39: 124 | P39: 0 | Q39: 85.8 | R39: 94.3 | S39: 111.6 | T39: 129.04 | U39: 129.04 | V39: 64.09 | W39: 64.95 | X39: 86.5 | Y39: 86.5 | Z39: 174.1 | AA39: 12844 | AB39: 6379 | AC39: 6465 | AD39: 6763 | AE39: 7.2 | AF39: 110.9 | AG39: 110.9 | AH39: 0 | AI39: 1.5 | AJ39: 59.1 | AK39: 101.4 | AL39: 101
A40: 112089 | B40: 埼玉県 | C40: 所沢市 | D40: 1171 | E40: Aa1 | F40: A | G40: a | H40: 1 | I40: 324987 | J40: 10.2 | K40: 53 | L40: 94.5 | M40: 102.1 | N40: 1639 | O40: 99 | P40: 0 | Q40: 93.8 | R40: 98.5 | S40: 97.06 | T40: 98.92 | U40: 98.92 | V40: 50.45 | W40: 48.48 | X40: 98.1 | Y40: 98.1 | Z40: 192.4 | AA40: 10232 | AB40: 5218 | AC40: 5014 | AD40: 4779 | AE40: 8 | AF40: 103.3 | AG40: 103.3 | AH40: 0 | AI40: 1.6 | AJ40: 77.2 | AK40: 97.5 | AL40: 58
A41: 112143 | B41: 埼玉県 | C41: 春日部市 | D41: 1171 | E41: Aa1 | F41: A | G41: a | H41: 1 | I41: 209346 | J41: 8.8 | K41: 34 | L41: 89.8 | M41: 95.6 | N41: 2376 | O41: 92 | P41: 0 | Q41: 87.3 | R41: 96.9 | S41: 125.24 | T41: 144.88 | U41: 144.88 | V41: 60.18 | W41: 84.7 | X41: 86.4 | Y41: 86.4 | Z41: 208.1 | AA41: 13836 | AB41: 5747 | AC41: 8089 | AD41: 13956 | AE41: 2.9 | AF41: 118.4 | AG41: 118.4 | AH41: 0 | AI41: 1.4 | AJ41: 45.9 | AK41: 103 | AL41: 167
A42: 112151 | B42: 埼玉県 | C42: 狭山市 | D42: 1171 | E42: Aa1 | F42: A | G42: a | H42: 1 | I42: 144869 | J42: 8.2 | K42: 47 | L42: 96.7 | M42: 98.1 | N42: 1727 | O42: 73 | P42: 0 | Q42: 81.1 | R42: 98.8 | S42: 105.06 | T42: 105.99 | U42: 105.99 | V42: 41.12 | W42: 64.87 | X42: 99.1 | Y42: 99.1 | Z42: 255.5 | AA42: 11924 | AB42: 4627 | AC42: 7298 | AD42: 6299 | AE42: 4.1 | AF42: 111.6 | AG42: 111.5 | AH42: 0 | AI42: 2 | AJ42: 78.2 | AK42: 97.2 | AL42: 78
A43: 112194 | B43: 埼玉県 | C43: 上尾市 | D43: 1171 | E43: Aa1 | F43: A | G43: a | H43: 1 | I43: 192048 | J43: 7.8 | K43: 46 | L43: 83.6 | M43: 106.4 | N43: 2156 | O43: 80 | P43: 0 | Q43: 88.7 | R43: 96.7 | S43: 118.84 | T43: 136.31 | U43: 136.31 | V43: 62.35 | W43: 73.96 | X43: 87.2 | Y43: 87.2 | Z43: 190.6 | AA43: 13192 | AB43: 6034 | AC43: 7158 | AD43: 7682 | AE43: 3.3 | AF43: 100.3 | AG43: 100.3 | AH43: 0 | AI43: 1.4 | AJ43: 66.5 | AK43: 99.8 | AL43: 90
A44: 112216 | B44: 埼玉県 | C44: 草加市 | D44: 1171 | E44: Aa1 | F44: A | G44: a | H44: 1 | I44: 245559 | J44: 10.1 | K44: 38 | L44: 98 | M44: 108.8 | N44: 1947 | O44: 100 | P44: 0 | Q44: 88 | R44: 94.3 | S44: 99.97 | T44: 124.25 | U44: 124.25 | V44: 61.61 | W44: 62.64 | X44: 80.5 | Y44: 80.5 | Z44: 162.3 | AA44: 12485 | AB44: 6190 | AC44: 6294 | AD44: 12278 | AE44: 3.2 | AF44: 98.6 | AG44: 100.5 | AH44: 0 | AI44: 2 | AJ44: 67 | AK44: 103.3 | AL44: 119
A45: 112224 | B45: 埼玉県 | C45: 越谷市 | D45: 1171 | E45: Aa1 | F45: A | G45: a | H45: 1 | I45: 290655 | J45: 10.2 | K45: 38 | L45: 84.1 | M45: 102.1 | N45: 2365 | O45: 105 | P45: 0 | Q45: 86.3 | R45: 96.4 | S45: 116.38 | T45: 112.79 | U45: 112.79 | V45: 64.79 | W45: 48 | X45: 103.2 | Y45: 103.2 | Z45: 179.6 | AA45: 10971 | AB45: 6303 | AC45: 4669 | AD45: 11179 | AE45: 3.4 | AF45: 106.4 | AG45: 108.1 | AH45: 0 | AI45: 1.8 | AJ45: 67 | AK45: 103.6 | AL45: 94
A46: 112241 | B46: 埼玉県 | C46: 戸田市 | D46: 1171 | E46: Aa1 | F46: A | G46: a | H46: 1 | I46: 131999 | J46: 12.3 | K46: 48 | L46: 93.6 | M46: 115 | N46: 1023 | O46: 106 | P46: 0 | Q46: 83.2 | R46: 97.4 | S46: 74.6 | T46: 72.72 | U46: 72.72 | V46: 51.21 | W46: 21.5 | X46: 102.6 | Y46: 102.6 | Z46: 145.7 | AA46: 8383 | AB46: 5904 | AC46: 2479 | AD46: 11000 | AE46: 3.5 | AF46: 100.2 | AG46: 103.4 | AH46: 0 | AI46: 1.4 | AJ46: 56.1 | AK46: 98.4 | AL46: 70
A47: 112259 | B47: 埼玉県 | C47: 入間市 | D47: 1171 | E47: Aa1 | F47: A | G47: a | H47: 1 | I47: 130011 | J47: 8.4 | K47: 35 | L47: 88.6 | M47: 92.3 | N47: 1815 | O47: 81 | P47: 0 | Q47: 86 | R47: 97.7 | S47: 100.59 | T47: 108.64 | U47: 108.64 | V47: 46.15 | W47: 62.49 | X47: 92.6 | Y47: 92.6 | Z47: 217.9 | AA47: 11337 | AB47: 4816 | AC47: 6521 | AD47: 8126 | AE47: 4.4 | AF47: 110.2 | AG47: 110.2 | AH47: 0 | AI47: 2.2 | AJ47: 80.8 | AK47: 98.3 | AL47: 46
A48: 112275 | B48: 埼玉県 | C48: 朝霞市 | D48: 1171 | E48: Aa1 | F48: A | G48: a | H48: 1 | I48: 140264 | J48: 13.3 | K48: 39 | L48: 97.8 | M48: 118.2 | N48: 1155 | O48: 128 | P48: 0 | Q48: 82.2 | R48: 99.1 | S48: 61.27 | T48: 57.18 | U48: 57.18 | V48: 47.49 | W48: 9.69 | X48: 107.1 | Y48: 107.1 | Z48: 129 | AA48: 5970 | AB48: 4958 | AC48: 1012 | AD48: 10019 | AE48: 6.6 | AF48: 107.7 | AG48: 108.1 | AH48: 0 | AI48: 1.1 | AJ48: 82.3 | AK48: 98.6 | AL48: 25
A49: 112305 | B49: 埼玉県 | C49: 新座市 | D49: 1171 | E49: Aa1 | F49: A | G49: a | H49: 1 | I49: 159342 | J49: 11.1 | K49: 39 | L49: 95.8 | M49: 112.5 | N49: 1639 | O49: 110 | P49: 0 | Q49: 97.3 | R49: 98.4 | S49: 88.63 | T49: 88.09 | U49: 88.09 | V49: 39.57 | W49: 48.52 | X49: 100.6 | Y49: 100.6 | Z49: 224 | AA49: 8926 | AB49: 4010 | AC49: 4916 | AD49: 9373 | AE49: 3 | AF49: 120.6 | AG49: 122.1 | AH49: 0 | AI49: 1.7 | AJ49: 75.6 | AK49: 101.2 | AL49: 82
A50: 112356 | B50: 埼玉県 | C50: 富士見市 | D50: 1171 | E50: Aa1 | F50: A | G50: a | H50: 1 | I50: 106640 | J50: 12.1 | K50: 39 | L50: 95 | M50: 107.8 | N50: 1650 | O50: 127 | P50: 0 | Q50: 82 | R50: 99.3 | S50: 87.69 | T50: 82.21 | U50: 82.21 | V50: 47.51 | W50: 34.7 | X50: 106.7 | Y50: 106.7 | Z50: 184.6 | AA50: 7867 | AB50: 4547 | AC50: 3321 | AD50: 13330 | AE50: 2.8 | AF50: 113.1 | AG50: 113.1 | AH50: 0 | AI50: 1.9 | AJ50: 74.1 | AK50: 100.4 | AL50: 48
A51: 112372 | B51: 埼玉県 | C51: 三郷市 | D51: 1171 | E51: Aa1 | F51: A | G51: a | H51: 1 | I51: 121504 | J51: 8.6 | K51: 38 | L51: 85.2 | M51: 98.9 | N51: 2214 | O51: 92 | P51: 0 | Q51: 84.2 | R51: 88.7 | S51: 112.05 | T51: 130.37 | U51: 190.63 | V51: 62.48 | W51: 67.89 | X51: 85.9 | Y51: 58.8 | Z51: 179.3 | AA51: 12179 | AB51: 5836 | AC51: 6342 | AD51: 6750 | AE51: 5 | AF51: 110 | AG51: 109 | AH51: 0 | AI51: 1.4 | AJ51: 48.4 | AK51: 102.6 | AL51: 226
A52: 112453 | B52: 埼玉県 | C52: ふじみ野市 | D52: 1171 | E52: Aa1 | F52: A | G52: a | H52: 1 | I52: 107644 | J52: 14.1 | K52: 39 | L52: 94 | M52: 112.6 | N52: 1367 | O52: 116 | P52: 0 | Q52: 82.2 | R52: 97.3 | S52: 78.45 | T52: 67.78 | U52: 67.78 | V52: 45.81 | W52: 21.97 | X52: 115.7 | Y52: 115.7 | Z52: 171.3 | AA52: 8245 | AB52: 5572 | AC52: 2673 | AD52: 10764 | AE52: 4.7 | AF52: 113.9 | AG52: 113.9 | AH52: 0 | AI52: 1.6 | AJ52: 83.3 | AK52: 91.9 | AL52: 26
A53: 122033 | B53: 千葉県 | C53: 市川市 | D53: 1171 | E53: Aa1 | F53: A | G53: a | H53: 1 | I53: 373500 | J53: 16 | K53: 49 | L53: 75.9 | M53: 82.2 | N53: 2563 | O53: 157 | P53: 109.2 | Q53: 88.8 | R53: 92.7 | S53: 139.15 | T53: 131.68 | U53: 131.68 | V53: 86.14 | W53: 45.54 | X53: 105.7 | Y53: 105.7 | Z53: 161.5 | AA53: 13408 | AB53: 8771 | AC53: 4637 | AD53: 5929 | AE53: 4.7 | AF53: 104.3 | AG53: 104.2 | AH53: 0.7 | AI53: 1.2 | AJ53: 61.2 | AK53: 99.9 | AL53: 111
A54: 122041 | B54: 千葉県 | C54: 船橋市 | D54: 1171 | E54: Aa1 | F54: A | G54: a | H54: 1 | I54: 580982 | J54: 10.8 | K54: 60 | L54: 90 | M54: 104.5 | N54: 2211 | O54: 116 | P54: 93.5 | Q54: 79.9 | R54: 94.5 | S54: 134.64 | T54: 192.95 | U54: 213 | V54: 81.42 | W54: 111.53 | X54: 69.8 | Y54: 63.2 | Z54: 165.4 | AA54: 17965 | AB54: 7581 | AC54: 10384 | AD54: 5430 | AE54: 4 | AF54: 102.7 | AG54: 102.7 | AH54: 0 | AI54: 1.5 | AJ54: 54.9 | AK54: 103.2 | AL54: 217
A55: 122076 | B55: 千葉県 | C55: 松戸市 | D55: 1171 | E55: Aa1 | F55: A | G55: a | H55: 1 | I55: 434736 | J55: 10.7 | K55: 61 | L55: 87.2 | M55: 91.1 | N55: 2468 | O55: 109 | P55: 1159 | Q55: 80.2 | R55: 96.2 | S55: 148.12 | T55: 150 | U55: 180.38 | V55: 80.08 | W55: 69.92 | X55: 98.7 | Y55: 82.1 | Z55: 185 | AA55: 14751 | AB55: 7875 | AC55: 6876 | AD55: 8051 | AE55: 3.3 | AF55: 106.2 | AG55: 104.4 | AH55: 0 | AI55: 1.8 | AJ55: 65.1 | AK55: 101.9 | AL55: 112
A56: 122165 | B56: 千葉県 | C56: 習志野市 | D56: 1171 | E56: Aa1 | F56: A | G56: a | H56: 1 | I56: 167380 | J56: 11.8 | K56: 54 | L56: 95.5 | M56: 103.3 | N56: 2192 | O56: 110 | P56: 242.2 | Q56: 70.4 | R56: 97.6 | S56: 152.05 | T56: 137.88 | U56: 137.88 | V56: 73.57 | W56: 64.31 | X56: 110.3 | Y56: 110.3 | Z56: 206.7 | AA56: 14781 | AB56: 7887 | AC56: 6895 | AD56: 4292 | AE56: 5.4 | AF56: 108.4 | AG56: 108.1 | AH56: 0 | AI56: 1.9 | AJ56: 71.5 | AK56: 101.2 | AL56: 131
A57: 122173 | B57: 千葉県 | C57: 柏市 | D57: 1171 | E57: Aa1 | F57: A | G57: a | H57: 1 | I57: 387366 | J57: 8.4 | K57: 48 | L57: 90.2 | M57: 98.8 | N57: 2357 | O57: 83 | P57: 0 | Q57: 77.2 | R57: 91.1 | S57: 141.99 | T57: 148 | U57: 148 | V57: 85.55 | W57: 62.45 | X57: 95.9 | Y57: 95.9 | Z57: 166 | AA57: 14827 | AB57: 8571 | AC57: 6256 | AD57: 7747 | AE57: 3.6 | AF57: 103.7 | AG57: 103.7 | AH57: 0 | AI57: 1.9 | AJ57: 75.4 | AK57: 98.8 | AL57: 86
A58: 122203 | B58: 千葉県 | C58: 流山市 | D58: 1171 | E58: Aa1 | F58: A | G58: a | H58: 1 | I58: 184663 | J58: 9.2 | K58: 35 | L58: 91.9 | M58: 111.2 | N58: 2200 | O58: 98 | P58: 0 | Q58: 79.5 | R58: 92.9 | S58: 121.33 | T58: 129.96 | U58: 129.96 | V58: 74.87 | W58: 55.09 | X58: 93.4 | Y58: 93.4 | Z58: 162.1 | AA58: 12141 | AB58: 6994 | AC58: 5147 | AD58: 9233 | AE58: 4 | AF58: 108.3 | AG58: 107.3 | AH58: 0 | AI58: 1.7 | AJ58: 69 | AK58: 98.6 | AL58: 92
A59: 122211 | B59: 千葉県 | C59: 八千代市 | D59: 1171 | E59: Aa1 | F59: A | G59: a | H59: 1 | I59: 187353 | J59: 8.9 | K59: 53 | L59: 92.5 | M59: 87.3 | N59: 2101 | O59: 93 | P59: 0 | Q59: 81.5 | R59: 99.2 | S59: 123.72 | T59: 118.92 | U59: 118.92 | V59: 80.45 | W59: 38.47 | X59: 104 | Y59: 104 | Z59: 153.8 | AA59: 11348 | AB59: 7677 | AC59: 3671 | AD59: 6245 | AE59: 5.5 | AF59: 102.1 | AG59: 102.4 | AH59: 0 | AI59: 1.7 | AJ59: 80.1 | AK59: 97.2 | AL59: 41
A60: 122220 | B60: 千葉県 | C60: 我孫子市 | D60: 1171 | E60: Aa1 | F60: A | G60: a | H60: 1 | I60: 110861 | J60: 8.2 | K60: 51 | L60: 84.3 | M60: 83.3 | N60: 2178 | O60: 84 | P60: 0 | Q60: 75.2 | R60: 99.1 | S60: 123.16 | T60: 150.05 | U60: 163 | V60: 82.91 | W60: 67.14 | X60: 82.1 | Y60: 75.6 | Z60: 148.5 | AA60: 14673 | AB60: 8108 | AC60: 6565 | AD60: 6159 | AE60: 5.4 | AF60: 110.1 | AG60: 111.1 | AH60: 0 | AI60: 1.3 | AJ60: 66.1 | AK60: 102.1 | AL60: 107
A61: 122271 | B61: 千葉県 | C61: 浦安市 | D61: 1171 | E61: Aa1 | F61: A | G61: a | H61: 1 | I61: 169678 | J61: 13.4 | K61: 37 | L61: 99.8 | M61: 100.4 | N61: 1848 | O61: 107 | P61: 0 | Q61: 84.1 | R61: 97.8 | S61: 109.24 | T61: 99.18 | U61: 99.18 | V61: 71.75 | W61: 27.43 | X61: 110.1 | Y61: 110.1 | Z61: 152.2 | AA61: 12362 | AB61: 8943 | AC61: 3419 | AD61: 12120 | AE61: 2.8 | AF61: 100.9 | AG61: 102.1 | AH61: 8.3 | AI61: 1.5 | AJ61: 81.9 | AK61: 101.4 | AL61: 53
A62: 132021 | B62: 東京都 | C62: 立川市 | D62: 1171 | E62: Aa1 | F62: A | G62: a | H62: 1 | I62: 184661 | J62: 9.9 | K62: 61 | L62: 100 | M62: 105.5 | N62: 1408 | O62: 85 | P62: 57.6 | Q62: 86.1 | R62: 99.8 | S62: 112.21 | T62: 91.9 | U62: 91.9 | V62: 68.74 | W62: 23.16 | X62: 122.1 | Y62: 122.1 | Z62: 163.2 | AA62: 10686 | AB62: 7994 | AC62: 2693 | AD62: 4294 | AE62: 6.3 | AF62: 110.9 | AG62: 111.7 | AH62: 0 | AI62: 1.5 | AJ62: 74.9 | AK62: 100.7 | AL62: 73
A63: 132039 | B63: 東京都 | C63: 武蔵野市 | D63: 1171 | E63: Aa1 | F63: A | G63: a | H63: 1 | I63: 147975 | J63: 15.8 | K63: 52 | L63: 100 | M63: 112.7 | N63: 1199 | O63: 138 | P63: 0 | Q63: 100.4 | R63: 100 | S63: 74.81 | T63: 73.97 | U63: 73.97 | V63: 63.78 | W63: 10.19 | X63: 101.1 | Y63: 101.1 | Z63: 117.3 | AA63: 8474 | AB63: 7307 | AC63: 1168 | AD63: 7046 | AE63: 5.9 | AF63: 105.3 | AG63: 100.1 | AH63: 0 | AI63: 1.5 | AJ63: 65.4 | AK63: 100 | AL63: 54
A64: 132047 | B64: 東京都 | C64: 三鷹市 | D64: 1171 | E64: Aa1 | F64: A | G64: a | H64: 1 | I64: 190774 | J64: 12.4 | K64: 53 | L64: 100 | M64: 110.3 | N64: 1258 | O64: 116 | P64: 64.4 | Q64: 90 | R64: 100 | S64: 83.48 | T64: 85.98 | U64: 85.98 | V64: 70.7 | W64: 15.29 | X64: 97.1 | Y64: 97.1 | Z64: 118.1 | AA64: 9200 | AB64: 7564 | AC64: 1636 | AD64: 8672 | AE64: 6.2 | AF64: 100.7 | AG64: 102.6 | AH64: 0 | AI64: 1.7 | AJ64: 46.1 | AK64: 103.5 | AL64: 53
A65: 132063 | B65: 東京都 | C65: 府中市 | D65: 1171 | E65: Aa1 | F65: A | G65: a | H65: 1 | I65: 260508 | J65: 10.5 | K65: 48 | L65: 100 | M65: 103.5 | N65: 908 | O65: 96 | P65: 0 | Q65: 100 | R65: 100 | S65: 64.29 | T65: 63.14 | U65: 63.14 | V65: 52.22 | W65: 10.92 | X65: 101.8 | Y65: 101.8 | Z65: 123.1 | AA65: 6934 | AB65: 5735 | AC65: 1199 | AD65: 16282 | AE65: 2.5 | AF65: 105.2 | AG65: 106.3 | AH65: 0 | AI65: 1.4 | AJ65: 88.4 | AK65: 99.7 | AL65: 17
A66: 132071 | B66: 東京都 | C66: 昭島市 | D66: 1171 | E66: Aa1 | F66: A | G66: a | H66: 1 | I66: 113463 | J66: 9.3 | K66: 43 | L66: 99.9 | M66: 110.6 | N66: 1347 | O66: 79 | P66: 0 | Q66: 82.8 | R66: 99.4 | S66: 113.09 | T66: 93.52 | U66: 93.52 | V66: 60.39 | W66: 33.13 | X66: 120.9 | Y66: 120.9 | Z66: 187.3 | AA66: 11039 | AB66: 7128 | AC66: 3911 | AD66: 7091 | AE66: 4 | AF66: 113.1 | AG66: 113.6 | AH66: 0 | AI66: 1.2 | AJ66: 84.6 | AK66: 99.6 | AL66: 38
A67: 132080 | B67: 東京都 | C67: 調布市 | D67: 1171 | E67: Aa1 | F67: A | G67: a | H67: 1 | I67: 238087 | J67: 12.8 | K67: 49 | L67: 100 | M67: 111.2 | N67: 1276 | O67: 122 | P67: 0 | Q67: 80 | R67: 100 | S67: 74.19 | T67: 87.63 | U67: 87.63 | V67: 59.06 | W67: 28.58 | X67: 84.7 | Y67: 84.7 | Z67: 125.6 | AA67: 9227 | AB67: 6218 | AC67: 3009 | AD67: 13227 | AE67: 3.7 | AF67: 99.3 | AG67: 99.6 | AH67: 0 | AI67: 1.5 | AJ67: 75 | AK67: 99.4 | AL67: 30
A68: 132098 | B68: 東京都 | C68: 町田市 | D68: 1171 | E68: Aa1 | F68: A | G68: a | H68: 1 | I68: 425056 | J68: 8.4 | K68: 54 | L68: 98.9 | M68: 99.6 | N68: 2068 | O68: 84 | P68: 69.7 | Q68: 92.7 | R68: 99.3 | S68: 119.28 | T68: 119.6 | U68: 119.6 | V68: 65.37 | W68: 54.23 | X68: 99.7 | Y68: 99.7 | Z68: 182.5 | AA68: 11957 | AB68: 6535 | AC68: 5422 | AD68: 4167 | AE68: 11.4 | AF68: 106.7 | AG68: 108 | AH68: 0 | AI68: 1.8 | AJ68: 75.5 | AK68: 101.2 | AL68: 103
A69: 132101 | B69: 東京都 | C69: 小金井市 | D69: 1171 | E69: Aa1 | F69: A | G69: a | H69: 1 | I69: 124078 | J69: 11 | K69: 48 | L69: 100 | M69: 111.3 | N69: 1309 | O69: 110 | P69: 0 | Q69: 99.6 | R69: 100 | S69: 79.45 | T69: 43.68 | U69: 43.68 | V69: 33.77 | W69: 9.92 | X69: 181.9 | Y69: 181.9 | Z69: 235.3 | AA69: 4385 | AB69: 3389 | AC69: 995 | AD69: 9544 | AE69: 2.9 | AF69: 105.8 | AG69: 106.6 | AH69: 0 | AI69: 2.4 | AJ69: 89.7 | AK69: 95.8 | AL69: 9
A70: 132110 | B70: 東京都 | C70: 小平市 | D70: 1171 | E70: Aa1 | F70: A | G70: a | H70: 1 | I70: 195207 | J70: 9.9 | K70: 46 | L70: 100 | M70: 109.7 | N70: 1655 | O70: 95 | P70: 0 | Q70: 96.4 | R70: 99.9 | S70: 98.7 | T70: 77.94 | U70: 77.94 | V70: 57.86 | W70: 20.08 | X70: 126.6 | Y70: 126.6 | Z70: 170.6 | AA70: 8058 | AB70: 5982 | AC70: 2076 | AD70: 7808 | AE70: 3.2 | AF70: 112.2 | AG70: 112.2 | AH70: 0 | AI70: 1.4 | AJ70: 83 | AK70: 98.3 | AL70: 37
A71: 132128 | B71: 東京都 | C71: 日野市 | D71: 1171 | E71: Aa1 | F71: A | G71: a | H71: 1 | I71: 179641 | J71: 8 | K71: 63 | L71: 96 | M71: 100.8 | N71: 2068 | O71: 80 | P71: 0 | Q71: 86.8 | R71: 98.3 | S71: 113.2 | T71: 101.69 | U71: 133.19 | V71: 61.13 | W71: 40.56 | X71: 111.3 | Y71: 85 | Z71: 185.2 | AA71: 10178 | AB71: 6118 | AC71: 4060 | AD71: 17964 | AE71: 2.6 | AF71: 104.6 | AG71: 106 | AH71: 1 | AI71: 2.2 | AJ71: 72.4 | AK71: 103.2 | AL71: 88
A72: 132136 | B72: 東京都 | C72: 東村山市 | D72: 1171 | E72: Aa1 | F72: A | G72: a | H72: 1 | I72: 151259 | J72: 9.1 | K72: 42 | L72: 100 | M72: 109.6 | N72: 1936 | O72: 89 | P72: 0 | Q72: 87.7 | R72: 99.2 | S72: 121.12 | T72: 112.21 | U72: 112.21 | V72: 62.1 | W72: 50.1 | X72: 107.9 | Y72: 107.9 | Z72: 195 | AA72: 11510 | AB72: 6370 | AC72: 5139 | AD72: 25210 | AE72: 2.5 | AF72: 103.8 | AG72: 107 | AH72: 0 | AI72: 1.7 | AJ72: 60 | AK72: 105.4 | AL72: 82
A73: 132144 | B73: 東京都 | C73: 国分寺市 | D73: 1171 | E73: Aa1 | F73: A | G73: a | H73: 1 | I73: 127268 | J73: 11.4 | K73: 45 | L73: 100 | M73: 106.6 | N73: 1699 | O73: 111 | P73: 0 | Q73: 100 | R73: 99.4 | S73: 100.78 | T73: 91.43 | U73: 91.43 | V73: 56.3 | W73: 35.13 | X73: 110.2 | Y73: 110.2 | Z73: 179 | AA73: 9373 | AB73: 5772 | AC73: 3601 | AD73: 7954 | AE73: 3.8 | AF73: 90.3 | AG73: 91.7 | AH73: 0 | AI73: 2.7 | AJ73: 86.5 | AK73: 101.8 | AL73: 32
A74: 132225 | B74: 東京都 | C74: 東久留米市 | D74: 1171 | E74: Aa1 | F74: A | G74: a | H74: 1 | I74: 117020 | J74: 9.1 | K74: 53 | L74: 100 | M74: 107.3 | N74: 2134 | O74: 91 | P74: 0 | Q74: 87.5 | R74: 99.7 | S74: 128.64 | T74: 138.74 | U74: 138.74 | V74: 67.52 | W74: 71.22 | X74: 92.7 | Y74: 92.7 | Z74: 190.5 | AA74: 13939 | AB74: 6783 | AC74: 7156 | AD74: 14628 | AE74: 3.2 | AF74: 115.4 | AG74: 118.1 | AH74: 0 | AI74: 2.3 | AJ74: 75.3 | AK74: 101.7 | AL74: 51
A75: 132241 | B75: 東京都 | C75: 多摩市 | D75: 1171 | E75: Aa1 | F75: A | G75: a | H75: 1 | I75: 148398 | J75: 7.9 | K75: 55 | L75: 100 | M75: 105.4 | N75: 2068 | O75: 74 | P75: 0 | Q75: 94.1 | R75: 99.8 | S75: 112.78 | T75: 89.01 | U75: 89.01 | V75: 69.92 | W75: 19.09 | X75: 126.7 | Y75: 126.7 | Z75: 161.3 | AA75: 9516 | AB75: 7475 | AC75: 2041 | AD75: 8729 | AE75: 4.9 | AF75: 111.1 | AG75: 111.1 | AH75: 0 | AI75: 3 | AJ75: 97.7 | AK75: 73.1 | AL75: 3
A76: 132292 | B76: 東京都 | C76: 西東京市 | D76: 1171 | E76: Aa1 | F76: A | G76: a | H76: 1 | I76: 206066 | J76: 13 | K76: 38 | L76: 100 | M76: 106.6 | N76: 1612 | O76: 130 | P76: 0 | Q76: 81.8 | R76: 97.5 | S76: 100.05 | T76: 90.22 | U76: 90.22 | V76: 61.17 | W76: 29.06 | X76: 110.9 | Y76: 110.9 | Z76: 163.6 | AA76: 9023 | AB76: 6117 | AC76: 2906 | AD76: 18733 | AE76: 2.8 | AF76: 107.4 | AG76: 107.4 | AH76: 2.6 | AI76: 1.7 | AJ76: 79.8 | AK76: 99.9 | AL76: 31
A77: 142034 | B77: 神奈川県 | C77: 平塚市 | D77: 1171 | E77: Aa1 | F77: A | G77: a | H77: 1 | I77: 250257 | J77: 8 | K77: 48 | L77: 97.6 | M77: 99.3 | N77: 2035 | O77: 71 | P77: 0 | Q77: 86.6 | R77: 97.9 | S77: 114.37 | T77: 95.73 | U77: 127.29 | V77: 59.28 | W77: 36.45 | X77: 119.5 | Y77: 89.8 | Z77: 192.9 | AA77: 10808 | AB77: 6693 | AC77: 4115 | AD77: 6586 | AE77: 3.5 | AF77: 105.3 | AG77: 105.1 | AH77: 0 | AI77: 2.1 | AJ77: 68.6 | AK77: 101.1 | AL77: 134
A78: 142042 | B78: 神奈川県 | C78: 鎌倉市 | D78: 1171 | E78: Aa1 | F78: A | G78: a | H78: 1 | I78: 173078 | J78: 7.6 | K78: 50 | L78: 97.8 | M78: 107.3 | N78: 2302 | O78: 72 | P78: 56 | Q78: 85.8 | R78: 93.5 | S78: 128.76 | T78: 154.23 | U78: 185.17 | V78: 68.24 | W78: 85.99 | X78: 83.5 | Y78: 69.5 | Z78: 188.7 | AA78: 16380 | AB78: 7248 | AC78: 9132 | AD78: 3462 | AE78: 8.8 | AF78: 108.5 | AG78: 108.5 | AH78: 0 | AI78: 1.6 | AJ78: 60.2 | AK78: 103.5 | AL78: 199
A79: 142051 | B79: 神奈川県 | C79: 藤沢市 | D79: 1171 | E79: Aa1 | F79: A | G79: a | H79: 1 | I79: 422380 | J79: 9.4 | K79: 62 | L79: 95.9 | M79: 96.1 | N79: 2203 | O79: 88 | P79: 63.3 | Q79: 80.6 | R79: 98.5 | S79: 127.24 | T79: 126.67 | U79: 126.67 | V79: 77.74 | W79: 48.93 | X79: 100.4 | Y79: 100.4 | Z79: 163.7 | AA79: 13505 | AB79: 8288 | AC79: 5217 | AD79: 4911 | AE79: 5.8 | AF79: 107.1 | AG79: 106.6 | AH79: 0 | AI79: 1.8 | AJ79: 69.9 | AK79: 101.5 | AL79: 109
A80: 142069 | B80: 神奈川県 | C80: 小田原市 | D80: 1171 | E80: Aa1 | F80: A | G80: a | H80: 1 | I80: 157100 | J80: 7.8 | K80: 55 | L80: 83.1 | M80: 100.3 | N80: 2636 | O80: 62 | P80: 0 | Q80: 70.3 | R80: 93.8 | S80: 166.41 | T80: 174.23 | U80: 221.62 | V80: 91.25 | W80: 82.98 | X80: 95.5 | Y80: 75.1 | Z80: 182.4 | AA80: 22121 | AB80: 11586 | AC80: 10535 | AD80: 2909 | AE80: 4.3 | AF80: 103.5 | AG80: 103.4 | AH80: 0 | AI80: 1.7 | AJ80: 55.7 | AK80: 100.9 | AL80: 249
A81: 142077 | B81: 神奈川県 | C81: 茅ヶ崎市 | D81: 1171 | E81: Aa1 | F81: A | G81: a | H81: 1 | I81: 233848 | J81: 10.9 | K81: 44 | L81: 95.7 | M81: 97.1 | N81: 1878 | O81: 104 | P81: 0 | Q81: 85.7 | R81: 98.8 | S81: 111.4 | T81: 88.78 | U81: 88.78 | V81: 51.61 | W81: 37.17 | X81: 125.5 | Y81: 125.5 | Z81: 215.8 | AA81: 9245 | AB81: 5375 | AC81: 3871 | AD81: 5996 | AE81: 3.4 | AF81: 112.9 | AG81: 112.5 | AH81: 0 | AI81: 1.8 | AJ81: 59.2 | AK81: 100.4 | AL81: 122
A82: 142123 | B82: 神奈川県 | C82: 厚木市 | D82: 1171 | E82: Aa1 | F82: A | G82: a | H82: 1 | I82: 199945 | J82: 7.8 | K82: 48 | L82: 89.4 | M82: 93.8 | N82: 1974 | O82: 60 | P82: 0 | Q82: 86.1 | R82: 99.4 | S82: 110.28 | T82: 98.43 | U82: 98.43 | V82: 52.25 | W82: 46.18 | X82: 112 | Y82: 112 | Z82: 211.1 | AA82: 12776 | AB82: 6782 | AC82: 5995 | AD82: 9088 | AE82: 3.8 | AF82: 104.2 | AG82: 105.8 | AH82: 0 | AI82: 1.8 | AJ82: 76 | AK82: 101 | AL82: 98
A83: 142131 | B83: 神奈川県 | C83: 大和市 | D83: 1171 | E83: Aa1 | F83: A | G83: a | H83: 1 | I83: 230792 | J83: 12.6 | K83: 52 | L83: 95.5 | M83: 100.3 | N83: 2292 | O83: 118 | P83: 64.9 | Q83: 96.8 | R83: 99.7 | S83: 126.39 | T83: 145.35 | U83: 145.35 | V83: 82.49 | W83: 62.86 | X83: 87 | Y83: 87 | Z83: 153.2 | AA83: 15505 | AB83: 8800 | AC83: 6705 | AD83: 5245 | AE83: 5.2 | AF83: 108.3 | AG83: 109.6 | AH83: 0 | AI83: 1.6 | AJ83: 68.5 | AK83: 101.7 | AL83: 120
A84: 142158 | B84: 神奈川県 | C84: 海老名市 | D84: 1171 | E84: Aa1 | F84: A | G84: a | H84: 1 | I84: 131410 | J84: 12.3 | K84: 43 | L84: 96.2 | M84: 93.9 | N84: 1796 | O84: 99 | P84: 0 | Q84: 87.3 | R84: 98.3 | S84: 105.17 | T84: 91.54 | U84: 91.54 | V84: 50.7 | W84: 40.84 | X84: 114.9 | Y84: 114.9 | Z84: 207.4 | AA84: 11444 | AB84: 6338 | AC84: 5105 | AD84: 6571 | AE84: 4.4 | AF84: 109.7 | AG84: 110 | AH84: 2.6 | AI84: 1.5 | AJ84: 70.5 | AK84: 101.2 | AL84: 94
A85: 142166 | B85: 神奈川県 | C85: 座間市 | D85: 1171 | E85: Aa1 | F85: A | G85: a | H85: 1 | I85: 128980 | J85: 10.7 | K85: 43 | L85: 97.9 | M85: 108.7 | N85: 2634 | O85: 106 | P85: 0 | Q85: 93.3 | R85: 97.3 | S85: 138.09 | T85: 115.99 | U85: 115.99 | V85: 44.62 | W85: 71.37 | X85: 119.1 | Y85: 119.1 | Z85: 309.5 | AA85: 11632 | AB85: 4475 | AC85: 7157 | AD85: 8061 | AE85: 4.1 | AF85: 117.5 | AG85: 117.5 | AH85: 0 | AI85: 2 | AJ85: 65.3 | AK85: 103.2 | AL85: 101
A86: 262048 | B86: 京都府 | C86: 宇治市 | D86: 1171 | E86: Aa1 | F86: A | G86: a | H86: 1 | I86: 176890 | J86: 8.8 | K86: 35 | L86: 95.9 | M86: 96.5 | N86: 3082 | O86: 93 | P86: 71.5 | Q86: 84.4 | R86: 88.4 | S86: 162.29 | T86: 179.41 | U86: 206.35 | V86: 80.18 | W86: 99.23 | X86: 90.5 | Y86: 78.6 | Z86: 202.4 | AA86: 17070 | AB86: 7629 | AC86: 9441 | AD86: 3402 | AE86: 7.4 | AF86: 100.8 | AG86: 101 | AH86: 0 | AI86: 1.5 | AJ86: 53.7 | AK86: 102.4 | AL86: 241
A87: 272035 | B87: 大阪府 | C87: 豊中市 | D87: 1171 | E87: Aa1 | F87: A | G87: a | H87: 1 | I87: 408712 | J87: 13.3 | K87: 56 | L87: 100 | M87: 84.8 | N87: 1421 | O87: 121 | P87: 65.9 | Q87: 67.4 | R87: 99.9 | S87: 82.35 | T87: 84.79 | U87: 84.79 | V87: 52.05 | W87: 32.74 | X87: 97.1 | Y87: 97.1 | Z87: 158.2 | AA87: 9271 | AB87: 5691 | AC87: 3580 | AD87: 3682 | AE87: 10.5 | AF87: 104.8 | AG87: 104.8 | AH87: 0 | AI87: 1.5 | AJ87: 69.2 | AK87: 96.9 | AL87: 65
A88: 272043 | B88: 大阪府 | C88: 池田市 | D88: 1171 | E88: Aa1 | F88: A | G88: a | H88: 1 | I88: 100183 | J88: 11.4 | K88: 53 | L88: 96.7 | M88: 110 | N88: 1353 | O88: 102 | P88: 59.4 | Q88: 63.5 | R88: 99.9 | S88: 88.26 | T88: 82.81 | U88: 82.81 | V88: 57.05 | W88: 25.75 | X88: 106.6 | Y88: 106.6 | Z88: 154.7 | AA88: 9278 | AB88: 6393 | AC88: 2886 | AD88: 2708 | AE88: 11.5 | AF88: 103.7 | AG88: 103.7 | AH88: 0 | AI88: 1.2 | AJ88: 62.6 | AK88: 96.2 | AL88: 103
A89: 272051 | B89: 大阪府 | C89: 吹田市 | D89: 1171 | E89: Aa1 | F89: A | G89: a | H89: 1 | I89: 376579 | J89: 12.5 | K89: 59 | L89: 99.9 | M89: 107 | N89: 1609 | O89: 108 | P89: 56.8 | Q89: 77.8 | R89: 99.6 | S89: 104.62 | T89: 83.9 | U89: 83.9 | V89: 52.32 | W89: 31.58 | X89: 124.7 | Y89: 124.7 | Z89: 199.9 | AA89: 9662 | AB89: 6025 | AC89: 3636 | AD89: 3656 | AE89: 9.4 | AF89: 110.3 | AG89: 114.3 | AH89: 0 | AI89: 1.9 | AJ89: 64 | AK89: 100 | AL89: 88
A90: 272078 | B90: 大阪府 | C90: 高槻市 | D90: 1171 | E90: Aa1 | F90: A | G90: a | H90: 1 | I90: 349126 | J90: 11.2 | K90: 52 | L90: 99.5 | M90: 113.7 | N90: 1965 | O90: 108 | P90: 0 | Q90: 77.4 | R90: 98 | S90: 124.32 | T90: 128.45 | U90: 128.45 | V90: 56.95 | W90: 71.51 | X90: 96.8 | Y90: 96.8 | Z90: 218.3 | AA90: 13281 | AB90: 5888 | AC90: 7393 | AD90: 7758 | AE90: 2.1 | AF90: 106.2 | AG90: 106.2 | AH90: 0 | AI90: 2.1 | AJ90: 70.8 | AK90: 102.2 | AL90: 102
A91: 272094 | B91: 大阪府 | C91: 守口市 | D91: 1171 | E91: Aa1 | F91: A | G91: a | H91: 1 | I91: 143497 | J91: 14 | K91: 55 | L91: 100 | M91: 101 | N91: 2055 | O91: 125 | P91: 56.6 | Q91: 60.6 | R91: 100 | S91: 129.61 | T91: 94.17 | U91: 94.17 | V91: 64.68 | W91: 29.49 | X91: 137.6 | Y91: 137.6 | Z91: 200.4 | AA91: 10488 | AB91: 7204 | AC91: 3284 | AD91: 4348 | AE91: 5.6 | AF91: 117.3 | AG91: 117.4 | AH91: 0 | AI91: 1.4 | AJ91: 62.2 | AK91: 94.7 | AL91: 102
A92: 272108 | B92: 大阪府 | C92: 枚方市 | D92: 1171 | E92: Aa1 | F92: A | G92: a | H92: 1 | I92: 387422 | J92: 11.5 | K92: 63 | L92: 97.3 | M92: 101.9 | N92: 2618 | O92: 112 | P92: 0 | Q92: 85.8 | R92: 97.3 | S92: 148.66 | T92: 150 | U92: 172.07 | V92: 51.74 | W92: 98.26 | X92: 99.1 | Y92: 86.4 | Z92: 287.3 | AA92: 15445 | AB92: 5328 | AC92: 10117 | AD92: 3398 | AE92: 7.5 | AF92: 113.9 | AG92: 116.3 | AH92: 0 | AI92: 1.8 | AJ92: 71.4 | AK92: 101.6 | AL92: 150
A93: 272116 | B93: 大阪府 | C93: 茨木市 | D93: 1171 | E93: Aa1 | F93: A | G93: a | H93: 1 | I93: 280895 | J93: 11.1 | K93: 51 | L93: 99.2 | M93: 95.2 | N93: 2035 | O93: 102 | P93: 0 | Q93: 70.5 | R93: 99 | S93: 115.37 | T93: 94.62 | U93: 94.62 | V93: 54.91 | W93: 39.71 | X93: 121.9 | Y93: 121.9 | Z93: 210.1 | AA93: 10289 | AB93: 5971 | AC93: 4318 | AD93: 10804 | AE93: 2.6 | AF93: 116.7 | AG93: 115.8 | AH93: 0 | AI93: 2.1 | AJ93: 72.8 | AK93: 101.7 | AL93: 81
